Workbook

Sheet Index
A1: Index and File Details
B3: Index | H3: File Details
B5: Inputs | D5: Calculations | F5: Outputs | I5: Model | J5: Transgrid | CWOREZ - Capex Forecast Model
D6: Calc_Early_REZ | I6: Author | J6: AER
B7: Notes & Assumptions | D7: Calc_IPF | F7: ='Outputs|Models'!$A$1 -> Outputs | Models | I7: Revision | J7: 2026-01-22
B8: Inputs_RNIP | D8: Calc_Forecast | F8: ='Outputs|Tables'!$A$1 -> Outputs | Tables | I8: Status | J8: Final decision
B9: Adjustments | D9: Calculations
B10: Inputs_Adj_1
B11: Inputs_Adj_2
B12: Inputs_Applied
B15: Model Checks | H15: Instructions
B17: Worksheet | I17: Input Sheets
B18: =B8 -> Inputs_RNIP | D18: =Inputs_RNIP!C2 -> 0 | I18: Fill in any cells marked as input cells as seen on the right => | K18: user input
B19: =B9 -> Adjustments | D19: =Adjustments!G2 -> 0 | I19: Historical / Not applicable
B20: =B10 -> Inputs_Adj_1 | D20: =Inputs_Adj_1!C2 -> 0 | I20: Cells not marked as inputs should not be modified.
B21: =B11 -> Inputs_Adj_2 | D21: =Inputs_Adj_2!C2 -> 0 | I21: Confidential information | K21: user input
B22: =B12 -> Inputs_Applied | D22: =Inputs_Applied!C2 -> 0 | I22: AER final decision adjustment
B23: Calc_Early_REZ | D23: =SUM(Calc_Early_REZ!A3:A267) -> 0
B24: Calc_IPF | D24: =SUM(Calc_IPF!A3:A267) -> 0
B25: Calc_Forecast | D25: =SUM(Calc_Forecast!A3:A267) -> 0
B26: =D9 -> Calculations | D26: =SUM(Calculations!A3:A241) -> 0
B27: =F7 -> Outputs | Models | D27: =SUM('Outputs|Models'!A2:A149) -> 0
B28: =F8 -> Outputs | Tables | D28: =SUM('Outputs|Tables'!A2:A88) -> 0
B29: Total Error Check | D29: =IF(SUM(D18:D28)=0,0,1) -> 0
B31: End

Sheet Notes & Assumptions
A1: Assumptions & Notes
E3: User inputs in cells coloured like this
C4: * | E4: 1. Financial years are recorded in the Capex Forecast Model as tax years (e.g. 2017/18 is shown as 2018, 2018/19 is shown as 2019)
C5: * | E5: 2. Escalation is treated as follows:
E6: a. CPI escalation and Labour escalation are treated separately.
A9: Modifications
A10: Date | B10: Version | D10: Who | E10: Notes
A11: 2025-07-24 | B11: V 1.0 | C11: TGD | E11: RNIP
A12: 2025-12-18 | B12: V 2.0 | C12: TGD | E12: Transgrid response to IR009 required the following changes to the model including:
E13: Expanding the content on the 'Inputs_Applied' worksheet to split out the direct non labour forecast into IPF and remaining forecast (Refer to BQ36 to CV123).
E14: Updating the formulas in cells Y31 to AJ31 of 'Inputs_Applied' to sum the split of forecasts added in cells BQ36 to CV123.
E15: Adding three new worksheets called 'Calc_Early_REZ', 'Calc_IPF' and 'Calc_Forecast'.
E16: Expanding the 'Index' worksheet to include the three new worksheets plus the checks in cells D6:D9, B16:B18 and D16:D18.
E17: Amending formulas in original 'Calculations' worksheet to equal the sum of the new 'Calc_Early_REZ', 'Calc_IPF' and 'Calc_Forecast' worksheets in stead of performing the calculations now included in the three new worksheets. Refer to E7:P27, E31:P51, E55:P75, E110:P110, E114:P115, E119:P119, E136:P145, E149:P158, E162:P171, E188:P197, E201:P210
E18: Adding additional checks to 'Outputs|Models' to confirm as commissioned capex is less than or equal to as incurred capex. Refer to cells AB26:AF44 and A26:A44.
E19: Updating formulas in 'Output|Tables' to refer to the three new calculation worksheets instead of the 'Input' worksheet. Refer to cells L42:M47 and G62:I67.
E20: Updating formulas in 'Output|RIN' to account for the model structure changes. Refer to cells D24:I24, D32:I33, D54:H54, D88:H88, D123:H123 and G127:H127.
E21: Transgrid response to IR009 required changes to the confidentiality register including:
E22: Additional confidentiality claims in the 'Calc_Early_Rez' worksheet in cells Q20:Q22, E44:Q46, E68:Q70 and E92:Q94
E23: Additional confidentiality claims in the 'Calc_IPF' worksheet in cells L20:L22, Q20:Q22, L44:L46, Q44:Q46, L68:L70, Q68:Q70, L92:L94 and Q92:Q94.
E24: Additional confidentiality claims in the 'Calc_Forecast' worksheet in cells L20:M22, Q20:Q22, L44:Q46, L68:Q70 and L92:Q94
E25: Additional confidentiality claims in the 'Input_Applied' worksheet in cells BQ39:BT51, BQ106:BT109, CA39:CC51, CH39:CH51, CQ39:CV51, CA106:CA107, CB106:CC109, CH106:CH109, CQ106:CQ109, CR108:CR109 and CV106:CV109.
E26: Transgrid response to IR009 also included new functionality to account for two types of anticipated adjustments:
E27: Copied the original 'Inputs' worksheet and renamed it 'Inputs_RNIP'
E28: Renamed the original 'Inputs' worksheet to 'Inputs_Applied'
E29: Added the 'Adjustments' worksheet
E30: Added the 'Inputs_ Adj_1' worksheet to show the specific adjustments associated with aligning to the $188.1m nominal value
E31: Added the 'Inputs_ Adj_2' worksheet with the aim of implementing the proposed adjustment mechanism.
E32: Updated the 'Index' worksheet to include the additional worksheets

Sheet Inputs_RNIP
A2: Section Check | C2: =IF(SUM(W124,Y150:AK150,X181,X217,H124)=0,0,1) -> 0
A4: Output Reporting Format and Year
A5: Real
A6: 2026
A8: =IF(Real_or_Nom="Real", "Real $" & Report_Year, "$ Nominal") -> Real $2026
A10: Inflation and Labour Escalation
A13: Forecasts | K13: Rates
A14: Item | B14: Source | C14: Units | K14: =K20 -> 2020 | L14: 2021 | M14: 2022 | N14: 2023 | O14: 2024 | P14: 2025 | Q14: 2026 | R14: 2027 | S14: 2028 | T14: 2029 | U14: 2030 | V14: 2031
A15: Actual / Forecast Inflation | B15: ABS June to June / RBA Forecast | C15: % | K15: -0.003484320557 | L15: 0.03846153846 | M15: 0.06144781145 | N15: 0.06026962728 | O15: 0.03814510097 | P15: 0.024 | Q15: 0.032 | R15: 0.02599975634 | S15: 0.02599975634 | T15: 0.02599975634 | U15: 0.02599975634 | V15: 0.02599975634
A16: Real labour escalation | B16: AER Final Determination / Transgrid proposal | C16: % | R16: 0.004330457586 | S16: 0.003009413338 | T16: =AVERAGE(P16:S16) -> 0.003669935462 | U16: =T16 -> 0.003669935462 | V16: =U16 -> 0.003669935462
A19: Cumulative Factors | K19: Cumulative factors
A20: Item | B20: Source | C20: Units | J20: =K20-1 -> 2019 | K20: 2020 | L20: =K20+1 -> 2021 | M20: 2022 | N20: 2023 | O20: 2024 | P20: 2025 | Q20: 2026 | R20: 2027 | S20: 2028 | T20: 2029 | U20: =T20+1 -> 2030 | V20: =U20+1 -> 2031
A21: Inflation based to 2019 | B21: Calculated | C21: Factor | J21: 1 | K21: =J21*(1+K15) -> 0.9965156794 | L21: =K21*(1+L15) -> 1.034843206 | M21: =L21*(1+M15) -> 1.098432056 | N21: 1.164634146 | O21: 1.209059233 | P21: 1.238076655 | Q21: =P21*(1+Q15) -> 1.277695108 | R21: 1.310914869 | S21: 1.344998337 | T21: 1.379967966 | U21: =T21*(1+U15) -> 1.415846797 | V21: =U21*(1+V15) -> 1.452658468
A22: Labour based to 2024 | B22: Calculated | C22: Factor | J22: 1 | K22: =J22*(1+K16) -> 1 | L22: 1 | M22: 1 | N22: 1 | O22: 1 | P22: 1 | Q22: 1 | R22: 1.004330458 | S22: 1.007352903 | T22: 1.011049823 | U22: =T22*(1+U16) -> 1.014760311 | V22: =U22*(1+V16) -> 1.018484416
A23: Real 2024 to Real 2026 | B23: Calculated | C23: Factor | K23: =$Q$21/$O$21 -> 1.056768 | L23: =$Q$21/$O$21 -> 1.056768 | M23: =$Q$21/$O$21 -> 1.056768 | N23: =$Q$21/$O$21 -> 1.056768 | O23: =$Q$21/$O$21 -> 1.056768 | P23: 1.056768 | Q23: 1.056768 | R23: 1.056768 | S23: 1.056768 | T23: 1.056768 | U23: 1.056768 | V23: 1.056768
A25: Indexation | K25: Indexation
A26: Item | B26: Source | C26: Units | K26: =K20 -> 2020 | L26: 2021 | M26: 2022 | N26: 2023 | O26: 2024 | P26: 2025 | Q26: 2026 | R26: 2027 | S26: 2028 | T26: =T20 -> 2029 | U26: =U20 -> 2030 | V26: =V20 -> 2031
A27: Real 2026 End Period to Nominal Mid Period | B27: Calculated | C27: Factor | K27: =K21/$Q$21/(1+K$15)^0.5 -> 0.7812946244 | L27: =L21/$Q$21/(1+L$15)^0.5 -> 0.7947894845 | M27: 0.8344429381 | N27: 0.8852259302 | O27: 0.9287339395 | P27: 0.9575695434 | Q27: 0.9843740387 | R27: 1.012916461 | S27: 1.039252042 | T27: 1.066272342 | U27: 1.093995163 | V27: 1.12243877
A28: Real 2019 End Period to Nominal Mid Period | B28: Calculated | C28: Factor | K28: =K21/$J$21/(1+K$15)^0.5 -> 0.9982563195 | L28: =L21/$J$21/(1+L$15)^0.5 -> 1.015498636 | M28: 1.06616366 | N28: 1.13104884 | O28: 1.186638811 | P28: 1.223481921 | Q28: 1.257729894 | R28: 1.294198407 | S28: 1.32784725 | T28: 1.362370955 | U28: 1.397792268 | V28: 1.434134526
A31: Capital Expenditure
A33: Direct Non-Labour Costs
A36: Direct Non-Labour Costs | By Category | E36: Conversion | H36: Expenditure | I36: Mapping | K36: Spend Profile Assumption - As incurred | Y36: $ Spend Profile - As incurred (June 2026 dollars) - with 100% of IPF in 2026-27 | AN36: As Commissioned Profile Assumption | BA36: Direct Expenditure - As Commmissioned Profile (June 2026 dollars) | BO36: Mapping | BQ36: Direct Non Labour by Timing Category | BV36: IPF $ Spend Profile - As incurred (June 2026 dollars) | CJ36: Remaing Forecast $ Spend Profile - As incurred (June 2026 dollars)
A37: Category | B37: Source | C37: Units | E37: Dollar Year From | F37: Dollar Year To | H37: Total | I37: RIN Category | J37: RAB Asset Class | K37: 2020 | L37: 2021 | M37: 2022 | N37: 2023 | O37: 2024 | P37: 2025 | Q37: 2026 | R37: 2027 | S37: 2028 | T37: 2029 | U37: 2030 | V37: 2031 | W37: Total | Y37: 2020 | Z37: 2021 | AA37: 2022 | AB37: 2023 | AC37: 2024 | AD37: 2025 | AE37: 2026 | AF37: 2027 | AG37: 2028 | AH37: 2029 | AI37: 2030 | AJ37: 2031 | AK37: Total | AL37: FY27 IPF % | AN37: 2020 | AO37: 2021 | AP37: 2022 | AQ37: 2023 | AR37: 2024 | AS37: 2025 | AT37: 2026 | AU37: 2027 | AV37: 2028 | AW37: 2029 | AX37: 2030 | AY37: 2031 | BA37: 2020 | BB37: 2021 | BC37: 2022 | BD37: 2023 | BE37: 2024 | BF37: 2025 | BG37: 2026 | BH37: 2027 | BI37: 2028 | BJ37: 2029 | BK37: 2030 | BL37: 2031 | BM37: Total | BQ37: Early REZ | BR37: IPF | BS37: Forecast | BT37: Total | BV37: 2020 | BW37: 2021 | BX37: 2022 | BY37: 2023 | BZ37: 2024 | CA37: 2025 | CB37: 2026 | CC37: 2027 | CD37: 2028 | CE37: 2029 | CF37: 2030 | CG37: 2031 | CH37: IPF Total | CJ37: 2020 | CK37: 2021 | CL37: 2022 | CM37: 2023 | CN37: 2024 | CO37: 2025 | CP37: 2026 | CQ37: 2027 | CR37: 2028 | CS37: 2029 | CT37: 2030 | CU37: 2031 | CV37: Forecast Total
A38: Augmentation works - Design and Construction | BQ38: (June 2026 dollars)
A39: Construction Costs | D&C Contract - Transmission Line | B39: Project Team Input | C39: $Millions | E39: Nominal | F39: =Report_Year -> 2026 | H39: [C-i-C] | I39: 0 | J39: Transmission Lines | P39: 0.04 | Q39: 0.11 | R39: 0.52 | S39: 0.33 | T39: 0 | U39: 0 | V39: 0 | W39: 1 | X39: 0 | Y39: 0 | Z39: 0 | AA39: 0 | AB39: 0 | AC39: 0 | AD39: 0 | AE39: 0 | AF39: [C-i-C] | AG39: [C-i-C] | AH39: [C-i-C] | AI39: 0 | AJ39: 0 | AK39: [C-i-C] | AL39: 0.18228761 | AS39: 0 | AT39: 0 | AU39: 0.4973042602 | AV39: 0.5026957398 | AW39: 0 | AX39: 0 | AY39: 0 | BA39: 0 | BB39: 0 | BC39: 0 | BD39: 0 | BE39: 0 | BF39: 0 | BG39: [C-i-C] | BH39: [C-i-C] | BI39: [C-i-C] | BJ39: [C-i-C] | BK39: 0 | BL39: 0 | BM39: [C-i-C] | BO39: Transmission Lines - 0 | BQ39: [C-i-C] | BR39: [C-i-C] | BS39: [C-i-C] | BT39: [C-i-C] | BX39: 0 | BY39: 0 | BZ39: 0 | CA39: [C-i-C] | CB39: [C-i-C] | CC39: [C-i-C] | CH39: [C-i-C] | CQ39: [C-i-C] | CR39: [C-i-C] | CS39: [C-i-C] | CT39: 0 | CU39: 0 | CV39: [C-i-C]
A40: =A39 -> Construction Costs | D&C Contract - Transmission Line | B40: Project Team Input | C40: $Millions | E40: Nominal | F40: 2026 | H40: [C-i-C] | I40: Transmission towers | J40: Transmission Lines | P40: 0.04 | Q40: 0.11 | R40: 0.52 | S40: 0.33 | T40: 0 | U40: 0 | V40: 0 | W40: 1 | X40: 0 | Y40: 0 | Z40: 0 | AA40: 0 | AB40: 0 | AC40: 0 | AD40: 0 | AE40: 0 | AF40: [C-i-C] | AG40: [C-i-C] | AH40: [C-i-C] | AI40: 0 | AJ40: 0 | AK40: [C-i-C] | AL40: 0.18228761 | AS40: 0 | AT40: 0 | AU40: 0.8653614414 | AV40: 0.1346385586 | AW40: 0 | AX40: 0 | AY40: 0 | BA40: 0 | BB40: 0 | BC40: 0 | BD40: 0 | BE40: 0 | BF40: 0 | BG40: [C-i-C] | BH40: [C-i-C] | BI40: [C-i-C] | BJ40: [C-i-C] | BK40: 0 | BL40: 0 | BM40: [C-i-C] | BO40: Transmission Lines - Transmission towers | BQ40: [C-i-C] | BR40: [C-i-C] | BS40: [C-i-C] | BT40: [C-i-C] | BX40: 0 | BY40: 0 | BZ40: 0 | CA40: [C-i-C] | CB40: [C-i-C] | CC40: [C-i-C] | CH40: [C-i-C] | CQ40: [C-i-C] | CR40: [C-i-C] | CS40: [C-i-C] | CT40: 0 | CU40: 0 | CV40: [C-i-C]
A41: =A40 -> Construction Costs | D&C Contract - Transmission Line | B41: Project Team Input | C41: $Millions | E41: Nominal | F41: 2026 | H41: [C-i-C] | I41: Transmission tower support structures | J41: Transmission Lines | P41: 0.04 | Q41: 0.11 | R41: 0.52 | S41: 0.33 | T41: 0 | U41: 0 | V41: 0 | W41: 1 | X41: 0 | Y41: 0 | Z41: 0 | AA41: 0 | AB41: 0 | AC41: 0 | AD41: 0 | AE41: 0 | AF41: [C-i-C] | AG41: [C-i-C] | AH41: [C-i-C] | AI41: 0 | AJ41: 0 | AK41: [C-i-C] | AL41: 0.18228761 | AS41: 0 | AT41: 0 | AU41: 0.8653614414 | AV41: 0.1346385586 | AW41: 0 | AX41: 0 | AY41: 0 | BA41: 0 | BB41: 0 | BC41: 0 | BD41: 0 | BE41: 0 | BF41: 0 | BG41: [C-i-C] | BH41: [C-i-C] | BI41: [C-i-C] | BJ41: [C-i-C] | BK41: 0 | BL41: 0 | BM41: [C-i-C] | BO41: Transmission Lines - Transmission tower support structures | BQ41: [C-i-C] | BR41: [C-i-C] | BS41: [C-i-C] | BT41: [C-i-C] | BX41: 0 | BY41: 0 | BZ41: 0 | CA41: [C-i-C] | CB41: [C-i-C] | CC41: [C-i-C] | CH41: [C-i-C] | CQ41: [C-i-C] | CR41: [C-i-C] | CS41: [C-i-C] | CT41: 0 | CU41: 0 | CV41: [C-i-C]
A42: =A41 -> Construction Costs | D&C Contract - Transmission Line | B42: Project Team Input | C42: $Millions | E42: Nominal | F42: 2026 | H42: [C-i-C] | I42: Conductors | J42: Transmission Lines | P42: 0.04 | Q42: 0.11 | R42: 0.52 | S42: 0.33 | T42: 0 | U42: 0 | V42: 0 | W42: 1 | X42: 0 | Y42: 0 | Z42: 0 | AA42: 0 | AB42: 0 | AC42: 0 | AD42: 0 | AE42: 0 | AF42: [C-i-C] | AG42: [C-i-C] | AH42: [C-i-C] | AI42: 0 | AJ42: 0 | AK42: [C-i-C] | AL42: 0.18228761 | AS42: 0 | AT42: 0 | AU42: 0 | AV42: 1 | AW42: 0 | AX42: 0 | AY42: 0 | BA42: 0 | BB42: 0 | BC42: 0 | BD42: 0 | BE42: 0 | BF42: 0 | BG42: [C-i-C] | BH42: [C-i-C] | BI42: [C-i-C] | BJ42: [C-i-C] | BK42: 0 | BL42: 0 | BM42: [C-i-C] | BO42: Transmission Lines - Conductors | BQ42: [C-i-C] | BR42: [C-i-C] | BS42: [C-i-C] | BT42: [C-i-C] | BX42: 0 | BY42: 0 | BZ42: 0 | CA42: [C-i-C] | CB42: [C-i-C] | CC42: [C-i-C] | CH42: [C-i-C] | CQ42: [C-i-C] | CR42: [C-i-C] | CS42: [C-i-C] | CT42: 0 | CU42: 0 | CV42: [C-i-C]
A43: Construction Costs | D&C Contract - Substations | B43: Project Team Input | C43: $Millions | E43: Nominal | F43: 2026 | H43: [C-i-C] | I43: 0 | J43: Substations | P43: 0.04 | Q43: 0.11 | R43: 0.52 | S43: 0.33 | T43: 0 | U43: 0 | V43: 0 | W43: 1 | X43: 0 | Y43: 0 | Z43: 0 | AA43: 0 | AB43: 0 | AC43: 0 | AD43: 0 | AE43: 0 | AF43: [C-i-C] | AG43: [C-i-C] | AH43: [C-i-C] | AI43: 0 | AJ43: 0 | AK43: [C-i-C] | AL43: 0.2876990712 | AS43: 0 | AT43: 0 | AU43: 0 | AV43: 1 | AW43: 0 | AX43: 0 | AY43: 0 | BA43: 0 | BB43: 0 | BC43: 0 | BD43: 0 | BE43: 0 | BF43: 0 | BG43: [C-i-C] | BH43: [C-i-C] | BI43: [C-i-C] | BJ43: [C-i-C] | BK43: 0 | BL43: 0 | BM43: [C-i-C] | BO43: Substations - 0 | BQ43: [C-i-C] | BR43: [C-i-C] | BS43: [C-i-C] | BT43: [C-i-C] | BX43: 0 | BY43: 0 | BZ43: 0 | CA43: [C-i-C] | CB43: [C-i-C] | CC43: [C-i-C] | CH43: [C-i-C] | CQ43: [C-i-C] | CR43: [C-i-C] | CS43: [C-i-C] | CT43: 0 | CU43: 0 | CV43: [C-i-C]
A44: =A43 -> Construction Costs | D&C Contract - Substations | B44: Project Team Input | C44: $Millions | E44: Nominal | F44: 2026 | H44: [C-i-C] | I44: Substation switchbays | J44: Substations | P44: 0.04 | Q44: 0.11 | R44: 0.52 | S44: 0.33 | T44: 0 | U44: 0 | V44: 0 | W44: 1 | X44: 0 | Y44: 0 | Z44: 0 | AA44: 0 | AB44: 0 | AC44: 0 | AD44: 0 | AE44: 0 | AF44: [C-i-C] | AG44: [C-i-C] | AH44: [C-i-C] | AI44: 0 | AJ44: 0 | AK44: [C-i-C] | AL44: 0.2876990712 | AS44: 0 | AT44: 0 | AU44: 0 | AV44: 1 | AW44: 0 | AX44: 0 | AY44: 0 | BA44: 0 | BB44: 0 | BC44: 0 | BD44: 0 | BE44: 0 | BF44: 0 | BG44: [C-i-C] | BH44: [C-i-C] | BI44: [C-i-C] | BJ44: [C-i-C] | BK44: 0 | BL44: 0 | BM44: [C-i-C] | BO44: Substations - Substation switchbays | BQ44: [C-i-C] | BR44: [C-i-C] | BS44: [C-i-C] | BT44: [C-i-C] | BX44: 0 | BY44: 0 | BZ44: 0 | CA44: [C-i-C] | CB44: [C-i-C] | CC44: [C-i-C] | CH44: [C-i-C] | CQ44: [C-i-C] | CR44: [C-i-C] | CS44: [C-i-C] | CT44: 0 | CU44: 0 | CV44: [C-i-C]
A45: =A44 -> Construction Costs | D&C Contract - Substations | B45: Project Team Input | C45: $Millions | E45: Nominal | F45: 2026 | H45: [C-i-C] | I45: Substation power transformers | J45: Substations | P45: 0.04 | Q45: 0.11 | R45: 0.52 | S45: 0.33 | T45: 0 | U45: 0 | V45: 0 | W45: 1 | X45: 0 | Y45: 0 | Z45: 0 | AA45: 0 | AB45: 0 | AC45: 0 | AD45: 0 | AE45: 0 | AF45: [C-i-C] | AG45: [C-i-C] | AH45: [C-i-C] | AI45: 0 | AJ45: 0 | AK45: [C-i-C] | AL45: 0.2876990712 | AS45: 0 | AT45: 0 | AU45: 0 | AV45: 1 | AW45: 0 | AX45: 0 | AY45: 0 | BA45: 0 | BB45: 0 | BC45: 0 | BD45: 0 | BE45: 0 | BF45: 0 | BG45: [C-i-C] | BH45: [C-i-C] | BI45: [C-i-C] | BJ45: [C-i-C] | BK45: 0 | BL45: 0 | BM45: [C-i-C] | BO45: Substations - Substation power transformers | BQ45: [C-i-C] | BR45: [C-i-C] | BS45: [C-i-C] | BT45: [C-i-C] | BX45: 0 | BY45: 0 | BZ45: 0 | CA45: [C-i-C] | CB45: [C-i-C] | CC45: [C-i-C] | CH45: [C-i-C] | CQ45: [C-i-C] | CR45: [C-i-C] | CS45: [C-i-C] | CT45: 0 | CU45: 0 | CV45: [C-i-C]
A46: =A45 -> Construction Costs | D&C Contract - Substations | B46: Project Team Input | C46: $Millions | E46: Nominal | F46: 2026 | H46: [C-i-C] | I46: Substation reactive plant | J46: Substations | P46: 0.04 | Q46: 0.11 | R46: 0.52 | S46: 0.33 | T46: 0 | U46: 0 | V46: 0 | W46: 1 | X46: 0 | Y46: 0 | Z46: 0 | AA46: 0 | AB46: 0 | AC46: 0 | AD46: 0 | AE46: 0 | AF46: [C-i-C] | AG46: [C-i-C] | AH46: [C-i-C] | AI46: 0 | AJ46: 0 | AK46: [C-i-C] | AL46: 0.2876990712 | AS46: 0 | AT46: 0 | AU46: 0 | AV46: 1 | AW46: 0 | AX46: 0 | AY46: 0 | BA46: 0 | BB46: 0 | BC46: 0 | BD46: 0 | BE46: 0 | BF46: 0 | BG46: [C-i-C] | BH46: [C-i-C] | BI46: [C-i-C] | BJ46: [C-i-C] | BK46: 0 | BL46: 0 | BM46: [C-i-C] | BO46: Substations - Substation reactive plant | BQ46: [C-i-C] | BR46: [C-i-C] | BS46: [C-i-C] | BT46: [C-i-C] | BX46: 0 | BY46: 0 | BZ46: 0 | CA46: [C-i-C] | CB46: [C-i-C] | CC46: [C-i-C] | CH46: [C-i-C] | CQ46: [C-i-C] | CR46: [C-i-C] | CS46: [C-i-C] | CT46: 0 | CU46: 0 | CV46: [C-i-C]
A47: Construction Costs | D&C Contract - Secondary System | B47: Project Team Input | C47: $Millions | E47: Nominal | F47: 2026 | H47: [C-i-C] | I47: SCADA, network control and protection systems | J47: Secondary System | P47: 0.04 | Q47: 0.11 | R47: 0.52 | S47: 0.33 | T47: 0 | U47: 0 | V47: 0 | W47: 1 | X47: 0 | Y47: 0 | Z47: 0 | AA47: 0 | AB47: 0 | AC47: 0 | AD47: 0 | AE47: 0 | AF47: [C-i-C] | AG47: [C-i-C] | AH47: [C-i-C] | AI47: 0 | AJ47: 0 | AK47: [C-i-C] | AL47: 0.2876990712 | AS47: 0 | AT47: 0 | AU47: 0 | AV47: 1 | AW47: 0 | AX47: 0 | AY47: 0 | BA47: 0 | BB47: 0 | BC47: 0 | BD47: 0 | BE47: 0 | BF47: 0 | BG47: [C-i-C] | BH47: [C-i-C] | BI47: [C-i-C] | BJ47: [C-i-C] | BK47: 0 | BL47: 0 | BM47: [C-i-C] | BO47: Secondary System - SCADA, network control and protection systems | BQ47: [C-i-C] | BR47: [C-i-C] | BS47: [C-i-C] | BT47: [C-i-C] | BX47: 0 | BY47: 0 | BZ47: 0 | CA47: [C-i-C] | CB47: [C-i-C] | CC47: [C-i-C] | CH47: [C-i-C] | CQ47: [C-i-C] | CR47: [C-i-C] | CS47: [C-i-C] | CT47: 0 | CU47: 0 | CV47: [C-i-C]
A48: Construction Costs | Transposition | B48: Project Team Input | C48: $Millions | E48: Nominal | F48: 2026 | H48: [C-i-C] | I48: 0 | J48: Transmission Lines | P48: 0 | Q48: 0.1658 | R48: 0.2718 | S48: 0.4077 | T48: 0.1547 | U48: 0 | V48: 0 | W48: 1 | X48: 0 | Y48: 0 | Z48: 0 | AA48: 0 | AB48: 0 | AC48: 0 | AD48: 0 | AE48: 0 | AF48: [C-i-C] | AG48: [C-i-C] | AH48: [C-i-C] | AI48: 0 | AJ48: 0 | AK48: [C-i-C] | AL48: 0.2201791497 | AS48: 0 | AT48: 0 | AU48: 0 | AV48: 0.8452931022 | AW48: 0.1547068978 | AX48: 0 | AY48: 0 | BA48: 0 | BB48: 0 | BC48: 0 | BD48: 0 | BE48: 0 | BF48: 0 | BG48: [C-i-C] | BH48: [C-i-C] | BI48: [C-i-C] | BJ48: [C-i-C] | BK48: 0 | BL48: 0 | BM48: [C-i-C] | BO48: Transmission Lines - 0 | BQ48: [C-i-C] | BR48: [C-i-C] | BS48: [C-i-C] | BT48: [C-i-C] | BX48: 0 | BY48: 0 | BZ48: 0 | CA48: [C-i-C] | CB48: [C-i-C] | CC48: [C-i-C] | CH48: [C-i-C] | CQ48: [C-i-C] | CR48: [C-i-C] | CS48: [C-i-C] | CT48: 0 | CU48: 0 | CV48: [C-i-C]
A49: =A48 -> Construction Costs | Transposition | B49: Project Team Input | C49: $Millions | E49: Nominal | F49: 2026 | H49: [C-i-C] | I49: Transmission towers | J49: Transmission Lines | P49: 0 | Q49: 0.1658 | R49: 0.2718 | S49: 0.4077 | T49: 0.1547 | U49: 0 | V49: 0 | W49: 1 | X49: 0 | Y49: 0 | Z49: 0 | AA49: 0 | AB49: 0 | AC49: 0 | AD49: 0 | AE49: 0 | AF49: [C-i-C] | AG49: [C-i-C] | AH49: [C-i-C] | AI49: 0 | AJ49: 0 | AK49: [C-i-C] | AL49: 0.2201791497 | AS49: 0 | AT49: 0 | AU49: 0 | AV49: 0.8452931022 | AW49: 0.1547068978 | AX49: 0 | AY49: 0 | BA49: 0 | BB49: 0 | BC49: 0 | BD49: 0 | BE49: 0 | BF49: 0 | BG49: [C-i-C] | BH49: [C-i-C] | BI49: [C-i-C] | BJ49: [C-i-C] | BK49: 0 | BL49: 0 | BM49: [C-i-C] | BO49: Transmission Lines - Transmission towers | BQ49: [C-i-C] | BR49: [C-i-C] | BS49: [C-i-C] | BT49: [C-i-C] | BX49: 0 | BY49: 0 | BZ49: 0 | CA49: [C-i-C] | CB49: [C-i-C] | CC49: [C-i-C] | CH49: [C-i-C] | CQ49: [C-i-C] | CR49: [C-i-C] | CS49: [C-i-C] | CT49: 0 | CU49: 0 | CV49: [C-i-C]
A50: =A49 -> Construction Costs | Transposition | B50: Project Team Input | C50: $Millions | E50: Nominal | F50: 2026 | H50: [C-i-C] | I50: Transmission tower support structures | J50: Transmission Lines | P50: 0 | Q50: 0.1658 | R50: 0.2718 | S50: 0.4077 | T50: 0.1547 | U50: 0 | V50: 0 | W50: 1 | X50: 0 | Y50: 0 | Z50: 0 | AA50: 0 | AB50: 0 | AC50: 0 | AD50: 0 | AE50: 0 | AF50: [C-i-C] | AG50: [C-i-C] | AH50: [C-i-C] | AI50: 0 | AJ50: 0 | AK50: [C-i-C] | AL50: 0.2201791497 | AS50: 0 | AT50: 0 | AU50: 0 | AV50: 0.8452931022 | AW50: 0.1547068978 | AX50: 0 | AY50: 0 | BA50: 0 | BB50: 0 | BC50: 0 | BD50: 0 | BE50: 0 | BF50: 0 | BG50: [C-i-C] | BH50: [C-i-C] | BI50: [C-i-C] | BJ50: [C-i-C] | BK50: 0 | BL50: 0 | BM50: [C-i-C] | BO50: Transmission Lines - Transmission tower support structures | BQ50: [C-i-C] | BR50: [C-i-C] | BS50: [C-i-C] | BT50: [C-i-C] | BX50: 0 | BY50: 0 | BZ50: 0 | CA50: [C-i-C] | CB50: [C-i-C] | CC50: [C-i-C] | CH50: [C-i-C] | CQ50: [C-i-C] | CR50: [C-i-C] | CS50: [C-i-C] | CT50: 0 | CU50: 0 | CV50: [C-i-C]
A51: =A50 -> Construction Costs | Transposition | B51: Project Team Input | C51: $Millions | E51: Nominal | F51: 2026 | H51: [C-i-C] | I51: Conductors | J51: Transmission Lines | P51: 0 | Q51: 0.1658 | R51: 0.2718 | S51: 0.4077 | T51: 0.1547 | U51: 0 | V51: 0 | W51: 1 | X51: 0 | Y51: 0 | Z51: 0 | AA51: 0 | AB51: 0 | AC51: 0 | AD51: 0 | AE51: 0 | AF51: [C-i-C] | AG51: [C-i-C] | AH51: [C-i-C] | AI51: 0 | AJ51: 0 | AK51: [C-i-C] | AL51: 0.2201791497 | AS51: 0 | AT51: 0 | AU51: 0 | AV51: 0.8452931022 | AW51: 0.1547068978 | AX51: 0 | AY51: 0 | BA51: 0 | BB51: 0 | BC51: 0 | BD51: 0 | BE51: 0 | BF51: 0 | BG51: [C-i-C] | BH51: [C-i-C] | BI51: [C-i-C] | BJ51: [C-i-C] | BK51: 0 | BL51: 0 | BM51: [C-i-C] | BO51: Transmission Lines - Conductors | BQ51: [C-i-C] | BR51: [C-i-C] | BS51: [C-i-C] | BT51: [C-i-C] | BX51: 0 | BY51: 0 | BZ51: 0 | CA51: [C-i-C] | CB51: [C-i-C] | CC51: [C-i-C] | CH51: [C-i-C] | CQ51: [C-i-C] | CR51: [C-i-C] | CS51: [C-i-C] | CT51: 0 | CU51: 0 | CV51: [C-i-C]
A52: Secondary Systems | BO52: -
A53: Secondary System | Protection Relays | B53: Project Team Input | C53: $Millions | E53: 2026 | F53: =Report_Year -> 2026 | H53: 0.4105019494 | I53: SCADA, network control and protection systems | J53: Secondary System | P53: 0 | Q53: 1 | R53: 0 | S53: 0 | T53: 0 | U53: 0 | V53: 0 | W53: 1 | X53: 0 | Y53: 0 | Z53: 0 | AA53: 0 | AB53: 0 | AC53: 0 | AD53: 0 | AE53: 0 | AF53: 0.4105019494 | AG53: 0 | AH53: 0 | AI53: 0 | AJ53: 0 | AK53: 0.4105019494 | AL53: 1 | AS53: 0 | AT53: 1 | AU53: 0 | AV53: 0 | AW53: 0 | AX53: 0 | AY53: 0 | BA53: 0 | BB53: 0 | BC53: 0 | BD53: 0 | BE53: 0 | BF53: 0 | BG53: 0.4105019494 | BH53: 0 | BI53: 0 | BJ53: 0 | BK53: 0 | BL53: 0 | BM53: 0.4105019494 | BO53: Secondary System - SCADA, network control and protection systems | BQ53: 0 | BR53: 0.4105019494 | BS53: 0 | BT53: 0.4105019494 | BX53: 0 | BY53: 0 | BZ53: 0 | CA53: 0 | CB53: 0.4105019494 | CC53: 0 | CH53: 0.4105019494 | CQ53: 0 | CR53: 0 | CS53: 0 | CT53: 0 | CU53: 0 | CV53: 0
A54: Secondary System | IED SEL Terminals | B54: Project Team Input | C54: $Millions | E54: 2026 | F54: 2026 | H54: 0.1042373129 | I54: SCADA, network control and protection systems | J54: Secondary System | P54: 0 | Q54: 1 | R54: 0 | S54: 0 | T54: 0 | U54: 0 | V54: 0 | W54: 1 | X54: 0 | Y54: 0 | Z54: 0 | AA54: 0 | AB54: 0 | AC54: 0 | AD54: 0 | AE54: 0 | AF54: 0.1042373129 | AG54: 0 | AH54: 0 | AI54: 0 | AJ54: 0 | AK54: 0.1042373129 | AL54: 1 | AS54: 0 | AT54: 1 | AU54: 0 | AV54: 0 | AW54: 0 | AX54: 0 | AY54: 0 | BA54: 0 | BB54: 0 | BC54: 0 | BD54: 0 | BE54: 0 | BF54: 0 | BG54: 0.1042373129 | BH54: 0 | BI54: 0 | BJ54: 0 | BK54: 0 | BL54: 0 | BM54: 0.1042373129 | BO54: Secondary System - SCADA, network control and protection systems | BQ54: 0 | BR54: 0.1042373129 | BS54: 0 | BT54: 0.1042373129 | BX54: 0 | BY54: 0 | BZ54: 0 | CA54: 0 | CB54: 0.1042373129 | CC54: 0 | CH54: 0.1042373129 | CQ54: 0 | CR54: 0 | CS54: 0 | CT54: 0 | CU54: 0 | CV54: 0
A55: Secondary System | QOS Meter | B55: Project Team Input | C55: $Millions | E55: 2026 | F55: 2026 | H55: 0.1616886 | I55: SCADA, network control and protection systems | J55: Secondary System | P55: 0 | Q55: 1 | R55: 0 | S55: 0 | T55: 0 | U55: 0 | V55: 0 | W55: 1 | X55: 0 | Y55: 0 | Z55: 0 | AA55: 0 | AB55: 0 | AC55: 0 | AD55: 0 | AE55: 0 | AF55: 0.1616886 | AG55: 0 | AH55: 0 | AI55: 0 | AJ55: 0 | AK55: 0.1616886 | AL55: 1 | AS55: 0 | AT55: 1 | AU55: 0 | AV55: 0 | AW55: 0 | AX55: 0 | AY55: 0 | BA55: 0 | BB55: 0 | BC55: 0 | BD55: 0 | BE55: 0 | BF55: 0 | BG55: 0.1616886 | BH55: 0 | BI55: 0 | BJ55: 0 | BK55: 0 | BL55: 0 | BM55: 0.1616886 | BO55: Secondary System - SCADA, network control and protection systems | BQ55: 0 | BR55: 0.1616886 | BS55: 0 | BT55: 0.1616886 | BX55: 0 | BY55: 0 | BZ55: 0 | CA55: 0 | CB55: 0.1616886 | CC55: 0 | CH55: 0.1616886 | CQ55: 0 | CR55: 0 | CS55: 0 | CT55: 0 | CU55: 0 | CV55: 0
A56: Secondary System | Disturbance Recorder | B56: Project Team Input | C56: $Millions | E56: 2026 | F56: 2026 | H56: 0.07411824 | I56: SCADA, network control and protection systems | J56: Secondary System | P56: 0 | Q56: 1 | R56: 0 | S56: 0 | T56: 0 | U56: 0 | V56: 0 | W56: 1 | X56: 0 | Y56: 0 | Z56: 0 | AA56: 0 | AB56: 0 | AC56: 0 | AD56: 0 | AE56: 0 | AF56: 0.07411824 | AG56: 0 | AH56: 0 | AI56: 0 | AJ56: 0 | AK56: 0.07411824 | AL56: 1 | AS56: 0 | AT56: 1 | AU56: 0 | AV56: 0 | AW56: 0 | AX56: 0 | AY56: 0 | BA56: 0 | BB56: 0 | BC56: 0 | BD56: 0 | BE56: 0 | BF56: 0 | BG56: 0.07411824 | BH56: 0 | BI56: 0 | BJ56: 0 | BK56: 0 | BL56: 0 | BM56: 0.07411824 | BO56: Secondary System - SCADA, network control and protection systems | BQ56: 0 | BR56: 0.07411824 | BS56: 0 | BT56: 0.07411824 | BX56: 0 | BY56: 0 | BZ56: 0 | CA56: 0 | CB56: 0.07411824 | CC56: 0 | CH56: 0.07411824 | CQ56: 0 | CR56: 0 | CS56: 0 | CT56: 0 | CU56: 0 | CV56: 0
A57: Secondary System | Metering Panel | B57: Project Team Input | C57: $Millions | E57: 2026 | F57: 2026 | H57: 0.06306791424 | I57: SCADA, network control and protection systems | J57: Secondary System | P57: 0 | Q57: 1 | R57: 0 | S57: 0 | T57: 0 | U57: 0 | V57: 0 | W57: 1 | X57: 0 | Y57: 0 | Z57: 0 | AA57: 0 | AB57: 0 | AC57: 0 | AD57: 0 | AE57: 0 | AF57: 0.06306791424 | AG57: 0 | AH57: 0 | AI57: 0 | AJ57: 0 | AK57: 0.06306791424 | AL57: 1 | AS57: 0 | AT57: 1 | AU57: 0 | AV57: 0 | AW57: 0 | AX57: 0 | AY57: 0 | BA57: 0 | BB57: 0 | BC57: 0 | BD57: 0 | BE57: 0 | BF57: 0 | BG57: 0.06306791424 | BH57: 0 | BI57: 0 | BJ57: 0 | BK57: 0 | BL57: 0 | BM57: 0.06306791424 | BO57: Secondary System - SCADA, network control and protection systems | BQ57: 0 | BR57: 0.06306791424 | BS57: 0 | BT57: 0.06306791424 | BX57: 0 | BY57: 0 | BZ57: 0 | CA57: 0 | CB57: 0.06306791424 | CC57: 0 | CH57: 0.06306791424 | CQ57: 0 | CR57: 0 | CS57: 0 | CT57: 0 | CU57: 0 | CV57: 0
A58: Secondary System | TWFL | B58: Project Team Input | C58: $Millions | E58: 2026 | F58: 2026 | H58: 0.0679063965 | I58: SCADA, network control and protection systems | J58: Secondary System | P58: 0 | Q58: 1 | R58: 0 | S58: 0 | T58: 0 | U58: 0 | V58: 0 | W58: 1 | X58: 0 | Y58: 0 | Z58: 0 | AA58: 0 | AB58: 0 | AC58: 0 | AD58: 0 | AE58: 0 | AF58: 0.0679063965 | AG58: 0 | AH58: 0 | AI58: 0 | AJ58: 0 | AK58: 0.0679063965 | AL58: 1 | AS58: 0 | AT58: 1 | AU58: 0 | AV58: 0 | AW58: 0 | AX58: 0 | AY58: 0 | BA58: 0 | BB58: 0 | BC58: 0 | BD58: 0 | BE58: 0 | BF58: 0 | BG58: 0.0679063965 | BH58: 0 | BI58: 0 | BJ58: 0 | BK58: 0 | BL58: 0 | BM58: 0.0679063965 | BO58: Secondary System - SCADA, network control and protection systems | BQ58: 0 | BR58: 0.0679063965 | BS58: 0 | BT58: 0.0679063965 | BX58: 0 | BY58: 0 | BZ58: 0 | CA58: 0 | CB58: 0.0679063965 | CC58: 0 | CH58: 0.0679063965 | CQ58: 0 | CR58: 0 | CS58: 0 | CT58: 0 | CU58: 0 | CV58: 0
A59: Secondary System | Comms - XTRAN | B59: Project Team Input | C59: $Millions | E59: 2026 | F59: 2026 | H59: 0.2758191106 | I59: SCADA, network control and protection systems | J59: Secondary System | P59: 0 | Q59: 1 | R59: 0 | S59: 0 | T59: 0 | U59: 0 | V59: 0 | W59: 1 | X59: 0 | Y59: 0 | Z59: 0 | AA59: 0 | AB59: 0 | AC59: 0 | AD59: 0 | AE59: 0 | AF59: 0.2758191106 | AG59: 0 | AH59: 0 | AI59: 0 | AJ59: 0 | AK59: 0.2758191106 | AL59: 1 | AS59: 0 | AT59: 1 | AU59: 0 | AV59: 0 | AW59: 0 | AX59: 0 | AY59: 0 | BA59: 0 | BB59: 0 | BC59: 0 | BD59: 0 | BE59: 0 | BF59: 0 | BG59: 0.2758191106 | BH59: 0 | BI59: 0 | BJ59: 0 | BK59: 0 | BL59: 0 | BM59: 0.2758191106 | BO59: Secondary System - SCADA, network control and protection systems | BQ59: 0 | BR59: 0.2758191106 | BS59: 0 | BT59: 0.2758191106 | BX59: 0 | BY59: 0 | BZ59: 0 | CA59: 0 | CB59: 0.2758191106 | CC59: 0 | CH59: 0.2758191106 | CQ59: 0 | CR59: 0 | CS59: 0 | CT59: 0 | CU59: 0 | CV59: 0
A60: Secondary System | Comms - RAD | B60: Project Team Input | C60: $Millions | E60: 2026 | F60: 2026 | H60: 0.1023300157 | I60: SCADA, network control and protection systems | J60: Secondary System | P60: 0 | Q60: 1 | R60: 0 | S60: 0 | T60: 0 | U60: 0 | V60: 0 | W60: 1 | X60: 0 | Y60: 0 | Z60: 0 | AA60: 0 | AB60: 0 | AC60: 0 | AD60: 0 | AE60: 0 | AF60: 0.1023300157 | AG60: 0 | AH60: 0 | AI60: 0 | AJ60: 0 | AK60: 0.1023300157 | AL60: 1 | AS60: 0 | AT60: 1 | AU60: 0 | AV60: 0 | AW60: 0 | AX60: 0 | AY60: 0 | BA60: 0 | BB60: 0 | BC60: 0 | BD60: 0 | BE60: 0 | BF60: 0 | BG60: 0.1023300157 | BH60: 0 | BI60: 0 | BJ60: 0 | BK60: 0 | BL60: 0 | BM60: 0.1023300157 | BO60: Secondary System - SCADA, network control and protection systems | BQ60: 0 | BR60: 0.1023300157 | BS60: 0 | BT60: 0.1023300157 | BX60: 0 | BY60: 0 | BZ60: 0 | CA60: 0 | CB60: 0.1023300157 | CC60: 0 | CH60: 0.1023300157 | CQ60: 0 | CR60: 0 | CS60: 0 | CT60: 0 | CU60: 0 | CV60: 0
BO61: -
BO62: -
A63: Equipment | BO63: -
A64: Equipment Costs | Transformers (CT) | B64: Project Team Input | C64: $Millions | E64: 2026 | F64: =Report_Year -> 2026 | H64: 0 | I64: 0 | J64: Substations | P64: 0 | Q64: 1 | R64: 0 | S64: 0 | T64: 0 | U64: 0 | V64: 0 | W64: 1 | X64: 0 | Y64: 0 | Z64: 0 | AA64: 0 | AB64: 0 | AC64: 0 | AD64: 0 | AE64: 0 | AF64: 0 | AG64: 0 | AH64: 0 | AI64: 0 | AJ64: 0 | AK64: 0 | AL64: 1 | AS64: 0 | AT64: 1 | AU64: 0 | AV64: 0 | AW64: 0 | AX64: 0 | AY64: 0 | BA64: 0 | BB64: 0 | BC64: 0 | BD64: 0 | BE64: 0 | BF64: 0 | BG64: 0 | BH64: 0 | BI64: 0 | BJ64: 0 | BK64: 0 | BL64: 0 | BM64: 0 | BO64: Substations - 0 | BQ64: 0 | BR64: 0 | BS64: 0 | BT64: 0 | BX64: 0 | BY64: 0 | BZ64: 0 | CA64: 0 | CB64: 0 | CC64: 0 | CH64: 0 | CQ64: 0 | CR64: 0 | CS64: 0 | CT64: 0 | CU64: 0 | CV64: 0
A65: =A64 -> Equipment Costs | Transformers (CT) | B65: Project Team Input | C65: $Millions | E65: 2026 | F65: 2026 | H65: 0 | I65: Substation switchbays | J65: Substations | P65: 0 | Q65: 1 | R65: 0 | S65: 0 | T65: 0 | U65: 0 | V65: 0 | W65: 1 | X65: 0 | Y65: 0 | Z65: 0 | AA65: 0 | AB65: 0 | AC65: 0 | AD65: 0 | AE65: 0 | AF65: 0 | AG65: 0 | AH65: 0 | AI65: 0 | AJ65: 0 | AK65: 0 | AL65: 1 | AS65: 0 | AT65: 1 | AU65: 0 | AV65: 0 | AW65: 0 | AX65: 0 | AY65: 0 | BA65: 0 | BB65: 0 | BC65: 0 | BD65: 0 | BE65: 0 | BF65: 0 | BG65: 0 | BH65: 0 | BI65: 0 | BJ65: 0 | BK65: 0 | BL65: 0 | BM65: 0 | BO65: Substations - Substation switchbays | BQ65: 0 | BR65: 0 | BS65: 0 | BT65: 0 | BX65: 0 | BY65: 0 | BZ65: 0 | CA65: 0 | CB65: 0 | CC65: 0 | CH65: 0 | CQ65: 0 | CR65: 0 | CS65: 0 | CT65: 0 | CU65: 0 | CV65: 0
A66: =A65 -> Equipment Costs | Transformers (CT) | B66: Project Team Input | C66: $Millions | E66: 2026 | F66: 2026 | H66: 0.857567232 | I66: Substation power transformers | J66: Substations | P66: 0 | Q66: 1 | R66: 0 | S66: 0 | T66: 0 | U66: 0 | V66: 0 | W66: 1 | X66: 0 | Y66: 0 | Z66: 0 | AA66: 0 | AB66: 0 | AC66: 0 | AD66: 0 | AE66: 0 | AF66: 0.857567232 | AG66: 0 | AH66: 0 | AI66: 0 | AJ66: 0 | AK66: 0.857567232 | AL66: 1 | AS66: 0 | AT66: 1 | AU66: 0 | AV66: 0 | AW66: 0 | AX66: 0 | AY66: 0 | BA66: 0 | BB66: 0 | BC66: 0 | BD66: 0 | BE66: 0 | BF66: 0 | BG66: 0.857567232 | BH66: 0 | BI66: 0 | BJ66: 0 | BK66: 0 | BL66: 0 | BM66: 0.857567232 | BO66: Substations - Substation power transformers | BQ66: 0 | BR66: 0.857567232 | BS66: 0 | BT66: 0.857567232 | BX66: 0 | BY66: 0 | BZ66: 0 | CA66: 0 | CB66: 0.857567232 | CC66: 0 | CH66: 0.857567232 | CQ66: 0 | CR66: 0 | CS66: 0 | CT66: 0 | CU66: 0 | CV66: 0
A67: =A66 -> Equipment Costs | Transformers (CT) | B67: Project Team Input | C67: $Millions | E67: 2026 | F67: 2026 | H67: 0 | I67: Substation reactive plant | J67: Substations | P67: 0 | Q67: 1 | R67: 0 | S67: 0 | T67: 0 | U67: 0 | V67: 0 | W67: 1 | X67: 0 | Y67: 0 | Z67: 0 | AA67: 0 | AB67: 0 | AC67: 0 | AD67: 0 | AE67: 0 | AF67: 0 | AG67: 0 | AH67: 0 | AI67: 0 | AJ67: 0 | AK67: 0 | AL67: 1 | AS67: 0 | AT67: 1 | AU67: 0 | AV67: 0 | AW67: 0 | AX67: 0 | AY67: 0 | BA67: 0 | BB67: 0 | BC67: 0 | BD67: 0 | BE67: 0 | BF67: 0 | BG67: 0 | BH67: 0 | BI67: 0 | BJ67: 0 | BK67: 0 | BL67: 0 | BM67: 0 | BO67: Substations - Substation reactive plant | BQ67: 0 | BR67: 0 | BS67: 0 | BT67: 0 | BX67: 0 | BY67: 0 | BZ67: 0 | CA67: 0 | CB67: 0 | CC67: 0 | CH67: 0 | CQ67: 0 | CR67: 0 | CS67: 0 | CT67: 0 | CU67: 0 | CV67: 0
A68: Equipment Costs | Circuit Breakers (CB) | B68: Project Team Input | C68: $Millions | E68: 2026 | F68: 2026 | H68: 0 | I68: 0 | J68: Substations | P68: 0 | Q68: 1 | R68: 0 | S68: 0 | T68: 0 | U68: 0 | V68: 0 | W68: 1 | X68: 0 | Y68: 0 | Z68: 0 | AA68: 0 | AB68: 0 | AC68: 0 | AD68: 0 | AE68: 0 | AF68: 0 | AG68: 0 | AH68: 0 | AI68: 0 | AJ68: 0 | AK68: 0 | AL68: 1 | AS68: 0 | AT68: 1 | AU68: 0 | AV68: 0 | AW68: 0 | AX68: 0 | AY68: 0 | BA68: 0 | BB68: 0 | BC68: 0 | BD68: 0 | BE68: 0 | BF68: 0 | BG68: 0 | BH68: 0 | BI68: 0 | BJ68: 0 | BK68: 0 | BL68: 0 | BM68: 0 | BO68: Substations - 0 | BQ68: 0 | BR68: 0 | BS68: 0 | BT68: 0 | BX68: 0 | BY68: 0 | BZ68: 0 | CA68: 0 | CB68: 0 | CC68: 0 | CH68: 0 | CQ68: 0 | CR68: 0 | CS68: 0 | CT68: 0 | CU68: 0 | CV68: 0
A69: =A68 -> Equipment Costs | Circuit Breakers (CB) | B69: Project Team Input | C69: $Millions | E69: 2026 | F69: 2026 | H69: 0.5737583208 | I69: Substation switchbays | J69: Substations | P69: 0 | Q69: 1 | R69: 0 | S69: 0 | T69: 0 | U69: 0 | V69: 0 | W69: 1 | X69: 0 | Y69: 0 | Z69: 0 | AA69: 0 | AB69: 0 | AC69: 0 | AD69: 0 | AE69: 0 | AF69: 0.5737583208 | AG69: 0 | AH69: 0 | AI69: 0 | AJ69: 0 | AK69: 0.5737583208 | AL69: 1 | AS69: 0 | AT69: 1 | AU69: 0 | AV69: 0 | AW69: 0 | AX69: 0 | AY69: 0 | BA69: 0 | BB69: 0 | BC69: 0 | BD69: 0 | BE69: 0 | BF69: 0 | BG69: 0.5737583208 | BH69: 0 | BI69: 0 | BJ69: 0 | BK69: 0 | BL69: 0 | BM69: 0.5737583208 | BO69: Substations - Substation switchbays | BQ69: 0 | BR69: 0.5737583208 | BS69: 0 | BT69: 0.5737583208 | BX69: 0 | BY69: 0 | BZ69: 0 | CA69: 0 | CB69: 0.5737583208 | CC69: 0 | CH69: 0.5737583208 | CQ69: 0 | CR69: 0 | CS69: 0 | CT69: 0 | CU69: 0 | CV69: 0
A70: =A69 -> Equipment Costs | Circuit Breakers (CB) | B70: Project Team Input | C70: $Millions | E70: 2026 | F70: 2026 | H70: 0 | I70: Substation power transformers | J70: Substations | P70: 0 | Q70: 1 | R70: 0 | S70: 0 | T70: 0 | U70: 0 | V70: 0 | W70: 1 | X70: 0 | Y70: 0 | Z70: 0 | AA70: 0 | AB70: 0 | AC70: 0 | AD70: 0 | AE70: 0 | AF70: 0 | AG70: 0 | AH70: 0 | AI70: 0 | AJ70: 0 | AK70: 0 | AL70: 1 | AS70: 0 | AT70: 1 | AU70: 0 | AV70: 0 | AW70: 0 | AX70: 0 | AY70: 0 | BA70: 0 | BB70: 0 | BC70: 0 | BD70: 0 | BE70: 0 | BF70: 0 | BG70: 0 | BH70: 0 | BI70: 0 | BJ70: 0 | BK70: 0 | BL70: 0 | BM70: 0 | BO70: Substations - Substation power transformers | BQ70: 0 | BR70: 0 | BS70: 0 | BT70: 0 | BX70: 0 | BY70: 0 | BZ70: 0 | CA70: 0 | CB70: 0 | CC70: 0 | CH70: 0 | CQ70: 0 | CR70: 0 | CS70: 0 | CT70: 0 | CU70: 0 | CV70: 0
A71: =A70 -> Equipment Costs | Circuit Breakers (CB) | B71: Project Team Input | C71: $Millions | E71: 2026 | F71: 2026 | H71: 0 | I71: Substation reactive plant | J71: Substations | P71: 0 | Q71: 1 | R71: 0 | S71: 0 | T71: 0 | U71: 0 | V71: 0 | W71: 1 | X71: 0 | Y71: 0 | Z71: 0 | AA71: 0 | AB71: 0 | AC71: 0 | AD71: 0 | AE71: 0 | AF71: 0 | AG71: 0 | AH71: 0 | AI71: 0 | AJ71: 0 | AK71: 0 | AL71: 1 | AS71: 0 | AT71: 1 | AU71: 0 | AV71: 0 | AW71: 0 | AX71: 0 | AY71: 0 | BA71: 0 | BB71: 0 | BC71: 0 | BD71: 0 | BE71: 0 | BF71: 0 | BG71: 0 | BH71: 0 | BI71: 0 | BJ71: 0 | BK71: 0 | BL71: 0 | BM71: 0 | BO71: Substations - Substation reactive plant | BQ71: 0 | BR71: 0 | BS71: 0 | BT71: 0 | BX71: 0 | BY71: 0 | BZ71: 0 | CA71: 0 | CB71: 0 | CC71: 0 | CH71: 0 | CQ71: 0 | CR71: 0 | CS71: 0 | CT71: 0 | CU71: 0 | CV71: 0
A72: Equipment Costs | Voltage Transformers (VT) | B72: Project Team Input | C72: $Millions | E72: 2026 | F72: 2026 | H72: 0 | I72: 0 | J72: Substations | P72: 0 | Q72: 1 | R72: 0 | S72: 0 | T72: 0 | U72: 0 | V72: 0 | W72: 1 | X72: 0 | Y72: 0 | Z72: 0 | AA72: 0 | AB72: 0 | AC72: 0 | AD72: 0 | AE72: 0 | AF72: 0 | AG72: 0 | AH72: 0 | AI72: 0 | AJ72: 0 | AK72: 0 | AL72: 1 | AS72: 0 | AT72: 1 | AU72: 0 | AV72: 0 | AW72: 0 | AX72: 0 | AY72: 0 | BA72: 0 | BB72: 0 | BC72: 0 | BD72: 0 | BE72: 0 | BF72: 0 | BG72: 0 | BH72: 0 | BI72: 0 | BJ72: 0 | BK72: 0 | BL72: 0 | BM72: 0 | BO72: Substations - 0 | BQ72: 0 | BR72: 0 | BS72: 0 | BT72: 0 | BX72: 0 | BY72: 0 | BZ72: 0 | CA72: 0 | CB72: 0 | CC72: 0 | CH72: 0 | CQ72: 0 | CR72: 0 | CS72: 0 | CT72: 0 | CU72: 0 | CV72: 0
A73: =A72 -> Equipment Costs | Voltage Transformers (VT) | B73: Project Team Input | C73: $Millions | E73: 2026 | F73: 2026 | H73: 0 | I73: Substation switchbays | J73: Substations | P73: 0 | Q73: 1 | R73: 0 | S73: 0 | T73: 0 | U73: 0 | V73: 0 | W73: 1 | X73: 0 | Y73: 0 | Z73: 0 | AA73: 0 | AB73: 0 | AC73: 0 | AD73: 0 | AE73: 0 | AF73: 0 | AG73: 0 | AH73: 0 | AI73: 0 | AJ73: 0 | AK73: 0 | AL73: 1 | AS73: 0 | AT73: 1 | AU73: 0 | AV73: 0 | AW73: 0 | AX73: 0 | AY73: 0 | BA73: 0 | BB73: 0 | BC73: 0 | BD73: 0 | BE73: 0 | BF73: 0 | BG73: 0 | BH73: 0 | BI73: 0 | BJ73: 0 | BK73: 0 | BL73: 0 | BM73: 0 | BO73: Substations - Substation switchbays | BQ73: 0 | BR73: 0 | BS73: 0 | BT73: 0 | BX73: 0 | BY73: 0 | BZ73: 0 | CA73: 0 | CB73: 0 | CC73: 0 | CH73: 0 | CQ73: 0 | CR73: 0 | CS73: 0 | CT73: 0 | CU73: 0 | CV73: 0
A74: =A73 -> Equipment Costs | Voltage Transformers (VT) | B74: Project Team Input | C74: $Millions | E74: 2026 | F74: 2026 | H74: 0.292790784 | I74: Substation power transformers | J74: Substations | P74: 0 | Q74: 1 | R74: 0 | S74: 0 | T74: 0 | U74: 0 | V74: 0 | W74: 1 | X74: 0 | Y74: 0 | Z74: 0 | AA74: 0 | AB74: 0 | AC74: 0 | AD74: 0 | AE74: 0 | AF74: 0.292790784 | AG74: 0 | AH74: 0 | AI74: 0 | AJ74: 0 | AK74: 0.292790784 | AL74: 1 | AS74: 0 | AT74: 1 | AU74: 0 | AV74: 0 | AW74: 0 | AX74: 0 | AY74: 0 | BA74: 0 | BB74: 0 | BC74: 0 | BD74: 0 | BE74: 0 | BF74: 0 | BG74: 0.292790784 | BH74: 0 | BI74: 0 | BJ74: 0 | BK74: 0 | BL74: 0 | BM74: 0.292790784 | BO74: Substations - Substation power transformers | BQ74: 0 | BR74: 0.292790784 | BS74: 0 | BT74: 0.292790784 | BX74: 0 | BY74: 0 | BZ74: 0 | CA74: 0 | CB74: 0.292790784 | CC74: 0 | CH74: 0.292790784 | CQ74: 0 | CR74: 0 | CS74: 0 | CT74: 0 | CU74: 0 | CV74: 0
A75: =A74 -> Equipment Costs | Voltage Transformers (VT) | B75: Project Team Input | C75: $Millions | E75: 2026 | F75: 2026 | H75: 0 | I75: Substation reactive plant | J75: Substations | P75: 0 | Q75: 1 | R75: 0 | S75: 0 | T75: 0 | U75: 0 | V75: 0 | W75: 1 | X75: 0 | Y75: 0 | Z75: 0 | AA75: 0 | AB75: 0 | AC75: 0 | AD75: 0 | AE75: 0 | AF75: 0 | AG75: 0 | AH75: 0 | AI75: 0 | AJ75: 0 | AK75: 0 | AL75: 1 | AS75: 0 | AT75: 1 | AU75: 0 | AV75: 0 | AW75: 0 | AX75: 0 | AY75: 0 | BA75: 0 | BB75: 0 | BC75: 0 | BD75: 0 | BE75: 0 | BF75: 0 | BG75: 0 | BH75: 0 | BI75: 0 | BJ75: 0 | BK75: 0 | BL75: 0 | BM75: 0 | BO75: Substations - Substation reactive plant | BQ75: 0 | BR75: 0 | BS75: 0 | BT75: 0 | BX75: 0 | BY75: 0 | BZ75: 0 | CA75: 0 | CB75: 0 | CC75: 0 | CH75: 0 | CQ75: 0 | CR75: 0 | CS75: 0 | CT75: 0 | CU75: 0 | CV75: 0
A76: Equipment Costs | Line Trap (LT) | B76: Project Team Input | C76: $Millions | E76: 2026 | F76: 2026 | H76: 0 | I76: 0 | J76: Substations | P76: 0 | Q76: 1 | R76: 0 | S76: 0 | T76: 0 | U76: 0 | V76: 0 | W76: 1 | X76: 0 | Y76: 0 | Z76: 0 | AA76: 0 | AB76: 0 | AC76: 0 | AD76: 0 | AE76: 0 | AF76: 0 | AG76: 0 | AH76: 0 | AI76: 0 | AJ76: 0 | AK76: 0 | AL76: 1 | AS76: 0 | AT76: 1 | AU76: 0 | AV76: 0 | AW76: 0 | AX76: 0 | AY76: 0 | BA76: 0 | BB76: 0 | BC76: 0 | BD76: 0 | BE76: 0 | BF76: 0 | BG76: 0 | BH76: 0 | BI76: 0 | BJ76: 0 | BK76: 0 | BL76: 0 | BM76: 0 | BO76: Substations - 0 | BQ76: 0 | BR76: 0 | BS76: 0 | BT76: 0 | BX76: 0 | BY76: 0 | BZ76: 0 | CA76: 0 | CB76: 0 | CC76: 0 | CH76: 0 | CQ76: 0 | CR76: 0 | CS76: 0 | CT76: 0 | CU76: 0 | CV76: 0
A77: =A76 -> Equipment Costs | Line Trap (LT) | B77: Project Team Input | C77: $Millions | E77: 2026 | F77: 2026 | H77: 0.6190879661 | I77: Substation switchbays | J77: Substations | P77: 0 | Q77: 1 | R77: 0 | S77: 0 | T77: 0 | U77: 0 | V77: 0 | W77: 1 | X77: 0 | Y77: 0 | Z77: 0 | AA77: 0 | AB77: 0 | AC77: 0 | AD77: 0 | AE77: 0 | AF77: 0.6190879661 | AG77: 0 | AH77: 0 | AI77: 0 | AJ77: 0 | AK77: 0.6190879661 | AL77: 1 | AS77: 0 | AT77: 1 | AU77: 0 | AV77: 0 | AW77: 0 | AX77: 0 | AY77: 0 | BA77: 0 | BB77: 0 | BC77: 0 | BD77: 0 | BE77: 0 | BF77: 0 | BG77: 0.6190879661 | BH77: 0 | BI77: 0 | BJ77: 0 | BK77: 0 | BL77: 0 | BM77: 0.6190879661 | BO77: Substations - Substation switchbays | BQ77: 0 | BR77: 0.6190879661 | BS77: 0 | BT77: 0.6190879661 | BX77: 0 | BY77: 0 | BZ77: 0 | CA77: 0 | CB77: 0.6190879661 | CC77: 0 | CH77: 0.6190879661 | CQ77: 0 | CR77: 0 | CS77: 0 | CT77: 0 | CU77: 0 | CV77: 0
A78: =A77 -> Equipment Costs | Line Trap (LT) | B78: Project Team Input | C78: $Millions | E78: 2026 | F78: 2026 | H78: 0 | I78: Substation power transformers | J78: Substations | P78: 0 | Q78: 1 | R78: 0 | S78: 0 | T78: 0 | U78: 0 | V78: 0 | W78: 1 | X78: 0 | Y78: 0 | Z78: 0 | AA78: 0 | AB78: 0 | AC78: 0 | AD78: 0 | AE78: 0 | AF78: 0 | AG78: 0 | AH78: 0 | AI78: 0 | AJ78: 0 | AK78: 0 | AL78: 1 | AS78: 0 | AT78: 1 | AU78: 0 | AV78: 0 | AW78: 0 | AX78: 0 | AY78: 0 | BA78: 0 | BB78: 0 | BC78: 0 | BD78: 0 | BE78: 0 | BF78: 0 | BG78: 0 | BH78: 0 | BI78: 0 | BJ78: 0 | BK78: 0 | BL78: 0 | BM78: 0 | BO78: Substations - Substation power transformers | BQ78: 0 | BR78: 0 | BS78: 0 | BT78: 0 | BX78: 0 | BY78: 0 | BZ78: 0 | CA78: 0 | CB78: 0 | CC78: 0 | CH78: 0 | CQ78: 0 | CR78: 0 | CS78: 0 | CT78: 0 | CU78: 0 | CV78: 0
A79: =A78 -> Equipment Costs | Line Trap (LT) | B79: Project Team Input | C79: $Millions | E79: 2026 | F79: 2026 | H79: 0 | I79: Substation reactive plant | J79: Substations | P79: 0 | Q79: 1 | R79: 0 | S79: 0 | T79: 0 | U79: 0 | V79: 0 | W79: 1 | X79: 0 | Y79: 0 | Z79: 0 | AA79: 0 | AB79: 0 | AC79: 0 | AD79: 0 | AE79: 0 | AF79: 0 | AG79: 0 | AH79: 0 | AI79: 0 | AJ79: 0 | AK79: 0 | AL79: 1 | AS79: 0 | AT79: 1 | AU79: 0 | AV79: 0 | AW79: 0 | AX79: 0 | AY79: 0 | BA79: 0 | BB79: 0 | BC79: 0 | BD79: 0 | BE79: 0 | BF79: 0 | BG79: 0 | BH79: 0 | BI79: 0 | BJ79: 0 | BK79: 0 | BL79: 0 | BM79: 0 | BO79: Substations - Substation reactive plant | BQ79: 0 | BR79: 0 | BS79: 0 | BT79: 0 | BX79: 0 | BY79: 0 | BZ79: 0 | CA79: 0 | CB79: 0 | CC79: 0 | CH79: 0 | CQ79: 0 | CR79: 0 | CS79: 0 | CT79: 0 | CU79: 0 | CV79: 0
A80: Equipment Costs | Earth Switch | B80: Project Team Input | C80: $Millions | E80: 2026 | F80: 2026 | H80: 0 | I80: 0 | J80: Substations | P80: 0 | Q80: 1 | R80: 0 | S80: 0 | T80: 0 | U80: 0 | V80: 0 | W80: 1 | X80: 0 | Y80: 0 | Z80: 0 | AA80: 0 | AB80: 0 | AC80: 0 | AD80: 0 | AE80: 0 | AF80: 0 | AG80: 0 | AH80: 0 | AI80: 0 | AJ80: 0 | AK80: 0 | AL80: 1 | AS80: 0 | AT80: 1 | AU80: 0 | AV80: 0 | AW80: 0 | AX80: 0 | AY80: 0 | BA80: 0 | BB80: 0 | BC80: 0 | BD80: 0 | BE80: 0 | BF80: 0 | BG80: 0 | BH80: 0 | BI80: 0 | BJ80: 0 | BK80: 0 | BL80: 0 | BM80: 0 | BO80: Substations - 0 | BQ80: 0 | BR80: 0 | BS80: 0 | BT80: 0 | BX80: 0 | BY80: 0 | BZ80: 0 | CA80: 0 | CB80: 0 | CC80: 0 | CH80: 0 | CQ80: 0 | CR80: 0 | CS80: 0 | CT80: 0 | CU80: 0 | CV80: 0
A81: =A80 -> Equipment Costs | Earth Switch | B81: Project Team Input | C81: $Millions | E81: 2026 | F81: 2026 | H81: 0.3225681496 | I81: Substation switchbays | J81: Substations | P81: 0 | Q81: 1 | R81: 0 | S81: 0 | T81: 0 | U81: 0 | V81: 0 | W81: 1 | X81: 0 | Y81: 0 | Z81: 0 | AA81: 0 | AB81: 0 | AC81: 0 | AD81: 0 | AE81: 0 | AF81: 0.3225681496 | AG81: 0 | AH81: 0 | AI81: 0 | AJ81: 0 | AK81: 0.3225681496 | AL81: 1 | AS81: 0 | AT81: 1 | AU81: 0 | AV81: 0 | AW81: 0 | AX81: 0 | AY81: 0 | BA81: 0 | BB81: 0 | BC81: 0 | BD81: 0 | BE81: 0 | BF81: 0 | BG81: 0.3225681496 | BH81: 0 | BI81: 0 | BJ81: 0 | BK81: 0 | BL81: 0 | BM81: 0.3225681496 | BO81: Substations - Substation switchbays | BQ81: 0 | BR81: 0.3225681496 | BS81: 0 | BT81: 0.3225681496 | BX81: 0 | BY81: 0 | BZ81: 0 | CA81: 0 | CB81: 0.3225681496 | CC81: 0 | CH81: 0.3225681496 | CQ81: 0 | CR81: 0 | CS81: 0 | CT81: 0 | CU81: 0 | CV81: 0
A82: =A81 -> Equipment Costs | Earth Switch | B82: Project Team Input | C82: $Millions | E82: 2026 | F82: 2026 | H82: 0 | I82: Substation power transformers | J82: Substations | P82: 0 | Q82: 1 | R82: 0 | S82: 0 | T82: 0 | U82: 0 | V82: 0 | W82: 1 | X82: 0 | Y82: 0 | Z82: 0 | AA82: 0 | AB82: 0 | AC82: 0 | AD82: 0 | AE82: 0 | AF82: 0 | AG82: 0 | AH82: 0 | AI82: 0 | AJ82: 0 | AK82: 0 | AL82: 1 | AS82: 0 | AT82: 1 | AU82: 0 | AV82: 0 | AW82: 0 | AX82: 0 | AY82: 0 | BA82: 0 | BB82: 0 | BC82: 0 | BD82: 0 | BE82: 0 | BF82: 0 | BG82: 0 | BH82: 0 | BI82: 0 | BJ82: 0 | BK82: 0 | BL82: 0 | BM82: 0 | BO82: Substations - Substation power transformers | BQ82: 0 | BR82: 0 | BS82: 0 | BT82: 0 | BX82: 0 | BY82: 0 | BZ82: 0 | CA82: 0 | CB82: 0 | CC82: 0 | CH82: 0 | CQ82: 0 | CR82: 0 | CS82: 0 | CT82: 0 | CU82: 0 | CV82: 0
A83: =A82 -> Equipment Costs | Earth Switch | B83: Project Team Input | C83: $Millions | E83: 2026 | F83: 2026 | H83: 0 | I83: Substation reactive plant | J83: Substations | P83: 0 | Q83: 1 | R83: 0 | S83: 0 | T83: 0 | U83: 0 | V83: 0 | W83: 1 | X83: 0 | Y83: 0 | Z83: 0 | AA83: 0 | AB83: 0 | AC83: 0 | AD83: 0 | AE83: 0 | AF83: 0 | AG83: 0 | AH83: 0 | AI83: 0 | AJ83: 0 | AK83: 0 | AL83: 1 | AS83: 0 | AT83: 1 | AU83: 0 | AV83: 0 | AW83: 0 | AX83: 0 | AY83: 0 | BA83: 0 | BB83: 0 | BC83: 0 | BD83: 0 | BE83: 0 | BF83: 0 | BG83: 0 | BH83: 0 | BI83: 0 | BJ83: 0 | BK83: 0 | BL83: 0 | BM83: 0 | BO83: Substations - Substation reactive plant | BQ83: 0 | BR83: 0 | BS83: 0 | BT83: 0 | BX83: 0 | BY83: 0 | BZ83: 0 | CA83: 0 | CB83: 0 | CC83: 0 | CH83: 0 | CQ83: 0 | CR83: 0 | CS83: 0 | CT83: 0 | CU83: 0 | CV83: 0
A84: Equipment Costs | Surge Arrestor | B84: Project Team Input | C84: $Millions | E84: 2026 | F84: 2026 | H84: 0 | I84: 0 | J84: Substations | P84: 0 | Q84: 1 | R84: 0 | S84: 0 | T84: 0 | U84: 0 | V84: 0 | W84: 1 | X84: 0 | Y84: 0 | Z84: 0 | AA84: 0 | AB84: 0 | AC84: 0 | AD84: 0 | AE84: 0 | AF84: 0 | AG84: 0 | AH84: 0 | AI84: 0 | AJ84: 0 | AK84: 0 | AL84: 1 | AS84: 0 | AT84: 1 | AU84: 0 | AV84: 0 | AW84: 0 | AX84: 0 | AY84: 0 | BA84: 0 | BB84: 0 | BC84: 0 | BD84: 0 | BE84: 0 | BF84: 0 | BG84: 0 | BH84: 0 | BI84: 0 | BJ84: 0 | BK84: 0 | BL84: 0 | BM84: 0 | BO84: Substations - 0 | BQ84: 0 | BR84: 0 | BS84: 0 | BT84: 0 | BX84: 0 | BY84: 0 | BZ84: 0 | CA84: 0 | CB84: 0 | CC84: 0 | CH84: 0 | CQ84: 0 | CR84: 0 | CS84: 0 | CT84: 0 | CU84: 0 | CV84: 0
A85: =A84 -> Equipment Costs | Surge Arrestor | B85: Project Team Input | C85: $Millions | E85: 2026 | F85: 2026 | H85: 0 | I85: Substation switchbays | J85: Substations | P85: 0 | Q85: 1 | R85: 0 | S85: 0 | T85: 0 | U85: 0 | V85: 0 | W85: 1 | X85: 0 | Y85: 0 | Z85: 0 | AA85: 0 | AB85: 0 | AC85: 0 | AD85: 0 | AE85: 0 | AF85: 0 | AG85: 0 | AH85: 0 | AI85: 0 | AJ85: 0 | AK85: 0 | AL85: 1 | AS85: 0 | AT85: 1 | AU85: 0 | AV85: 0 | AW85: 0 | AX85: 0 | AY85: 0 | BA85: 0 | BB85: 0 | BC85: 0 | BD85: 0 | BE85: 0 | BF85: 0 | BG85: 0 | BH85: 0 | BI85: 0 | BJ85: 0 | BK85: 0 | BL85: 0 | BM85: 0 | BO85: Substations - Substation switchbays | BQ85: 0 | BR85: 0 | BS85: 0 | BT85: 0 | BX85: 0 | BY85: 0 | BZ85: 0 | CA85: 0 | CB85: 0 | CC85: 0 | CH85: 0 | CQ85: 0 | CR85: 0 | CS85: 0 | CT85: 0 | CU85: 0 | CV85: 0
A86: =A85 -> Equipment Costs | Surge Arrestor | B86: Project Team Input | C86: $Millions | E86: 2026 | F86: 2026 | H86: 0 | I86: Substation power transformers | J86: Substations | P86: 0 | Q86: 1 | R86: 0 | S86: 0 | T86: 0 | U86: 0 | V86: 0 | W86: 1 | X86: 0 | Y86: 0 | Z86: 0 | AA86: 0 | AB86: 0 | AC86: 0 | AD86: 0 | AE86: 0 | AF86: 0 | AG86: 0 | AH86: 0 | AI86: 0 | AJ86: 0 | AK86: 0 | AL86: 1 | AS86: 0 | AT86: 1 | AU86: 0 | AV86: 0 | AW86: 0 | AX86: 0 | AY86: 0 | BA86: 0 | BB86: 0 | BC86: 0 | BD86: 0 | BE86: 0 | BF86: 0 | BG86: 0 | BH86: 0 | BI86: 0 | BJ86: 0 | BK86: 0 | BL86: 0 | BM86: 0 | BO86: Substations - Substation power transformers | BQ86: 0 | BR86: 0 | BS86: 0 | BT86: 0 | BX86: 0 | BY86: 0 | BZ86: 0 | CA86: 0 | CB86: 0 | CC86: 0 | CH86: 0 | CQ86: 0 | CR86: 0 | CS86: 0 | CT86: 0 | CU86: 0 | CV86: 0
A87: =A86 -> Equipment Costs | Surge Arrestor | B87: Project Team Input | C87: $Millions | E87: 2026 | F87: 2026 | H87: 0.07818768432 | I87: Substation reactive plant | J87: Substations | P87: 0 | Q87: 1 | R87: 0 | S87: 0 | T87: 0 | U87: 0 | V87: 0 | W87: 1 | X87: 0 | Y87: 0 | Z87: 0 | AA87: 0 | AB87: 0 | AC87: 0 | AD87: 0 | AE87: 0 | AF87: 0.07818768432 | AG87: 0 | AH87: 0 | AI87: 0 | AJ87: 0 | AK87: 0.07818768432 | AL87: 1 | AS87: 0 | AT87: 1 | AU87: 0 | AV87: 0 | AW87: 0 | AX87: 0 | AY87: 0 | BA87: 0 | BB87: 0 | BC87: 0 | BD87: 0 | BE87: 0 | BF87: 0 | BG87: 0.07818768432 | BH87: 0 | BI87: 0 | BJ87: 0 | BK87: 0 | BL87: 0 | BM87: 0.07818768432 | BO87: Substations - Substation reactive plant | BQ87: 0 | BR87: 0.07818768432 | BS87: 0 | BT87: 0.07818768432 | BX87: 0 | BY87: 0 | BZ87: 0 | CA87: 0 | CB87: 0.07818768432 | CC87: 0 | CH87: 0.07818768432 | CQ87: 0 | CR87: 0 | CS87: 0 | CT87: 0 | CU87: 0 | CV87: 0
A88: Equipment Costs | Disconnector | B88: Project Team Input | C88: $Millions | E88: 2026 | F88: 2026 | H88: 0 | I88: 0 | J88: Substations | P88: 0 | Q88: 1 | R88: 0 | S88: 0 | T88: 0 | U88: 0 | V88: 0 | W88: 1 | X88: 0 | Y88: 0 | Z88: 0 | AA88: 0 | AB88: 0 | AC88: 0 | AD88: 0 | AE88: 0 | AF88: 0 | AG88: 0 | AH88: 0 | AI88: 0 | AJ88: 0 | AK88: 0 | AL88: 1 | AS88: 0 | AT88: 1 | AU88: 0 | AV88: 0 | AW88: 0 | AX88: 0 | AY88: 0 | BA88: 0 | BB88: 0 | BC88: 0 | BD88: 0 | BE88: 0 | BF88: 0 | BG88: 0 | BH88: 0 | BI88: 0 | BJ88: 0 | BK88: 0 | BL88: 0 | BM88: 0 | BO88: Substations - 0 | BQ88: 0 | BR88: 0 | BS88: 0 | BT88: 0 | BX88: 0 | BY88: 0 | BZ88: 0 | CA88: 0 | CB88: 0 | CC88: 0 | CH88: 0 | CQ88: 0 | CR88: 0 | CS88: 0 | CT88: 0 | CU88: 0 | CV88: 0
A89: =A88 -> Equipment Costs | Disconnector | B89: Project Team Input | C89: $Millions | E89: 2026 | F89: 2026 | H89: 0 | I89: Substation switchbays | J89: Substations | P89: 0 | Q89: 1 | R89: 0 | S89: 0 | T89: 0 | U89: 0 | V89: 0 | W89: 1 | X89: 0 | Y89: 0 | Z89: 0 | AA89: 0 | AB89: 0 | AC89: 0 | AD89: 0 | AE89: 0 | AF89: 0 | AG89: 0 | AH89: 0 | AI89: 0 | AJ89: 0 | AK89: 0 | AL89: 1 | AS89: 0 | AT89: 1 | AU89: 0 | AV89: 0 | AW89: 0 | AX89: 0 | AY89: 0 | BA89: 0 | BB89: 0 | BC89: 0 | BD89: 0 | BE89: 0 | BF89: 0 | BG89: 0 | BH89: 0 | BI89: 0 | BJ89: 0 | BK89: 0 | BL89: 0 | BM89: 0 | BO89: Substations - Substation switchbays | BQ89: 0 | BR89: 0 | BS89: 0 | BT89: 0 | BX89: 0 | BY89: 0 | BZ89: 0 | CA89: 0 | CB89: 0 | CC89: 0 | CH89: 0 | CQ89: 0 | CR89: 0 | CS89: 0 | CT89: 0 | CU89: 0 | CV89: 0
A90: =A89 -> Equipment Costs | Disconnector | B90: Project Team Input | C90: $Millions | E90: 2026 | F90: 2026 | H90: 0 | I90: Substation power transformers | J90: Substations | P90: 0 | Q90: 1 | R90: 0 | S90: 0 | T90: 0 | U90: 0 | V90: 0 | W90: 1 | X90: 0 | Y90: 0 | Z90: 0 | AA90: 0 | AB90: 0 | AC90: 0 | AD90: 0 | AE90: 0 | AF90: 0 | AG90: 0 | AH90: 0 | AI90: 0 | AJ90: 0 | AK90: 0 | AL90: 1 | AS90: 0 | AT90: 1 | AU90: 0 | AV90: 0 | AW90: 0 | AX90: 0 | AY90: 0 | BA90: 0 | BB90: 0 | BC90: 0 | BD90: 0 | BE90: 0 | BF90: 0 | BG90: 0 | BH90: 0 | BI90: 0 | BJ90: 0 | BK90: 0 | BL90: 0 | BM90: 0 | BO90: Substations - Substation power transformers | BQ90: 0 | BR90: 0 | BS90: 0 | BT90: 0 | BX90: 0 | BY90: 0 | BZ90: 0 | CA90: 0 | CB90: 0 | CC90: 0 | CH90: 0 | CQ90: 0 | CR90: 0 | CS90: 0 | CT90: 0 | CU90: 0 | CV90: 0
A91: =A90 -> Equipment Costs | Disconnector | B91: Project Team Input | C91: $Millions | E91: 2026 | F91: 2026 | H91: 0.7884344205 | I91: Substation reactive plant | J91: Substations | P91: 0 | Q91: 1 | R91: 0 | S91: 0 | T91: 0 | U91: 0 | V91: 0 | W91: 1 | X91: 0 | Y91: 0 | Z91: 0 | AA91: 0 | AB91: 0 | AC91: 0 | AD91: 0 | AE91: 0 | AF91: 0.7884344205 | AG91: 0 | AH91: 0 | AI91: 0 | AJ91: 0 | AK91: 0.7884344205 | AL91: 1 | AS91: 0 | AT91: 1 | AU91: 0 | AV91: 0 | AW91: 0 | AX91: 0 | AY91: 0 | BA91: 0 | BB91: 0 | BC91: 0 | BD91: 0 | BE91: 0 | BF91: 0 | BG91: 0.7884344205 | BH91: 0 | BI91: 0 | BJ91: 0 | BK91: 0 | BL91: 0 | BM91: 0.7884344205 | BO91: Substations - Substation reactive plant | BQ91: 0 | BR91: 0.7884344205 | BS91: 0 | BT91: 0.7884344205 | BX91: 0 | BY91: 0 | BZ91: 0 | CA91: 0 | CB91: 0.7884344205 | CC91: 0 | CH91: 0.7884344205 | CQ91: 0 | CR91: 0 | CS91: 0 | CT91: 0 | CU91: 0 | CV91: 0
A92: Equipment Costs | Insulator (16KN) | B92: Project Team Input | C92: $Millions | E92: 2026 | F92: 2026 | H92: 0 | I92: 0 | J92: Substations | P92: 0 | Q92: 1 | R92: 0 | S92: 0 | T92: 0 | U92: 0 | V92: 0 | W92: 1 | X92: 0 | Y92: 0 | Z92: 0 | AA92: 0 | AB92: 0 | AC92: 0 | AD92: 0 | AE92: 0 | AF92: 0 | AG92: 0 | AH92: 0 | AI92: 0 | AJ92: 0 | AK92: 0 | AL92: 1 | AS92: 0 | AT92: 1 | AU92: 0 | AV92: 0 | AW92: 0 | AX92: 0 | AY92: 0 | BA92: 0 | BB92: 0 | BC92: 0 | BD92: 0 | BE92: 0 | BF92: 0 | BG92: 0 | BH92: 0 | BI92: 0 | BJ92: 0 | BK92: 0 | BL92: 0 | BM92: 0 | BO92: Substations - 0 | BQ92: 0 | BR92: 0 | BS92: 0 | BT92: 0 | BX92: 0 | BY92: 0 | BZ92: 0 | CA92: 0 | CB92: 0 | CC92: 0 | CH92: 0 | CQ92: 0 | CR92: 0 | CS92: 0 | CT92: 0 | CU92: 0 | CV92: 0
A93: =A92 -> Equipment Costs | Insulator (16KN) | B93: Project Team Input | C93: $Millions | E93: 2026 | F93: 2026 | H93: 0 | I93: Substation switchbays | J93: Substations | P93: 0 | Q93: 1 | R93: 0 | S93: 0 | T93: 0 | U93: 0 | V93: 0 | W93: 1 | X93: 0 | Y93: 0 | Z93: 0 | AA93: 0 | AB93: 0 | AC93: 0 | AD93: 0 | AE93: 0 | AF93: 0 | AG93: 0 | AH93: 0 | AI93: 0 | AJ93: 0 | AK93: 0 | AL93: 1 | AS93: 0 | AT93: 1 | AU93: 0 | AV93: 0 | AW93: 0 | AX93: 0 | AY93: 0 | BA93: 0 | BB93: 0 | BC93: 0 | BD93: 0 | BE93: 0 | BF93: 0 | BG93: 0 | BH93: 0 | BI93: 0 | BJ93: 0 | BK93: 0 | BL93: 0 | BM93: 0 | BO93: Substations - Substation switchbays | BQ93: 0 | BR93: 0 | BS93: 0 | BT93: 0 | BX93: 0 | BY93: 0 | BZ93: 0 | CA93: 0 | CB93: 0 | CC93: 0 | CH93: 0 | CQ93: 0 | CR93: 0 | CS93: 0 | CT93: 0 | CU93: 0 | CV93: 0
A94: =A93 -> Equipment Costs | Insulator (16KN) | B94: Project Team Input | C94: $Millions | E94: 2026 | F94: 2026 | H94: 0 | I94: Substation power transformers | J94: Substations | P94: 0 | Q94: 1 | R94: 0 | S94: 0 | T94: 0 | U94: 0 | V94: 0 | W94: 1 | X94: 0 | Y94: 0 | Z94: 0 | AA94: 0 | AB94: 0 | AC94: 0 | AD94: 0 | AE94: 0 | AF94: 0 | AG94: 0 | AH94: 0 | AI94: 0 | AJ94: 0 | AK94: 0 | AL94: 1 | AS94: 0 | AT94: 1 | AU94: 0 | AV94: 0 | AW94: 0 | AX94: 0 | AY94: 0 | BA94: 0 | BB94: 0 | BC94: 0 | BD94: 0 | BE94: 0 | BF94: 0 | BG94: 0 | BH94: 0 | BI94: 0 | BJ94: 0 | BK94: 0 | BL94: 0 | BM94: 0 | BO94: Substations - Substation power transformers | BQ94: 0 | BR94: 0 | BS94: 0 | BT94: 0 | BX94: 0 | BY94: 0 | BZ94: 0 | CA94: 0 | CB94: 0 | CC94: 0 | CH94: 0 | CQ94: 0 | CR94: 0 | CS94: 0 | CT94: 0 | CU94: 0 | CV94: 0
A95: =A94 -> Equipment Costs | Insulator (16KN) | B95: Project Team Input | C95: $Millions | E95: 2026 | F95: 2026 | H95: 0.01396032799 | I95: Substation reactive plant | J95: Substations | P95: 0 | Q95: 1 | R95: 0 | S95: 0 | T95: 0 | U95: 0 | V95: 0 | W95: 1 | X95: 0 | Y95: 0 | Z95: 0 | AA95: 0 | AB95: 0 | AC95: 0 | AD95: 0 | AE95: 0 | AF95: 0.01396032799 | AG95: 0 | AH95: 0 | AI95: 0 | AJ95: 0 | AK95: 0.01396032799 | AL95: 1 | AS95: 0 | AT95: 1 | AU95: 0 | AV95: 0 | AW95: 0 | AX95: 0 | AY95: 0 | BA95: 0 | BB95: 0 | BC95: 0 | BD95: 0 | BE95: 0 | BF95: 0 | BG95: 0.01396032799 | BH95: 0 | BI95: 0 | BJ95: 0 | BK95: 0 | BL95: 0 | BM95: 0.01396032799 | BO95: Substations - Substation reactive plant | BQ95: 0 | BR95: 0.01396032799 | BS95: 0 | BT95: 0.01396032799 | BX95: 0 | BY95: 0 | BZ95: 0 | CA95: 0 | CB95: 0.01396032799 | CC95: 0 | CH95: 0.01396032799 | CQ95: 0 | CR95: 0 | CS95: 0 | CT95: 0 | CU95: 0 | CV95: 0
A96: Equipment Costs | Insulator (6KN) | B96: Project Team Input | C96: $Millions | E96: 2026 | F96: 2026 | H96: 0 | I96: 0 | J96: Substations | P96: 0 | Q96: 1 | R96: 0 | S96: 0 | T96: 0 | U96: 0 | V96: 0 | W96: 1 | X96: 0 | Y96: 0 | Z96: 0 | AA96: 0 | AB96: 0 | AC96: 0 | AD96: 0 | AE96: 0 | AF96: 0 | AG96: 0 | AH96: 0 | AI96: 0 | AJ96: 0 | AK96: 0 | AL96: 1 | AS96: 0 | AT96: 1 | AU96: 0 | AV96: 0 | AW96: 0 | AX96: 0 | AY96: 0 | BA96: 0 | BB96: 0 | BC96: 0 | BD96: 0 | BE96: 0 | BF96: 0 | BG96: 0 | BH96: 0 | BI96: 0 | BJ96: 0 | BK96: 0 | BL96: 0 | BM96: 0 | BO96: Substations - 0 | BQ96: 0 | BR96: 0 | BS96: 0 | BT96: 0 | BX96: 0 | BY96: 0 | BZ96: 0 | CA96: 0 | CB96: 0 | CC96: 0 | CH96: 0 | CQ96: 0 | CR96: 0 | CS96: 0 | CT96: 0 | CU96: 0 | CV96: 0
A97: =A96 -> Equipment Costs | Insulator (6KN) | B97: Project Team Input | C97: $Millions | E97: 2026 | F97: 2026 | H97: 0 | I97: Substation switchbays | J97: Substations | P97: 0 | Q97: 1 | R97: 0 | S97: 0 | T97: 0 | U97: 0 | V97: 0 | W97: 1 | X97: 0 | Y97: 0 | Z97: 0 | AA97: 0 | AB97: 0 | AC97: 0 | AD97: 0 | AE97: 0 | AF97: 0 | AG97: 0 | AH97: 0 | AI97: 0 | AJ97: 0 | AK97: 0 | AL97: 1 | AS97: 0 | AT97: 1 | AU97: 0 | AV97: 0 | AW97: 0 | AX97: 0 | AY97: 0 | BA97: 0 | BB97: 0 | BC97: 0 | BD97: 0 | BE97: 0 | BF97: 0 | BG97: 0 | BH97: 0 | BI97: 0 | BJ97: 0 | BK97: 0 | BL97: 0 | BM97: 0 | BO97: Substations - Substation switchbays | BQ97: 0 | BR97: 0 | BS97: 0 | BT97: 0 | BX97: 0 | BY97: 0 | BZ97: 0 | CA97: 0 | CB97: 0 | CC97: 0 | CH97: 0 | CQ97: 0 | CR97: 0 | CS97: 0 | CT97: 0 | CU97: 0 | CV97: 0
A98: =A97 -> Equipment Costs | Insulator (6KN) | B98: Project Team Input | C98: $Millions | E98: 2026 | F98: 2026 | H98: 0 | I98: Substation power transformers | J98: Substations | P98: 0 | Q98: 1 | R98: 0 | S98: 0 | T98: 0 | U98: 0 | V98: 0 | W98: 1 | X98: 0 | Y98: 0 | Z98: 0 | AA98: 0 | AB98: 0 | AC98: 0 | AD98: 0 | AE98: 0 | AF98: 0 | AG98: 0 | AH98: 0 | AI98: 0 | AJ98: 0 | AK98: 0 | AL98: 1 | AS98: 0 | AT98: 1 | AU98: 0 | AV98: 0 | AW98: 0 | AX98: 0 | AY98: 0 | BA98: 0 | BB98: 0 | BC98: 0 | BD98: 0 | BE98: 0 | BF98: 0 | BG98: 0 | BH98: 0 | BI98: 0 | BJ98: 0 | BK98: 0 | BL98: 0 | BM98: 0 | BO98: Substations - Substation power transformers | BQ98: 0 | BR98: 0 | BS98: 0 | BT98: 0 | BX98: 0 | BY98: 0 | BZ98: 0 | CA98: 0 | CB98: 0 | CC98: 0 | CH98: 0 | CQ98: 0 | CR98: 0 | CS98: 0 | CT98: 0 | CU98: 0 | CV98: 0
A99: =A98 -> Equipment Costs | Insulator (6KN) | B99: Project Team Input | C99: $Millions | E99: 2026 | F99: 2026 | H99: 0.01215568527 | I99: Substation reactive plant | J99: Substations | P99: 0 | Q99: 1 | R99: 0 | S99: 0 | T99: 0 | U99: 0 | V99: 0 | W99: 1 | X99: 0 | Y99: 0 | Z99: 0 | AA99: 0 | AB99: 0 | AC99: 0 | AD99: 0 | AE99: 0 | AF99: 0.01215568527 | AG99: 0 | AH99: 0 | AI99: 0 | AJ99: 0 | AK99: 0.01215568527 | AL99: 1 | AS99: 0 | AT99: 1 | AU99: 0 | AV99: 0 | AW99: 0 | AX99: 0 | AY99: 0 | BA99: 0 | BB99: 0 | BC99: 0 | BD99: 0 | BE99: 0 | BF99: 0 | BG99: 0.01215568527 | BH99: 0 | BI99: 0 | BJ99: 0 | BK99: 0 | BL99: 0 | BM99: 0.01215568527 | BO99: Substations - Substation reactive plant | BQ99: 0 | BR99: 0.01215568527 | BS99: 0 | BT99: 0.01215568527 | BX99: 0 | BY99: 0 | BZ99: 0 | CA99: 0 | CB99: 0.01215568527 | CC99: 0 | CH99: 0.01215568527 | CQ99: 0 | CR99: 0 | CS99: 0 | CT99: 0 | CU99: 0 | CV99: 0
A100: Equipment Costs | Insulator (6KN) (UH) | B100: Project Team Input | C100: $Millions | E100: 2026 | F100: 2026 | H100: 0 | I100: 0 | J100: Substations | P100: 0 | Q100: 1 | R100: 0 | S100: 0 | T100: 0 | U100: 0 | V100: 0 | W100: 1 | X100: 0 | Y100: 0 | Z100: 0 | AA100: 0 | AB100: 0 | AC100: 0 | AD100: 0 | AE100: 0 | AF100: 0 | AG100: 0 | AH100: 0 | AI100: 0 | AJ100: 0 | AK100: 0 | AL100: 1 | AS100: 0 | AT100: 1 | AU100: 0 | AV100: 0 | AW100: 0 | AX100: 0 | AY100: 0 | BA100: 0 | BB100: 0 | BC100: 0 | BD100: 0 | BE100: 0 | BF100: 0 | BG100: 0 | BH100: 0 | BI100: 0 | BJ100: 0 | BK100: 0 | BL100: 0 | BM100: 0 | BO100: Substations - 0 | BQ100: 0 | BR100: 0 | BS100: 0 | BT100: 0 | BX100: 0 | BY100: 0 | BZ100: 0 | CA100: 0 | CB100: 0 | CC100: 0 | CH100: 0 | CQ100: 0 | CR100: 0 | CS100: 0 | CT100: 0 | CU100: 0 | CV100: 0
A101: =A100 -> Equipment Costs | Insulator (6KN) (UH) | B101: Project Team Input | C101: $Millions | E101: 2026 | F101: 2026 | H101: 0 | I101: Substation switchbays | J101: Substations | P101: 0 | Q101: 1 | R101: 0 | S101: 0 | T101: 0 | U101: 0 | V101: 0 | W101: 1 | X101: 0 | Y101: 0 | Z101: 0 | AA101: 0 | AB101: 0 | AC101: 0 | AD101: 0 | AE101: 0 | AF101: 0 | AG101: 0 | AH101: 0 | AI101: 0 | AJ101: 0 | AK101: 0 | AL101: 1 | AS101: 0 | AT101: 1 | AU101: 0 | AV101: 0 | AW101: 0 | AX101: 0 | AY101: 0 | BA101: 0 | BB101: 0 | BC101: 0 | BD101: 0 | BE101: 0 | BF101: 0 | BG101: 0 | BH101: 0 | BI101: 0 | BJ101: 0 | BK101: 0 | BL101: 0 | BM101: 0 | BO101: Substations - Substation switchbays | BQ101: 0 | BR101: 0 | BS101: 0 | BT101: 0 | BX101: 0 | BY101: 0 | BZ101: 0 | CA101: 0 | CB101: 0 | CC101: 0 | CH101: 0 | CQ101: 0 | CR101: 0 | CS101: 0 | CT101: 0 | CU101: 0 | CV101: 0
A102: =A101 -> Equipment Costs | Insulator (6KN) (UH) | B102: Project Team Input | C102: $Millions | E102: 2026 | F102: 2026 | H102: 0 | I102: Substation power transformers | J102: Substations | P102: 0 | Q102: 1 | R102: 0 | S102: 0 | T102: 0 | U102: 0 | V102: 0 | W102: 1 | X102: 0 | Y102: 0 | Z102: 0 | AA102: 0 | AB102: 0 | AC102: 0 | AD102: 0 | AE102: 0 | AF102: 0 | AG102: 0 | AH102: 0 | AI102: 0 | AJ102: 0 | AK102: 0 | AL102: 1 | AS102: 0 | AT102: 1 | AU102: 0 | AV102: 0 | AW102: 0 | AX102: 0 | AY102: 0 | BA102: 0 | BB102: 0 | BC102: 0 | BD102: 0 | BE102: 0 | BF102: 0 | BG102: 0 | BH102: 0 | BI102: 0 | BJ102: 0 | BK102: 0 | BL102: 0 | BM102: 0 | BO102: Substations - Substation power transformers | BQ102: 0 | BR102: 0 | BS102: 0 | BT102: 0 | BX102: 0 | BY102: 0 | BZ102: 0 | CA102: 0 | CB102: 0 | CC102: 0 | CH102: 0 | CQ102: 0 | CR102: 0 | CS102: 0 | CT102: 0 | CU102: 0 | CV102: 0
A103: =A102 -> Equipment Costs | Insulator (6KN) (UH) | B103: Project Team Input | C103: $Millions | E103: 2026 | F103: 2026 | H103: 0.004275154944 | I103: Substation reactive plant | J103: Substations | P103: 0 | Q103: 1 | R103: 0 | S103: 0 | T103: 0 | U103: 0 | V103: 0 | W103: 1 | X103: 0 | Y103: 0 | Z103: 0 | AA103: 0 | AB103: 0 | AC103: 0 | AD103: 0 | AE103: 0 | AF103: 0.004275154944 | AG103: 0 | AH103: 0 | AI103: 0 | AJ103: 0 | AK103: 0.004275154944 | AL103: 1 | AS103: 0 | AT103: 1 | AU103: 0 | AV103: 0 | AW103: 0 | AX103: 0 | AY103: 0 | BA103: 0 | BB103: 0 | BC103: 0 | BD103: 0 | BE103: 0 | BF103: 0 | BG103: 0.004275154944 | BH103: 0 | BI103: 0 | BJ103: 0 | BK103: 0 | BL103: 0 | BM103: 0.004275154944 | BO103: Substations - Substation reactive plant | BQ103: 0 | BR103: 0.004275154944 | BS103: 0 | BT103: 0.004275154944 | BX103: 0 | BY103: 0 | BZ103: 0 | CA103: 0 | CB103: 0.004275154944 | CC103: 0 | CH103: 0.004275154944 | CQ103: 0 | CR103: 0 | CS103: 0 | CT103: 0 | CU103: 0 | CV103: 0
BO104: -
A105: Land and Environment | BO105: -
A106: Property Costs | Easements - Augmentation | B106: Project Team Input | C106: $Millions | E106: 2026 | F106: =Report_Year -> 2026 | H106: [C-i-C] | I106: Other | J106: Land & Easements | P106: 0.2 | Q106: 0.8 | R106: 0 | S106: 0 | T106: 0 | U106: 0 | V106: 0 | W106: 1 | X106: 0 | Y106: 0 | Z106: 0 | AA106: 0 | AB106: 0 | AC106: 0 | AD106: 0 | AE106: 0 | AF106: [C-i-C] | AG106: [C-i-C] | AH106: [C-i-C] | AI106: 0 | AJ106: 0 | AK106: [C-i-C] | AL106: 0.1 | AS106: 0 | AT106: 1 | AU106: 0 | AV106: 0 | AW106: 0 | AX106: 0 | AY106: 0 | BA106: 0 | BB106: 0 | BC106: 0 | BD106: 0 | BE106: 0 | BF106: 0 | BG106: [C-i-C] | BH106: [C-i-C] | BI106: [C-i-C] | BJ106: [C-i-C] | BK106: 0 | BL106: 0 | BM106: [C-i-C] | BO106: Land & Easements - Other | BQ106: [C-i-C] | BR106: [C-i-C] | BS106: [C-i-C] | BT106: [C-i-C] | BX106: 0 | BY106: 0 | BZ106: 0 | CA106: [C-i-C] | CB106: [C-i-C] | CC106: [C-i-C] | CH106: [C-i-C] | CQ106: 0 | CR106: 0 | CS106: 0 | CT106: 0 | CU106: 0 | CV106: 0
A107: Property Costs | Easements - Transposition | B107: Project Team Input | C107: $Millions | E107: 2026 | F107: =Report_Year -> 2026 | H107: [C-i-C] | I107: Other | J107: Land & Easements | P107: 0.1175 | Q107: 0.6325 | R107: 0.25 | S107: 0 | T107: 0 | U107: 0 | V107: 0 | W107: 1 | X107: 0 | Y107: 0 | Z107: 0 | AA107: 0 | AB107: 0 | AC107: 0 | AD107: 0 | AE107: 0 | AF107: [C-i-C] | AG107: [C-i-C] | AH107: [C-i-C] | AI107: 0 | AJ107: 0 | AK107: [C-i-C] | AL107: 0.1 | AS107: 0 | AT107: 0 | AU107: 1 | AV107: 0 | AW107: 0 | AX107: 0 | AY107: 0 | BA107: 0 | BB107: 0 | BC107: 0 | BD107: 0 | BE107: 0 | BF107: 0 | BG107: [C-i-C] | BH107: [C-i-C] | BI107: [C-i-C] | BJ107: [C-i-C] | BK107: 0 | BL107: 0 | BM107: [C-i-C] | BO107: Land & Easements - Other | BQ107: [C-i-C] | BR107: [C-i-C] | BS107: [C-i-C] | BT107: [C-i-C] | BX107: 0 | BY107: 0 | BZ107: 0 | CA107: [C-i-C] | CB107: [C-i-C] | CC107: [C-i-C] | CH107: [C-i-C] | CQ107: 0.7490009046 | CR107: 0 | CS107: 0 | CT107: 0 | CU107: 0 | CV107: 0.7490009046
A108: Environment | Biodiversity Offsets | B108: Project Team Input | C108: $Millions | E108: 2026 | F108: =Report_Year -> 2026 | H108: 8.0842752 | I108: Biodiversity Offsets | J108: Biodiversity offsets - Stewardship sites | P108: 0 | Q108: 0.43 | R108: 0.22 | S108: 0.35 | T108: 0 | U108: 0 | V108: 0 | W108: 1 | X108: 0 | Y108: 0 | Z108: 0 | AA108: 0 | AB108: 0 | AC108: 0 | AD108: 0 | AE108: 0 | AF108: 5.25477888 | AG108: 2.82949632 | AH108: 0 | AI108: 0 | AJ108: 0 | AK108: 8.0842752 | AL108: 0.1 | AS108: 0 | AT108: 0.43 | AU108: 0.22 | AV108: 0.35 | AW108: 0 | AX108: 0 | AY108: 0 | BA108: 0 | BB108: 0 | BC108: 0 | BD108: 0 | BE108: 0 | BF108: 0 | BG108: 3.476238336 | BH108: 1.778540544 | BI108: 2.82949632 | BJ108: 0 | BK108: 0 | BL108: 0 | BM108: 8.0842752 | BO108: Biodiversity offsets - Stewardship sites - Biodiversity Offsets | BQ108: 0 | BR108: 0.525477888 | BS108: 7.558797312 | BT108: 8.0842752 | BX108: 0 | BY108: 0 | BZ108: 0 | CA108: 0 | CB108: 3.476238336 | CC108: 0.1778540544 | CH108: 3.65409239 | CQ108: 1.60068649 | CR108: 2.82949632 | CS108: 0 | CT108: 0 | CU108: 0 | CV108: 4.43018281
A109: =A108 -> Environment | Biodiversity Offsets | B109: Project Team Input | C109: $Millions | E109: 2026 | F109: =Report_Year -> 2026 | H109: 19.36853482 | I109: Biodiversity Offsets | J109: Biodiversity offsets - Direct payments & Other costs | P109: 0 | Q109: 0.43 | R109: 0.22 | S109: 0.35 | T109: 0 | U109: 0 | V109: 0 | W109: 1 | X109: 0 | Y109: 0 | Z109: 0 | AA109: 0 | AB109: 0 | AC109: 0 | AD109: 0 | AE109: 0 | AF109: 12.58954763 | AG109: 6.778987187 | AH109: 0 | AI109: 0 | AJ109: 0 | AK109: 19.36853482 | AL109: 0.1 | AS109: 0 | AT109: 0.43 | AU109: 0.22 | AV109: 0.35 | AW109: 0 | AX109: 0 | AY109: 0 | BA109: 0 | BB109: 0 | BC109: 0 | BD109: 0 | BE109: 0 | BF109: 0 | BG109: 8.328469972 | BH109: 4.26107766 | BI109: 6.778987187 | BJ109: 0 | BK109: 0 | BL109: 0 | BM109: 19.36853482 | BO109: Biodiversity offsets - Direct payments & Other costs - Biodiversity Offsets | BQ109: 0 | BR109: 1.258954763 | BS109: 18.10958006 | BT109: 19.36853482 | BX109: 0 | BY109: 0 | BZ109: 0 | CA109: 0 | CB109: 8.328469972 | CC109: 0.426107766 | CH109: 8.754577738 | CQ109: 3.834969894 | CR109: 6.778987187 | CS109: 0 | CT109: 0 | CU109: 0 | CV109: 10.61395708
A110: Other construction costs | BO110: -
A111: Infrastructure Planner Fee - Other | B111: Commercial Team Input | C111: $Millions | E111: Nominal | F111: =Report_Year -> 2026 | H111: 3.271683495 | I111: Transmission towers | J111: Transmission Lines | P111: 0 | Q111: 0 | R111: 1 | S111: 0 | T111: 0 | U111: 0 | V111: 0 | W111: 1 | X111: 0 | Y111: 0 | Z111: 0 | AA111: 0 | AB111: 0 | AC111: 0 | AD111: 0 | AE111: 0 | AF111: 3.229963795 | AG111: 0 | AH111: 0 | AI111: 0 | AJ111: 0 | AK111: 3.229963795 | AL111: 1 | AS111: 0 | AT111: 0 | AU111: 1 | AV111: 0 | AW111: 0 | AX111: 0 | AY111: 0 | BA111: 0 | BB111: 0 | BC111: 0 | BD111: 0 | BE111: 0 | BF111: 0 | BG111: 0 | BH111: 3.229963795 | BI111: 0 | BJ111: 0 | BK111: 0 | BL111: 0 | BM111: 3.229963795 | BO111: Transmission Lines - Transmission towers | BQ111: 0 | BR111: 3.229963795 | BS111: 0 | BT111: 3.229963795 | BX111: 0 | BY111: 0 | BZ111: 0 | CA111: 0 | CB111: 0 | CC111: 3.229963795 | CH111: 3.229963795 | CQ111: 0 | CR111: 0 | CS111: 0 | CT111: 0 | CU111: 0 | CV111: 0
A112: Infrastructure Planner Fee - Other | B112: Commercial Team Input | C112: $Millions | E112: Nominal | F112: 2026 | H112: 0.7446235365 | I112: Substation switchbays | J112: Substations | P112: 0 | Q112: 0 | R112: 1 | S112: 0 | T112: 0 | U112: 0 | V112: 0 | W112: 1 | X112: 0 | Y112: 0 | Z112: 0 | AA112: 0 | AB112: 0 | AC112: 0 | AD112: 0 | AE112: 0 | AF112: 0.735128281 | AG112: 0 | AH112: 0 | AI112: 0 | AJ112: 0 | AK112: 0.735128281 | AL112: 1 | AS112: 0 | AT112: 0 | AU112: 1 | AV112: 0 | AW112: 0 | AX112: 0 | AY112: 0 | BA112: 0 | BB112: 0 | BC112: 0 | BD112: 0 | BE112: 0 | BF112: 0 | BG112: 0 | BH112: 0.735128281 | BI112: 0 | BJ112: 0 | BK112: 0 | BL112: 0 | BM112: 0.735128281 | BO112: Substations - Substation switchbays | BQ112: 0 | BR112: 0.735128281 | BS112: 0 | BT112: 0.735128281 | BX112: 0 | BY112: 0 | BZ112: 0 | CA112: 0 | CB112: 0 | CC112: 0.735128281 | CH112: 0.735128281 | CQ112: 0 | CR112: 0 | CS112: 0 | CT112: 0 | CU112: 0 | CV112: 0
A113: Infrastructure Planner Fee - Other | B113: Commercial Team Input | C113: $Millions | E113: Nominal | F113: 2026 | H113: 0.1632287415 | I113: Biodiversity Offsets | J113: Biodiversity offsets - Stewardship sites | P113: 0 | Q113: 0 | R113: 1 | S113: 0 | T113: 0 | U113: 0 | V113: 0 | W113: 1 | X113: 0 | Y113: 0 | Z113: 0 | AA113: 0 | AB113: 0 | AC113: 0 | AD113: 0 | AE113: 0 | AF113: 0.1611472888 | AG113: 0 | AH113: 0 | AI113: 0 | AJ113: 0 | AK113: 0.1611472888 | AL113: 1 | AS113: 0 | AT113: 0 | AU113: 1 | AV113: 0 | AW113: 0 | AX113: 0 | AY113: 0 | BA113: 0 | BB113: 0 | BC113: 0 | BD113: 0 | BE113: 0 | BF113: 0 | BG113: 0 | BH113: 0.1611472888 | BI113: 0 | BJ113: 0 | BK113: 0 | BL113: 0 | BM113: 0.1611472888 | BO113: Biodiversity offsets - Stewardship sites - Biodiversity Offsets | BQ113: 0 | BR113: 0.1611472888 | BS113: 0 | BT113: 0.1611472888 | BX113: 0 | BY113: 0 | BZ113: 0 | CA113: 0 | CB113: 0 | CC113: 0.1611472888 | CH113: 0.1611472888 | CQ113: 0 | CR113: 0 | CS113: 0 | CT113: 0 | CU113: 0 | CV113: 0
A114: Infrastructure Planner Fee - Other | B114: Commercial Team Input | C114: $Millions | E114: Nominal | F114: 2026 | H114: 0.3910680283 | I114: Biodiversity Offsets | J114: Biodiversity offsets - Direct payments & Other costs | P114: 0 | Q114: 0 | R114: 1 | S114: 0 | T114: 0 | U114: 0 | V114: 0 | W114: 1 | X114: 0 | Y114: 0 | Z114: 0 | AA114: 0 | AB114: 0 | AC114: 0 | AD114: 0 | AE114: 0 | AF114: 0.3860812253 | AG114: 0 | AH114: 0 | AI114: 0 | AJ114: 0 | AK114: 0.3860812253 | AL114: 1 | AS114: 0 | AT114: 0 | AU114: 1 | AV114: 0 | AW114: 0 | AX114: 0 | AY114: 0 | BA114: 0 | BB114: 0 | BC114: 0 | BD114: 0 | BE114: 0 | BF114: 0 | BG114: 0 | BH114: 0.3860812253 | BI114: 0 | BJ114: 0 | BK114: 0 | BL114: 0 | BM114: 0.3860812253 | BO114: Biodiversity offsets - Direct payments & Other costs - Biodiversity Offsets | BQ114: 0 | BR114: 0.3860812253 | BS114: 0 | BT114: 0.3860812253 | BX114: 0 | BY114: 0 | BZ114: 0 | CA114: 0 | CB114: 0 | CC114: 0.3860812253 | CH114: 0.3860812253 | CQ114: 0 | CR114: 0 | CS114: 0 | CT114: 0 | CU114: 0 | CV114: 0
A115: Infrastructure Planner Fee - Other | B115: Commercial Team Input | C115: $Millions | E115: Nominal | F115: 2026 | H115: 0.3293961983 | I115: SCADA, network control and protection systems | J115: Secondary System | P115: 0 | Q115: 0 | R115: 1 | S115: 0 | T115: 0 | U115: 0 | V115: 0 | W115: 1 | X115: 0 | Y115: 0 | Z115: 0 | AA115: 0 | AB115: 0 | AC115: 0 | AD115: 0 | AE115: 0 | AF115: 0.3251958193 | AG115: 0 | AH115: 0 | AI115: 0 | AJ115: 0 | AK115: 0.3251958193 | AL115: 1 | AS115: 0 | AT115: 0 | AU115: 1 | AV115: 0 | AW115: 0 | AX115: 0 | AY115: 0 | BA115: 0 | BB115: 0 | BC115: 0 | BD115: 0 | BE115: 0 | BF115: 0 | BG115: 0 | BH115: 0.3251958193 | BI115: 0 | BJ115: 0 | BK115: 0 | BL115: 0 | BM115: 0.3251958193 | BO115: Secondary System - SCADA, network control and protection systems | BQ115: 0 | BR115: 0.3251958193 | BS115: 0 | BT115: 0.3251958193 | BX115: 0 | BY115: 0 | BZ115: 0 | CA115: 0 | CB115: 0 | CC115: 0.3251958193 | CH115: 0.3251958193 | CQ115: 0 | CR115: 0 | CS115: 0 | CT115: 0 | CU115: 0 | CV115: 0
A116: Risk | Other Construction Cost | B116: Project Team Input | C116: $Millions | E116: Nominal | F116: 2026 | H116: 0 | I116: 0 | J116: Transmission Lines | P116: 0 | Q116: 0.0456 | R116: 0.3821 | S116: 0.4095 | T116: 0.1628 | U116: 0 | V116: 0 | W116: 1 | X116: 0 | Y116: 0 | Z116: 0 | AA116: 0 | AB116: 0 | AC116: 0 | AD116: 0 | AE116: 0 | AF116: 0 | AG116: 0 | AH116: 0 | AI116: 0 | AJ116: 0 | AK116: 0 | AL116: 0 | AS116: 0 | AT116: 0 | AU116: 0 | AV116: 0 | AW116: 1 | AX116: 0 | AY116: 0 | BA116: 0 | BB116: 0 | BC116: 0 | BD116: 0 | BE116: 0 | BF116: 0 | BG116: 0 | BH116: 0 | BI116: 0 | BJ116: 0 | BK116: 0 | BL116: 0 | BM116: 0 | BO116: Transmission Lines - 0 | BQ116: 0 | BR116: 0 | BS116: 0 | BT116: 0 | BX116: 0 | BY116: 0 | BZ116: 0 | CA116: 0 | CB116: 0 | CC116: 0 | CH116: 0 | CQ116: 0 | CR116: 0 | CS116: 0 | CT116: 0 | CU116: 0 | CV116: 0
A117: =A116 -> Risk | Other Construction Cost | B117: Project Team Input | C117: $Millions | E117: Nominal | F117: 2026 | H117: 3.791351848 | I117: Transmission towers | J117: Transmission Lines | P117: 0 | Q117: 0.0456 | R117: 0.3821 | S117: 0.4095 | T117: 0.1628 | U117: 0 | V117: 0 | W117: 1 | X117: 0 | Y117: 0 | Z117: 0 | AA117: 0 | AB117: 0 | AC117: 0 | AD117: 0 | AE117: 0 | AF117: 1.60583242 | AG117: 1.493919203 | AH117: 0.5788690719 | AI117: 0 | AJ117: 0 | AK117: 3.678620695 | AL117: 0 | AS117: 0 | AT117: 0 | AU117: 0 | AV117: 0 | AW117: 1 | AX117: 0 | AY117: 0 | BA117: 0 | BB117: 0 | BC117: 0 | BD117: 0 | BE117: 0 | BF117: 0 | BG117: 0 | BH117: 0 | BI117: 0 | BJ117: 3.678620695 | BK117: 0 | BL117: 0 | BM117: 3.678620695 | BO117: Transmission Lines - Transmission towers | BQ117: 0 | BR117: 0 | BS117: 3.678620695 | BT117: 3.678620695 | BX117: 0 | BY117: 0 | BZ117: 0 | CA117: 0 | CB117: 0.1756300323 | CC117: 0 | CH117: 0.1756300323 | CQ117: 1.430202388 | CR117: 1.493919203 | CS117: 0.5788690719 | CT117: 0 | CU117: 0 | CV117: 3.502990662
A118: =A117 -> Risk | Other Construction Cost | B118: Project Team Input | C118: $Millions | E118: Nominal | F118: 2026 | H118: 4.022951119 | I118: Transmission tower support structures | J118: Transmission Lines | P118: 0 | Q118: 0.0456 | R118: 0.3821 | S118: 0.4095 | T118: 0.1628 | U118: 0 | V118: 0 | W118: 1 | X118: 0 | Y118: 0 | Z118: 0 | AA118: 0 | AB118: 0 | AC118: 0 | AD118: 0 | AE118: 0 | AF118: 1.703926618 | AG118: 1.585177047 | AH118: 0.6142299828 | AI118: 0 | AJ118: 0 | AK118: 3.903333648 | AL118: 0 | AS118: 0 | AT118: 0 | AU118: 0 | AV118: 0 | AW118: 1 | AX118: 0 | AY118: 0 | BA118: 0 | BB118: 0 | BC118: 0 | BD118: 0 | BE118: 0 | BF118: 0 | BG118: 0 | BH118: 0 | BI118: 0 | BJ118: 3.903333648 | BK118: 0 | BL118: 0 | BM118: 3.903333648 | BO118: Transmission Lines - Transmission tower support structures | BQ118: 0 | BR118: 0 | BS118: 3.903333648 | BT118: 3.903333648 | BX118: 0 | BY118: 0 | BZ118: 0 | CA118: 0 | CB118: 0.1863586033 | CC118: 0 | CH118: 0.1863586033 | CQ118: 1.517568015 | CR118: 1.585177047 | CS118: 0.6142299828 | CT118: 0 | CU118: 0 | CV118: 3.716975045
A119: =A118 -> Risk | Other Construction Cost | B119: Project Team Input | C119: $Millions | E119: Nominal | F119: 2026 | H119: 2.037885192 | I119: Conductors | J119: Transmission Lines | P119: 0 | Q119: 0.0456 | R119: 0.3821 | S119: 0.4095 | T119: 0.1628 | U119: 0 | V119: 0 | W119: 1 | X119: 0 | Y119: 0 | Z119: 0 | AA119: 0 | AB119: 0 | AC119: 0 | AD119: 0 | AE119: 0 | AF119: 0.863149146 | AG119: 0.8029948004 | AH119: 0.3111472522 | AI119: 0 | AJ119: 0 | AK119: 1.977291199 | AL119: 0 | AS119: 0 | AT119: 0 | AU119: 0 | AV119: 0 | AW119: 1 | AX119: 0 | AY119: 0 | BA119: 0 | BB119: 0 | BC119: 0 | BD119: 0 | BE119: 0 | BF119: 0 | BG119: 0 | BH119: 0 | BI119: 0 | BJ119: 1.977291199 | BK119: 0 | BL119: 0 | BM119: 1.977291199 | BO119: Transmission Lines - Conductors | BQ119: 0 | BR119: 0 | BS119: 1.977291199 | BT119: 1.977291199 | BX119: 0 | BY119: 0 | BZ119: 0 | CA119: 0 | CB119: 0.09440269763 | CC119: 0 | CH119: 0.09440269763 | CQ119: 0.7687464484 | CR119: 0.8029948004 | CS119: 0.3111472522 | CT119: 0 | CU119: 0 | CV119: 1.882888501
A120: =A119 -> Risk | Other Construction Cost | B120: Project Team Input | C120: $Millions | E120: Nominal | F120: 2026 | H120: 1.637058056 | I120: Substation switchbays | J120: Substations | P120: 0 | Q120: 0.0456 | R120: 0.3821 | S120: 0.4095 | T120: 0.1628 | U120: 0 | V120: 0 | W120: 1 | X120: 0 | Y120: 0 | Z120: 0 | AA120: 0 | AB120: 0 | AC120: 0 | AD120: 0 | AE120: 0 | AF120: 0.6933782477 | AG120: 0.6450555274 | AH120: 0.2499483866 | AI120: 0 | AJ120: 0 | AK120: 1.588382162 | AL120: 0 | AS120: 0 | AT120: 0 | AU120: 0 | AV120: 0 | AW120: 1 | AX120: 0 | AY120: 0 | BA120: 0 | BB120: 0 | BC120: 0 | BD120: 0 | BE120: 0 | BF120: 0 | BG120: 0 | BH120: 0 | BI120: 0 | BJ120: 1.588382162 | BK120: 0 | BL120: 0 | BM120: 1.588382162 | BO120: Substations - Substation switchbays | BQ120: 0 | BR120: 0 | BS120: 1.588382162 | BT120: 1.588382162 | BX120: 0 | BY120: 0 | BZ120: 0 | CA120: 0 | CB120: 0.07583483963 | CC120: 0 | CH120: 0.07583483963 | CQ120: 0.6175434081 | CR120: 0.6450555274 | CS120: 0.2499483866 | CT120: 0 | CU120: 0 | CV120: 1.512547322
A121: =A120 -> Risk | Other Construction Cost | B121: Project Team Input | C121: $Millions | E121: Nominal | F121: 2026 | H121: 1.194556786 | I121: Substation power transformers | J121: Substations | P121: 0 | Q121: 0.0456 | R121: 0.3821 | S121: 0.4095 | T121: 0.1628 | U121: 0 | V121: 0 | W121: 1 | X121: 0 | Y121: 0 | Z121: 0 | AA121: 0 | AB121: 0 | AC121: 0 | AD121: 0 | AE121: 0 | AF121: 0.5059562109 | AG121: 0.470695254 | AH121: 0.1823866541 | AI121: 0 | AJ121: 0 | AK121: 1.159038119 | AL121: 0 | AS121: 0 | AT121: 0 | AU121: 0 | AV121: 0 | AW121: 1 | AX121: 0 | AY121: 0 | BA121: 0 | BB121: 0 | BC121: 0 | BD121: 0 | BE121: 0 | BF121: 0 | BG121: 0 | BH121: 0 | BI121: 0 | BJ121: 1.159038119 | BK121: 0 | BL121: 0 | BM121: 1.159038119 | BO121: Substations - Substation power transformers | BQ121: 0 | BR121: 0 | BS121: 1.159038119 | BT121: 1.159038119 | BX121: 0 | BY121: 0 | BZ121: 0 | CA121: 0 | CB121: 0.05533647506 | CC121: 0 | CH121: 0.05533647506 | CQ121: 0.4506197358 | CR121: 0.470695254 | CS121: 0.1823866541 | CT121: 0 | CU121: 0 | CV121: 1.103701644
H123: 258.2691378 | I123: ◄ Notional sum with various dollar basis for cross check only | X123: Total Direct Non Labour | Y123: 0 | Z123: 0 | AA123: 0 | AB123: 0 | AC123: 0 | AD123: 0 | AE123: 0 | AF123: 166.8726066 | AG123: 80.680591 | AH123: 6.813166765 | AI123: 0 | AJ123: 0 | AK123: 254.3663643 | BA123: 0 | BB123: 0 | BC123: 0 | BD123: 0 | BE123: 0 | BF123: 0 | BG123: 21.53813641 | BH123: 93.61547345 | BI123: 121.840497 | BJ123: 17.37225747 | BK123: 0 | BL123: 0 | BM123: 254.3663643 | BQ123: 0 | BR123: 39.19528686 | BS123: 215.1710775 | BT123: 254.3663643 | BV123: 0 | BW123: 0 | BX123: 0 | BY123: 0 | BZ123: 0 | CA123: 8.330881448 | CB123: 47.52259611 | CC123: 25.75057046 | CD123: 0 | CE123: 0 | CF123: 0 | CG123: 0 | CH123: 81.60404802 | CJ123: 0 | CK123: 0 | CL123: 0 | CM123: 0 | CN123: 0 | CO123: 0 | CP123: 0 | CQ123: 85.26855853 | CR123: 80.680591 | CS123: 6.813166765 | CT123: 0 | CU123: 0 | CV123: 172.7623163
H124: 0 | W124: =IF(SUM(X39:X121)=0,0,1) -> 0
A125: Direct Non-Labour Costs | By Capex Category | Y125: Expenditure by Cost Category - As incurred (June 2026 dollars) - with 100% of IPF in 2026-27 | BA125: Expenditure - As Commissioned - by Cost Category (June 2026 dollars)
A126: Category | B126: RAB Asset class | C126: Source | D126: Units | Y126: 2020 | Z126: 2021 | AA126: 2022 | AB126: 2023 | AC126: 2024 | AD126: 2025 | AE126: 2026 | AF126: 2027 | AG126: 2028 | AH126: 2029 | AI126: 2030 | AJ126: 2031 | AK126: Total | BA126: 2020 | BB126: 2021 | BC126: 2022 | BD126: 2023 | BE126: 2024 | BF126: 2025 | BG126: 2026 | BH126: 2027 | BI126: 2028 | BJ126: 2029 | BK126: 2030 | BL126: 2031 | BM126: Total
A127: =A242 -> Transmission Lines - Transmission Towers | B127: Transmission Lines | C127: Calculated | D127: $Millions | Y127: 0 | Z127: 0 | AA127: 0 | AB127: 0 | AC127: 0 | AD127: 0 | AE127: 0 | AF127: [C-i-C] | AG127: [C-i-C] | AH127: [C-i-C] | AI127: 0 | AJ127: 0 | AK127: [C-i-C] | BA127: 0 | BB127: 0 | BC127: 0 | BD127: 0 | BE127: 0 | BF127: 0 | BG127: [C-i-C] | BH127: [C-i-C] | BI127: [C-i-C] | BJ127: [C-i-C] | BK127: 0 | BL127: 0 | BM127: [C-i-C]
A128: Transmission Lines - Transmission tower support structures | B128: Transmission Lines | C128: Calculated | D128: $Millions | Y128: 0 | Z128: 0 | AA128: 0 | AB128: 0 | AC128: 0 | AD128: 0 | AE128: 0 | AF128: 38.8999251 | AG128: 21.4873336 | AH128: 2.339018111 | AI128: 0 | AJ128: 0 | AK128: 62.72627681 | BA128: 0 | BB128: 0 | BC128: 0 | BD128: 0 | BE128: 0 | BF128: 0 | BG128: 0 | BH128: 40.88148626 | BI128: 16.1498196 | BJ128: 5.694970948 | BK128: 0 | BL128: 0 | BM128: 62.72627681
A129: Transmission Lines - Conductors | B129: Transmission Lines | C129: Calculated | D129: $Millions | Y129: 0 | Z129: 0 | AA129: 0 | AB129: 0 | AC129: 0 | AD129: 0 | AE129: 0 | AF129: 19.12411259 | AG129: 10.36267811 | AH129: 0.991795198 | AI129: 0 | AJ129: 0 | AK129: 30.4785859 | BA129: 0 | BB129: 0 | BC129: 0 | BD129: 0 | BE129: 0 | BF129: 0 | BG129: 0 | BH129: 0 | BI129: 27.79426627 | BJ129: 2.684319632 | BK129: 0 | BL129: 0 | BM129: 30.4785859
A130: Transmission Lines - Other non network | B130: Transmission Line Life Extension | C130: Calculated | D130: $Millions | Y130: 0 | Z130: 0 | AA130: 0 | AB130: 0 | AC130: 0 | AD130: 0 | AE130: 0 | AF130: 0 | AG130: 0 | AH130: 0 | AI130: 0 | AJ130: 0 | AK130: 0 | BA130: 0 | BB130: 0 | BC130: 0 | BD130: 0 | BE130: 0 | BF130: 0 | BG130: 0 | BH130: 0 | BI130: 0 | BJ130: 0 | BK130: 0 | BL130: 0 | BM130: 0
A131: Transmission Lines - Transmission cables | B131: Underground Cables | C131: Calculated | D131: $Millions | Y131: 0 | Z131: 0 | AA131: 0 | AB131: 0 | AC131: 0 | AD131: 0 | AE131: 0 | AF131: 0 | AG131: 0 | AH131: 0 | AI131: 0 | AJ131: 0 | AK131: 0 | BA131: 0 | BB131: 0 | BC131: 0 | BD131: 0 | BE131: 0 | BF131: 0 | BG131: 0 | BH131: 0 | BI131: 0 | BJ131: 0 | BK131: 0 | BL131: 0 | BM131: 0
A132: Substations - Substation switchbays | B132: Substations | C132: Calculated | D132: $Millions | Y132: 0 | Z132: 0 | AA132: 0 | AB132: 0 | AC132: 0 | AD132: 0 | AE132: 0 | AF132: 15.96716179 | AG132: 6.846022934 | AH132: 0.2499483866 | AI132: 0 | AJ132: 0 | AK132: 23.06313311 | BA132: 0 | BB132: 0 | BC132: 0 | BD132: 0 | BE132: 0 | BF132: 0 | BG132: 1.515414437 | BH132: 0.735128281 | BI132: 19.22420823 | BJ132: 1.588382162 | BK132: 0 | BL132: 0 | BM132: 23.06313311
A133: Substations - Substation power transformers | B133: Substations | C133: Calculated | D133: $Millions | Y133: 0 | Z133: 0 | AA133: 0 | AB133: 0 | AC133: 0 | AD133: 0 | AE133: 0 | AF133: 11.15933743 | AG133: 4.99552421 | AH133: 0.1823866541 | AI133: 0 | AJ133: 0 | AK133: 16.3372483 | BA133: 0 | BB133: 0 | BC133: 0 | BD133: 0 | BE133: 0 | BF133: 0 | BG133: 1.150358016 | BH133: 0 | BI133: 14.02785216 | BJ133: 1.159038119 | BK133: 0 | BL133: 0 | BM133: 16.3372483
A134: Substations - Substation reactive plant | B134: Substations | C134: Calculated | D134: $Millions | Y134: 0 | Z134: 0 | AA134: 0 | AB134: 0 | AC134: 0 | AD134: 0 | AE134: 0 | AF134: 0.8970132731 | AG134: 0 | AH134: 0 | AI134: 0 | AJ134: 0 | AK134: 0.8970132731 | BA134: 0 | BB134: 0 | BC134: 0 | BD134: 0 | BE134: 0 | BF134: 0 | BG134: 0.8970132731 | BH134: 0 | BI134: 0 | BJ134: 0 | BK134: 0 | BL134: 0 | BM134: 0.8970132731
A135: Secondary System - SCADA, network control and protection systems | B135: Secondary System | C135: Calculated | D135: $Millions | Y135: 0 | Z135: 0 | AA135: 0 | AB135: 0 | AC135: 0 | AD135: 0 | AE135: 0 | AF135: 11.75741753 | AG135: 4.843622669 | AH135: 0 | AI135: 0 | AJ135: 0 | AK135: 16.6010402 | BA135: 0 | BB135: 0 | BC135: 0 | BD135: 0 | BE135: 0 | BF135: 0 | BG135: 1.259669539 | BH135: 0.3251958193 | BI135: 15.01617484 | BJ135: 0 | BK135: 0 | BL135: 0 | BM135: 16.6010402
A136: Communications (short life) - [Spare] | B136: Communications (short life) | C136: Calculated | D136: $Millions | Y136: 0 | Z136: 0 | AA136: 0 | AB136: 0 | AC136: 0 | AD136: 0 | AE136: 0 | AF136: 0 | AG136: 0 | AH136: 0 | AI136: 0 | AJ136: 0 | AK136: 0 | BA136: 0 | BB136: 0 | BC136: 0 | BD136: 0 | BE136: 0 | BF136: 0 | BG136: 0 | BH136: 0 | BI136: 0 | BJ136: 0 | BK136: 0 | BL136: 0 | BM136: 0
A137: SIPS Control - [Spare] | B137: SIPS Control | C137: Calculated | D137: $Millions | Y137: 0 | Z137: 0 | AA137: 0 | AB137: 0 | AC137: 0 | AD137: 0 | AE137: 0 | AF137: 0 | AG137: 0 | AH137: 0 | AI137: 0 | AJ137: 0 | AK137: 0 | BA137: 0 | BB137: 0 | BC137: 0 | BD137: 0 | BE137: 0 | BF137: 0 | BG137: 0 | BH137: 0 | BI137: 0 | BJ137: 0 | BK137: 0 | BL137: 0 | BM137: 0
A138: =A253 -> Synchronous condensers - [Spare] | B138: Synchronous Condensers | C138: Calculated | D138: $Millions | Y138: 0 | Z138: 0 | AA138: 0 | AB138: 0 | AC138: 0 | AD138: 0 | AE138: 0 | AF138: 0 | AG138: 0 | AH138: 0 | AI138: 0 | AJ138: 0 | AK138: 0 | BA138: 0 | BB138: 0 | BC138: 0 | BD138: 0 | BE138: 0 | BF138: 0 | BG138: 0 | BH138: 0 | BI138: 0 | BJ138: 0 | BK138: 0 | BL138: 0 | BM138: 0
A139: =A254 -> Leasehold Land and Property - Other | B139: Leasehold Land and Property | C139: Calculated | D139: $Millions | Y139: 0 | Z139: 0 | AA139: 0 | AB139: 0 | AC139: 0 | AD139: 0 | AE139: 0 | AF139: 0 | AG139: 0 | AH139: 0 | AI139: 0 | AJ139: 0 | AK139: 0 | BA139: 0 | BB139: 0 | BC139: 0 | BD139: 0 | BE139: 0 | BF139: 0 | BG139: 0 | BH139: 0 | BI139: 0 | BJ139: 0 | BK139: 0 | BL139: 0 | BM139: 0
A140: =A255 -> Biodiversity offsets - Stewardship sites - Biodiversity Offsets | B140: Biodiversity offsets - Stewardship sites | C140: Calculated | D140: $Millions | Y140: 0 | Z140: 0 | AA140: 0 | AB140: 0 | AC140: 0 | AD140: 0 | AE140: 0 | AF140: 5.415926169 | AG140: 2.82949632 | AH140: 0 | AI140: 0 | AJ140: 0 | AK140: 8.245422489 | BA140: 0 | BB140: 0 | BC140: 0 | BD140: 0 | BE140: 0 | BF140: 0 | BG140: 3.476238336 | BH140: 1.939687833 | BI140: 2.82949632 | BJ140: 0 | BK140: 0 | BL140: 0 | BM140: 8.245422489
A141: =A256 -> Biodiversity offsets - Direct payments & Other costs - Biodiversity Offsets | B141: Biodiversity offsets - Direct payments & Other costs | C141: Calculated | D141: $Millions | Y141: 0 | Z141: 0 | AA141: 0 | AB141: 0 | AC141: 0 | AD141: 0 | AE141: 0 | AF141: 12.97562886 | AG141: 6.778987187 | AH141: 0 | AI141: 0 | AJ141: 0 | AK141: 19.75461604 | BA141: 0 | BB141: 0 | BC141: 0 | BD141: 0 | BE141: 0 | BF141: 0 | BG141: 8.328469972 | BH141: 4.647158886 | BI141: 6.778987187 | BJ141: 0 | BK141: 0 | BL141: 0 | BM141: 19.75461604
A142: =A257 -> Land & Easements - Other | B142: Land & Easements | C142: Calculated | D142: $Millions | Y142: 0 | Z142: 0 | AA142: 0 | AB142: 0 | AC142: 0 | AD142: 0 | AE142: 0 | AF142: [C-i-C] | AG142: [C-i-C] | AH142: [C-i-C] | AI142: 0 | AJ142: 0 | AK142: [C-i-C] | BA142: 0 | BB142: 0 | BC142: 0 | BD142: 0 | BE142: 0 | BF142: 0 | BG142: [C-i-C] | BH142: [C-i-C] | BI142: [C-i-C] | BJ142: [C-i-C] | BK142: 0 | BL142: 0 | BM142: [C-i-C]
A143: Buildings - capital works - Buildings and Property | B143: Buildings - capital works | C143: Calculated | D143: $Millions | Y143: 0 | Z143: 0 | AA143: 0 | AB143: 0 | AC143: 0 | AD143: 0 | AE143: 0 | AF143: 0 | AG143: 0 | AH143: 0 | AI143: 0 | AJ143: 0 | AK143: 0 | BA143: 0 | BB143: 0 | BC143: 0 | BD143: 0 | BE143: 0 | BF143: 0 | BG143: 0 | BH143: 0 | BI143: 0 | BJ143: 0 | BK143: 0 | BL143: 0 | BM143: 0
A144: Non-network - Business IT | B144: Business IT | C144: Calculated | D144: $Millions | Y144: 0 | Z144: 0 | AA144: 0 | AB144: 0 | AC144: 0 | AD144: 0 | AE144: 0 | AF144: 0 | AG144: 0 | AH144: 0 | AI144: 0 | AJ144: 0 | AK144: 0 | BA144: 0 | BB144: 0 | BC144: 0 | BD144: 0 | BE144: 0 | BF144: 0 | BG144: 0 | BH144: 0 | BI144: 0 | BJ144: 0 | BK144: 0 | BL144: 0 | BM144: 0
A145: Non-network - Minor Plant, Motor Vehicles & Mobile Plant | B145: Minor Plant, Motor Vehicles & Mobile Plant | C145: Calculated | D145: $Millions | Y145: 0 | Z145: 0 | AA145: 0 | AB145: 0 | AC145: 0 | AD145: 0 | AE145: 0 | AF145: 0 | AG145: 0 | AH145: 0 | AI145: 0 | AJ145: 0 | AK145: 0 | BA145: 0 | BB145: 0 | BC145: 0 | BD145: 0 | BE145: 0 | BF145: 0 | BG145: 0 | BH145: 0 | BI145: 0 | BJ145: 0 | BK145: 0 | BL145: 0 | BM145: 0
A146: Non-network - Buildings | B146: Buildings - capital works | C146: Calculated | D146: $Millions | Y146: 0 | Z146: 0 | AA146: 0 | AB146: 0 | AC146: 0 | AD146: 0 | AE146: 0 | AF146: 0 | AG146: 0 | AH146: 0 | AI146: 0 | AJ146: 0 | AK146: 0 | BA146: 0 | BB146: 0 | BC146: 0 | BD146: 0 | BE146: 0 | BF146: 0 | BG146: 0 | BH146: 0 | BI146: 0 | BJ146: 0 | BK146: 0 | BL146: 0 | BM146: 0
A147: Non-network - In-house software | B147: In-house software | C147: Calculated | D147: $Millions | Y147: 0 | Z147: 0 | AA147: 0 | AB147: 0 | AC147: 0 | AD147: 0 | AE147: 0 | AF147: 0 | AG147: 0 | AH147: 0 | AI147: 0 | AJ147: 0 | AK147: 0 | BA147: 0 | BB147: 0 | BC147: 0 | BD147: 0 | BE147: 0 | BF147: 0 | BG147: 0 | BH147: 0 | BI147: 0 | BJ147: 0 | BK147: 0 | BL147: 0 | BM147: 0
X149: Total Direct Non Labour | Y149: 0 | Z149: 0 | AA149: 0 | AB149: 0 | AC149: 0 | AD149: 0 | AE149: 0 | AF149: 166.8726066 | AG149: 80.680591 | AH149: 6.813166765 | AI149: 0 | AJ149: 0 | AK149: 254.3663643 | BA149: 0 | BB149: 0 | BC149: 0 | BD149: 0 | BE149: 0 | BF149: 0 | BG149: 21.53813641 | BH149: 93.61547345 | BI149: 121.840497 | BJ149: 17.37225747 | BK149: 0 | BL149: 0 | BM149: 254.3663643
Y150: =IF(ROUND(Y149-Y123,3)=0,0,1) -> 0 | Z150: =IF(ROUND(Z149-Z123,3)=0,0,1) -> 0 | AA150: 0 | AB150: 0 | AC150: 0 | AD150: 0 | AE150: 0 | AF150: 0 | AG150: 0 | AH150: =IF(ROUND(AH149-AH123,3)=0,0,1) -> 0 | AI150: =IF(ROUND(AI149-AI123,3)=0,0,1) -> 0 | AJ150: =IF(ROUND(AJ149-AJ123,3)=0,0,1) -> 0 | AK150: 0 | BA150: =IF(ROUND(BA149-BA123,3)=0,0,1) -> 0 | BB150: =IF(ROUND(BB149-BB123,3)=0,0,1) -> 0 | BC150: 0 | BD150: 0 | BE150: 0 | BF150: 0 | BG150: 0 | BH150: 0 | BI150: 0 | BJ150: =IF(ROUND(BJ149-BJ123,3)=0,0,1) -> 0 | BK150: =IF(ROUND(BK149-BK123,3)=0,0,1) -> 0 | BL150: =IF(ROUND(BL149-BL123,3)=0,0,1) -> 0 | BM150: =IF(ROUND(BM149-BM123,3)=0,0,1) -> 0
A152: Labour Costs - Direct Labour and Direct Labour Related
A154: Labour Costs | E154: Conversion | H154: Mapping | K154: ="Direct Labour and Direct Labour Related Costs (June "&E169&" dollars, unescalated)" -> Direct Labour and Direct Labour Related Costs (June 2026 dollars, unescalated)
A155: Component | B155: Source | C155: Units | E155: Dollar Yr | F155: Escalation Yr | K155: =K20 -> 2020 | L155: 2021 | M155: 2022 | N155: 2023 | O155: 2024 | P155: 2025 | Q155: 2026 | R155: 2027 | S155: 2028 | T155: 2029 | U155: 2030 | V155: 2031 | W155: Total | X155: FY27 IPF %
A156: Actuals (to 28 February 2025)
A157: Labour - Project management | B157: Transgrid | C157: $Millions | E157: 2026 | F157: n/a | H157: =Inputs_RNIP!$A$320 -> Project management | K157: 0 | L157: 0.001913651388 | M157: 1.949416785 | N157: 1.911590197 | O157: 4.654244701 | P157: 4.198748615 | W157: =SUM(K157:V157) -> 12.71591395
A158: Labour - Other support and corporate roles | B158: Transgrid | C158: $Millions | E158: =$E$157 -> 2026 | F158: n/a | H158: =Inputs_RNIP!$A$321 -> Other support and corporate roles | K158: 0 | L158: 0 | M158: 0.08511623355 | N158: 0.03399328801 | O158: 0.4017985817 | P158: 1.030108193 | W158: =SUM(K158:V158) -> 1.551016296
A159: Labour - Regulatory approvals | B159: Transgrid | C159: $Millions | E159: =$E$157 -> 2026 | F159: n/a | H159: =Inputs_RNIP!$A$322 -> Regulatory approvals | K159: 0 | L159: 0 | M159: 0 | N159: 0 | O159: 0 | P159: 0 | W159: =SUM(K159:V159) -> 0
A160: Labour - Community and stakeholder engagement | B160: Transgrid | C160: $Millions | E160: 2026 | F160: n/a | H160: =Inputs_RNIP!$A$323 -> Community and stakeholder engagement | K160: 0 | L160: 0.8278272572 | M160: 0.3632917066 | N160: 0.05561078627 | O160: 0.05699230937 | P160: 0.1116219816 | W160: 1.415344041
A161: Labour - Land and Environment | B161: Transgrid | C161: $Millions | E161: 2026 | F161: n/a | H161: =Inputs_RNIP!$A$324 -> Land and Environment | K161: 0 | L161: 0.5559895238 | M161: 0.4235619644 | N161: 0.4169171365 | O161: 0.9467526751 | P161: 0.8086365838 | W161: 3.151857884
A162: Labour - Transaction Procurement Support | B162: Transgrid | C162: $Millions | E162: 2026 | F162: n/a | H162: =Inputs_RNIP!$A$325 -> Transaction Procurement Support | K162: 0 | L162: 0 | M162: 0 | N162: 0 | O162: 0 | P162: 0 | W162: 0
A163: Labour - Project Development | B163: Transgrid | C163: $Millions | E163: 2026 | F163: n/a | H163: =Inputs_RNIP!$A$326 -> Project Development | K163: 0 | L163: 0.00128387456 | M163: 0.7793504628 | N163: 0.8246731542 | O163: 3.002534828 | P163: 2.269789065 | W163: 6.877631385
A164: Labour - Project Controls | B164: Transgrid | C164: $Millions | E164: 2026 | F164: n/a | H164: =Inputs_RNIP!$A$327 -> Project Controls | K164: 0 | L164: 0 | M164: 0 | N164: 0 | O164: 0 | P164: 0 | W164: 0
A165: Labour - Commercial Management | B165: Transgrid | C165: $Millions | E165: 2026 | F165: n/a | H165: =Inputs_RNIP!$A$328 -> Commercial Management | K165: 0 | L165: 0 | M165: 0 | N165: 0 | O165: 0 | P165: 0 | W165: 0
A166: Labour - Construction Management | B166: Transgrid | C166: $Millions | E166: 2026 | F166: n/a | H166: =Inputs_RNIP!$A$329 -> Construction Management | K166: 0 | L166: 0 | M166: 0 | N166: 0 | O166: 0 | P166: 0 | W166: 0
W167: 0
A168: Forecasts (from 1 March 2025)
A169: =A157 -> Labour - Project management | B169: Transgrid | C169: $Millions | E169: =$E$157 -> 2026 | F169: 2026 | H169: =Inputs_RNIP!$A$320 -> Project management | P169: 0.8276394059 | Q169: 3.082811081 | R169: 4.965721306 | S169: 4.455677292 | T169: 0.9669805227 | W169: =SUM(K169:V169) -> 14.29882961 | X169: 0.4992921512
A170: Labour - Other support and corporate roles | B170: Transgrid | C170: $Millions | E170: 2026 | F170: =F169 -> 2026 | H170: =Inputs_RNIP!$A$321 -> Other support and corporate roles | P170: 1.265115289 | Q170: 2.868325413 | R170: 3.083407779 | S170: 3.041595116 | T170: 1.214260366 | W170: 11.47270396 | X170: 0.4872001498
A171: Labour - Regulatory approvals | B171: Transgrid | C171: $Millions | E171: 2026 | F171: 2026 | H171: =Inputs_RNIP!$A$322 -> Regulatory approvals | P171: 0 | Q171: 0 | R171: 0 | S171: 0 | T171: 0 | W171: 0 | X171: 0
A172: Labour - Community and stakeholder engagement | B172: Transgrid | C172: $Millions | E172: 2026 | F172: 2026 | H172: =Inputs_RNIP!$A$323 -> Community and stakeholder engagement | P172: 0.2618728904 | Q172: 0.5209115386 | R172: 0.1480325725 | S172: 0.1253537133 | T172: 0.04073044405 | W172: 1.096901159 | X172: 0.5
A173: Labour - Land and Environment | B173: Transgrid | C173: $Millions | E173: 2026 | F173: 2026 | H173: =Inputs_RNIP!$A$324 -> Land and Environment | P173: 0.9913097513 | Q173: 2.486395591 | R173: 2.058989935 | S173: 1.489619095 | T173: 0.3796723987 | W173: 7.405986771 | X173: 0.548508729
A174: Labour - Transaction Procurement Support | B174: Transgrid | C174: $Millions | E174: 2026 | F174: 2026 | H174: =Inputs_RNIP!$A$325 -> Transaction Procurement Support | P174: 0 | Q174: 0 | R174: 0 | S174: 0 | T174: 0 | W174: 0 | X174: 0
A175: Labour - Project Development | B175: Transgrid | C175: $Millions | E175: 2026 | F175: 2026 | H175: =Inputs_RNIP!$A$326 -> Project Development | P175: 1.42014245 | Q175: 4.287984887 | R175: 0.8874542999 | S175: 0.585328705 | T175: 0.003745742976 | W175: 7.184656085 | X175: 0.5920771329
A176: Labour - Project Controls | B176: Transgrid | C176: $Millions | E176: 2026 | F176: 2026 | H176: =Inputs_RNIP!$A$327 -> Project Controls | P176: 0.5025052391 | Q176: 1.427076512 | R176: 1.648138173 | S176: 1.266400498 | T176: 0.04544530265 | W176: 4.889565725 | X176: 0.5
A177: Labour - Commercial Management | B177: Transgrid | C177: $Millions | E177: 2026 | F177: 2026 | H177: =Inputs_RNIP!$A$328 -> Commercial Management | P177: 0.9869339637 | Q177: 3.084198963 | R177: 3.228736615 | S177: 3.966513362 | T177: 1.6214016 | W177: 12.8877845 | X177: 0.365130758 | Y177: <Updated based on IR #7 response
A178: Labour - Construction Management | B178: Transgrid | C178: $Millions | E178: 2026 | F178: 2026 | H178: =Inputs_RNIP!$A$329 -> Construction Management | P178: 0.4344865403 | Q178: 1.682137054 | R178: 5.872154171 | S178: 9.373279495 | T178: 0.5576234022 | W178: 17.91968066 | X178: 0.38554944
W179: 0
A180: Total
A181: Labour | B181: Transgrid | C181: $Millions | K181: =SUM(K157:K167,K169:K179) -> 0 | L181: 1.387014307 | M181: 3.600737153 | N181: 3.242784562 | O181: 9.062323096 | P181: 15.10890997 | Q181: 19.43984104 | R181: 21.89263485 | S181: 24.30376728 | T181: 4.82985978 | U181: 0 | V181: 0 | W181: 102.867872 | X181: =IF(ROUND(W181-SUM(K157:V179),3)=0,0,1) -> 0
A183: Note: Direct labour costs for each year are pro-rated across escalated capex by asset class for that year | J183: Total | K183: =K181 -> 0 | L183: =L181 -> 1.387014307 | M183: 3.600737153 | N183: 3.242784562 | O183: 9.062323096 | P183: 15.10890997 | Q183: 19.43984104 | R183: 21.89263485 | S183: 24.30376728 | T183: =T181 -> 4.82985978 | U183: =U181 -> 0 | V183: =V181 -> 0 | W183: =SUM(K183:V183) -> 102.867872
J184: ="Actuals ("&$A$8&")" -> Actuals (Real $2026) | K184: =SUM(K157:K167) -> 0 | L184: =SUM(L157:L167) -> 1.387014307 | M184: 3.600737153 | N184: 3.242784562 | O184: 9.062323096 | P184: 8.418904438 | Q184: 0 | R184: 0 | S184: 0 | T184: 0 | U184: 0 | V184: 0 | W184: =SUM(K184:V184) -> 25.71176356
A185: Note: Input dollar basis conversion factor | E185: =INDEX($J$21:$V$21,,MATCH($A$6,$J$20:$V$20,0))/INDEX($J$21:$V$21,,MATCH(E169,$J$20:$V$20,0)) -> 1 | J185: ="Forecast ("&$A$8&")" -> Forecast (Real $2026) | K185: =SUM(K169:K179)*$E$185 -> 0 | L185: 0 | M185: 0 | N185: 0 | O185: 0 | P185: 6.69000553 | Q185: 19.43984104 | R185: 21.89263485 | S185: 24.30376728 | T185: 4.82985978 | U185: 0 | V185: 0 | W185: =SUM(K185:V185) -> 77.15610848
J186: ="Total ("&$A$8&")" -> Total (Real $2026) | K186: =SUM(K184:K185) -> 0 | L186: =SUM(L184:L185) -> 1.387014307 | M186: 3.600737153 | N186: 3.242784562 | O186: 9.062323096 | P186: 15.10890997 | Q186: 19.43984104 | R186: 21.89263485 | S186: 24.30376728 | T186: 4.82985978 | U186: =SUM(U184:U185) -> 0 | V186: =SUM(V184:V185) -> 0 | W186: =SUM(K186:V186) -> 102.867872
J187: ="Total including escalation ("&$A$8&")" -> Total including escalation (Real $2026) | K187: =K186* IF(K155<$F$169,1,K$22/INDEX(Inputs_RNIP!$K$22:$V$22,MATCH(Inputs_RNIP!$F$169,Years,0))) -> 0 | L187: =L186* IF(L155<$F$169,1,L$22/INDEX(Inputs_RNIP!$K$22:$V$22,MATCH(Inputs_RNIP!$F$169,Years,0))) -> 1.387014307 | M187: =M186* IF(M155<$F$169,1,M$22/INDEX(Inputs_RNIP!$K$22:$V$22,MATCH(Inputs_RNIP!$F$169,Years,0))) -> 3.600737153 | N187: =N186* IF(N155<$F$169,1,N$22/INDEX(Inputs_RNIP!$K$22:$V$22,MATCH(Inputs_RNIP!$F$169,Years,0))) -> 3.242784562 | O187: =O186* IF(O155<$F$169,1,O$22/INDEX(Inputs_RNIP!$K$22:$V$22,MATCH(Inputs_RNIP!$F$169,Years,0))) -> 9.062323096 | P187: =P186* IF(P155<$F$169,1,P$22/INDEX(Inputs_RNIP!$K$22:$V$22,MATCH(Inputs_RNIP!$F$169,Years,0))) -> 15.10890997 | Q187: =Q186* IF(Q155<$F$169,1,Q$22/INDEX(Inputs_RNIP!$K$22:$V$22,MATCH(Inputs_RNIP!$F$169,Years,0))) -> 19.43984104 | R187: =R186* IF(R155<$F$169,1,R$22/INDEX(Inputs_RNIP!$K$22:$V$22,MATCH(Inputs_RNIP!$F$169,Years,0))) -> 21.98743998 | S187: =S186* IF(S155<$F$169,1,S$22/INDEX(Inputs_RNIP!$K$22:$V$22,MATCH(Inputs_RNIP!$F$169,Years,0))) -> 24.48247052 | T187: =T186* IF(T155<$F$169,1,T$22/INDEX(Inputs_RNIP!$K$22:$V$22,MATCH(Inputs_RNIP!$F$169,Years,0))) -> 4.883228876 | U187: =U186* IF(U155<$F$169,1,U$22/INDEX(Inputs_RNIP!$K$22:$V$22,MATCH(Inputs_RNIP!$F$169,Years,0))) -> 0 | V187: =V186* IF(V155<$F$169,1,V$22/INDEX(Inputs_RNIP!$K$22:$V$22,MATCH(Inputs_RNIP!$F$169,Years,0))) -> 0 | W187: =SUM(K187:V187) -> 103.1947495
A189: Indirect Costs - Non Labour and Indirect Labour
A191: Indirect Costs | E191: Conversion | H191: Mapping | K191: ="Indirect Costs (June "&E206&" dollars, unescalated)" -> Indirect Costs (June 2026 dollars, unescalated)
A192: Component | B192: Source | C192: Units | E192: Dollar Yr | F192: Escalation Yr | K192: =K$20 -> 2020 | L192: =L$20 -> 2021 | M192: 2022 | N192: 2023 | O192: 2024 | P192: 2025 | Q192: 2026 | R192: 2027 | S192: 2028 | T192: 2029 | U192: 2030 | V192: 2031 | W192: Total | X192: FY27 IPF %
A193: =A156 -> Actuals (to 28 February 2025)
A194: Non Labour - Project management | B194: Transgrid | C194: $Millions | E194: =$E$157 -> 2026 | F194: n/a | H194: =Inputs_RNIP!$A$320 -> Project management | K194: 0 | L194: 0.420874051 | M194: 0.5981761091 | N194: 1.195774326 | O194: 5.441549721 | P194: 3.199631861 | W194: =SUM(K194:V194) -> 10.85600607
A195: Non Labour - Other support and corporate roles | B195: Transgrid | C195: $Millions | E195: 2026 | F195: n/a | H195: =Inputs_RNIP!$A$321 -> Other support and corporate roles | K195: 0 | L195: 0.08005960225 | M195: 0.3554654446 | N195: 0.03375240035 | O195: 1.216683317 | P195: 1.424188864 | W195: =SUM(K195:V195) -> 3.110149628
A196: Non Labour - Regulatory approvals | B196: Transgrid | C196: $Millions | E196: 2026 | F196: n/a | H196: =Inputs_RNIP!$A$322 -> Regulatory approvals | K196: 0 | L196: 0 | M196: 0 | N196: 0 | O196: 0 | P196: 0 | W196: 0
A197: Non Labour - Community and stakeholder engagement | B197: Transgrid | C197: $Millions | E197: 2026 | F197: n/a | H197: =Inputs_RNIP!$A$323 -> Community and stakeholder engagement | K197: 0 | L197: 0.2184821433 | M197: 0.248796575 | N197: 0.3782204504 | O197: 0.6441132864 | P197: 0.4756881348 | W197: =SUM(K197:V197) -> 1.96530059
A198: Non Labour - Land and Environment | B198: Transgrid | C198: $Millions | E198: 2026 | F198: n/a | H198: =Inputs_RNIP!$A$324 -> Land and Environment | K198: 0 | L198: 1.106350458 | M198: -0.2890162395 | N198: 0.1029634209 | O198: 1.613850325 | P198: 1.39299609 | W198: 3.927144054
A199: Non Labour - Transaction Procurement Support | B199: Transgrid | C199: $Millions | E199: 2026 | F199: n/a | H199: =Inputs_RNIP!$A$325 -> Transaction Procurement Support | K199: 0 | L199: 0 | M199: 0 | N199: 0 | O199: 0 | P199: 0 | W199: 0
A200: Non Labour - Project Development | B200: Transgrid | C200: $Millions | E200: 2026 | F200: n/a | H200: =Inputs_RNIP!$A$326 -> Project Development | K200: 0 | L200: 1.519056195 | M200: 7.650092689 | N200: 0.1507546327 | O200: -5.153484659 | P200: 0.553638703 | W200: 4.72005756
A201: Non Labour - Project Controls | B201: Transgrid | C201: $Millions | E201: 2026 | F201: n/a | H201: =Inputs_RNIP!$A$327 -> Project Controls | K201: 0 | L201: 0 | M201: 0 | N201: 0 | O201: 0 | P201: 0 | W201: 0
A202: Non Labour - Commercial Management | B202: Transgrid | C202: $Millions | E202: 2026 | F202: n/a | H202: =Inputs_RNIP!$A$328 -> Commercial Management | K202: 0 | L202: 0 | M202: 0 | N202: 0 | O202: 0 | P202: 0 | W202: 0
A203: Non Labour - Construction Management | B203: Transgrid | C203: $Millions | E203: 2026 | F203: n/a | H203: =Inputs_RNIP!$A$329 -> Construction Management | K203: 0 | L203: 0 | M203: 0 | N203: 0 | O203: 0 | P203: 0 | W203: 0
W204: 0
A205: =A168 -> Forecasts (from 1 March 2025)
A206: =A194 -> Non Labour - Project management | B206: Transgrid | C206: $Millions | E206: =$E$157 -> 2026 | F206: n/a | H206: =Inputs_RNIP!$A$320 -> Project management | P206: 2.543797515 | Q206: 3.987753197 | R206: 3.366848367 | S206: 2.849417621 | T206: 0.441776463 | W206: =SUM(K206:V206) -> 13.18959316 | X206: 0.4995525727
A207: Non Labour - Other support and corporate roles | B207: Transgrid | C207: $Millions | E207: 2026 | F207: n/a | H207: =Inputs_RNIP!$A$321 -> Other support and corporate roles | P207: 1.213874007 | Q207: 1.38779752 | R207: 1.448272637 | S207: 1.419785244 | T207: 0.5203972999 | W207: 5.990126708 | X207: 0.4883209171
A208: Non Labour - Regulatory approvals | B208: Transgrid | C208: $Millions | E208: 2026 | F208: n/a | H208: =Inputs_RNIP!$A$322 -> Regulatory approvals | P208: 0 | Q208: 0 | R208: 0 | S208: 0 | T208: 0 | W208: 0 | X208: 0
A209: Non Labour - Community and stakeholder engagement | B209: Transgrid | C209: $Millions | E209: 2026 | F209: n/a | H209: =Inputs_RNIP!$A$323 -> Community and stakeholder engagement | P209: 0.1978294467 | Q209: 0.2919377223 | R209: 0.06344253106 | S209: 0.05372301998 | T209: 0.01745590459 | W209: 0.6243886246 | X209: 0.5
A210: Non Labour - Land and Environment | B210: Transgrid | C210: $Millions | E210: 2026 | F210: n/a | H210: =Inputs_RNIP!$A$324 -> Land and Environment | P210: 2.036374452 | Q210: 5.575131448 | R210: 2.377358213 | S210: 1.301530103 | T210: 0.1627167423 | W210: 11.45311096 | X210: 0.5339993662
A211: Non Labour - Transaction Procurement Support | B211: Transgrid | C211: $Millions | E211: 2026 | F211: n/a | H211: =Inputs_RNIP!$A$325 -> Transaction Procurement Support | P211: 0 | Q211: 0 | R211: 0 | S211: 0 | T211: 0 | W211: 0 | X211: 0
A212: Non Labour - Project Development | B212: Transgrid | C212: $Millions | E212: 2026 | F212: n/a | H212: =Inputs_RNIP!$A$326 -> Project Development | P212: 2.431469567 | Q212: 4.808354517 | R212: 0.3803375571 | S212: 0.3318617103 | T212: 0.001605318418 | W212: 7.95362867 | X212: 0.5920771329
A213: Non Labour - Project Controls | B213: Transgrid | C213: $Millions | E213: 2026 | F213: n/a | H213: =Inputs_RNIP!$A$327 -> Project Controls | P213: 0.2153593882 | Q213: 0.6116042192 | R213: 0.7063449313 | S213: 0.5427430707 | T213: 0.01947655828 | W213: 2.095528168 | X213: 0.5
A214: Non Labour - Commercial Management | B214: Transgrid | C214: $Millions | E214: 2026 | F214: n/a | H214: =Inputs_RNIP!$A$328 -> Commercial Management | P214: 0.4229716987 | Q214: 1.321799556 | R214: 1.383744264 | S214: 1.699934298 | T214: 0.6948864 | W214: 5.523336216 | X214: 0.365130758 | Y214: <Updated profile based on Transgrid's response to IR #7
A215: Non Labour - Construction Management | B215: Transgrid | C215: $Millions | E215: 2026 | F215: n/a | H215: =Inputs_RNIP!$A$329 -> Construction Management | P215: 0.1862085173 | Q215: 0.7209158802 | R215: 2.516637502 | S215: 4.017119784 | T215: 0.2389814581 | W215: 7.679863141 | X215: 0.38554944
A216: =A180 -> Total
A217: Non-Labour | B217: Transgrid | C217: $Millions | K217: =SUM(K194:K204,K206:K215) -> 0 | L217: 3.344822449 | M217: 8.563514578 | N217: 1.86146523 | O217: 3.76271199 | P217: 16.29402824 | Q217: 18.70529406 | R217: 12.242986 | S217: 12.21611485 | T217: 2.097296145 | U217: 0 | V217: 0 | W217: 79.08823355 | X217: =IF(ROUND(W217-SUM(K194:V215),3)=0,0,1) -> 0
A219: Note: Indirect costs for each year are pro-rated across escalated capex (including direct labour costs) by asset class for that year | J219: Total | K219: =K217 -> 0 | L219: =L217 -> 3.344822449 | M219: 8.563514578 | N219: 1.86146523 | O219: 3.76271199 | P219: 16.29402824 | Q219: 18.70529406 | R219: 12.242986 | S219: 12.21611485 | T219: =T217 -> 2.097296145 | U219: =U217 -> 0 | V219: =V217 -> 0 | W219: =SUM(K219:V219) -> 79.08823355
J220: ="Actuals ("&$A$8&")" -> Actuals (Real $2026) | K220: =SUM(K194:K204) -> 0 | L220: =SUM(L194:L204) -> 3.344822449 | M220: 8.563514578 | N220: 1.86146523 | O220: 3.76271199 | P220: 7.046143652 | Q220: 0 | R220: 0 | S220: 0 | T220: 0 | U220: 0 | V220: 0 | W220: =SUM(K220:V220) -> 24.5786579
A221: Note: Input dollar basis conversion factor | E221: =INDEX($J$21:$V$21,,MATCH($A$6,$J$20:$V$20,0))/INDEX($J$21:$V$21,,MATCH(E206,$J$20:$V$20,0)) -> 1 | J221: ="Forecast ("&$A$8&")" -> Forecast (Real $2026) | K221: =SUM(K206:K215)*$E$221 -> 0 | L221: 0 | M221: 0 | N221: 0 | O221: 0 | P221: 9.247884592 | Q221: 18.70529406 | R221: 12.242986 | S221: 12.21611485 | T221: 2.097296145 | U221: 0 | V221: 0 | W221: =SUM(K221:V221) -> 54.50957565
J222: ="Total ("&$A$8&")" -> Total (Real $2026) | K222: =SUM(K220:K221) -> 0 | L222: =SUM(L220:L221) -> 3.344822449 | M222: 8.563514578 | N222: 1.86146523 | O222: 3.76271199 | P222: 16.29402824 | Q222: 18.70529406 | R222: 12.242986 | S222: 12.21611485 | T222: =SUM(T220:T221) -> 2.097296145 | U222: =SUM(U220:U221) -> 0 | V222: =SUM(V220:V221) -> 0 | W222: =SUM(K222:V222) -> 79.08823355
... 97 more rows

Sheet Adjustments (hidden)
A1: Inputs - Adjustments to the RNIP
A2: Section Check | G2: =IF(SUM(G71:Q71)=0,0,1) -> 0
A3: Input - Infrastructure Planner Fee Recognised in FY27
B5: Item | C5: Value | D5: Unit | E5: Basis | F5: Timing
B6: Contracted IPF Amount | C6: 188.1 | D6: Millions | E6: Nominal | F6: Mid Period (31 Dec 2026)
B7: Nominal Vanilla WACC | C7: 0.06505839043 | D7: Percent | E7: N/A | F7: N/A
B8: Implied IPF PTRM Input | C8: =C6/(1+C7)^0.5 -> 182.2644992 | D8: Millions | E8: Real 2026 | F8: End Period (30 June 2026)
B10: Direct Non-Labour Costs | C10: 81.58211174 | D10: Millions | E10: Real 2026 | F10: End Period (30 June 2026)
B11: Labour Costs | C11: 59.45380477 | D11: Millions | E11: Real 2026 | F11: End Period (30 June 2026)
B12: Indirect Non-Labour Costs | C12: 52.50212368 | D12: Millions | E12: Real 2026 | F12: End Period (30 June 2026)
B13: Forecast RNIP IPF | C13: =SUM(C10:C12) -> 193.5380402 | D13: Millions | E13: Real 2026 | F13: End Period (30 June 2026)
B15: Adjustment - IPF | C15: =C8-C13 -> -11.27354103 | D15: Millions | E15: Real 2026 | F15: End Period (30 June 2026)
B16: =B10 -> Direct Non-Labour Costs | C16: =IF($C$13=0,0,$C$15*C10/$C$13) -> -4.752137013 | D16: Millions | E16: Real 2026 | F16: End Period (30 June 2026)
B17: =B11 -> Labour Costs | C17: =IF($C$13=0,0,$C$15*C11/$C$13) -> -3.463168827 | D17: Millions | E17: Real 2026 | F17: End Period (30 June 2026)
B18: =B12 -> Indirect Non-Labour Costs | C18: =IF($C$13=0,0,$C$15*C12/$C$13) -> -3.058235193 | D18: Millions | E18: Real 2026 | F18: End Period (30 June 2026)
B20: Note: this adjustment overrides the project team forecast in Real 2026 dollars to ensure the IPF portion being included in FY27 of the PTRM, expressed in real 2026 end of period dollars, aligns with the contracted value of $188.1 million in nominal dollars.
A22: Input - Adjustment Mechanism - IPF Contract Variation
B24: Item | C24: Value | D24: Unit | E24: Basis | F24: Timing
B25: Adjusted IPF | C25: =C8 -> 182.2644992 | D25: Millions | E25: Real 2026 | F25: End Period (30 June 2026)
B26: Proportion of IPF Spent in IPF Period | C26: 1 | D26: Percent | E26: N/A | F26: N/A
B28: Amount remaining as IPF | C28: =C25*C26 -> 182.2644992 | D28: Millions | E28: Real 2026 | F28: End Period (30 June 2026)
B29: Amount moved from original IPF to Forecast | C29: =C25-C28 -> 0 | D29: Millions | E29: Real 2026 | F29: End Period (30 June 2026)
B31: Adjustment - Variation | C31: =SUM(C32:C34) -> 0 | D31: Millions | E31: Real 2026 | F31: End Period (30 June 2026)
B32: =B16 -> Direct Non-Labour Costs | C32: =IF($C$13=0,0,-$C$29*C10/$C$13) -> 0 | D32: Millions | E32: Real 2026 | F32: End Period (30 June 2026)
B33: =B17 -> Labour Costs | C33: =IF($C$13=0,0,-$C$29*C11/$C$13) -> 0 | D33: Millions | E33: Real 2026 | F33: End Period (30 June 2026)
B34: =B18 -> Indirect Non-Labour Costs | C34: =IF($C$13=0,0,-$C$29*C12/$C$13) -> 0 | D34: Millions | E34: Real 2026 | F34: End Period (30 June 2026)
A36: Calculation - Target Cash Flows
D38: Unit | E38: Basis | F38: Timing | G38: =Calc_Forecast!E4 -> 2020 | H38: =Calc_Forecast!F4 -> 2021 | I38: =Calc_Forecast!G4 -> 2022 | J38: =Calc_Forecast!H4 -> 2023 | K38: =Calc_Forecast!I4 -> 2024 | L38: =Calc_Forecast!J4 -> 2025 | M38: =Calc_Forecast!K4 -> 2026 | N38: =Calc_Forecast!L4 -> 2027 | O38: =Calc_Forecast!M4 -> 2028 | P38: =Calc_Forecast!N4 -> 2029 | Q38: Total
B40: Direct Non-Labour Costs | D40: Millions | E40: Real 2026 | F40: End Period (30 June 2026) | G40: =Inputs_RNIP!BV123+Inputs_RNIP!CJ123 -> 0 | H40: =Inputs_RNIP!BW123+Inputs_RNIP!CK123 -> 0 | I40: =Inputs_RNIP!BX123+Inputs_RNIP!CL123 -> 0 | J40: =Inputs_RNIP!BY123+Inputs_RNIP!CM123 -> 0 | K40: =Inputs_RNIP!BZ123+Inputs_RNIP!CN123 -> 0 | L40: =Inputs_RNIP!CA123+Inputs_RNIP!CO123 -> 8.330881448 | M40: =Inputs_RNIP!CB123+Inputs_RNIP!CP123 -> 47.52259611 | N40: =Inputs_RNIP!CC123+Inputs_RNIP!CQ123 -> 111.019129 | O40: =Inputs_RNIP!CD123+Inputs_RNIP!CR123 -> 80.680591 | P40: =Inputs_RNIP!CE123+Inputs_RNIP!CS123 -> 6.813166765 | Q40: =SUM(G40:P40) -> 254.3663643
B41: Labour Costs | D41: Millions | E41: Real 2026 | F41: End Period (30 June 2026) | G41: =Inputs_RNIP!K187 -> 0 | H41: =Inputs_RNIP!L187 -> 1.387014307 | I41: =Inputs_RNIP!M187 -> 3.600737153 | J41: =Inputs_RNIP!N187 -> 3.242784562 | K41: =Inputs_RNIP!O187 -> 9.062323096 | L41: =Inputs_RNIP!P187 -> 15.10890997 | M41: =Inputs_RNIP!Q187 -> 19.43984104 | N41: =Inputs_RNIP!R187 -> 21.98743998 | O41: =Inputs_RNIP!S187 -> 24.48247052 | P41: =Inputs_RNIP!T187 -> 4.883228876 | Q41: =SUM(G41:P41) -> 103.1947495
B42: Indirect Non-Labour Costs | D42: Millions | E42: Real 2026 | F42: End Period (30 June 2026) | G42: =Inputs_RNIP!K222 -> 0 | H42: =Inputs_RNIP!L222 -> 3.344822449 | I42: =Inputs_RNIP!M222 -> 8.563514578 | J42: =Inputs_RNIP!N222 -> 1.86146523 | K42: =Inputs_RNIP!O222 -> 3.76271199 | L42: =Inputs_RNIP!P222 -> 16.29402824 | M42: =Inputs_RNIP!Q222 -> 18.70529406 | N42: =Inputs_RNIP!R222 -> 12.242986 | O42: =Inputs_RNIP!S222 -> 12.21611485 | P42: =Inputs_RNIP!T222 -> 2.097296145 | Q42: =SUM(G42:P42) -> 79.08823355
B43: RNIP | D43: Millions | E43: Real 2026 | F43: End Period (30 June 2026) | G43: =SUM(G40:G42) -> 0 | H43: =SUM(H40:H42) -> 4.731836756 | I43: 12.16425173 | J43: 5.104249792 | K43: 12.82503509 | L43: 39.73381966 | M43: 85.6677312 | N43: 145.249555 | O43: 117.3791764 | P43: 13.79369179 | Q43: =SUM(G43:P43) -> 436.6493474
B45: Direct Non-Labour Costs | D45: Millions | E45: Real 2026 | F45: End Period (30 June 2026) | G45: =Calc_Early_REZ!E28 -> 0 | H45: =Calc_Early_REZ!F28 -> 0 | I45: =Calc_Early_REZ!G28 -> 0 | J45: =Calc_Early_REZ!H28 -> 0 | K45: =Calc_Early_REZ!I28 -> 0 | L45: =Calc_Early_REZ!J28 -> 0 | M45: =Calc_Early_REZ!K28 -> 0 | N45: =Calc_Early_REZ!L28 -> 0 | O45: =Calc_Early_REZ!M28 -> 0 | P45: =Calc_Early_REZ!N28 -> 0 | Q45: =SUM(G45:P45) -> 0
B46: Labour Costs | D46: Millions | E46: Real 2026 | F46: End Period (30 June 2026) | G46: =Calc_Early_REZ!E52 -> 0 | H46: =Calc_Early_REZ!F52 -> 0 | I46: =Calc_Early_REZ!G52 -> 0 | J46: =Calc_Early_REZ!H52 -> 0 | K46: =Calc_Early_REZ!I52 -> 0 | L46: =Calc_Early_REZ!J52 -> 0 | M46: =Calc_Early_REZ!K52 -> 0 | N46: =Calc_Early_REZ!L52 -> 0 | O46: =Calc_Early_REZ!M52 -> 0 | P46: =Calc_Early_REZ!N52 -> 0 | Q46: =SUM(G46:P46) -> 0
B47: Indirect Non-Labour Costs | D47: Millions | E47: Real 2026 | F47: End Period (30 June 2026) | G47: =Calc_Early_REZ!E76 -> 0 | H47: =Calc_Early_REZ!F76 -> 0 | I47: =Calc_Early_REZ!G76 -> 0 | J47: =Calc_Early_REZ!H76 -> 0 | K47: =Calc_Early_REZ!I76 -> 0 | L47: =Calc_Early_REZ!J76 -> 0 | M47: =Calc_Early_REZ!K76 -> 0 | N47: =Calc_Early_REZ!L76 -> 0 | O47: =Calc_Early_REZ!M76 -> 0 | P47: =Calc_Early_REZ!N76 -> 0 | Q47: =SUM(G47:P47) -> 0
B48: Early REZ | D48: Millions | E48: Real 2026 | F48: End Period (30 June 2026) | G48: =SUM(G45:G47) -> 0 | H48: 0 | I48: 0 | J48: 0 | K48: 0 | L48: 0 | M48: 0 | N48: 0 | O48: 0 | P48: 0 | Q48: =SUM(G48:P48) -> 0
B50: Direct Non-Labour Costs | D50: Millions | E50: Real 2026 | F50: End Period (30 June 2026) | G50: =Inputs_RNIP!BV123 -> 0 | H50: =Inputs_RNIP!BW123 -> 0 | I50: =Inputs_RNIP!BX123 -> 0 | J50: =Inputs_RNIP!BY123 -> 0 | K50: =Inputs_RNIP!BZ123 -> 0 | L50: =Inputs_RNIP!CA123 -> 8.330881448 | M50: =Inputs_RNIP!CB123 -> 47.52259611 | N50: =Inputs_RNIP!CC123 -> 25.75057046 | Q50: =SUM(G50:P50) -> 81.60404802
B51: Labour Costs | D51: Millions | E51: Real 2026 | F51: End Period (30 June 2026) | G51: =Inputs_RNIP!K187*Inputs_RNIP!K235 -> 0 | H51: =Inputs_RNIP!L187*Inputs_RNIP!L235 -> 0 | I51: =Inputs_RNIP!M187*Inputs_RNIP!M235 -> 2.579339474 | J51: =Inputs_RNIP!N187*Inputs_RNIP!N235 -> 3.242784562 | K51: =Inputs_RNIP!O187*Inputs_RNIP!O235 -> 9.062323096 | L51: =Inputs_RNIP!P187*Inputs_RNIP!P235 -> 15.10890997 | M51: =Inputs_RNIP!Q187*Inputs_RNIP!Q235 -> 19.43984104 | N51: =SUMPRODUCT(Inputs_RNIP!R169:R179,Inputs_RNIP!X169:X179)*Inputs_RNIP!R22 -> 10.02060663 | Q51: =SUM(G51:P51) -> 59.45380477
B52: Indirect Non-Labour Costs | D52: Millions | E52: Real 2026 | F52: End Period (30 June 2026) | G52: =Inputs_RNIP!K222*Inputs_RNIP!K235 -> 0 | H52: =Inputs_RNIP!L222*Inputs_RNIP!L235 -> 0 | I52: =Inputs_RNIP!M222*Inputs_RNIP!M235 -> 6.134358118 | J52: =Inputs_RNIP!N222*Inputs_RNIP!N235 -> 1.86146523 | K52: =Inputs_RNIP!O222*Inputs_RNIP!O235 -> 3.76271199 | L52: =Inputs_RNIP!P222*Inputs_RNIP!P235 -> 16.29402824 | M52: =Inputs_RNIP!Q222*Inputs_RNIP!Q235 -> 18.70529406 | N52: =SUMPRODUCT(Inputs_RNIP!R206:R215,Inputs_RNIP!X206:X215) -> 5.744266037 | Q52: =SUM(G52:P52) -> 52.50212368
B53: Project Team IPF | D53: Millions | E53: Real 2026 | F53: End Period (30 June 2026) | G53: =SUM(G50:G52) -> 0 | H53: 0 | I53: 8.713697592 | J53: 5.104249792 | K53: 12.82503509 | L53: 39.73381966 | M53: 85.6677312 | N53: 41.51544314 | O53: 0 | P53: 0 | Q53: =SUM(G53:P53) -> 193.5599765
B55: Direct Non-Labour Costs | D55: Millions | E55: Real 2026 | F55: End Period (30 June 2026) | G55: =G50 -> 0 | H55: =H50 -> 0 | I55: 0 | J55: 0 | K55: 0 | L55: 8.330881448 | M55: 47.52259611 | N55: =N50+C16 -> 20.99843345 | Q55: =SUM(G55:P55) -> 76.85191101
B56: Labour Costs | D56: Millions | E56: Real 2026 | F56: End Period (30 June 2026) | G56: =G51 -> 0 | H56: 0 | I56: 2.579339474 | J56: 3.242784562 | K56: 9.062323096 | L56: 15.10890997 | M56: 19.43984104 | N56: =N51+C17 -> 6.557437807 | Q56: =SUM(G56:P56) -> 55.99063595
B57: Indirect Non-Labour Costs | D57: Millions | E57: Real 2026 | F57: End Period (30 June 2026) | G57: =G52 -> 0 | H57: 0 | I57: 6.134358118 | J57: 1.86146523 | K57: 3.76271199 | L57: 16.29402824 | M57: 18.70529406 | N57: =N52+C18 -> 2.686030845 | Q57: =SUM(G57:P57) -> 49.44388849
B58: Max IPF for PTRM purposes (Adjustment 1) | D58: Millions | E58: Real 2026 | F58: End Period (30 June 2026) | G58: =SUM(G55:G57) -> 0 | H58: 0 | I58: 8.713697592 | J58: 5.104249792 | K58: 12.82503509 | L58: 39.73381966 | M58: 85.6677312 | N58: 30.2419021 | O58: 0 | P58: 0 | Q58: =SUM(G58:P58) -> 182.2864354
B60: Direct Non-Labour Costs | D60: Millions | E60: Real 2026 | F60: End Period (30 June 2026) | G60: =G55*$C$26 -> 0 | H60: =H55*$C$26 -> 0 | I60: 0 | J60: 0 | K60: 0 | L60: 8.330881448 | M60: 47.52259611 | N60: 20.99843345 | Q60: =SUM(G60:P60) -> 76.85191101
B61: Labour Costs | D61: Millions | E61: Real 2026 | F61: End Period (30 June 2026) | G61: =G56*$C$26 -> 0 | H61: 0 | I61: 2.579339474 | J61: 3.242784562 | K61: 9.062323096 | L61: 15.10890997 | M61: 19.43984104 | N61: =N56*$C$26 -> 6.557437807 | Q61: =SUM(G61:P61) -> 55.99063595
B62: Indirect Non-Labour Costs | D62: Millions | E62: Real 2026 | F62: End Period (30 June 2026) | G62: =G57*$C$26 -> 0 | H62: 0 | I62: 6.134358118 | J62: 1.86146523 | K62: 3.76271199 | L62: 16.29402824 | M62: 18.70529406 | N62: 2.686030845 | Q62: =SUM(G62:P62) -> 49.44388849
B63: Applied IPF (Adjustment 2) | D63: Millions | E63: Real 2026 | F63: End Period (30 June 2026) | G63: =SUM(G60:G62) -> 0 | H63: 0 | I63: 8.713697592 | J63: 5.104249792 | K63: 12.82503509 | L63: 39.73381966 | M63: 85.6677312 | N63: 30.2419021 | O63: 0 | P63: 0 | Q63: =SUM(G63:P63) -> 182.2864354
B65: Direct Non-Labour Costs | D65: Millions | E65: Real 2026 | F65: End Period (30 June 2026) | G65: =G40-G45-G60 -> 0 | H65: =H40-H45-H60 -> 0 | I65: 0 | J65: 0 | K65: 0 | L65: 0 | M65: 0 | N65: 90.02069555 | O65: 80.680591 | P65: 6.813166765 | Q65: =SUM(G65:P65) -> 177.5144533
B66: Labour Costs | D66: Millions | E66: Real 2026 | F66: End Period (30 June 2026) | G66: =G41-G46-G61 -> 0 | H66: 1.387014307 | I66: 1.021397679 | J66: 0 | K66: 0 | L66: 0 | M66: 0 | N66: =N41-N46-N61 -> 15.43000217 | O66: 24.48247052 | P66: 4.883228876 | Q66: =SUM(G66:P66) -> 47.20411355
B67: Indirect Non-Labour Costs | D67: Millions | E67: Real 2026 | F67: End Period (30 June 2026) | G67: =G42-G47-G62 -> 0 | H67: 3.344822449 | I67: 2.42915646 | J67: 0 | K67: 0 | L67: 0 | M67: 0 | N67: 9.556955156 | O67: 12.21611485 | P67: 2.097296145 | Q67: =SUM(G67:P67) -> 29.64434506
B68: Remaining Forecast | D68: Millions | E68: Real 2026 | F68: End Period (30 June 2026) | G68: =SUM(G65:G67) -> 0 | H68: 4.731836756 | I68: 3.450554139 | J68: 0 | K68: 0 | L68: 0 | M68: 0 | N68: 115.0076529 | O68: 117.3791764 | P68: 13.79369179 | Q68: =SUM(G68:P68) -> 254.3629119
B70: Check Target | D70: N/A | E70: N/A | F70: N/A | G70: =G48+G63+G68 -> 0 | H70: =H48+H63+H68 -> 4.731836756 | I70: 12.16425173 | J70: 5.104249792 | K70: 12.82503509 | L70: 39.73381966 | M70: 85.6677312 | N70: 145.249555 | O70: 117.3791764 | P70: 13.79369179 | Q70: 436.6493474
B71: Check | D71: N/A | E71: N/A | F71: N/A | G71: =IF(ROUND(G70-G43,3)=0,0,1) -> 0 | H71: =IF(ROUND(H70-H43,3)=0,0,1) -> 0 | I71: 0 | J71: 0 | K71: 0 | L71: 0 | M71: 0 | N71: 0 | O71: 0 | P71: 0 | Q71: 0
A73: End

Sheet Inputs_Adj_1 (hidden)
A2: Section Check | C2: =IF(SUM(W124,Y150:AK150,X181,X217,H124)=0,0,1) -> 0
A4: Output Reporting Format and Year
A5: Real
A6: =Inputs_RNIP!A6 -> 2026
A8: =IF(Real_or_Nom="Real", "Real $" & Report_Year, "$ Nominal") -> Real $2026
A10: Inflation and Labour Escalation
A13: Forecasts | K13: Rates
A14: Item | B14: Source | C14: Units | K14: =K20 -> 2020 | L14: 2021 | M14: 2022 | N14: 2023 | O14: 2024 | P14: 2025 | Q14: 2026 | R14: 2027 | S14: 2028 | T14: 2029 | U14: 2030 | V14: 2031
A15: Actual / Forecast Inflation | B15: =Inputs_RNIP!B15 -> ABS June to June / RBA Forecast | C15: % | K15: =Inputs_RNIP!K15 -> -0.003484320557 | L15: =Inputs_RNIP!L15 -> 0.03846153846 | M15: =Inputs_RNIP!M15 -> 0.06144781145 | N15: =Inputs_RNIP!N15 -> 0.06026962728 | O15: =Inputs_RNIP!O15 -> 0.03814510097 | P15: =Inputs_RNIP!P15 -> 0.024 | Q15: =Inputs_RNIP!Q15 -> 0.032 | R15: =Inputs_RNIP!R15 -> 0.02599975634 | S15: =Inputs_RNIP!S15 -> 0.02599975634 | T15: =Inputs_RNIP!T15 -> 0.02599975634 | U15: =Inputs_RNIP!U15 -> 0.02599975634 | V15: =Inputs_RNIP!V15 -> 0.02599975634
A16: Real labour escalation | B16: =Inputs_RNIP!B16 -> AER Final Determination / Transgrid proposal | C16: % | R16: =Inputs_RNIP!R16 -> 0.004330457586 | S16: =Inputs_RNIP!S16 -> 0.003009413338 | T16: =Inputs_RNIP!T16 -> 0.003669935462 | U16: =Inputs_RNIP!U16 -> 0.003669935462 | V16: =Inputs_RNIP!V16 -> 0.003669935462
A19: Cumulative Factors | K19: Cumulative factors
A20: Item | B20: Source | C20: Units | J20: =K20-1 -> 2019 | K20: =Inputs_RNIP!K20 -> 2020 | L20: =K20+1 -> 2021 | M20: 2022 | N20: 2023 | O20: 2024 | P20: 2025 | Q20: 2026 | R20: 2027 | S20: 2028 | T20: 2029 | U20: =T20+1 -> 2030 | V20: =U20+1 -> 2031
A21: Inflation based to 2019 | B21: =Inputs_RNIP!B21 -> Calculated | C21: Factor | J21: =Inputs_RNIP!J21 -> 1 | K21: =J21*(1+K15) -> 0.9965156794 | L21: =K21*(1+L15) -> 1.034843206 | M21: =L21*(1+M15) -> 1.098432056 | N21: 1.164634146 | O21: 1.209059233 | P21: 1.238076655 | Q21: =P21*(1+Q15) -> 1.277695108 | R21: 1.310914869 | S21: 1.344998337 | T21: 1.379967966 | U21: =T21*(1+U15) -> 1.415846797 | V21: =U21*(1+V15) -> 1.452658468
A22: Labour based to 2024 | B22: =Inputs_RNIP!B22 -> Calculated | C22: Factor | J22: =Inputs_RNIP!J22 -> 1 | K22: =J22*(1+K16) -> 1 | L22: 1 | M22: 1 | N22: 1 | O22: 1 | P22: 1 | Q22: 1 | R22: 1.004330458 | S22: 1.007352903 | T22: 1.011049823 | U22: =T22*(1+U16) -> 1.014760311 | V22: =U22*(1+V16) -> 1.018484416
A23: Real 2024 to Real 2026 | B23: =Inputs_RNIP!B23 -> Calculated | C23: Factor | K23: =$Q$21/$O$21 -> 1.056768 | L23: =$Q$21/$O$21 -> 1.056768 | M23: =$Q$21/$O$21 -> 1.056768 | N23: =$Q$21/$O$21 -> 1.056768 | O23: =$Q$21/$O$21 -> 1.056768 | P23: 1.056768 | Q23: 1.056768 | R23: 1.056768 | S23: 1.056768 | T23: 1.056768 | U23: 1.056768 | V23: 1.056768
A25: Indexation | K25: Indexation
A26: Item | B26: Source | C26: Units | K26: =K20 -> 2020 | L26: 2021 | M26: 2022 | N26: 2023 | O26: 2024 | P26: 2025 | Q26: 2026 | R26: 2027 | S26: 2028 | T26: =T20 -> 2029 | U26: =U20 -> 2030 | V26: =V20 -> 2031
A27: Real 2026 End Period to Nominal Mid Period | B27: =Inputs_RNIP!B27 -> Calculated | C27: Factor | K27: =K21/$Q$21/(1+K$15)^0.5 -> 0.7812946244 | L27: =L21/$Q$21/(1+L$15)^0.5 -> 0.7947894845 | M27: 0.8344429381 | N27: 0.8852259302 | O27: 0.9287339395 | P27: 0.9575695434 | Q27: 0.9843740387 | R27: 1.012916461 | S27: 1.039252042 | T27: 1.066272342 | U27: 1.093995163 | V27: 1.12243877
A28: Real 2019 End Period to Nominal Mid Period | B28: =Inputs_RNIP!B28 -> Calculated | C28: Factor | K28: =K21/$J$21/(1+K$15)^0.5 -> 0.9982563195 | L28: =L21/$J$21/(1+L$15)^0.5 -> 1.015498636 | M28: 1.06616366 | N28: 1.13104884 | O28: 1.186638811 | P28: 1.223481921 | Q28: 1.257729894 | R28: 1.294198407 | S28: 1.32784725 | T28: 1.362370955 | U28: 1.397792268 | V28: 1.434134526
A31: Capital Expenditure
A33: Direct Non-Labour Costs
A36: Direct Non-Labour Costs | By Category | E36: Conversion | H36: Expenditure | I36: Mapping | K36: Spend Profile Assumption - As incurred | Y36: $ Spend Profile - As incurred (June 2026 dollars) - with 100% of IPF in 2026-27 | AN36: As Commissioned Profile Assumption | BA36: Direct Expenditure - As Commmissioned Profile (June 2026 dollars) | BO36: Mapping | BQ36: Direct Non Labour by Timing Category | BV36: IPF $ Spend Profile - As incurred (June 2026 dollars) | CJ36: Remaining Forecast $ Spend Profile - As incurred (June 2026 dollars)
A37: Category | B37: Source | C37: Units | E37: Dollar Year From | F37: Dollar Year To | H37: Total | I37: RIN Category | J37: RAB Asset Class | K37: 2020 | L37: 2021 | M37: 2022 | N37: 2023 | O37: 2024 | P37: 2025 | Q37: 2026 | R37: 2027 | S37: 2028 | T37: 2029 | U37: 2030 | V37: 2031 | W37: Total | Y37: 2020 | Z37: 2021 | AA37: 2022 | AB37: 2023 | AC37: 2024 | AD37: 2025 | AE37: 2026 | AF37: 2027 | AG37: 2028 | AH37: 2029 | AI37: 2030 | AJ37: 2031 | AK37: Total | AL37: FY27 IPF % | AN37: 2020 | AO37: 2021 | AP37: 2022 | AQ37: 2023 | AR37: 2024 | AS37: 2025 | AT37: 2026 | AU37: 2027 | AV37: 2028 | AW37: 2029 | AX37: 2030 | AY37: 2031 | BA37: 2020 | BB37: 2021 | BC37: 2022 | BD37: 2023 | BE37: 2024 | BF37: 2025 | BG37: 2026 | BH37: 2027 | BI37: 2028 | BJ37: 2029 | BK37: 2030 | BL37: 2031 | BM37: Total | BQ37: Early REZ | BR37: IPF | BS37: Forecast | BT37: Total | BV37: 2020 | BW37: 2021 | BX37: 2022 | BY37: 2023 | BZ37: 2024 | CA37: 2025 | CB37: 2026 | CC37: 2027 | CD37: 2028 | CE37: 2029 | CF37: 2030 | CG37: 2031 | CH37: IPF Total | CJ37: 2020 | CK37: 2021 | CL37: 2022 | CM37: 2023 | CN37: 2024 | CO37: 2025 | CP37: 2026 | CQ37: 2027 | CR37: 2028 | CS37: 2029 | CT37: 2030 | CU37: 2031 | CV37: Forecast Total
A38: Augmentation works - Design and Construction | BQ38: (June 2026 dollars)
A39: =Inputs_RNIP!A39 -> Construction Costs | D&C Contract - Transmission Line | B39: =Inputs_RNIP!B39 -> Project Team Input | C39: $Millions | E39: =Inputs_RNIP!E39 -> Nominal | F39: =Report_Year -> 2026 | I39: 0 | J39: Transmission Lines | W39: 0 | X39: 0 | Y39: 0 | Z39: 0 | AA39: 0 | AB39: 0 | AC39: 0 | AD39: [C-i-C] | AE39: [C-i-C] | AF39: [C-i-C] | AG39: [C-i-C] | AH39: [C-i-C] | AI39: 0 | AJ39: 0 | AK39: [C-i-C] | BA39: 0 | BB39: 0 | BC39: 0 | BD39: 0 | BE39: 0 | BF39: 0 | BG39: 0 | BH39: 0 | BI39: 0 | BJ39: 0 | BK39: 0 | BL39: 0 | BM39: 0 | BO39: Transmission Lines - 0 | CC39: [C-i-C] | CH39: [C-i-C] | CV39: 0
A40: =Inputs_RNIP!A40 -> Construction Costs | D&C Contract - Transmission Line | B40: =Inputs_RNIP!B40 -> Project Team Input | C40: $Millions | E40: =Inputs_RNIP!E40 -> Nominal | F40: 2026 | I40: Transmission towers | J40: Transmission Lines | W40: 0 | X40: 0 | Y40: 0 | Z40: 0 | AA40: 0 | AB40: 0 | AC40: 0 | AD40: [C-i-C] | AE40: [C-i-C] | AF40: [C-i-C] | AG40: [C-i-C] | AH40: [C-i-C] | AI40: 0 | AJ40: 0 | AK40: [C-i-C] | BA40: 0 | BB40: 0 | BC40: 0 | BD40: 0 | BE40: 0 | BF40: 0 | BG40: 0 | BH40: 0 | BI40: 0 | BJ40: 0 | BK40: 0 | BL40: 0 | BM40: 0 | BO40: Transmission Lines - Transmission towers | CC40: [C-i-C] | CH40: [C-i-C] | CV40: 0
A41: =Inputs_RNIP!A41 -> Construction Costs | D&C Contract - Transmission Line | B41: =Inputs_RNIP!B41 -> Project Team Input | C41: $Millions | E41: =Inputs_RNIP!E41 -> Nominal | F41: 2026 | I41: Transmission tower support structures | J41: Transmission Lines | W41: 0 | X41: 0 | Y41: 0 | Z41: 0 | AA41: 0 | AB41: 0 | AC41: 0 | AD41: [C-i-C] | AE41: [C-i-C] | AF41: [C-i-C] | AG41: [C-i-C] | AH41: [C-i-C] | AI41: 0 | AJ41: 0 | AK41: [C-i-C] | BA41: 0 | BB41: 0 | BC41: 0 | BD41: 0 | BE41: 0 | BF41: 0 | BG41: 0 | BH41: 0 | BI41: 0 | BJ41: 0 | BK41: 0 | BL41: 0 | BM41: 0 | BO41: Transmission Lines - Transmission tower support structures | CC41: [C-i-C] | CH41: [C-i-C] | CV41: 0
A42: =Inputs_RNIP!A42 -> Construction Costs | D&C Contract - Transmission Line | B42: =Inputs_RNIP!B42 -> Project Team Input | C42: $Millions | E42: =Inputs_RNIP!E42 -> Nominal | F42: 2026 | I42: Conductors | J42: Transmission Lines | W42: 0 | X42: 0 | Y42: 0 | Z42: 0 | AA42: 0 | AB42: 0 | AC42: 0 | AD42: [C-i-C] | AE42: [C-i-C] | AF42: [C-i-C] | AG42: [C-i-C] | AH42: [C-i-C] | AI42: 0 | AJ42: 0 | AK42: [C-i-C] | BA42: 0 | BB42: 0 | BC42: 0 | BD42: 0 | BE42: 0 | BF42: 0 | BG42: 0 | BH42: 0 | BI42: 0 | BJ42: 0 | BK42: 0 | BL42: 0 | BM42: 0 | BO42: Transmission Lines - Conductors | CC42: [C-i-C] | CH42: [C-i-C] | CV42: 0
A43: =Inputs_RNIP!A43 -> Construction Costs | D&C Contract - Substations | B43: =Inputs_RNIP!B43 -> Project Team Input | C43: $Millions | E43: =Inputs_RNIP!E43 -> Nominal | F43: 2026 | I43: 0 | J43: Substations | W43: 0 | X43: 0 | Y43: 0 | Z43: 0 | AA43: 0 | AB43: 0 | AC43: 0 | AD43: [C-i-C] | AE43: [C-i-C] | AF43: [C-i-C] | AG43: [C-i-C] | AH43: [C-i-C] | AI43: 0 | AJ43: 0 | AK43: [C-i-C] | BA43: 0 | BB43: 0 | BC43: 0 | BD43: 0 | BE43: 0 | BF43: 0 | BG43: 0 | BH43: 0 | BI43: 0 | BJ43: 0 | BK43: 0 | BL43: 0 | BM43: 0 | BO43: Substations - 0 | CC43: [C-i-C] | CH43: [C-i-C] | CV43: 0
A44: =Inputs_RNIP!A44 -> Construction Costs | D&C Contract - Substations | B44: =Inputs_RNIP!B44 -> Project Team Input | C44: $Millions | E44: =Inputs_RNIP!E44 -> Nominal | F44: 2026 | I44: Substation switchbays | J44: Substations | W44: 0 | X44: 0 | Y44: 0 | Z44: 0 | AA44: 0 | AB44: 0 | AC44: 0 | AD44: [C-i-C] | AE44: [C-i-C] | AF44: [C-i-C] | AG44: [C-i-C] | AH44: [C-i-C] | AI44: 0 | AJ44: 0 | AK44: [C-i-C] | BA44: 0 | BB44: 0 | BC44: 0 | BD44: 0 | BE44: 0 | BF44: 0 | BG44: 0 | BH44: 0 | BI44: 0 | BJ44: 0 | BK44: 0 | BL44: 0 | BM44: 0 | BO44: Substations - Substation switchbays | CC44: [C-i-C] | CH44: [C-i-C] | CV44: 0
A45: =Inputs_RNIP!A45 -> Construction Costs | D&C Contract - Substations | B45: =Inputs_RNIP!B45 -> Project Team Input | C45: $Millions | E45: =Inputs_RNIP!E45 -> Nominal | F45: 2026 | I45: Substation power transformers | J45: Substations | W45: 0 | X45: 0 | Y45: 0 | Z45: 0 | AA45: 0 | AB45: 0 | AC45: 0 | AD45: [C-i-C] | AE45: [C-i-C] | AF45: [C-i-C] | AG45: [C-i-C] | AH45: [C-i-C] | AI45: 0 | AJ45: 0 | AK45: [C-i-C] | BA45: 0 | BB45: 0 | BC45: 0 | BD45: 0 | BE45: 0 | BF45: 0 | BG45: 0 | BH45: 0 | BI45: 0 | BJ45: 0 | BK45: 0 | BL45: 0 | BM45: 0 | BO45: Substations - Substation power transformers | CC45: [C-i-C] | CH45: [C-i-C] | CV45: 0
A46: =Inputs_RNIP!A46 -> Construction Costs | D&C Contract - Substations | B46: =Inputs_RNIP!B46 -> Project Team Input | C46: $Millions | E46: =Inputs_RNIP!E46 -> Nominal | F46: 2026 | I46: Substation reactive plant | J46: Substations | W46: 0 | X46: 0 | Y46: 0 | Z46: 0 | AA46: 0 | AB46: 0 | AC46: 0 | AD46: [C-i-C] | AE46: [C-i-C] | AF46: [C-i-C] | AG46: [C-i-C] | AH46: [C-i-C] | AI46: 0 | AJ46: 0 | AK46: [C-i-C] | BA46: 0 | BB46: 0 | BC46: 0 | BD46: 0 | BE46: 0 | BF46: 0 | BG46: 0 | BH46: 0 | BI46: 0 | BJ46: 0 | BK46: 0 | BL46: 0 | BM46: 0 | BO46: Substations - Substation reactive plant | CC46: [C-i-C] | CH46: [C-i-C] | CV46: 0
A47: =Inputs_RNIP!A47 -> Construction Costs | D&C Contract - Secondary System | B47: =Inputs_RNIP!B47 -> Project Team Input | C47: $Millions | E47: =Inputs_RNIP!E47 -> Nominal | F47: 2026 | I47: SCADA, network control and protection systems | J47: Secondary System | W47: 0 | X47: 0 | Y47: 0 | Z47: 0 | AA47: 0 | AB47: 0 | AC47: 0 | AD47: [C-i-C] | AE47: [C-i-C] | AF47: [C-i-C] | AG47: [C-i-C] | AH47: [C-i-C] | AI47: 0 | AJ47: 0 | AK47: [C-i-C] | BA47: 0 | BB47: 0 | BC47: 0 | BD47: 0 | BE47: 0 | BF47: 0 | BG47: 0 | BH47: 0 | BI47: 0 | BJ47: 0 | BK47: 0 | BL47: 0 | BM47: 0 | BO47: Secondary System - SCADA, network control and protection systems | CC47: [C-i-C] | CH47: [C-i-C] | CV47: 0
A48: =Inputs_RNIP!A48 -> Construction Costs | Transposition | B48: =Inputs_RNIP!B48 -> Project Team Input | C48: $Millions | E48: =Inputs_RNIP!E48 -> Nominal | F48: 2026 | I48: 0 | J48: Transmission Lines | W48: 0 | X48: 0 | Y48: 0 | Z48: 0 | AA48: 0 | AB48: 0 | AC48: 0 | AD48: [C-i-C] | AE48: [C-i-C] | AF48: [C-i-C] | AG48: [C-i-C] | AH48: [C-i-C] | AI48: 0 | AJ48: 0 | AK48: [C-i-C] | BA48: 0 | BB48: 0 | BC48: 0 | BD48: 0 | BE48: 0 | BF48: 0 | BG48: 0 | BH48: 0 | BI48: 0 | BJ48: 0 | BK48: 0 | BL48: 0 | BM48: 0 | BO48: Transmission Lines - 0 | CC48: [C-i-C] | CH48: [C-i-C] | CV48: 0
A49: =Inputs_RNIP!A49 -> Construction Costs | Transposition | B49: =Inputs_RNIP!B49 -> Project Team Input | C49: $Millions | E49: =Inputs_RNIP!E49 -> Nominal | F49: 2026 | I49: Transmission towers | J49: Transmission Lines | W49: 0 | X49: 0 | Y49: 0 | Z49: 0 | AA49: 0 | AB49: 0 | AC49: 0 | AD49: [C-i-C] | AE49: [C-i-C] | AF49: [C-i-C] | AG49: [C-i-C] | AH49: [C-i-C] | AI49: 0 | AJ49: 0 | AK49: [C-i-C] | BA49: 0 | BB49: 0 | BC49: 0 | BD49: 0 | BE49: 0 | BF49: 0 | BG49: 0 | BH49: 0 | BI49: 0 | BJ49: 0 | BK49: 0 | BL49: 0 | BM49: 0 | BO49: Transmission Lines - Transmission towers | CC49: [C-i-C] | CH49: [C-i-C] | CV49: 0
A50: =Inputs_RNIP!A50 -> Construction Costs | Transposition | B50: =Inputs_RNIP!B50 -> Project Team Input | C50: $Millions | E50: =Inputs_RNIP!E50 -> Nominal | F50: 2026 | I50: Transmission tower support structures | J50: Transmission Lines | W50: 0 | X50: 0 | Y50: 0 | Z50: 0 | AA50: 0 | AB50: 0 | AC50: 0 | AD50: [C-i-C] | AE50: [C-i-C] | AF50: [C-i-C] | AG50: [C-i-C] | AH50: [C-i-C] | AI50: 0 | AJ50: 0 | AK50: [C-i-C] | BA50: 0 | BB50: 0 | BC50: 0 | BD50: 0 | BE50: 0 | BF50: 0 | BG50: 0 | BH50: 0 | BI50: 0 | BJ50: 0 | BK50: 0 | BL50: 0 | BM50: 0 | BO50: Transmission Lines - Transmission tower support structures | CC50: [C-i-C] | CH50: [C-i-C] | CV50: 0
A51: =Inputs_RNIP!A51 -> Construction Costs | Transposition | B51: =Inputs_RNIP!B51 -> Project Team Input | C51: $Millions | E51: =Inputs_RNIP!E51 -> Nominal | F51: 2026 | I51: Conductors | J51: Transmission Lines | W51: 0 | X51: 0 | Y51: 0 | Z51: 0 | AA51: 0 | AB51: 0 | AC51: 0 | AD51: [C-i-C] | AE51: [C-i-C] | AF51: [C-i-C] | AG51: [C-i-C] | AH51: [C-i-C] | AI51: 0 | AJ51: 0 | AK51: [C-i-C] | BA51: 0 | BB51: 0 | BC51: 0 | BD51: 0 | BE51: 0 | BF51: 0 | BG51: 0 | BH51: 0 | BI51: 0 | BJ51: 0 | BK51: 0 | BL51: 0 | BM51: 0 | BO51: Transmission Lines - Conductors | CC51: [C-i-C] | CH51: [C-i-C] | CV51: 0
A52: Secondary Systems | BO52: -
A53: =Inputs_RNIP!A53 -> Secondary System | Protection Relays | B53: =Inputs_RNIP!B53 -> Project Team Input | C53: $Millions | E53: =Inputs_RNIP!E53 -> 2026 | F53: =Report_Year -> 2026 | I53: SCADA, network control and protection systems | J53: Secondary System | W53: 0 | X53: 0 | Y53: 0 | Z53: 0 | AA53: 0 | AB53: 0 | AC53: 0 | AD53: 0 | AE53: 0 | AF53: -0.02390520513 | AG53: 0 | AH53: 0 | AI53: 0 | AJ53: 0 | AK53: -0.02390520513 | BA53: 0 | BB53: 0 | BC53: 0 | BD53: 0 | BE53: 0 | BF53: 0 | BG53: 0 | BH53: 0 | BI53: 0 | BJ53: 0 | BK53: 0 | BL53: 0 | BM53: 0 | BO53: Secondary System - SCADA, network control and protection systems | CC53: -0.02390520513 | CH53: -0.02390520513 | CV53: 0
A54: =Inputs_RNIP!A54 -> Secondary System | IED SEL Terminals | B54: =Inputs_RNIP!B54 -> Project Team Input | C54: $Millions | E54: =Inputs_RNIP!E54 -> 2026 | F54: 2026 | I54: SCADA, network control and protection systems | J54: Secondary System | W54: 0 | X54: 0 | Y54: 0 | Z54: 0 | AA54: 0 | AB54: 0 | AC54: 0 | AD54: 0 | AE54: 0 | AF54: -0.006070164469 | AG54: 0 | AH54: 0 | AI54: 0 | AJ54: 0 | AK54: -0.006070164469 | BA54: 0 | BB54: 0 | BC54: 0 | BD54: 0 | BE54: 0 | BF54: 0 | BG54: 0 | BH54: 0 | BI54: 0 | BJ54: 0 | BK54: 0 | BL54: 0 | BM54: 0 | BO54: Secondary System - SCADA, network control and protection systems | CC54: -0.006070164469 | CH54: -0.006070164469 | CV54: 0
A55: =Inputs_RNIP!A55 -> Secondary System | QOS Meter | B55: =Inputs_RNIP!B55 -> Project Team Input | C55: $Millions | E55: =Inputs_RNIP!E55 -> 2026 | F55: 2026 | I55: SCADA, network control and protection systems | J55: Secondary System | W55: 0 | X55: 0 | Y55: 0 | Z55: 0 | AA55: 0 | AB55: 0 | AC55: 0 | AD55: 0 | AE55: 0 | AF55: -0.009415787566 | AG55: 0 | AH55: 0 | AI55: 0 | AJ55: 0 | AK55: -0.009415787566 | BA55: 0 | BB55: 0 | BC55: 0 | BD55: 0 | BE55: 0 | BF55: 0 | BG55: 0 | BH55: 0 | BI55: 0 | BJ55: 0 | BK55: 0 | BL55: 0 | BM55: 0 | BO55: Secondary System - SCADA, network control and protection systems | CC55: -0.009415787566 | CH55: -0.009415787566 | CV55: 0
A56: =Inputs_RNIP!A56 -> Secondary System | Disturbance Recorder | B56: =Inputs_RNIP!B56 -> Project Team Input | C56: $Millions | E56: =Inputs_RNIP!E56 -> 2026 | F56: 2026 | I56: SCADA, network control and protection systems | J56: Secondary System | W56: 0 | X56: 0 | Y56: 0 | Z56: 0 | AA56: 0 | AB56: 0 | AC56: 0 | AD56: 0 | AE56: 0 | AF56: -0.004316207838 | AG56: 0 | AH56: 0 | AI56: 0 | AJ56: 0 | AK56: -0.004316207838 | BA56: 0 | BB56: 0 | BC56: 0 | BD56: 0 | BE56: 0 | BF56: 0 | BG56: 0 | BH56: 0 | BI56: 0 | BJ56: 0 | BK56: 0 | BL56: 0 | BM56: 0 | BO56: Secondary System - SCADA, network control and protection systems | CC56: -0.004316207838 | CH56: -0.004316207838 | CV56: 0
A57: =Inputs_RNIP!A57 -> Secondary System | Metering Panel | B57: =Inputs_RNIP!B57 -> Project Team Input | C57: $Millions | E57: =Inputs_RNIP!E57 -> 2026 | F57: 2026 | I57: SCADA, network control and protection systems | J57: Secondary System | W57: 0 | X57: 0 | Y57: 0 | Z57: 0 | AA57: 0 | AB57: 0 | AC57: 0 | AD57: 0 | AE57: 0 | AF57: -0.003672702236 | AG57: 0 | AH57: 0 | AI57: 0 | AJ57: 0 | AK57: -0.003672702236 | BA57: 0 | BB57: 0 | BC57: 0 | BD57: 0 | BE57: 0 | BF57: 0 | BG57: 0 | BH57: 0 | BI57: 0 | BJ57: 0 | BK57: 0 | BL57: 0 | BM57: 0 | BO57: Secondary System - SCADA, network control and protection systems | CC57: -0.003672702236 | CH57: -0.003672702236 | CV57: 0
A58: =Inputs_RNIP!A58 -> Secondary System | TWFL | B58: =Inputs_RNIP!B58 -> Project Team Input | C58: $Millions | E58: =Inputs_RNIP!E58 -> 2026 | F58: 2026 | I58: SCADA, network control and protection systems | J58: Secondary System | W58: 0 | X58: 0 | Y58: 0 | Z58: 0 | AA58: 0 | AB58: 0 | AC58: 0 | AD58: 0 | AE58: 0 | AF58: -0.00395446682 | AG58: 0 | AH58: 0 | AI58: 0 | AJ58: 0 | AK58: -0.00395446682 | BA58: 0 | BB58: 0 | BC58: 0 | BD58: 0 | BE58: 0 | BF58: 0 | BG58: 0 | BH58: 0 | BI58: 0 | BJ58: 0 | BK58: 0 | BL58: 0 | BM58: 0 | BO58: Secondary System - SCADA, network control and protection systems | CC58: -0.00395446682 | CH58: -0.00395446682 | CV58: 0
A59: =Inputs_RNIP!A59 -> Secondary System | Comms - XTRAN | B59: =Inputs_RNIP!B59 -> Project Team Input | C59: $Millions | E59: =Inputs_RNIP!E59 -> 2026 | F59: 2026 | I59: SCADA, network control and protection systems | J59: Secondary System | W59: 0 | X59: 0 | Y59: 0 | Z59: 0 | AA59: 0 | AB59: 0 | AC59: 0 | AD59: 0 | AE59: 0 | AF59: -0.01606207334 | AG59: 0 | AH59: 0 | AI59: 0 | AJ59: 0 | AK59: -0.01606207334 | BA59: 0 | BB59: 0 | BC59: 0 | BD59: 0 | BE59: 0 | BF59: 0 | BG59: 0 | BH59: 0 | BI59: 0 | BJ59: 0 | BK59: 0 | BL59: 0 | BM59: 0 | BO59: Secondary System - SCADA, network control and protection systems | CC59: -0.01606207334 | CH59: -0.01606207334 | CV59: 0
A60: =Inputs_RNIP!A60 -> Secondary System | Comms - RAD | B60: =Inputs_RNIP!B60 -> Project Team Input | C60: $Millions | E60: =Inputs_RNIP!E60 -> 2026 | F60: 2026 | I60: SCADA, network control and protection systems | J60: Secondary System | W60: 0 | X60: 0 | Y60: 0 | Z60: 0 | AA60: 0 | AB60: 0 | AC60: 0 | AD60: 0 | AE60: 0 | AF60: -0.005959094765 | AG60: 0 | AH60: 0 | AI60: 0 | AJ60: 0 | AK60: -0.005959094765 | BA60: 0 | BB60: 0 | BC60: 0 | BD60: 0 | BE60: 0 | BF60: 0 | BG60: 0 | BH60: 0 | BI60: 0 | BJ60: 0 | BK60: 0 | BL60: 0 | BM60: 0 | BO60: Secondary System - SCADA, network control and protection systems | CC60: -0.005959094765 | CH60: -0.005959094765 | CV60: 0
BO61: -
BO62: -
A63: Equipment | BO63: -
A64: =Inputs_RNIP!A64 -> Equipment Costs | Transformers (CT) | B64: =Inputs_RNIP!B64 -> Project Team Input | C64: $Millions | E64: =Inputs_RNIP!E64 -> 2026 | F64: =Report_Year -> 2026 | I64: 0 | J64: Substations | W64: 0 | X64: 0 | Y64: 0 | Z64: 0 | AA64: 0 | AB64: 0 | AC64: 0 | AD64: 0 | AE64: 0 | AF64: 0 | AG64: 0 | AH64: 0 | AI64: 0 | AJ64: 0 | AK64: 0 | BA64: 0 | BB64: 0 | BC64: 0 | BD64: 0 | BE64: 0 | BF64: 0 | BG64: 0 | BH64: 0 | BI64: 0 | BJ64: 0 | BK64: 0 | BL64: 0 | BM64: 0 | BO64: Substations - 0 | CC64: 0 | CH64: 0 | CV64: 0
A65: =Inputs_RNIP!A65 -> Equipment Costs | Transformers (CT) | B65: =Inputs_RNIP!B65 -> Project Team Input | C65: $Millions | E65: =Inputs_RNIP!E65 -> 2026 | F65: 2026 | I65: Substation switchbays | J65: Substations | W65: 0 | X65: 0 | Y65: 0 | Z65: 0 | AA65: 0 | AB65: 0 | AC65: 0 | AD65: 0 | AE65: 0 | AF65: 0 | AG65: 0 | AH65: 0 | AI65: 0 | AJ65: 0 | AK65: 0 | BA65: 0 | BB65: 0 | BC65: 0 | BD65: 0 | BE65: 0 | BF65: 0 | BG65: 0 | BH65: 0 | BI65: 0 | BJ65: 0 | BK65: 0 | BL65: 0 | BM65: 0 | BO65: Substations - Substation switchbays | CC65: 0 | CH65: 0 | CV65: 0
A66: =Inputs_RNIP!A66 -> Equipment Costs | Transformers (CT) | B66: =Inputs_RNIP!B66 -> Project Team Input | C66: $Millions | E66: =Inputs_RNIP!E66 -> 2026 | F66: 2026 | I66: Substation power transformers | J66: Substations | W66: 0 | X66: 0 | Y66: 0 | Z66: 0 | AA66: 0 | AB66: 0 | AC66: 0 | AD66: 0 | AE66: 0 | AF66: -0.0499396425 | AG66: 0 | AH66: 0 | AI66: 0 | AJ66: 0 | AK66: -0.0499396425 | BA66: 0 | BB66: 0 | BC66: 0 | BD66: 0 | BE66: 0 | BF66: 0 | BG66: 0 | BH66: 0 | BI66: 0 | BJ66: 0 | BK66: 0 | BL66: 0 | BM66: 0 | BO66: Substations - Substation power transformers | CC66: -0.0499396425 | CH66: -0.0499396425 | CV66: 0
A67: =Inputs_RNIP!A67 -> Equipment Costs | Transformers (CT) | B67: =Inputs_RNIP!B67 -> Project Team Input | C67: $Millions | E67: =Inputs_RNIP!E67 -> 2026 | F67: 2026 | I67: Substation reactive plant | J67: Substations | W67: 0 | X67: 0 | Y67: 0 | Z67: 0 | AA67: 0 | AB67: 0 | AC67: 0 | AD67: 0 | AE67: 0 | AF67: 0 | AG67: 0 | AH67: 0 | AI67: 0 | AJ67: 0 | AK67: 0 | BA67: 0 | BB67: 0 | BC67: 0 | BD67: 0 | BE67: 0 | BF67: 0 | BG67: 0 | BH67: 0 | BI67: 0 | BJ67: 0 | BK67: 0 | BL67: 0 | BM67: 0 | BO67: Substations - Substation reactive plant | CC67: 0 | CH67: 0 | CV67: 0
A68: =Inputs_RNIP!A68 -> Equipment Costs | Circuit Breakers (CB) | B68: =Inputs_RNIP!B68 -> Project Team Input | C68: $Millions | E68: =Inputs_RNIP!E68 -> 2026 | F68: 2026 | I68: 0 | J68: Substations | W68: 0 | X68: 0 | Y68: 0 | Z68: 0 | AA68: 0 | AB68: 0 | AC68: 0 | AD68: 0 | AE68: 0 | AF68: 0 | AG68: 0 | AH68: 0 | AI68: 0 | AJ68: 0 | AK68: 0 | BA68: 0 | BB68: 0 | BC68: 0 | BD68: 0 | BE68: 0 | BF68: 0 | BG68: 0 | BH68: 0 | BI68: 0 | BJ68: 0 | BK68: 0 | BL68: 0 | BM68: 0 | BO68: Substations - 0 | CC68: 0 | CH68: 0 | CV68: 0
A69: =Inputs_RNIP!A69 -> Equipment Costs | Circuit Breakers (CB) | B69: =Inputs_RNIP!B69 -> Project Team Input | C69: $Millions | E69: =Inputs_RNIP!E69 -> 2026 | F69: 2026 | I69: Substation switchbays | J69: Substations | W69: 0 | X69: 0 | Y69: 0 | Z69: 0 | AA69: 0 | AB69: 0 | AC69: 0 | AD69: 0 | AE69: 0 | AF69: -0.03341229043 | AG69: 0 | AH69: 0 | AI69: 0 | AJ69: 0 | AK69: -0.03341229043 | BA69: 0 | BB69: 0 | BC69: 0 | BD69: 0 | BE69: 0 | BF69: 0 | BG69: 0 | BH69: 0 | BI69: 0 | BJ69: 0 | BK69: 0 | BL69: 0 | BM69: 0 | BO69: Substations - Substation switchbays | CC69: -0.03341229043 | CH69: -0.03341229043 | CV69: 0
A70: =Inputs_RNIP!A70 -> Equipment Costs | Circuit Breakers (CB) | B70: =Inputs_RNIP!B70 -> Project Team Input | C70: $Millions | E70: =Inputs_RNIP!E70 -> 2026 | F70: 2026 | I70: Substation power transformers | J70: Substations | W70: 0 | X70: 0 | Y70: 0 | Z70: 0 | AA70: 0 | AB70: 0 | AC70: 0 | AD70: 0 | AE70: 0 | AF70: 0 | AG70: 0 | AH70: 0 | AI70: 0 | AJ70: 0 | AK70: 0 | BA70: 0 | BB70: 0 | BC70: 0 | BD70: 0 | BE70: 0 | BF70: 0 | BG70: 0 | BH70: 0 | BI70: 0 | BJ70: 0 | BK70: 0 | BL70: 0 | BM70: 0 | BO70: Substations - Substation power transformers | CC70: 0 | CH70: 0 | CV70: 0
A71: =Inputs_RNIP!A71 -> Equipment Costs | Circuit Breakers (CB) | B71: =Inputs_RNIP!B71 -> Project Team Input | C71: $Millions | E71: =Inputs_RNIP!E71 -> 2026 | F71: 2026 | I71: Substation reactive plant | J71: Substations | W71: 0 | X71: 0 | Y71: 0 | Z71: 0 | AA71: 0 | AB71: 0 | AC71: 0 | AD71: 0 | AE71: 0 | AF71: 0 | AG71: 0 | AH71: 0 | AI71: 0 | AJ71: 0 | AK71: 0 | BA71: 0 | BB71: 0 | BC71: 0 | BD71: 0 | BE71: 0 | BF71: 0 | BG71: 0 | BH71: 0 | BI71: 0 | BJ71: 0 | BK71: 0 | BL71: 0 | BM71: 0 | BO71: Substations - Substation reactive plant | CC71: 0 | CH71: 0 | CV71: 0
A72: =Inputs_RNIP!A72 -> Equipment Costs | Voltage Transformers (VT) | B72: =Inputs_RNIP!B72 -> Project Team Input | C72: $Millions | E72: =Inputs_RNIP!E72 -> 2026 | F72: 2026 | I72: 0 | J72: Substations | W72: 0 | X72: 0 | Y72: 0 | Z72: 0 | AA72: 0 | AB72: 0 | AC72: 0 | AD72: 0 | AE72: 0 | AF72: 0 | AG72: 0 | AH72: 0 | AI72: 0 | AJ72: 0 | AK72: 0 | BA72: 0 | BB72: 0 | BC72: 0 | BD72: 0 | BE72: 0 | BF72: 0 | BG72: 0 | BH72: 0 | BI72: 0 | BJ72: 0 | BK72: 0 | BL72: 0 | BM72: 0 | BO72: Substations - 0 | CC72: 0 | CH72: 0 | CV72: 0
A73: =Inputs_RNIP!A73 -> Equipment Costs | Voltage Transformers (VT) | B73: =Inputs_RNIP!B73 -> Project Team Input | C73: $Millions | E73: =Inputs_RNIP!E73 -> 2026 | F73: 2026 | I73: Substation switchbays | J73: Substations | W73: 0 | X73: 0 | Y73: 0 | Z73: 0 | AA73: 0 | AB73: 0 | AC73: 0 | AD73: 0 | AE73: 0 | AF73: 0 | AG73: 0 | AH73: 0 | AI73: 0 | AJ73: 0 | AK73: 0 | BA73: 0 | BB73: 0 | BC73: 0 | BD73: 0 | BE73: 0 | BF73: 0 | BG73: 0 | BH73: 0 | BI73: 0 | BJ73: 0 | BK73: 0 | BL73: 0 | BM73: 0 | BO73: Substations - Substation switchbays | CC73: 0 | CH73: 0 | CV73: 0
A74: =Inputs_RNIP!A74 -> Equipment Costs | Voltage Transformers (VT) | B74: =Inputs_RNIP!B74 -> Project Team Input | C74: $Millions | E74: =Inputs_RNIP!E74 -> 2026 | F74: 2026 | I74: Substation power transformers | J74: Substations | W74: 0 | X74: 0 | Y74: 0 | Z74: 0 | AA74: 0 | AB74: 0 | AC74: 0 | AD74: 0 | AE74: 0 | AF74: -0.0170504032 | AG74: 0 | AH74: 0 | AI74: 0 | AJ74: 0 | AK74: -0.0170504032 | BA74: 0 | BB74: 0 | BC74: 0 | BD74: 0 | BE74: 0 | BF74: 0 | BG74: 0 | BH74: 0 | BI74: 0 | BJ74: 0 | BK74: 0 | BL74: 0 | BM74: 0 | BO74: Substations - Substation power transformers | CC74: -0.0170504032 | CH74: -0.0170504032 | CV74: 0
A75: =Inputs_RNIP!A75 -> Equipment Costs | Voltage Transformers (VT) | B75: =Inputs_RNIP!B75 -> Project Team Input | C75: $Millions | E75: =Inputs_RNIP!E75 -> 2026 | F75: 2026 | I75: Substation reactive plant | J75: Substations | W75: 0 | X75: 0 | Y75: 0 | Z75: 0 | AA75: 0 | AB75: 0 | AC75: 0 | AD75: 0 | AE75: 0 | AF75: 0 | AG75: 0 | AH75: 0 | AI75: 0 | AJ75: 0 | AK75: 0 | BA75: 0 | BB75: 0 | BC75: 0 | BD75: 0 | BE75: 0 | BF75: 0 | BG75: 0 | BH75: 0 | BI75: 0 | BJ75: 0 | BK75: 0 | BL75: 0 | BM75: 0 | BO75: Substations - Substation reactive plant | CC75: 0 | CH75: 0 | CV75: 0
A76: =Inputs_RNIP!A76 -> Equipment Costs | Line Trap (LT) | B76: =Inputs_RNIP!B76 -> Project Team Input | C76: $Millions | E76: =Inputs_RNIP!E76 -> 2026 | F76: 2026 | I76: 0 | J76: Substations | W76: 0 | X76: 0 | Y76: 0 | Z76: 0 | AA76: 0 | AB76: 0 | AC76: 0 | AD76: 0 | AE76: 0 | AF76: 0 | AG76: 0 | AH76: 0 | AI76: 0 | AJ76: 0 | AK76: 0 | BA76: 0 | BB76: 0 | BC76: 0 | BD76: 0 | BE76: 0 | BF76: 0 | BG76: 0 | BH76: 0 | BI76: 0 | BJ76: 0 | BK76: 0 | BL76: 0 | BM76: 0 | BO76: Substations - 0 | CC76: 0 | CH76: 0 | CV76: 0
A77: =Inputs_RNIP!A77 -> Equipment Costs | Line Trap (LT) | B77: =Inputs_RNIP!B77 -> Project Team Input | C77: $Millions | E77: =Inputs_RNIP!E77 -> 2026 | F77: 2026 | I77: Substation switchbays | J77: Substations | W77: 0 | X77: 0 | Y77: 0 | Z77: 0 | AA77: 0 | AB77: 0 | AC77: 0 | AD77: 0 | AE77: 0 | AF77: -0.03605202082 | AG77: 0 | AH77: 0 | AI77: 0 | AJ77: 0 | AK77: -0.03605202082 | BA77: 0 | BB77: 0 | BC77: 0 | BD77: 0 | BE77: 0 | BF77: 0 | BG77: 0 | BH77: 0 | BI77: 0 | BJ77: 0 | BK77: 0 | BL77: 0 | BM77: 0 | BO77: Substations - Substation switchbays | CC77: -0.03605202082 | CH77: -0.03605202082 | CV77: 0
A78: =Inputs_RNIP!A78 -> Equipment Costs | Line Trap (LT) | B78: =Inputs_RNIP!B78 -> Project Team Input | C78: $Millions | E78: =Inputs_RNIP!E78 -> 2026 | F78: 2026 | I78: Substation power transformers | J78: Substations | W78: 0 | X78: 0 | Y78: 0 | Z78: 0 | AA78: 0 | AB78: 0 | AC78: 0 | AD78: 0 | AE78: 0 | AF78: 0 | AG78: 0 | AH78: 0 | AI78: 0 | AJ78: 0 | AK78: 0 | BA78: 0 | BB78: 0 | BC78: 0 | BD78: 0 | BE78: 0 | BF78: 0 | BG78: 0 | BH78: 0 | BI78: 0 | BJ78: 0 | BK78: 0 | BL78: 0 | BM78: 0 | BO78: Substations - Substation power transformers | CC78: 0 | CH78: 0 | CV78: 0
A79: =Inputs_RNIP!A79 -> Equipment Costs | Line Trap (LT) | B79: =Inputs_RNIP!B79 -> Project Team Input | C79: $Millions | E79: =Inputs_RNIP!E79 -> 2026 | F79: 2026 | I79: Substation reactive plant | J79: Substations | W79: 0 | X79: 0 | Y79: 0 | Z79: 0 | AA79: 0 | AB79: 0 | AC79: 0 | AD79: 0 | AE79: 0 | AF79: 0 | AG79: 0 | AH79: 0 | AI79: 0 | AJ79: 0 | AK79: 0 | BA79: 0 | BB79: 0 | BC79: 0 | BD79: 0 | BE79: 0 | BF79: 0 | BG79: 0 | BH79: 0 | BI79: 0 | BJ79: 0 | BK79: 0 | BL79: 0 | BM79: 0 | BO79: Substations - Substation reactive plant | CC79: 0 | CH79: 0 | CV79: 0
A80: =Inputs_RNIP!A80 -> Equipment Costs | Earth Switch | B80: =Inputs_RNIP!B80 -> Project Team Input | C80: $Millions | E80: =Inputs_RNIP!E80 -> 2026 | F80: 2026 | I80: 0 | J80: Substations | W80: 0 | X80: 0 | Y80: 0 | Z80: 0 | AA80: 0 | AB80: 0 | AC80: 0 | AD80: 0 | AE80: 0 | AF80: 0 | AG80: 0 | AH80: 0 | AI80: 0 | AJ80: 0 | AK80: 0 | BA80: 0 | BB80: 0 | BC80: 0 | BD80: 0 | BE80: 0 | BF80: 0 | BG80: 0 | BH80: 0 | BI80: 0 | BJ80: 0 | BK80: 0 | BL80: 0 | BM80: 0 | BO80: Substations - 0 | CC80: 0 | CH80: 0 | CV80: 0
A81: =Inputs_RNIP!A81 -> Equipment Costs | Earth Switch | B81: =Inputs_RNIP!B81 -> Project Team Input | C81: $Millions | E81: =Inputs_RNIP!E81 -> 2026 | F81: 2026 | I81: Substation switchbays | J81: Substations | W81: 0 | X81: 0 | Y81: 0 | Z81: 0 | AA81: 0 | AB81: 0 | AC81: 0 | AD81: 0 | AE81: 0 | AF81: -0.01878446083 | AG81: 0 | AH81: 0 | AI81: 0 | AJ81: 0 | AK81: -0.01878446083 | BA81: 0 | BB81: 0 | BC81: 0 | BD81: 0 | BE81: 0 | BF81: 0 | BG81: 0 | BH81: 0 | BI81: 0 | BJ81: 0 | BK81: 0 | BL81: 0 | BM81: 0 | BO81: Substations - Substation switchbays | CC81: -0.01878446083 | CH81: -0.01878446083 | CV81: 0
A82: =Inputs_RNIP!A82 -> Equipment Costs | Earth Switch | B82: =Inputs_RNIP!B82 -> Project Team Input | C82: $Millions | E82: =Inputs_RNIP!E82 -> 2026 | F82: 2026 | I82: Substation power transformers | J82: Substations | W82: 0 | X82: 0 | Y82: 0 | Z82: 0 | AA82: 0 | AB82: 0 | AC82: 0 | AD82: 0 | AE82: 0 | AF82: 0 | AG82: 0 | AH82: 0 | AI82: 0 | AJ82: 0 | AK82: 0 | BA82: 0 | BB82: 0 | BC82: 0 | BD82: 0 | BE82: 0 | BF82: 0 | BG82: 0 | BH82: 0 | BI82: 0 | BJ82: 0 | BK82: 0 | BL82: 0 | BM82: 0 | BO82: Substations - Substation power transformers | CC82: 0 | CH82: 0 | CV82: 0
A83: =Inputs_RNIP!A83 -> Equipment Costs | Earth Switch | B83: =Inputs_RNIP!B83 -> Project Team Input | C83: $Millions | E83: =Inputs_RNIP!E83 -> 2026 | F83: 2026 | I83: Substation reactive plant | J83: Substations | W83: 0 | X83: 0 | Y83: 0 | Z83: 0 | AA83: 0 | AB83: 0 | AC83: 0 | AD83: 0 | AE83: 0 | AF83: 0 | AG83: 0 | AH83: 0 | AI83: 0 | AJ83: 0 | AK83: 0 | BA83: 0 | BB83: 0 | BC83: 0 | BD83: 0 | BE83: 0 | BF83: 0 | BG83: 0 | BH83: 0 | BI83: 0 | BJ83: 0 | BK83: 0 | BL83: 0 | BM83: 0 | BO83: Substations - Substation reactive plant | CC83: 0 | CH83: 0 | CV83: 0
A84: =Inputs_RNIP!A84 -> Equipment Costs | Surge Arrestor | B84: =Inputs_RNIP!B84 -> Project Team Input | C84: $Millions | E84: =Inputs_RNIP!E84 -> 2026 | F84: 2026 | I84: 0 | J84: Substations | W84: 0 | X84: 0 | Y84: 0 | Z84: 0 | AA84: 0 | AB84: 0 | AC84: 0 | AD84: 0 | AE84: 0 | AF84: 0 | AG84: 0 | AH84: 0 | AI84: 0 | AJ84: 0 | AK84: 0 | BA84: 0 | BB84: 0 | BC84: 0 | BD84: 0 | BE84: 0 | BF84: 0 | BG84: 0 | BH84: 0 | BI84: 0 | BJ84: 0 | BK84: 0 | BL84: 0 | BM84: 0 | BO84: Substations - 0 | CC84: 0 | CH84: 0 | CV84: 0
A85: =Inputs_RNIP!A85 -> Equipment Costs | Surge Arrestor | B85: =Inputs_RNIP!B85 -> Project Team Input | C85: $Millions | E85: =Inputs_RNIP!E85 -> 2026 | F85: 2026 | I85: Substation switchbays | J85: Substations | W85: 0 | X85: 0 | Y85: 0 | Z85: 0 | AA85: 0 | AB85: 0 | AC85: 0 | AD85: 0 | AE85: 0 | AF85: 0 | AG85: 0 | AH85: 0 | AI85: 0 | AJ85: 0 | AK85: 0 | BA85: 0 | BB85: 0 | BC85: 0 | BD85: 0 | BE85: 0 | BF85: 0 | BG85: 0 | BH85: 0 | BI85: 0 | BJ85: 0 | BK85: 0 | BL85: 0 | BM85: 0 | BO85: Substations - Substation switchbays | CC85: 0 | CH85: 0 | CV85: 0
A86: =Inputs_RNIP!A86 -> Equipment Costs | Surge Arrestor | B86: =Inputs_RNIP!B86 -> Project Team Input | C86: $Millions | E86: =Inputs_RNIP!E86 -> 2026 | F86: 2026 | I86: Substation power transformers | J86: Substations | W86: 0 | X86: 0 | Y86: 0 | Z86: 0 | AA86: 0 | AB86: 0 | AC86: 0 | AD86: 0 | AE86: 0 | AF86: 0 | AG86: 0 | AH86: 0 | AI86: 0 | AJ86: 0 | AK86: 0 | BA86: 0 | BB86: 0 | BC86: 0 | BD86: 0 | BE86: 0 | BF86: 0 | BG86: 0 | BH86: 0 | BI86: 0 | BJ86: 0 | BK86: 0 | BL86: 0 | BM86: 0 | BO86: Substations - Substation power transformers | CC86: 0 | CH86: 0 | CV86: 0
A87: =Inputs_RNIP!A87 -> Equipment Costs | Surge Arrestor | B87: =Inputs_RNIP!B87 -> Project Team Input | C87: $Millions | E87: =Inputs_RNIP!E87 -> 2026 | F87: 2026 | I87: Substation reactive plant | J87: Substations | W87: 0 | X87: 0 | Y87: 0 | Z87: 0 | AA87: 0 | AB87: 0 | AC87: 0 | AD87: 0 | AE87: 0 | AF87: -0.004553188201 | AG87: 0 | AH87: 0 | AI87: 0 | AJ87: 0 | AK87: -0.004553188201 | BA87: 0 | BB87: 0 | BC87: 0 | BD87: 0 | BE87: 0 | BF87: 0 | BG87: 0 | BH87: 0 | BI87: 0 | BJ87: 0 | BK87: 0 | BL87: 0 | BM87: 0 | BO87: Substations - Substation reactive plant | CC87: -0.004553188201 | CH87: -0.004553188201 | CV87: 0
A88: =Inputs_RNIP!A88 -> Equipment Costs | Disconnector | B88: =Inputs_RNIP!B88 -> Project Team Input | C88: $Millions | E88: =Inputs_RNIP!E88 -> 2026 | F88: 2026 | I88: 0 | J88: Substations | W88: 0 | X88: 0 | Y88: 0 | Z88: 0 | AA88: 0 | AB88: 0 | AC88: 0 | AD88: 0 | AE88: 0 | AF88: 0 | AG88: 0 | AH88: 0 | AI88: 0 | AJ88: 0 | AK88: 0 | BA88: 0 | BB88: 0 | BC88: 0 | BD88: 0 | BE88: 0 | BF88: 0 | BG88: 0 | BH88: 0 | BI88: 0 | BJ88: 0 | BK88: 0 | BL88: 0 | BM88: 0 | BO88: Substations - 0 | CC88: 0 | CH88: 0 | CV88: 0
A89: =Inputs_RNIP!A89 -> Equipment Costs | Disconnector | B89: =Inputs_RNIP!B89 -> Project Team Input | C89: $Millions | E89: =Inputs_RNIP!E89 -> 2026 | F89: 2026 | I89: Substation switchbays | J89: Substations | W89: 0 | X89: 0 | Y89: 0 | Z89: 0 | AA89: 0 | AB89: 0 | AC89: 0 | AD89: 0 | AE89: 0 | AF89: 0 | AG89: 0 | AH89: 0 | AI89: 0 | AJ89: 0 | AK89: 0 | BA89: 0 | BB89: 0 | BC89: 0 | BD89: 0 | BE89: 0 | BF89: 0 | BG89: 0 | BH89: 0 | BI89: 0 | BJ89: 0 | BK89: 0 | BL89: 0 | BM89: 0 | BO89: Substations - Substation switchbays | CC89: 0 | CH89: 0 | CV89: 0
A90: =Inputs_RNIP!A90 -> Equipment Costs | Disconnector | B90: =Inputs_RNIP!B90 -> Project Team Input | C90: $Millions | E90: =Inputs_RNIP!E90 -> 2026 | F90: 2026 | I90: Substation power transformers | J90: Substations | W90: 0 | X90: 0 | Y90: 0 | Z90: 0 | AA90: 0 | AB90: 0 | AC90: 0 | AD90: 0 | AE90: 0 | AF90: 0 | AG90: 0 | AH90: 0 | AI90: 0 | AJ90: 0 | AK90: 0 | BA90: 0 | BB90: 0 | BC90: 0 | BD90: 0 | BE90: 0 | BF90: 0 | BG90: 0 | BH90: 0 | BI90: 0 | BJ90: 0 | BK90: 0 | BL90: 0 | BM90: 0 | BO90: Substations - Substation power transformers | CC90: 0 | CH90: 0 | CV90: 0
A91: =Inputs_RNIP!A91 -> Equipment Costs | Disconnector | B91: =Inputs_RNIP!B91 -> Project Team Input | C91: $Millions | E91: =Inputs_RNIP!E91 -> 2026 | F91: 2026 | I91: Substation reactive plant | J91: Substations | W91: 0 | X91: 0 | Y91: 0 | Z91: 0 | AA91: 0 | AB91: 0 | AC91: 0 | AD91: 0 | AE91: 0 | AF91: -0.04591375652 | AG91: 0 | AH91: 0 | AI91: 0 | AJ91: 0 | AK91: -0.04591375652 | BA91: 0 | BB91: 0 | BC91: 0 | BD91: 0 | BE91: 0 | BF91: 0 | BG91: 0 | BH91: 0 | BI91: 0 | BJ91: 0 | BK91: 0 | BL91: 0 | BM91: 0 | BO91: Substations - Substation reactive plant | CC91: -0.04591375652 | CH91: -0.04591375652 | CV91: 0
A92: =Inputs_RNIP!A92 -> Equipment Costs | Insulator (16KN) | B92: =Inputs_RNIP!B92 -> Project Team Input | C92: $Millions | E92: =Inputs_RNIP!E92 -> 2026 | F92: 2026 | I92: 0 | J92: Substations | W92: 0 | X92: 0 | Y92: 0 | Z92: 0 | AA92: 0 | AB92: 0 | AC92: 0 | AD92: 0 | AE92: 0 | AF92: 0 | AG92: 0 | AH92: 0 | AI92: 0 | AJ92: 0 | AK92: 0 | BA92: 0 | BB92: 0 | BC92: 0 | BD92: 0 | BE92: 0 | BF92: 0 | BG92: 0 | BH92: 0 | BI92: 0 | BJ92: 0 | BK92: 0 | BL92: 0 | BM92: 0 | BO92: Substations - 0 | CC92: 0 | CH92: 0 | CV92: 0
A93: =Inputs_RNIP!A93 -> Equipment Costs | Insulator (16KN) | B93: =Inputs_RNIP!B93 -> Project Team Input | C93: $Millions | E93: =Inputs_RNIP!E93 -> 2026 | F93: 2026 | I93: Substation switchbays | J93: Substations | W93: 0 | X93: 0 | Y93: 0 | Z93: 0 | AA93: 0 | AB93: 0 | AC93: 0 | AD93: 0 | AE93: 0 | AF93: 0 | AG93: 0 | AH93: 0 | AI93: 0 | AJ93: 0 | AK93: 0 | BA93: 0 | BB93: 0 | BC93: 0 | BD93: 0 | BE93: 0 | BF93: 0 | BG93: 0 | BH93: 0 | BI93: 0 | BJ93: 0 | BK93: 0 | BL93: 0 | BM93: 0 | BO93: Substations - Substation switchbays | CC93: 0 | CH93: 0 | CV93: 0
A94: =Inputs_RNIP!A94 -> Equipment Costs | Insulator (16KN) | B94: =Inputs_RNIP!B94 -> Project Team Input | C94: $Millions | E94: =Inputs_RNIP!E94 -> 2026 | F94: 2026 | I94: Substation power transformers | J94: Substations | W94: 0 | X94: 0 | Y94: 0 | Z94: 0 | AA94: 0 | AB94: 0 | AC94: 0 | AD94: 0 | AE94: 0 | AF94: 0 | AG94: 0 | AH94: 0 | AI94: 0 | AJ94: 0 | AK94: 0 | BA94: 0 | BB94: 0 | BC94: 0 | BD94: 0 | BE94: 0 | BF94: 0 | BG94: 0 | BH94: 0 | BI94: 0 | BJ94: 0 | BK94: 0 | BL94: 0 | BM94: 0 | BO94: Substations - Substation power transformers | CC94: 0 | CH94: 0 | CV94: 0
A95: =Inputs_RNIP!A95 -> Equipment Costs | Insulator (16KN) | B95: =Inputs_RNIP!B95 -> Project Team Input | C95: $Millions | E95: =Inputs_RNIP!E95 -> 2026 | F95: 2026 | I95: Substation reactive plant | J95: Substations | W95: 0 | X95: 0 | Y95: 0 | Z95: 0 | AA95: 0 | AB95: 0 | AC95: 0 | AD95: 0 | AE95: 0 | AF95: -0.0008129669171 | AG95: 0 | AH95: 0 | AI95: 0 | AJ95: 0 | AK95: -0.0008129669171 | BA95: 0 | BB95: 0 | BC95: 0 | BD95: 0 | BE95: 0 | BF95: 0 | BG95: 0 | BH95: 0 | BI95: 0 | BJ95: 0 | BK95: 0 | BL95: 0 | BM95: 0 | BO95: Substations - Substation reactive plant | CC95: -0.0008129669171 | CH95: -0.0008129669171 | CV95: 0
A96: =Inputs_RNIP!A96 -> Equipment Costs | Insulator (6KN) | B96: =Inputs_RNIP!B96 -> Project Team Input | C96: $Millions | E96: =Inputs_RNIP!E96 -> 2026 | F96: 2026 | I96: 0 | J96: Substations | W96: 0 | X96: 0 | Y96: 0 | Z96: 0 | AA96: 0 | AB96: 0 | AC96: 0 | AD96: 0 | AE96: 0 | AF96: 0 | AG96: 0 | AH96: 0 | AI96: 0 | AJ96: 0 | AK96: 0 | BA96: 0 | BB96: 0 | BC96: 0 | BD96: 0 | BE96: 0 | BF96: 0 | BG96: 0 | BH96: 0 | BI96: 0 | BJ96: 0 | BK96: 0 | BL96: 0 | BM96: 0 | BO96: Substations - 0 | CC96: 0 | CH96: 0 | CV96: 0
A97: =Inputs_RNIP!A97 -> Equipment Costs | Insulator (6KN) | B97: =Inputs_RNIP!B97 -> Project Team Input | C97: $Millions | E97: =Inputs_RNIP!E97 -> 2026 | F97: 2026 | I97: Substation switchbays | J97: Substations | W97: 0 | X97: 0 | Y97: 0 | Z97: 0 | AA97: 0 | AB97: 0 | AC97: 0 | AD97: 0 | AE97: 0 | AF97: 0 | AG97: 0 | AH97: 0 | AI97: 0 | AJ97: 0 | AK97: 0 | BA97: 0 | BB97: 0 | BC97: 0 | BD97: 0 | BE97: 0 | BF97: 0 | BG97: 0 | BH97: 0 | BI97: 0 | BJ97: 0 | BK97: 0 | BL97: 0 | BM97: 0 | BO97: Substations - Substation switchbays | CC97: 0 | CH97: 0 | CV97: 0
A98: =Inputs_RNIP!A98 -> Equipment Costs | Insulator (6KN) | B98: =Inputs_RNIP!B98 -> Project Team Input | C98: $Millions | E98: =Inputs_RNIP!E98 -> 2026 | F98: 2026 | I98: Substation power transformers | J98: Substations | W98: 0 | X98: 0 | Y98: 0 | Z98: 0 | AA98: 0 | AB98: 0 | AC98: 0 | AD98: 0 | AE98: 0 | AF98: 0 | AG98: 0 | AH98: 0 | AI98: 0 | AJ98: 0 | AK98: 0 | BA98: 0 | BB98: 0 | BC98: 0 | BD98: 0 | BE98: 0 | BF98: 0 | BG98: 0 | BH98: 0 | BI98: 0 | BJ98: 0 | BK98: 0 | BL98: 0 | BM98: 0 | BO98: Substations - Substation power transformers | CC98: 0 | CH98: 0 | CV98: 0
A99: =Inputs_RNIP!A99 -> Equipment Costs | Insulator (6KN) | B99: =Inputs_RNIP!B99 -> Project Team Input | C99: $Millions | E99: =Inputs_RNIP!E99 -> 2026 | F99: 2026 | I99: Substation reactive plant | J99: Substations | W99: 0 | X99: 0 | Y99: 0 | Z99: 0 | AA99: 0 | AB99: 0 | AC99: 0 | AD99: 0 | AE99: 0 | AF99: -0.0007078752012 | AG99: 0 | AH99: 0 | AI99: 0 | AJ99: 0 | AK99: -0.0007078752012 | BA99: 0 | BB99: 0 | BC99: 0 | BD99: 0 | BE99: 0 | BF99: 0 | BG99: 0 | BH99: 0 | BI99: 0 | BJ99: 0 | BK99: 0 | BL99: 0 | BM99: 0 | BO99: Substations - Substation reactive plant | CC99: -0.0007078752012 | CH99: -0.0007078752012 | CV99: 0
A100: =Inputs_RNIP!A100 -> Equipment Costs | Insulator (6KN) (UH) | B100: =Inputs_RNIP!B100 -> Project Team Input | C100: $Millions | E100: =Inputs_RNIP!E100 -> 2026 | F100: 2026 | I100: 0 | J100: Substations | W100: 0 | X100: 0 | Y100: 0 | Z100: 0 | AA100: 0 | AB100: 0 | AC100: 0 | AD100: 0 | AE100: 0 | AF100: 0 | AG100: 0 | AH100: 0 | AI100: 0 | AJ100: 0 | AK100: 0 | BA100: 0 | BB100: 0 | BC100: 0 | BD100: 0 | BE100: 0 | BF100: 0 | BG100: 0 | BH100: 0 | BI100: 0 | BJ100: 0 | BK100: 0 | BL100: 0 | BM100: 0 | BO100: Substations - 0 | CC100: 0 | CH100: 0 | CV100: 0
A101: =Inputs_RNIP!A101 -> Equipment Costs | Insulator (6KN) (UH) | B101: =Inputs_RNIP!B101 -> Project Team Input | C101: $Millions | E101: =Inputs_RNIP!E101 -> 2026 | F101: 2026 | I101: Substation switchbays | J101: Substations | W101: 0 | X101: 0 | Y101: 0 | Z101: 0 | AA101: 0 | AB101: 0 | AC101: 0 | AD101: 0 | AE101: 0 | AF101: 0 | AG101: 0 | AH101: 0 | AI101: 0 | AJ101: 0 | AK101: 0 | BA101: 0 | BB101: 0 | BC101: 0 | BD101: 0 | BE101: 0 | BF101: 0 | BG101: 0 | BH101: 0 | BI101: 0 | BJ101: 0 | BK101: 0 | BL101: 0 | BM101: 0 | BO101: Substations - Substation switchbays | CC101: 0 | CH101: 0 | CV101: 0
A102: =Inputs_RNIP!A102 -> Equipment Costs | Insulator (6KN) (UH) | B102: =Inputs_RNIP!B102 -> Project Team Input | C102: $Millions | E102: =Inputs_RNIP!E102 -> 2026 | F102: 2026 | I102: Substation power transformers | J102: Substations | W102: 0 | X102: 0 | Y102: 0 | Z102: 0 | AA102: 0 | AB102: 0 | AC102: 0 | AD102: 0 | AE102: 0 | AF102: 0 | AG102: 0 | AH102: 0 | AI102: 0 | AJ102: 0 | AK102: 0 | BA102: 0 | BB102: 0 | BC102: 0 | BD102: 0 | BE102: 0 | BF102: 0 | BG102: 0 | BH102: 0 | BI102: 0 | BJ102: 0 | BK102: 0 | BL102: 0 | BM102: 0 | BO102: Substations - Substation power transformers | CC102: 0 | CH102: 0 | CV102: 0
A103: =Inputs_RNIP!A103 -> Equipment Costs | Insulator (6KN) (UH) | B103: =Inputs_RNIP!B103 -> Project Team Input | C103: $Millions | E103: =Inputs_RNIP!E103 -> 2026 | F103: 2026 | I103: Substation reactive plant | J103: Substations | W103: 0 | X103: 0 | Y103: 0 | Z103: 0 | AA103: 0 | AB103: 0 | AC103: 0 | AD103: 0 | AE103: 0 | AF103: -0.0002489597335 | AG103: 0 | AH103: 0 | AI103: 0 | AJ103: 0 | AK103: -0.0002489597335 | BA103: 0 | BB103: 0 | BC103: 0 | BD103: 0 | BE103: 0 | BF103: 0 | BG103: 0 | BH103: 0 | BI103: 0 | BJ103: 0 | BK103: 0 | BL103: 0 | BM103: 0 | BO103: Substations - Substation reactive plant | CC103: -0.0002489597335 | CH103: -0.0002489597335 | CV103: 0
BO104: -
A105: Land and Environment | BO105: -
A106: =Inputs_RNIP!A106 -> Property Costs | Easements - Augmentation | B106: =Inputs_RNIP!B106 -> Project Team Input | C106: $Millions | E106: =Inputs_RNIP!E106 -> 2026 | F106: =Report_Year -> 2026 | I106: Other | J106: Land & Easements | W106: 0 | X106: 0 | Y106: 0 | Z106: 0 | AA106: 0 | AB106: 0 | AC106: 0 | AD106: 0 | AE106: 0 | AF106: [C-i-C] | AG106: 0 | AH106: 0 | AI106: 0 | AJ106: 0 | AK106: [C-i-C] | BA106: 0 | BB106: 0 | BC106: 0 | BD106: 0 | BE106: 0 | BF106: 0 | BG106: 0 | BH106: 0 | BI106: 0 | BJ106: 0 | BK106: 0 | BL106: 0 | BM106: 0 | BO106: Land & Easements - Other | CC106: [C-i-C] | CH106: [C-i-C] | CV106: 0
A107: =Inputs_RNIP!A107 -> Property Costs | Easements - Transposition | B107: =Inputs_RNIP!B107 -> Project Team Input | C107: $Millions | E107: =Inputs_RNIP!E107 -> 2026 | F107: =Report_Year -> 2026 | I107: Other | J107: Land & Easements | W107: 0 | X107: 0 | Y107: 0 | Z107: 0 | AA107: 0 | AB107: 0 | AC107: 0 | AD107: 0 | AE107: 0 | AF107: [C-i-C] | AG107: 0 | AH107: 0 | AI107: 0 | AJ107: 0 | AK107: [C-i-C] | BA107: 0 | BB107: 0 | BC107: 0 | BD107: 0 | BE107: 0 | BF107: 0 | BG107: 0 | BH107: 0 | BI107: 0 | BJ107: 0 | BK107: 0 | BL107: 0 | BM107: 0 | BO107: Land & Easements - Other | CC107: [C-i-C] | CH107: [C-i-C] | CV107: 0
A108: =Inputs_RNIP!A108 -> Environment | Biodiversity Offsets | B108: =Inputs_RNIP!B108 -> Project Team Input | C108: $Millions | E108: =Inputs_RNIP!E108 -> 2026 | F108: =Report_Year -> 2026 | I108: Biodiversity Offsets | J108: Biodiversity offsets - Stewardship sites | W108: 0 | X108: 0 | Y108: 0 | Z108: 0 | AA108: 0 | AB108: 0 | AC108: 0 | AD108: 0 | AE108: 0 | AF108: -0.2127927244 | AG108: 0 | AH108: 0 | AI108: 0 | AJ108: 0 | AK108: -0.2127927244 | BA108: 0 | BB108: 0 | BC108: 0 | BD108: 0 | BE108: 0 | BF108: 0 | BG108: 0 | BH108: 0 | BI108: 0 | BJ108: 0 | BK108: 0 | BL108: 0 | BM108: 0 | BO108: Biodiversity offsets - Stewardship sites - Biodiversity Offsets | CC108: -0.2127927244 | CH108: -0.2127927244 | CV108: 0
A109: =Inputs_RNIP!A109 -> Environment | Biodiversity Offsets | B109: =Inputs_RNIP!B109 -> Project Team Input | C109: $Millions | E109: =Inputs_RNIP!E109 -> 2026 | F109: =Report_Year -> 2026 | I109: Biodiversity Offsets | J109: Biodiversity offsets - Direct payments & Other costs | W109: 0 | X109: 0 | Y109: 0 | Z109: 0 | AA109: 0 | AB109: 0 | AC109: 0 | AD109: 0 | AE109: 0 | AF109: -0.5098148182 | AG109: 0 | AH109: 0 | AI109: 0 | AJ109: 0 | AK109: -0.5098148182 | BA109: 0 | BB109: 0 | BC109: 0 | BD109: 0 | BE109: 0 | BF109: 0 | BG109: 0 | BH109: 0 | BI109: 0 | BJ109: 0 | BK109: 0 | BL109: 0 | BM109: 0 | BO109: Biodiversity offsets - Direct payments & Other costs - Biodiversity Offsets | CC109: -0.5098148182 | CH109: -0.5098148182 | CV109: 0
A110: Other construction costs | BO110: -
A111: =Inputs_RNIP!A111 -> Infrastructure Planner Fee - Other | B111: =Inputs_RNIP!B111 -> Commercial Team Input | C111: $Millions | E111: =Inputs_RNIP!E111 -> Nominal | F111: =Report_Year -> 2026 | I111: Transmission towers | J111: Transmission Lines | W111: 0 | X111: 0 | Y111: 0 | Z111: 0 | AA111: 0 | AB111: 0 | AC111: 0 | AD111: 0 | AE111: 0 | AF111: -0.188093984 | AG111: 0 | AH111: 0 | AI111: 0 | AJ111: 0 | AK111: -0.188093984 | BA111: 0 | BB111: 0 | BC111: 0 | BD111: 0 | BE111: 0 | BF111: 0 | BG111: 0 | BH111: 0 | BI111: 0 | BJ111: 0 | BK111: 0 | BL111: 0 | BM111: 0 | BO111: Transmission Lines - Transmission towers | CC111: -0.188093984 | CH111: -0.188093984 | CV111: 0
A112: =Inputs_RNIP!A112 -> Infrastructure Planner Fee - Other | B112: =Inputs_RNIP!B112 -> Commercial Team Input | C112: $Millions | E112: =Inputs_RNIP!E112 -> Nominal | F112: 2026 | I112: Substation switchbays | J112: Substations | W112: 0 | X112: 0 | Y112: 0 | Z112: 0 | AA112: 0 | AB112: 0 | AC112: 0 | AD112: 0 | AE112: 0 | AF112: -0.0428095223 | AG112: 0 | AH112: 0 | AI112: 0 | AJ112: 0 | AK112: -0.0428095223 | BA112: 0 | BB112: 0 | BC112: 0 | BD112: 0 | BE112: 0 | BF112: 0 | BG112: 0 | BH112: 0 | BI112: 0 | BJ112: 0 | BK112: 0 | BL112: 0 | BM112: 0 | BO112: Substations - Substation switchbays | CC112: -0.0428095223 | CH112: -0.0428095223 | CV112: 0
A113: =Inputs_RNIP!A113 -> Infrastructure Planner Fee - Other | B113: =Inputs_RNIP!B113 -> Commercial Team Input | C113: $Millions | E113: =Inputs_RNIP!E113 -> Nominal | F113: 2026 | I113: Biodiversity Offsets | J113: Biodiversity offsets - Stewardship sites | W113: 0 | X113: 0 | Y113: 0 | Z113: 0 | AA113: 0 | AB113: 0 | AC113: 0 | AD113: 0 | AE113: 0 | AF113: -0.009384264806 | AG113: 0 | AH113: 0 | AI113: 0 | AJ113: 0 | AK113: -0.009384264806 | BA113: 0 | BB113: 0 | BC113: 0 | BD113: 0 | BE113: 0 | BF113: 0 | BG113: 0 | BH113: 0 | BI113: 0 | BJ113: 0 | BK113: 0 | BL113: 0 | BM113: 0 | BO113: Biodiversity offsets - Stewardship sites - Biodiversity Offsets | CC113: -0.009384264806 | CH113: -0.009384264806 | CV113: 0
A114: =Inputs_RNIP!A114 -> Infrastructure Planner Fee - Other | B114: =Inputs_RNIP!B114 -> Commercial Team Input | C114: $Millions | E114: =Inputs_RNIP!E114 -> Nominal | F114: 2026 | I114: Biodiversity Offsets | J114: Biodiversity offsets - Direct payments & Other costs | W114: 0 | X114: 0 | Y114: 0 | Z114: 0 | AA114: 0 | AB114: 0 | AC114: 0 | AD114: 0 | AE114: 0 | AF114: -0.02248308663 | AG114: 0 | AH114: 0 | AI114: 0 | AJ114: 0 | AK114: -0.02248308663 | BA114: 0 | BB114: 0 | BC114: 0 | BD114: 0 | BE114: 0 | BF114: 0 | BG114: 0 | BH114: 0 | BI114: 0 | BJ114: 0 | BK114: 0 | BL114: 0 | BM114: 0 | BO114: Biodiversity offsets - Direct payments & Other costs - Biodiversity Offsets | CC114: -0.02248308663 | CH114: -0.02248308663 | CV114: 0
A115: =Inputs_RNIP!A115 -> Infrastructure Planner Fee - Other | B115: =Inputs_RNIP!B115 -> Commercial Team Input | C115: $Millions | E115: =Inputs_RNIP!E115 -> Nominal | F115: 2026 | I115: SCADA, network control and protection systems | J115: Secondary System | W115: 0 | X115: 0 | Y115: 0 | Z115: 0 | AA115: 0 | AB115: 0 | AC115: 0 | AD115: 0 | AE115: 0 | AF115: -0.01893748076 | AG115: 0 | AH115: 0 | AI115: 0 | AJ115: 0 | AK115: -0.01893748076 | BA115: 0 | BB115: 0 | BC115: 0 | BD115: 0 | BE115: 0 | BF115: 0 | BG115: 0 | BH115: 0 | BI115: 0 | BJ115: 0 | BK115: 0 | BL115: 0 | BM115: 0 | BO115: Secondary System - SCADA, network control and protection systems | CC115: -0.01893748076 | CH115: -0.01893748076 | CV115: 0
A116: =Inputs_RNIP!A116 -> Risk | Other Construction Cost | B116: =Inputs_RNIP!B116 -> Project Team Input | C116: $Millions | E116: =Inputs_RNIP!E116 -> Nominal | F116: 2026 | I116: 0 | J116: Transmission Lines | W116: 0 | X116: 0 | Y116: 0 | Z116: 0 | AA116: 0 | AB116: 0 | AC116: 0 | AD116: 0 | AE116: 0 | AF116: 0 | AG116: 0 | AH116: 0 | AI116: 0 | AJ116: 0 | AK116: 0 | BA116: 0 | BB116: 0 | BC116: 0 | BD116: 0 | BE116: 0 | BF116: 0 | BG116: 0 | BH116: 0 | BI116: 0 | BJ116: 0 | BK116: 0 | BL116: 0 | BM116: 0 | BO116: Transmission Lines - 0 | CC116: 0 | CH116: 0 | CV116: 0
A117: =Inputs_RNIP!A117 -> Risk | Other Construction Cost | B117: =Inputs_RNIP!B117 -> Project Team Input | C117: $Millions | E117: =Inputs_RNIP!E117 -> Nominal | F117: 2026 | I117: Transmission towers | J117: Transmission Lines | W117: 0 | X117: 0 | Y117: 0 | Z117: 0 | AA117: 0 | AB117: 0 | AC117: 0 | AD117: 0 | AE117: 0 | AF117: -0.01022765411 | AG117: 0 | AH117: 0 | AI117: 0 | AJ117: 0 | AK117: -0.01022765411 | BA117: 0 | BB117: 0 | BC117: 0 | BD117: 0 | BE117: 0 | BF117: 0 | BG117: 0 | BH117: 0 | BI117: 0 | BJ117: 0 | BK117: 0 | BL117: 0 | BM117: 0 | BO117: Transmission Lines - Transmission towers | CC117: -0.01022765411 | CH117: -0.01022765411 | CV117: 0
A118: =Inputs_RNIP!A118 -> Risk | Other Construction Cost | B118: =Inputs_RNIP!B118 -> Project Team Input | C118: $Millions | E118: =Inputs_RNIP!E118 -> Nominal | F118: 2026 | I118: Transmission tower support structures | J118: Transmission Lines | W118: 0 | X118: 0 | Y118: 0 | Z118: 0 | AA118: 0 | AB118: 0 | AC118: 0 | AD118: 0 | AE118: 0 | AF118: -0.01085242262 | AG118: 0 | AH118: 0 | AI118: 0 | AJ118: 0 | AK118: -0.01085242262 | BA118: 0 | BB118: 0 | BC118: 0 | BD118: 0 | BE118: 0 | BF118: 0 | BG118: 0 | BH118: 0 | BI118: 0 | BJ118: 0 | BK118: 0 | BL118: 0 | BM118: 0 | BO118: Transmission Lines - Transmission tower support structures | CC118: -0.01085242262 | CH118: -0.01085242262 | CV118: 0
A119: =Inputs_RNIP!A119 -> Risk | Other Construction Cost | B119: =Inputs_RNIP!B119 -> Project Team Input | C119: $Millions | E119: =Inputs_RNIP!E119 -> Nominal | F119: 2026 | I119: Conductors | J119: Transmission Lines | W119: 0 | X119: 0 | Y119: 0 | Z119: 0 | AA119: 0 | AB119: 0 | AC119: 0 | AD119: 0 | AE119: 0 | AF119: -0.005497454654 | AG119: 0 | AH119: 0 | AI119: 0 | AJ119: 0 | AK119: -0.005497454654 | BA119: 0 | BB119: 0 | BC119: 0 | BD119: 0 | BE119: 0 | BF119: 0 | BG119: 0 | BH119: 0 | BI119: 0 | BJ119: 0 | BK119: 0 | BL119: 0 | BM119: 0 | BO119: Transmission Lines - Conductors | CC119: -0.005497454654 | CH119: -0.005497454654 | CV119: 0
A120: =Inputs_RNIP!A120 -> Risk | Other Construction Cost | B120: =Inputs_RNIP!B120 -> Project Team Input | C120: $Millions | E120: =Inputs_RNIP!E120 -> Nominal | F120: 2026 | I120: Substation switchbays | J120: Substations | W120: 0 | X120: 0 | Y120: 0 | Z120: 0 | AA120: 0 | AB120: 0 | AC120: 0 | AD120: 0 | AE120: 0 | AF120: -0.004416172445 | AG120: 0 | AH120: 0 | AI120: 0 | AJ120: 0 | AK120: -0.004416172445 | BA120: 0 | BB120: 0 | BC120: 0 | BD120: 0 | BE120: 0 | BF120: 0 | BG120: 0 | BH120: 0 | BI120: 0 | BJ120: 0 | BK120: 0 | BL120: 0 | BM120: 0 | BO120: Substations - Substation switchbays | CC120: -0.004416172445 | CH120: -0.004416172445 | CV120: 0
A121: =Inputs_RNIP!A121 -> Risk | Other Construction Cost | B121: =Inputs_RNIP!B121 -> Project Team Input | C121: $Millions | E121: =Inputs_RNIP!E121 -> Nominal | F121: 2026 | I121: Substation power transformers | J121: Substations | W121: 0 | X121: 0 | Y121: 0 | Z121: 0 | AA121: 0 | AB121: 0 | AC121: 0 | AD121: 0 | AE121: 0 | AF121: -0.003222468954 | AG121: 0 | AH121: 0 | AI121: 0 | AJ121: 0 | AK121: -0.003222468954 | BA121: 0 | BB121: 0 | BC121: 0 | BD121: 0 | BE121: 0 | BF121: 0 | BG121: 0 | BH121: 0 | BI121: 0 | BJ121: 0 | BK121: 0 | BL121: 0 | BM121: 0 | BO121: Substations - Substation power transformers | CC121: -0.003222468954 | CH121: -0.003222468954 | CV121: 0
H123: 0 | I123: ◄ Notional sum with various dollar basis for cross check only | X123: Total Direct Non Labour | Y123: 0 | Z123: 0 | AA123: 0 | AB123: 0 | AC123: 0 | AD123: 0 | AE123: 0 | AF123: -4.752137013 | AG123: 0 | AH123: 0 | AI123: 0 | AJ123: 0 | AK123: -4.752137013 | BA123: 0 | BB123: 0 | BC123: 0 | BD123: 0 | BE123: 0 | BF123: 0 | BG123: 0 | BH123: 0 | BI123: 0 | BJ123: 0 | BK123: 0 | BL123: 0 | BM123: 0 | BQ123: 0 | BR123: 0 | BS123: 0 | BT123: 0 | BV123: 0 | BW123: 0 | BX123: 0 | BY123: 0 | BZ123: 0 | CA123: 0 | CB123: 0 | CC123: -4.752137013 | CD123: 0 | CE123: 0 | CF123: 0 | CG123: 0 | CH123: -4.752137013 | CJ123: 0 | CK123: 0 | CL123: 0 | CM123: 0 | CN123: 0 | CO123: 0 | CP123: 0 | CQ123: 0 | CR123: 0 | CS123: 0 | CT123: 0 | CU123: 0 | CV123: 0
W124: =IF(SUM(X39:X121)=0,0,1) -> 0
A125: Direct Non-Labour Costs | By Capex Category | Y125: Expenditure by Cost Category - As incurred (June 2026 dollars) - with 100% of IPF in 2026-27 | BA125: Expenditure - As Commissioned - by Cost Category (June 2026 dollars)
A126: Category | B126: RAB Asset class | C126: Source | D126: Units | Y126: 2020 | Z126: 2021 | AA126: 2022 | AB126: 2023 | AC126: 2024 | AD126: 2025 | AE126: 2026 | AF126: 2027 | AG126: 2028 | AH126: 2029 | AI126: 2030 | AJ126: 2031 | AK126: Total | BA126: 2020 | BB126: 2021 | BC126: 2022 | BD126: 2023 | BE126: 2024 | BF126: 2025 | BG126: 2026 | BH126: 2027 | BI126: 2028 | BJ126: 2029 | BK126: 2030 | BL126: 2031 | BM126: Total
A127: =Inputs_RNIP!A127 -> Transmission Lines - Transmission Towers | B127: =Inputs_RNIP!B127 -> Transmission Lines | C127: Calculated | D127: $Millions | Y127: 0 | Z127: 0 | AA127: 0 | AB127: 0 | AC127: 0 | AD127: 0 | AE127: 0 | AF127: [C-i-C] | AG127: 0 | AH127: 0 | AI127: 0 | AJ127: 0 | AK127: [C-i-C] | BA127: 0 | BB127: 0 | BC127: 0 | BD127: 0 | BE127: 0 | BF127: 0 | BG127: 0 | BH127: 0 | BI127: 0 | BJ127: 0 | BK127: 0 | BL127: 0 | BM127: 0
A128: =Inputs_RNIP!A128 -> Transmission Lines - Transmission tower support structures | B128: =Inputs_RNIP!B128 -> Transmission Lines | C128: Calculated | D128: $Millions | Y128: 0 | Z128: 0 | AA128: 0 | AB128: 0 | AC128: 0 | AD128: 0 | AE128: 0 | AF128: -0.8589101045 | AG128: 0 | AH128: 0 | AI128: 0 | AJ128: 0 | AK128: -0.8589101045 | BA128: 0 | BB128: 0 | BC128: 0 | BD128: 0 | BE128: 0 | BF128: 0 | BG128: 0 | BH128: 0 | BI128: 0 | BJ128: 0 | BK128: 0 | BL128: 0 | BM128: 0
A129: =Inputs_RNIP!A129 -> Transmission Lines - Conductors | B129: =Inputs_RNIP!B129 -> Transmission Lines | C129: Calculated | D129: $Millions | Y129: 0 | Z129: 0 | AA129: 0 | AB129: 0 | AC129: 0 | AD129: 0 | AE129: 0 | AF129: -0.417462672 | AG129: 0 | AH129: 0 | AI129: 0 | AJ129: 0 | AK129: -0.417462672 | BA129: 0 | BB129: 0 | BC129: 0 | BD129: 0 | BE129: 0 | BF129: 0 | BG129: 0 | BH129: 0 | BI129: 0 | BJ129: 0 | BK129: 0 | BL129: 0 | BM129: 0
A130: =Inputs_RNIP!A130 -> Transmission Lines - Other non network | B130: =Inputs_RNIP!B130 -> Transmission Line Life Extension | C130: Calculated | D130: $Millions | Y130: 0 | Z130: 0 | AA130: 0 | AB130: 0 | AC130: 0 | AD130: 0 | AE130: 0 | AF130: 0 | AG130: 0 | AH130: 0 | AI130: 0 | AJ130: 0 | AK130: 0 | BA130: 0 | BB130: 0 | BC130: 0 | BD130: 0 | BE130: 0 | BF130: 0 | BG130: 0 | BH130: 0 | BI130: 0 | BJ130: 0 | BK130: 0 | BL130: 0 | BM130: 0
A131: =Inputs_RNIP!A131 -> Transmission Lines - Transmission cables | B131: =Inputs_RNIP!B131 -> Underground Cables | C131: Calculated | D131: $Millions | Y131: 0 | Z131: 0 | AA131: 0 | AB131: 0 | AC131: 0 | AD131: 0 | AE131: 0 | AF131: 0 | AG131: 0 | AH131: 0 | AI131: 0 | AJ131: 0 | AK131: 0 | BA131: 0 | BB131: 0 | BC131: 0 | BD131: 0 | BE131: 0 | BF131: 0 | BG131: 0 | BH131: 0 | BI131: 0 | BJ131: 0 | BK131: 0 | BL131: 0 | BM131: 0
A132: =Inputs_RNIP!A132 -> Substations - Substation switchbays | B132: =Inputs_RNIP!B132 -> Substations | C132: Calculated | D132: $Millions | Y132: 0 | Z132: 0 | AA132: 0 | AB132: 0 | AC132: 0 | AD132: 0 | AE132: 0 | AF132: -0.4780208122 | AG132: 0 | AH132: 0 | AI132: 0 | AJ132: 0 | AK132: -0.4780208122 | BA132: 0 | BB132: 0 | BC132: 0 | BD132: 0 | BE132: 0 | BF132: 0 | BG132: 0 | BH132: 0 | BI132: 0 | BJ132: 0 | BK132: 0 | BL132: 0 | BM132: 0
A133: =Inputs_RNIP!A133 -> Substations - Substation power transformers | B133: =Inputs_RNIP!B133 -> Substations | C133: Calculated | D133: $Millions | Y133: 0 | Z133: 0 | AA133: 0 | AB133: 0 | AC133: 0 | AD133: 0 | AE133: 0 | AF133: -0.320167646 | AG133: 0 | AH133: 0 | AI133: 0 | AJ133: 0 | AK133: -0.320167646 | BA133: 0 | BB133: 0 | BC133: 0 | BD133: 0 | BE133: 0 | BF133: 0 | BG133: 0 | BH133: 0 | BI133: 0 | BJ133: 0 | BK133: 0 | BL133: 0 | BM133: 0
A134: =Inputs_RNIP!A134 -> Substations - Substation reactive plant | B134: =Inputs_RNIP!B134 -> Substations | C134: Calculated | D134: $Millions | Y134: 0 | Z134: 0 | AA134: 0 | AB134: 0 | AC134: 0 | AD134: 0 | AE134: 0 | AF134: -0.05223674658 | AG134: 0 | AH134: 0 | AI134: 0 | AJ134: 0 | AK134: -0.05223674658 | BA134: 0 | BB134: 0 | BC134: 0 | BD134: 0 | BE134: 0 | BF134: 0 | BG134: 0 | BH134: 0 | BI134: 0 | BJ134: 0 | BK134: 0 | BL134: 0 | BM134: 0
A135: =Inputs_RNIP!A135 -> Secondary System - SCADA, network control and protection systems | B135: =Inputs_RNIP!B135 -> Secondary System | C135: Calculated | D135: $Millions | Y135: 0 | Z135: 0 | AA135: 0 | AB135: 0 | AC135: 0 | AD135: 0 | AE135: 0 | AF135: -0.3598587311 | AG135: 0 | AH135: 0 | AI135: 0 | AJ135: 0 | AK135: -0.3598587311 | BA135: 0 | BB135: 0 | BC135: 0 | BD135: 0 | BE135: 0 | BF135: 0 | BG135: 0 | BH135: 0 | BI135: 0 | BJ135: 0 | BK135: 0 | BL135: 0 | BM135: 0
A136: =Inputs_RNIP!A136 -> Communications (short life) - [Spare] | B136: =Inputs_RNIP!B136 -> Communications (short life) | C136: Calculated | D136: $Millions | Y136: 0 | Z136: 0 | AA136: 0 | AB136: 0 | AC136: 0 | AD136: 0 | AE136: 0 | AF136: 0 | AG136: 0 | AH136: 0 | AI136: 0 | AJ136: 0 | AK136: 0 | BA136: 0 | BB136: 0 | BC136: 0 | BD136: 0 | BE136: 0 | BF136: 0 | BG136: 0 | BH136: 0 | BI136: 0 | BJ136: 0 | BK136: 0 | BL136: 0 | BM136: 0
A137: =Inputs_RNIP!A137 -> SIPS Control - [Spare] | B137: =Inputs_RNIP!B137 -> SIPS Control | C137: Calculated | D137: $Millions | Y137: 0 | Z137: 0 | AA137: 0 | AB137: 0 | AC137: 0 | AD137: 0 | AE137: 0 | AF137: 0 | AG137: 0 | AH137: 0 | AI137: 0 | AJ137: 0 | AK137: 0 | BA137: 0 | BB137: 0 | BC137: 0 | BD137: 0 | BE137: 0 | BF137: 0 | BG137: 0 | BH137: 0 | BI137: 0 | BJ137: 0 | BK137: 0 | BL137: 0 | BM137: 0
A138: =Inputs_RNIP!A138 -> Synchronous condensers - [Spare] | B138: =Inputs_RNIP!B138 -> Synchronous Condensers | C138: Calculated | D138: $Millions | Y138: 0 | Z138: 0 | AA138: 0 | AB138: 0 | AC138: 0 | AD138: 0 | AE138: 0 | AF138: 0 | AG138: 0 | AH138: 0 | AI138: 0 | AJ138: 0 | AK138: 0 | BA138: 0 | BB138: 0 | BC138: 0 | BD138: 0 | BE138: 0 | BF138: 0 | BG138: 0 | BH138: 0 | BI138: 0 | BJ138: 0 | BK138: 0 | BL138: 0 | BM138: 0
A139: =Inputs_RNIP!A139 -> Leasehold Land and Property - Other | B139: =Inputs_RNIP!B139 -> Leasehold Land and Property | C139: Calculated | D139: $Millions | Y139: 0 | Z139: 0 | AA139: 0 | AB139: 0 | AC139: 0 | AD139: 0 | AE139: 0 | AF139: 0 | AG139: 0 | AH139: 0 | AI139: 0 | AJ139: 0 | AK139: 0 | BA139: 0 | BB139: 0 | BC139: 0 | BD139: 0 | BE139: 0 | BF139: 0 | BG139: 0 | BH139: 0 | BI139: 0 | BJ139: 0 | BK139: 0 | BL139: 0 | BM139: 0
A140: =Inputs_RNIP!A140 -> Biodiversity offsets - Stewardship sites - Biodiversity Offsets | B140: =Inputs_RNIP!B140 -> Biodiversity offsets - Stewardship sites | C140: Calculated | D140: $Millions | Y140: 0 | Z140: 0 | AA140: 0 | AB140: 0 | AC140: 0 | AD140: 0 | AE140: 0 | AF140: -0.2221769892 | AG140: 0 | AH140: 0 | AI140: 0 | AJ140: 0 | AK140: -0.2221769892 | BA140: 0 | BB140: 0 | BC140: 0 | BD140: 0 | BE140: 0 | BF140: 0 | BG140: 0 | BH140: 0 | BI140: 0 | BJ140: 0 | BK140: 0 | BL140: 0 | BM140: 0
A141: =Inputs_RNIP!A141 -> Biodiversity offsets - Direct payments & Other costs - Biodiversity Offsets | B141: =Inputs_RNIP!B141 -> Biodiversity offsets - Direct payments & Other costs | C141: Calculated | D141: $Millions | Y141: 0 | Z141: 0 | AA141: 0 | AB141: 0 | AC141: 0 | AD141: 0 | AE141: 0 | AF141: -0.5322979048 | AG141: 0 | AH141: 0 | AI141: 0 | AJ141: 0 | AK141: -0.5322979048 | BA141: 0 | BB141: 0 | BC141: 0 | BD141: 0 | BE141: 0 | BF141: 0 | BG141: 0 | BH141: 0 | BI141: 0 | BJ141: 0 | BK141: 0 | BL141: 0 | BM141: 0
A142: =Inputs_RNIP!A142 -> Land & Easements - Other | B142: =Inputs_RNIP!B142 -> Land & Easements | C142: Calculated | D142: $Millions | Y142: 0 | Z142: 0 | AA142: 0 | AB142: 0 | AC142: 0 | AD142: 0 | AE142: 0 | AF142: [C-i-C] | AG142: 0 | AH142: 0 | AI142: 0 | AJ142: 0 | AK142: [C-i-C] | BA142: 0 | BB142: 0 | BC142: 0 | BD142: 0 | BE142: 0 | BF142: 0 | BG142: 0 | BH142: 0 | BI142: 0 | BJ142: 0 | BK142: 0 | BL142: 0 | BM142: 0
A143: =Inputs_RNIP!A143 -> Buildings - capital works - Buildings and Property | B143: =Inputs_RNIP!B143 -> Buildings - capital works | C143: Calculated | D143: $Millions | Y143: 0 | Z143: 0 | AA143: 0 | AB143: 0 | AC143: 0 | AD143: 0 | AE143: 0 | AF143: 0 | AG143: 0 | AH143: 0 | AI143: 0 | AJ143: 0 | AK143: 0 | BA143: 0 | BB143: 0 | BC143: 0 | BD143: 0 | BE143: 0 | BF143: 0 | BG143: 0 | BH143: 0 | BI143: 0 | BJ143: 0 | BK143: 0 | BL143: 0 | BM143: 0
A144: =Inputs_RNIP!A144 -> Non-network - Business IT | B144: =Inputs_RNIP!B144 -> Business IT | C144: Calculated | D144: $Millions | Y144: 0 | Z144: 0 | AA144: 0 | AB144: 0 | AC144: 0 | AD144: 0 | AE144: 0 | AF144: 0 | AG144: 0 | AH144: 0 | AI144: 0 | AJ144: 0 | AK144: 0 | BA144: 0 | BB144: 0 | BC144: 0 | BD144: 0 | BE144: 0 | BF144: 0 | BG144: 0 | BH144: 0 | BI144: 0 | BJ144: 0 | BK144: 0 | BL144: 0 | BM144: 0
A145: =Inputs_RNIP!A145 -> Non-network - Minor Plant, Motor Vehicles & Mobile Plant | B145: =Inputs_RNIP!B145 -> Minor Plant, Motor Vehicles & Mobile Plant | C145: Calculated | D145: $Millions | Y145: 0 | Z145: 0 | AA145: 0 | AB145: 0 | AC145: 0 | AD145: 0 | AE145: 0 | AF145: 0 | AG145: 0 | AH145: 0 | AI145: 0 | AJ145: 0 | AK145: 0 | BA145: 0 | BB145: 0 | BC145: 0 | BD145: 0 | BE145: 0 | BF145: 0 | BG145: 0 | BH145: 0 | BI145: 0 | BJ145: 0 | BK145: 0 | BL145: 0 | BM145: 0
A146: =Inputs_RNIP!A146 -> Non-network - Buildings | B146: =Inputs_RNIP!B146 -> Buildings - capital works | C146: Calculated | D146: $Millions | Y146: 0 | Z146: 0 | AA146: 0 | AB146: 0 | AC146: 0 | AD146: 0 | AE146: 0 | AF146: 0 | AG146: 0 | AH146: 0 | AI146: 0 | AJ146: 0 | AK146: 0 | BA146: 0 | BB146: 0 | BC146: 0 | BD146: 0 | BE146: 0 | BF146: 0 | BG146: 0 | BH146: 0 | BI146: 0 | BJ146: 0 | BK146: 0 | BL146: 0 | BM146: 0
A147: =Inputs_RNIP!A147 -> Non-network - In-house software | B147: =Inputs_RNIP!B147 -> In-house software | C147: Calculated | D147: $Millions | Y147: 0 | Z147: 0 | AA147: 0 | AB147: 0 | AC147: 0 | AD147: 0 | AE147: 0 | AF147: 0 | AG147: 0 | AH147: 0 | AI147: 0 | AJ147: 0 | AK147: 0 | BA147: 0 | BB147: 0 | BC147: 0 | BD147: 0 | BE147: 0 | BF147: 0 | BG147: 0 | BH147: 0 | BI147: 0 | BJ147: 0 | BK147: 0 | BL147: 0 | BM147: 0
X149: Total Direct Non Labour | Y149: 0 | Z149: 0 | AA149: 0 | AB149: 0 | AC149: 0 | AD149: 0 | AE149: 0 | AF149: -4.752137013 | AG149: 0 | AH149: 0 | AI149: 0 | AJ149: 0 | AK149: -4.752137013 | BA149: 0 | BB149: 0 | BC149: 0 | BD149: 0 | BE149: 0 | BF149: 0 | BG149: 0 | BH149: 0 | BI149: 0 | BJ149: 0 | BK149: 0 | BL149: 0 | BM149: 0
Y150: =IF(ROUND(Y149-Y123,3)=0,0,1) -> 0 | Z150: =IF(ROUND(Z149-Z123,3)=0,0,1) -> 0 | AA150: 0 | AB150: 0 | AC150: 0 | AD150: 0 | AE150: 0 | AF150: 0 | AG150: 0 | AH150: =IF(ROUND(AH149-AH123,3)=0,0,1) -> 0 | AI150: =IF(ROUND(AI149-AI123,3)=0,0,1) -> 0 | AJ150: =IF(ROUND(AJ149-AJ123,3)=0,0,1) -> 0 | AK150: 0 | BA150: =IF(ROUND(BA149-BA123,3)=0,0,1) -> 0 | BB150: =IF(ROUND(BB149-BB123,3)=0,0,1) -> 0 | BC150: 0 | BD150: 0 | BE150: 0 | BF150: 0 | BG150: 0 | BH150: 0 | BI150: 0 | BJ150: =IF(ROUND(BJ149-BJ123,3)=0,0,1) -> 0 | BK150: =IF(ROUND(BK149-BK123,3)=0,0,1) -> 0 | BL150: =IF(ROUND(BL149-BL123,3)=0,0,1) -> 0 | BM150: =IF(ROUND(BM149-BM123,3)=0,0,1) -> 0
A152: Labour Costs - Direct Labour and Direct Labour Related
A154: Labour Costs | E154: Conversion | H154: Mapping | K154: ="Direct Labour and Direct Labour Related Costs (June "&E169&" dollars, unescalated)" -> Direct Labour and Direct Labour Related Costs (June 2026 dollars, unescalated)
A155: Component | B155: Source | C155: Units | E155: Dollar Yr | F155: Escalation Yr | K155: =K20 -> 2020 | L155: 2021 | M155: 2022 | N155: 2023 | O155: 2024 | P155: 2025 | Q155: 2026 | R155: 2027 | S155: 2028 | T155: 2029 | U155: 2030 | V155: 2031 | W155: Total | X155: FY27 IPF %
A156: Actuals (to 28 February 2025)
A157: Labour - Project management | B157: =Inputs_RNIP!B157 -> Transgrid | C157: =Inputs_RNIP!C157 -> $Millions | E157: =Inputs_RNIP!E157 -> 2026 | F157: =Inputs_RNIP!F157 -> n/a | W157: =SUM(K157:V157) -> 0
A158: Labour - Other support and corporate roles | B158: =Inputs_RNIP!B158 -> Transgrid | C158: =Inputs_RNIP!C158 -> $Millions | E158: =Inputs_RNIP!E158 -> 2026 | F158: =Inputs_RNIP!F158 -> n/a | W158: =SUM(K158:V158) -> 0
A159: Labour - Regulatory approvals | B159: =Inputs_RNIP!B159 -> Transgrid | C159: =Inputs_RNIP!C159 -> $Millions | E159: =Inputs_RNIP!E159 -> 2026 | F159: =Inputs_RNIP!F159 -> n/a | W159: =SUM(K159:V159) -> 0
A160: Labour - Community and stakeholder engagement | B160: =Inputs_RNIP!B160 -> Transgrid | C160: =Inputs_RNIP!C160 -> $Millions | E160: =Inputs_RNIP!E160 -> 2026 | F160: =Inputs_RNIP!F160 -> n/a | W160: 0
A161: Labour - Land and Environment | B161: =Inputs_RNIP!B161 -> Transgrid | C161: =Inputs_RNIP!C161 -> $Millions | E161: =Inputs_RNIP!E161 -> 2026 | F161: =Inputs_RNIP!F161 -> n/a | W161: 0
A162: Labour - Transaction Procurement Support | B162: =Inputs_RNIP!B162 -> Transgrid | C162: =Inputs_RNIP!C162 -> $Millions | E162: =Inputs_RNIP!E162 -> 2026 | F162: =Inputs_RNIP!F162 -> n/a | W162: 0
A163: Labour - Project Development | B163: =Inputs_RNIP!B163 -> Transgrid | C163: =Inputs_RNIP!C163 -> $Millions | E163: =Inputs_RNIP!E163 -> 2026 | F163: =Inputs_RNIP!F163 -> n/a | W163: 0
A164: Labour - Project Controls | B164: =Inputs_RNIP!B164 -> Transgrid | C164: =Inputs_RNIP!C164 -> $Millions | E164: =Inputs_RNIP!E164 -> 2026 | F164: =Inputs_RNIP!F164 -> n/a | W164: 0
A165: Labour - Commercial Management | B165: =Inputs_RNIP!B165 -> Transgrid | C165: =Inputs_RNIP!C165 -> $Millions | E165: =Inputs_RNIP!E165 -> 2026 | F165: =Inputs_RNIP!F165 -> n/a | W165: 0
A166: Labour - Construction Management | B166: =Inputs_RNIP!B166 -> Transgrid | C166: =Inputs_RNIP!C166 -> $Millions | E166: =Inputs_RNIP!E166 -> 2026 | F166: =Inputs_RNIP!F166 -> n/a | W166: 0
W167: 0
A168: Forecasts (from 1 March 2025) | Z168: RNIP - FY27 Total | AA168: RNIP FY27 IPF | AB168: RNIP FY27 Forecast | AD168: Adjustment 1 | AE168: Adjusted FY27 IPF | AF168: Adjusted FY27 Forecast | AG168: Adjusted FY27 IPF %
A169: =A157 -> Labour - Project management | B169: =Inputs_RNIP!B169 -> Transgrid | C169: =Inputs_RNIP!C169 -> $Millions | E169: =Inputs_RNIP!E169 -> 2026 | F169: =Inputs_RNIP!F169 -> 2026 | W169: =SUM(K169:V169) -> 0 | X169: =AG169-Inputs_RNIP!X169 -> -0.1733049719 | Z169: =Inputs_RNIP!R169 -> 4.965721306 | AA169: =Inputs_RNIP!X169*Z169 -> 2.479345673 | AB169: =Z169-AA169 -> 2.486375633 | AD169: =IF($AA$181=0,0,AA169/$AA$181)*$AD$181 -> -0.8605841912 | AE169: =AA169+AD169 -> 1.618761482 | AF169: =AB169 -> 2.486375633 | AG169: =IF(Z169=0,0,AE169/Z169) -> 0.3259871793
A170: Labour - Other support and corporate roles | B170: =Inputs_RNIP!B170 -> Transgrid | C170: =Inputs_RNIP!C170 -> $Millions | E170: =Inputs_RNIP!E170 -> 2026 | F170: =Inputs_RNIP!F170 -> 2026 | W170: 0 | X170: =AG170-Inputs_RNIP!X170 -> -0.169107822 | Z170: =Inputs_RNIP!R170 -> 3.083407779 | AA170: =Inputs_RNIP!X170*Z170 -> 1.502236732 | AB170: =Z170-AA170 -> 1.581171047 | AD170: =IF($AA$181=0,0,AA170/$AA$181)*$AD$181 -> -0.521428374 | AE170: =AA170+AD170 -> 0.9808083578 | AF170: =AB170 -> 1.581171047 | AG170: =IF(Z170=0,0,AE170/Z170) -> 0.3180923277
A171: Labour - Regulatory approvals | B171: =Inputs_RNIP!B171 -> Transgrid | C171: =Inputs_RNIP!C171 -> $Millions | E171: =Inputs_RNIP!E171 -> 2026 | F171: =Inputs_RNIP!F171 -> 2026 | W171: 0 | X171: =AG171-Inputs_RNIP!X171 -> 0 | Z171: =Inputs_RNIP!R171 -> 0 | AA171: =Inputs_RNIP!X171*Z171 -> 0 | AB171: 0 | AD171: 0 | AE171: 0 | AF171: 0 | AG171: 0
A172: Labour - Community and stakeholder engagement | B172: =Inputs_RNIP!B172 -> Transgrid | C172: =Inputs_RNIP!C172 -> $Millions | E172: =Inputs_RNIP!E172 -> 2026 | F172: =Inputs_RNIP!F172 -> 2026 | W172: 0 | X172: =AG172-Inputs_RNIP!X172 -> -0.1735506671 | Z172: =Inputs_RNIP!R172 -> 0.1480325725 | AA172: =Inputs_RNIP!X172*Z172 -> 0.07401628623 | AB172: 0.07401628623 | AD172: -0.02569115171 | AE172: 0.04832513453 | AF172: 0.07401628623 | AG172: 0.3264493329
A173: Labour - Land and Environment | B173: =Inputs_RNIP!B173 -> Transgrid | C173: =Inputs_RNIP!C173 -> $Millions | E173: =Inputs_RNIP!E173 -> 2026 | F173: =Inputs_RNIP!F173 -> 2026 | W173: 0 | X173: =AG173-Inputs_RNIP!X173 -> -0.1903881117 | Z173: =Inputs_RNIP!R173 -> 2.058989935 | AA173: =Inputs_RNIP!X173*Z173 -> 1.129373952 | AB173: 0.9296159829 | AD173: -0.3920072058 | AE173: 0.7373667467 | AF173: 0.9296159829 | AG173: 0.3581206173
A174: Labour - Transaction Procurement Support | B174: =Inputs_RNIP!B174 -> Transgrid | C174: =Inputs_RNIP!C174 -> $Millions | E174: =Inputs_RNIP!E174 -> 2026 | F174: =Inputs_RNIP!F174 -> 2026 | W174: 0 | X174: =AG174-Inputs_RNIP!X174 -> 0 | Z174: =Inputs_RNIP!R174 -> 0 | AA174: =Inputs_RNIP!X174*Z174 -> 0 | AB174: 0 | AD174: 0 | AE174: 0 | AF174: 0 | AG174: 0
A175: Labour - Project Development | B175: =Inputs_RNIP!B175 -> Transgrid | C175: =Inputs_RNIP!C175 -> $Millions | E175: =Inputs_RNIP!E175 -> 2026 | F175: =Inputs_RNIP!F175 -> 2026 | W175: 0 | X175: =AG175-Inputs_RNIP!X175 -> -0.2055107628 | Z175: =Inputs_RNIP!R175 -> 0.8874542999 | AA175: =Inputs_RNIP!X175*Z175 -> 0.5254413975 | AB175: 0.3620129025 | AD175: -0.1823814101 | AE175: 0.3430599873 | AF175: 0.3620129025 | AG175: 0.3865663701
A176: Labour - Project Controls | B176: =Inputs_RNIP!B176 -> Transgrid | C176: =Inputs_RNIP!C176 -> $Millions | E176: =Inputs_RNIP!E176 -> 2026 | F176: =Inputs_RNIP!F176 -> 2026 | W176: 0 | X176: =AG176-Inputs_RNIP!X176 -> -0.1735506671 | Z176: =Inputs_RNIP!R176 -> 1.648138173 | AA176: =Inputs_RNIP!X176*Z176 -> 0.8240690865 | AB176: 0.8240690865 | AD176: -0.2860354795 | AE176: 0.5380336071 | AF176: 0.8240690865 | AG176: 0.3264493329
A177: Labour - Commercial Management | B177: =Inputs_RNIP!B177 -> Transgrid | C177: =Inputs_RNIP!C177 -> $Millions | E177: =Inputs_RNIP!E177 -> 2026 | F177: =Inputs_RNIP!F177 -> 2026 | W177: 0 | X177: =AG177-Inputs_RNIP!X177 -> -0.1267373733 | Z177: =Inputs_RNIP!R177 -> 3.228736615 | AA177: =Inputs_RNIP!X177*Z177 -> 1.178911047 | AB177: 2.049825567 | AD177: -0.4092015975 | AE177: 0.7697094499 | AF177: 2.049825567 | AG177: 0.2383933847
A178: Labour - Construction Management | B178: =Inputs_RNIP!B178 -> Transgrid | C178: =Inputs_RNIP!C178 -> $Millions | E178: =Inputs_RNIP!E178 -> 2026 | F178: =Inputs_RNIP!F178 -> 2026 | W178: 0 | X178: =AG178-Inputs_RNIP!X178 -> -0.1338247251 | Z178: =Inputs_RNIP!R178 -> 5.872154171 | AA178: =Inputs_RNIP!X178*Z178 -> 2.264005753 | AB178: 3.608148419 | AD178: =IF($AA$181=0,0,AA178/$AA$181)*$AD$181 -> -0.7858394175 | AE178: 1.478166335 | AF178: 3.608148419 | AG178: 0.251724715
W179: 0 | X179: =AG179-Inputs_RNIP!X179 -> 0 | Z179: =Inputs_RNIP!R179 -> 0 | AA179: =Inputs_RNIP!X179*Z179 -> 0 | AB179: 0 | AD179: 0 | AE179: 0 | AF179: 0 | AG179: 0
A180: Total
A181: Labour | B181: =Inputs_RNIP!B181 -> Transgrid | C181: =Inputs_RNIP!C181 -> $Millions | K181: =SUM(K157:K167,K169:K179) -> 0 | L181: 0 | M181: 0 | N181: 0 | O181: 0 | P181: 0 | Q181: 0 | R181: 0 | S181: 0 | T181: 0 | U181: 0 | V181: 0 | W181: 0 | X181: =IF(ROUND(W181-SUM(K157:V179),3)=0,0,1) -> 0 | Z181: =SUM(Z169:Z179) -> 21.89263485 | AA181: =SUM(AA169:AA179) -> 9.977399927 | AB181: =SUM(AB169:AB179) -> 11.91523492 | AD181: =Adjustments!$C$17 -> -3.463168827 | AE181: =SUM(AE169:AE179) -> 6.5142311 | AF181: =SUM(AF169:AF179) -> 11.91523492
A183: Note: Direct labour costs for each year are pro-rated across escalated capex by asset class for that year | J183: Total | K183: =K181 -> 0 | L183: =L181 -> 0 | M183: 0 | N183: 0 | O183: 0 | P183: 0 | Q183: 0 | R183: 0 | S183: 0 | T183: =T181 -> 0 | U183: =U181 -> 0 | V183: =V181 -> 0 | W183: =SUM(K183:V183) -> 0
J184: ="Actuals ("&$A$8&")" -> Actuals (Real $2026) | K184: =SUM(K157:K167) -> 0 | L184: =SUM(L157:L167) -> 0 | M184: 0 | N184: 0 | O184: 0 | P184: 0 | Q184: 0 | R184: 0 | S184: 0 | T184: 0 | U184: 0 | V184: 0 | W184: =SUM(K184:V184) -> 0
A185: Note: Input dollar basis conversion factor | E185: =INDEX($J$21:$V$21,,MATCH($A$6,$J$20:$V$20,0))/INDEX($J$21:$V$21,,MATCH(E169,$J$20:$V$20,0)) -> 1 | J185: ="Forecast ("&$A$8&")" -> Forecast (Real $2026) | K185: =SUM(K169:K179)*$E$185 -> 0 | L185: 0 | M185: 0 | N185: 0 | O185: 0 | P185: 0 | Q185: 0 | R185: 0 | S185: 0 | T185: 0 | U185: 0 | V185: 0 | W185: =SUM(K185:V185) -> 0
J186: ="Total ("&$A$8&")" -> Total (Real $2026) | K186: =SUM(K184:K185) -> 0 | L186: =SUM(L184:L185) -> 0 | M186: 0 | N186: 0 | O186: 0 | P186: 0 | Q186: 0 | R186: 0 | S186: 0 | T186: 0 | U186: =SUM(U184:U185) -> 0 | V186: =SUM(V184:V185) -> 0 | W186: =SUM(K186:V186) -> 0
J187: ="Total including escalation ("&$A$8&")" -> Total including escalation (Real $2026) | K187: =K186* IF(K155<$F$169,1,K$22/INDEX(Inputs_Adj_1!$K$22:$V$22,MATCH(Inputs_Adj_1!$F$169,Years,0))) -> 0 | L187: =L186* IF(L155<$F$169,1,L$22/INDEX(Inputs_Adj_1!$K$22:$V$22,MATCH(Inputs_Adj_1!$F$169,Years,0))) -> 0 | M187: =M186* IF(M155<$F$169,1,M$22/INDEX(Inputs_Adj_1!$K$22:$V$22,MATCH(Inputs_Adj_1!$F$169,Years,0))) -> 0 | N187: =N186* IF(N155<$F$169,1,N$22/INDEX(Inputs_Adj_1!$K$22:$V$22,MATCH(Inputs_Adj_1!$F$169,Years,0))) -> 0 | O187: =O186* IF(O155<$F$169,1,O$22/INDEX(Inputs_Adj_1!$K$22:$V$22,MATCH(Inputs_Adj_1!$F$169,Years,0))) -> 0 | P187: =P186* IF(P155<$F$169,1,P$22/INDEX(Inputs_Adj_1!$K$22:$V$22,MATCH(Inputs_Adj_1!$F$169,Years,0))) -> 0 | Q187: =Q186* IF(Q155<$F$169,1,Q$22/INDEX(Inputs_Adj_1!$K$22:$V$22,MATCH(Inputs_Adj_1!$F$169,Years,0))) -> 0 | R187: =R186* IF(R155<$F$169,1,R$22/INDEX(Inputs_Adj_1!$K$22:$V$22,MATCH(Inputs_Adj_1!$F$169,Years,0))) -> 0 | S187: =S186* IF(S155<$F$169,1,S$22/INDEX(Inputs_Adj_1!$K$22:$V$22,MATCH(Inputs_Adj_1!$F$169,Years,0))) -> 0 | T187: =T186* IF(T155<$F$169,1,T$22/INDEX(Inputs_Adj_1!$K$22:$V$22,MATCH(Inputs_Adj_1!$F$169,Years,0))) -> 0 | U187: =U186* IF(U155<$F$169,1,U$22/INDEX(Inputs_Adj_1!$K$22:$V$22,MATCH(Inputs_Adj_1!$F$169,Years,0))) -> 0 | V187: =V186* IF(V155<$F$169,1,V$22/INDEX(Inputs_Adj_1!$K$22:$V$22,MATCH(Inputs_Adj_1!$F$169,Years,0))) -> 0 | W187: =SUM(K187:V187) -> 0
A189: Indirect Costs - Non Labour and Indirect Labour
A191: Indirect Costs | E191: Conversion | H191: Mapping | K191: ="Indirect Costs (June "&E206&" dollars, unescalated)" -> Indirect Costs (June 2026 dollars, unescalated)
A192: Component | B192: Source | C192: Units | E192: Dollar Yr | F192: Escalation Yr | K192: =K$20 -> 2020 | L192: =L$20 -> 2021 | M192: 2022 | N192: 2023 | O192: 2024 | P192: 2025 | Q192: 2026 | R192: 2027 | S192: 2028 | T192: 2029 | U192: 2030 | V192: 2031 | W192: Total | X192: FY27 IPF %
A193: =A156 -> Actuals (to 28 February 2025)
A194: Non Labour - Project management | B194: =Inputs_RNIP!B194 -> Transgrid | C194: =Inputs_RNIP!C194 -> $Millions | E194: =Inputs_RNIP!E194 -> 2026 | F194: =Inputs_RNIP!F194 -> n/a | W194: =SUM(K194:V194) -> 0
A195: Non Labour - Other support and corporate roles | B195: =Inputs_RNIP!B195 -> Transgrid | C195: =Inputs_RNIP!C195 -> $Millions | E195: =Inputs_RNIP!E195 -> 2026 | F195: =Inputs_RNIP!F195 -> n/a | W195: =SUM(K195:V195) -> 0
A196: Non Labour - Regulatory approvals | B196: =Inputs_RNIP!B196 -> Transgrid | C196: =Inputs_RNIP!C196 -> $Millions | E196: =Inputs_RNIP!E196 -> 2026 | F196: =Inputs_RNIP!F196 -> n/a | W196: 0
A197: Non Labour - Community and stakeholder engagement | B197: =Inputs_RNIP!B197 -> Transgrid | C197: =Inputs_RNIP!C197 -> $Millions | E197: =Inputs_RNIP!E197 -> 2026 | F197: =Inputs_RNIP!F197 -> n/a | W197: =SUM(K197:V197) -> 0
A198: Non Labour - Land and Environment | B198: =Inputs_RNIP!B198 -> Transgrid | C198: =Inputs_RNIP!C198 -> $Millions | E198: =Inputs_RNIP!E198 -> 2026 | F198: =Inputs_RNIP!F198 -> n/a | W198: 0
A199: Non Labour - Transaction Procurement Support | B199: =Inputs_RNIP!B199 -> Transgrid | C199: =Inputs_RNIP!C199 -> $Millions | E199: =Inputs_RNIP!E199 -> 2026 | F199: =Inputs_RNIP!F199 -> n/a | W199: 0
A200: Non Labour - Project Development | B200: =Inputs_RNIP!B200 -> Transgrid | C200: =Inputs_RNIP!C200 -> $Millions | E200: =Inputs_RNIP!E200 -> 2026 | F200: =Inputs_RNIP!F200 -> n/a | W200: 0
A201: Non Labour - Project Controls | B201: =Inputs_RNIP!B201 -> Transgrid | C201: =Inputs_RNIP!C201 -> $Millions | E201: =Inputs_RNIP!E201 -> 2026 | F201: =Inputs_RNIP!F201 -> n/a | W201: 0
A202: Non Labour - Commercial Management | B202: =Inputs_RNIP!B202 -> Transgrid | C202: =Inputs_RNIP!C202 -> $Millions | E202: =Inputs_RNIP!E202 -> 2026 | F202: =Inputs_RNIP!F202 -> n/a | W202: 0
A203: Non Labour - Construction Management | B203: =Inputs_RNIP!B203 -> Transgrid | C203: =Inputs_RNIP!C203 -> $Millions | E203: =Inputs_RNIP!E203 -> 2026 | F203: =Inputs_RNIP!F203 -> n/a | W203: 0
W204: 0
A205: =A168 -> Forecasts (from 1 March 2025) | Z205: RNIP - FY27 Total | AA205: RNIP FY27 IPF | AB205: RNIP FY27 Forecast | AD205: Adjustment 1 | AE205: Adjusted FY27 IPF | AF205: Adjusted FY27 Forecast | AG205: Adjusted FY27 IPF %
A206: =A194 -> Non Labour - Project management | B206: =Inputs_RNIP!B206 -> Transgrid | C206: =Inputs_RNIP!C206 -> $Millions | E206: =Inputs_RNIP!E206 -> 2026 | F206: =Inputs_RNIP!F206 -> n/a | W206: =SUM(K206:V206) -> 0 | X206: =AG206-Inputs_RNIP!X206 -> -0.2659607421 | Z206: =Inputs_RNIP!R206 -> 3.366848367 | AA206: =Inputs_RNIP!X206*Inputs_RNIP!R206 -> 1.681917763 | AB206: =Z206-AA206 -> 1.684930603 | AD206: =IF($AA$217=0,0,AA206/$AA$217)*$AD$217 -> -0.8954494902 | AE206: =AA206+AD206 -> 0.7864682731 | AF206: =AB206 -> 1.684930603 | AG206: =IF(Z206=0,0,AE206/Z206) -> 0.2335918305
A207: Non Labour - Other support and corporate roles | B207: =Inputs_RNIP!B207 -> Transgrid | C207: =Inputs_RNIP!C207 -> $Millions | E207: =Inputs_RNIP!E207 -> 2026 | F207: =Inputs_RNIP!F207 -> n/a | W207: 0 | X207: =AG207-Inputs_RNIP!X207 -> -0.2599810323 | Z207: =Inputs_RNIP!R207 -> 1.448272637 | AA207: =Inputs_RNIP!X207*Inputs_RNIP!R207 -> 0.7072218222 | AB207: =Z207-AA207 -> 0.7410508146 | AD207: -0.3765234151 | AE207: =AA207+AD207 -> 0.3306984071 | AF207: =AB207 -> 0.7410508146 | AG207: =IF(Z207=0,0,AE207/Z207) -> 0.2283398848
A208: Non Labour - Regulatory approvals | B208: =Inputs_RNIP!B208 -> Transgrid | C208: =Inputs_RNIP!C208 -> $Millions | E208: =Inputs_RNIP!E208 -> 2026 | F208: =Inputs_RNIP!F208 -> n/a | W208: 0 | X208: =AG208-Inputs_RNIP!X208 -> 0 | Z208: =Inputs_RNIP!R208 -> 0 | AA208: =Inputs_RNIP!X208*Inputs_RNIP!R208 -> 0 | AB208: 0 | AD208: 0 | AE208: 0 | AF208: 0 | AG208: 0
A209: Non Labour - Community and stakeholder engagement | B209: =Inputs_RNIP!B209 -> Transgrid | C209: =Inputs_RNIP!C209 -> $Millions | E209: =Inputs_RNIP!E209 -> 2026 | F209: =Inputs_RNIP!F209 -> n/a | W209: 0 | X209: =AG209-Inputs_RNIP!X209 -> -0.2661989515 | Z209: =Inputs_RNIP!R209 -> 0.06344253106 | AA209: =Inputs_RNIP!X209*Inputs_RNIP!R209 -> 0.03172126553 | AB209: 0.03172126553 | AD209: -0.01688833525 | AE209: 0.01483293028 | AF209: 0.03172126553 | AG209: 0.2338010485
A210: Non Labour - Land and Environment | B210: =Inputs_RNIP!B210 -> Transgrid | C210: =Inputs_RNIP!C210 -> $Millions | E210: =Inputs_RNIP!E210 -> 2026 | F210: =Inputs_RNIP!F210 -> n/a | W210: 0 | X210: =AG210-Inputs_RNIP!X210 -> -0.2843001428 | Z210: =Inputs_RNIP!R210 -> 2.377358213 | AA210: =Inputs_RNIP!X210*Inputs_RNIP!R210 -> 1.269507779 | AB210: 1.107850434 | AD210: -0.6758832793 | AE210: 0.5936244995 | AF210: 1.107850434 | AG210: 0.2496992234
A211: Non Labour - Transaction Procurement Support | B211: =Inputs_RNIP!B211 -> Transgrid | C211: =Inputs_RNIP!C211 -> $Millions | E211: =Inputs_RNIP!E211 -> 2026 | F211: =Inputs_RNIP!F211 -> n/a | W211: 0 | X211: =AG211-Inputs_RNIP!X211 -> 0 | Z211: =Inputs_RNIP!R211 -> 0 | AA211: =Inputs_RNIP!X211*Inputs_RNIP!R211 -> 0 | AB211: 0 | AD211: 0 | AE211: 0 | AF211: 0 | AG211: 0
A212: Non Labour - Project Development | B212: =Inputs_RNIP!B212 -> Transgrid | C212: =Inputs_RNIP!C212 -> $Millions | E212: =Inputs_RNIP!E212 -> 2026 | F212: =Inputs_RNIP!F212 -> n/a | W212: 0 | X212: =AG212-Inputs_RNIP!X212 -> -0.315220624 | Z212: =Inputs_RNIP!R212 -> 0.3803375571 | AA212: =Inputs_RNIP!X212*Inputs_RNIP!R212 -> 0.2251891703 | AB212: 0.1551483868 | AD212: -0.1198902421 | AE212: 0.1052989283 | AF212: 0.1551483868 | AG212: 0.2768565089
A213: Non Labour - Project Controls | B213: =Inputs_RNIP!B213 -> Transgrid | C213: =Inputs_RNIP!C213 -> $Millions | E213: =Inputs_RNIP!E213 -> 2026 | F213: =Inputs_RNIP!F213 -> n/a | W213: 0 | X213: =AG213-Inputs_RNIP!X213 -> -0.2661989515 | Z213: =Inputs_RNIP!R213 -> 0.7063449313 | AA213: =Inputs_RNIP!X213*Inputs_RNIP!R213 -> 0.3531724657 | AB213: 0.3531724657 | AD213: -0.1880282801 | AE213: 0.1651441855 | AF213: 0.3531724657 | AG213: 0.2338010485
A214: Non Labour - Commercial Management | B214: =Inputs_RNIP!B214 -> Transgrid | C214: =Inputs_RNIP!C214 -> $Millions | E214: =Inputs_RNIP!E214 -> 2026 | F214: =Inputs_RNIP!F214 -> n/a | W214: 0 | X214: =AG214-Inputs_RNIP!X214 -> -0.1943948499 | Z214: =Inputs_RNIP!R214 -> 1.383744264 | AA214: =Inputs_RNIP!X214*Inputs_RNIP!R214 -> 0.5052475918 | AB214: 0.8784966718 | AD214: -0.2689927584 | AE214: 0.2362548334 | AF214: 0.8784966718 | AG214: 0.1707359081
A215: Non Labour - Construction Management | B215: =Inputs_RNIP!B215 -> Transgrid | C215: =Inputs_RNIP!C215 -> $Millions | E215: =Inputs_RNIP!E215 -> 2026 | F215: =Inputs_RNIP!F215 -> n/a | W215: 0 | X215: =AG215-Inputs_RNIP!X215 -> -0.2052657134 | Z215: =Inputs_RNIP!R215 -> 2.516637502 | AA215: =Inputs_RNIP!X215*Inputs_RNIP!R215 -> 0.9702881797 | AB215: 1.546349322 | AD215: -0.5165793922 | AE215: 0.4537087875 | AF215: 1.546349322 | AG215: 0.1802837267
A216: =A180 -> Total
A217: Non-Labour | B217: =Inputs_RNIP!B217 -> Transgrid | C217: =Inputs_RNIP!C217 -> $Millions | K217: =SUM(K194:K204,K206:K215) -> 0 | L217: 0 | M217: 0 | N217: 0 | O217: 0 | P217: 0 | Q217: 0 | R217: 0 | S217: 0 | T217: 0 | U217: 0 | V217: 0 | W217: 0 | X217: =IF(ROUND(W217-SUM(K194:V215),3)=0,0,1) -> 0 | Z217: =SUM(Z206:Z215) -> 12.242986 | AA217: =SUM(AA206:AA215) -> 5.744266037 | AB217: =SUM(AB206:AB215) -> 6.498719964 | AD217: =Adjustments!$C$18 -> -3.058235193 | AE217: =SUM(AE206:AE216) -> 2.686030845 | AF217: =SUM(AF206:AF216) -> 6.498719964
A219: Note: Indirect costs for each year are pro-rated across escalated capex (including direct labour costs) by asset class for that year | J219: Total | K219: =K217 -> 0 | L219: =L217 -> 0 | M219: 0 | N219: 0 | O219: 0 | P219: 0 | Q219: 0 | R219: 0 | S219: 0 | T219: =T217 -> 0 | U219: =U217 -> 0 | V219: =V217 -> 0 | W219: =SUM(K219:V219) -> 0
J220: ="Actuals ("&$A$8&")" -> Actuals (Real $2026) | K220: =SUM(K194:K204) -> 0 | L220: =SUM(L194:L204) -> 0 | M220: 0 | N220: 0 | O220: 0 | P220: 0 | Q220: 0 | R220: 0 | S220: 0 | T220: 0 | U220: 0 | V220: 0 | W220: =SUM(K220:V220) -> 0
A221: Note: Input dollar basis conversion factor | E221: =INDEX($J$21:$V$21,,MATCH($A$6,$J$20:$V$20,0))/INDEX($J$21:$V$21,,MATCH(E206,$J$20:$V$20,0)) -> 1 | J221: ="Forecast ("&$A$8&")" -> Forecast (Real $2026) | K221: =SUM(K206:K215)*$E$221 -> 0 | L221: 0 | M221: 0 | N221: 0 | O221: 0 | P221: 0 | Q221: 0 | R221: 0 | S221: 0 | T221: 0 | U221: 0 | V221: 0 | W221: =SUM(K221:V221) -> 0
J222: ="Total ("&$A$8&")" -> Total (Real $2026) | K222: =SUM(K220:K221) -> 0 | L222: =SUM(L220:L221) -> 0 | M222: 0 | N222: 0 | O222: 0 | P222: 0 | Q222: 0 | R222: 0 | S222: 0 | T222: =SUM(T220:T221) -> 0 | U222: =SUM(U220:U221) -> 0 | V222: =SUM(V220:V221) -> 0 | W222: =SUM(K222:V222) -> 0
... 22 more rows

Sheet Inputs_Adj_2 (hidden)
A2: Section Check | C2: =IF(SUM(W124,Y150:AK150,X181,X217,H124)=0,0,1) -> 0
A4: Output Reporting Format and Year
A5: Real
A6: =Inputs_RNIP!A6 -> 2026
A8: =IF(Real_or_Nom="Real", "Real $" & Report_Year, "$ Nominal") -> Real $2026
A10: Inflation and Labour Escalation
A13: Forecasts | K13: Rates
A14: Item | B14: Source | C14: Units | K14: =K20 -> 2020 | L14: 2021 | M14: 2022 | N14: 2023 | O14: 2024 | P14: 2025 | Q14: 2026 | R14: 2027 | S14: 2028 | T14: 2029 | U14: 2030 | V14: 2031
A15: Actual / Forecast Inflation | B15: =Inputs_RNIP!B15 -> ABS June to June / RBA Forecast | C15: % | K15: =Inputs_RNIP!K15 -> -0.003484320557 | L15: =Inputs_RNIP!L15 -> 0.03846153846 | M15: =Inputs_RNIP!M15 -> 0.06144781145 | N15: =Inputs_RNIP!N15 -> 0.06026962728 | O15: =Inputs_RNIP!O15 -> 0.03814510097 | P15: =Inputs_RNIP!P15 -> 0.024 | Q15: =Inputs_RNIP!Q15 -> 0.032 | R15: =Inputs_RNIP!R15 -> 0.02599975634 | S15: =Inputs_RNIP!S15 -> 0.02599975634 | T15: =Inputs_RNIP!T15 -> 0.02599975634 | U15: =Inputs_RNIP!U15 -> 0.02599975634 | V15: =Inputs_RNIP!V15 -> 0.02599975634
A16: Real labour escalation | B16: =Inputs_RNIP!B16 -> AER Final Determination / Transgrid proposal | C16: % | R16: =Inputs_RNIP!R16 -> 0.004330457586 | S16: =Inputs_RNIP!S16 -> 0.003009413338 | T16: =Inputs_RNIP!T16 -> 0.003669935462 | U16: =Inputs_RNIP!U16 -> 0.003669935462 | V16: =Inputs_RNIP!V16 -> 0.003669935462
A19: Cumulative Factors | K19: Cumulative factors
A20: Item | B20: Source | C20: Units | J20: =K20-1 -> 2019 | K20: =Inputs_RNIP!K20 -> 2020 | L20: =K20+1 -> 2021 | M20: 2022 | N20: 2023 | O20: 2024 | P20: 2025 | Q20: 2026 | R20: 2027 | S20: 2028 | T20: 2029 | U20: =T20+1 -> 2030 | V20: =U20+1 -> 2031
A21: Inflation based to 2019 | B21: =Inputs_RNIP!B21 -> Calculated | C21: Factor | J21: =Inputs_RNIP!J21 -> 1 | K21: =J21*(1+K15) -> 0.9965156794 | L21: =K21*(1+L15) -> 1.034843206 | M21: =L21*(1+M15) -> 1.098432056 | N21: 1.164634146 | O21: 1.209059233 | P21: 1.238076655 | Q21: =P21*(1+Q15) -> 1.277695108 | R21: 1.310914869 | S21: 1.344998337 | T21: 1.379967966 | U21: =T21*(1+U15) -> 1.415846797 | V21: =U21*(1+V15) -> 1.452658468
A22: Labour based to 2024 | B22: =Inputs_RNIP!B22 -> Calculated | C22: Factor | J22: =Inputs_RNIP!J22 -> 1 | K22: =J22*(1+K16) -> 1 | L22: 1 | M22: 1 | N22: 1 | O22: 1 | P22: 1 | Q22: 1 | R22: 1.004330458 | S22: 1.007352903 | T22: 1.011049823 | U22: =T22*(1+U16) -> 1.014760311 | V22: =U22*(1+V16) -> 1.018484416
A23: Real 2024 to Real 2026 | B23: =Inputs_RNIP!B23 -> Calculated | C23: Factor | K23: =$Q$21/$O$21 -> 1.056768 | L23: =$Q$21/$O$21 -> 1.056768 | M23: =$Q$21/$O$21 -> 1.056768 | N23: =$Q$21/$O$21 -> 1.056768 | O23: =$Q$21/$O$21 -> 1.056768 | P23: 1.056768 | Q23: 1.056768 | R23: 1.056768 | S23: 1.056768 | T23: 1.056768 | U23: 1.056768 | V23: 1.056768
A25: Indexation | K25: Indexation
A26: Item | B26: Source | C26: Units | K26: =K20 -> 2020 | L26: 2021 | M26: 2022 | N26: 2023 | O26: 2024 | P26: 2025 | Q26: 2026 | R26: 2027 | S26: 2028 | T26: =T20 -> 2029 | U26: =U20 -> 2030 | V26: =V20 -> 2031
A27: Real 2026 End Period to Nominal Mid Period | B27: =Inputs_RNIP!B27 -> Calculated | C27: Factor | K27: =K21/$Q$21/(1+K$15)^0.5 -> 0.7812946244 | L27: =L21/$Q$21/(1+L$15)^0.5 -> 0.7947894845 | M27: 0.8344429381 | N27: 0.8852259302 | O27: 0.9287339395 | P27: 0.9575695434 | Q27: 0.9843740387 | R27: 1.012916461 | S27: 1.039252042 | T27: 1.066272342 | U27: 1.093995163 | V27: 1.12243877
A28: Real 2019 End Period to Nominal Mid Period | B28: =Inputs_RNIP!B28 -> Calculated | C28: Factor | K28: =K21/$J$21/(1+K$15)^0.5 -> 0.9982563195 | L28: =L21/$J$21/(1+L$15)^0.5 -> 1.015498636 | M28: 1.06616366 | N28: 1.13104884 | O28: 1.186638811 | P28: 1.223481921 | Q28: 1.257729894 | R28: 1.294198407 | S28: 1.32784725 | T28: 1.362370955 | U28: 1.397792268 | V28: 1.434134526
A31: Capital Expenditure
A33: Direct Non-Labour Costs
A36: Direct Non-Labour Costs | By Category | E36: Conversion | H36: Expenditure | I36: Mapping | K36: Spend Profile Assumption - As incurred | Y36: $ Spend Profile - As incurred (June 2026 dollars) - with 100% of IPF in 2026-27 | AN36: As Commissioned Profile Assumption | BA36: Direct Expenditure - As Commmissioned Profile (June 2026 dollars) | BO36: Mapping | BQ36: Direct Non Labour by Timing Category | BV36: IPF $ Spend Profile - As incurred (June 2026 dollars) | CJ36: Remaining Forecast $ Spend Profile - As incurred (June 2026 dollars)
A37: Category | B37: Source | C37: Units | E37: Dollar Year From | F37: Dollar Year To | H37: Total | I37: RIN Category | J37: RAB Asset Class | K37: 2020 | L37: 2021 | M37: 2022 | N37: 2023 | O37: 2024 | P37: 2025 | Q37: 2026 | R37: 2027 | S37: 2028 | T37: 2029 | U37: 2030 | V37: 2031 | W37: Total | Y37: 2020 | Z37: 2021 | AA37: 2022 | AB37: 2023 | AC37: 2024 | AD37: 2025 | AE37: 2026 | AF37: 2027 | AG37: 2028 | AH37: 2029 | AI37: 2030 | AJ37: 2031 | AK37: Total | AL37: FY27 IPF % | AN37: 2020 | AO37: 2021 | AP37: 2022 | AQ37: 2023 | AR37: 2024 | AS37: 2025 | AT37: 2026 | AU37: 2027 | AV37: 2028 | AW37: 2029 | AX37: 2030 | AY37: 2031 | BA37: 2020 | BB37: 2021 | BC37: 2022 | BD37: 2023 | BE37: 2024 | BF37: 2025 | BG37: 2026 | BH37: 2027 | BI37: 2028 | BJ37: 2029 | BK37: 2030 | BL37: 2031 | BM37: Total | BQ37: Early REZ | BR37: IPF | BS37: Forecast | BT37: Total | BV37: 2020 | BW37: 2021 | BX37: 2022 | BY37: 2023 | BZ37: 2024 | CA37: 2025 | CB37: 2026 | CC37: 2027 | CD37: 2028 | CE37: 2029 | CF37: 2030 | CG37: 2031 | CH37: IPF Total | CJ37: 2020 | CK37: 2021 | CL37: 2022 | CM37: 2023 | CN37: 2024 | CO37: 2025 | CP37: 2026 | CQ37: 2027 | CR37: 2028 | CS37: 2029 | CT37: 2030 | CU37: 2031 | CV37: Forecast Total
A38: Augmentation works - Design and Construction | BQ38: (June 2026 dollars)
A39: =Inputs_RNIP!A39 -> Construction Costs | D&C Contract - Transmission Line | B39: =Inputs_RNIP!B39 -> Project Team Input | C39: $Millions | E39: Nominal | F39: 2026 | I39: 0 | J39: Transmission Lines | W39: 0 | X39: 0 | Y39: 0 | Z39: 0 | AA39: 0 | AB39: 0 | AC39: 0 | AD39: 0 | AE39: 0 | AF39: 0 | AG39: 0 | AH39: 0 | AI39: 0 | AJ39: 0 | AK39: 0 | BA39: 0 | BB39: 0 | BC39: 0 | BD39: 0 | BE39: 0 | BF39: 0 | BG39: 0 | BH39: 0 | BI39: 0 | BJ39: 0 | BK39: 0 | BL39: 0 | BM39: 0 | BO39: Transmission Lines - 0 | BX39: 0 | BY39: 0 | BZ39: 0 | CA39: 0 | CB39: 0 | CC39: 0 | CH39: 0 | CL39: 0 | CM39: 0 | CN39: 0 | CO39: 0 | CP39: 0 | CQ39: 0 | CV39: 0
A40: =Inputs_RNIP!A40 -> Construction Costs | D&C Contract - Transmission Line | B40: =Inputs_RNIP!B40 -> Project Team Input | C40: $Millions | E40: Nominal | F40: 2026 | I40: Transmission towers | J40: Transmission Lines | W40: 0 | X40: 0 | Y40: 0 | Z40: 0 | AA40: 0 | AB40: 0 | AC40: 0 | AD40: 0 | AE40: 0 | AF40: 0 | AG40: 0 | AH40: 0 | AI40: 0 | AJ40: 0 | AK40: 0 | BA40: 0 | BB40: 0 | BC40: 0 | BD40: 0 | BE40: 0 | BF40: 0 | BG40: 0 | BH40: 0 | BI40: 0 | BJ40: 0 | BK40: 0 | BL40: 0 | BM40: 0 | BO40: Transmission Lines - Transmission towers | BX40: 0 | BY40: 0 | BZ40: 0 | CA40: 0 | CB40: 0 | CC40: 0 | CH40: 0 | CL40: 0 | CM40: 0 | CN40: 0 | CO40: 0 | CP40: 0 | CQ40: 0 | CV40: 0
A41: =Inputs_RNIP!A41 -> Construction Costs | D&C Contract - Transmission Line | B41: =Inputs_RNIP!B41 -> Project Team Input | C41: $Millions | E41: Nominal | F41: 2026 | I41: Transmission tower support structures | J41: Transmission Lines | W41: 0 | X41: 0 | Y41: 0 | Z41: 0 | AA41: 0 | AB41: 0 | AC41: 0 | AD41: 0 | AE41: 0 | AF41: 0 | AG41: 0 | AH41: 0 | AI41: 0 | AJ41: 0 | AK41: 0 | BA41: 0 | BB41: 0 | BC41: 0 | BD41: 0 | BE41: 0 | BF41: 0 | BG41: 0 | BH41: 0 | BI41: 0 | BJ41: 0 | BK41: 0 | BL41: 0 | BM41: 0 | BO41: Transmission Lines - Transmission tower support structures | BX41: 0 | BY41: 0 | BZ41: 0 | CA41: 0 | CB41: 0 | CC41: 0 | CH41: 0 | CL41: 0 | CM41: 0 | CN41: 0 | CO41: 0 | CP41: 0 | CQ41: 0 | CV41: 0
A42: =Inputs_RNIP!A42 -> Construction Costs | D&C Contract - Transmission Line | B42: =Inputs_RNIP!B42 -> Project Team Input | C42: $Millions | E42: Nominal | F42: 2026 | I42: Conductors | J42: Transmission Lines | W42: 0 | X42: 0 | Y42: 0 | Z42: 0 | AA42: 0 | AB42: 0 | AC42: 0 | AD42: 0 | AE42: 0 | AF42: 0 | AG42: 0 | AH42: 0 | AI42: 0 | AJ42: 0 | AK42: 0 | BA42: 0 | BB42: 0 | BC42: 0 | BD42: 0 | BE42: 0 | BF42: 0 | BG42: 0 | BH42: 0 | BI42: 0 | BJ42: 0 | BK42: 0 | BL42: 0 | BM42: 0 | BO42: Transmission Lines - Conductors | BX42: 0 | BY42: 0 | BZ42: 0 | CA42: 0 | CB42: 0 | CC42: 0 | CH42: 0 | CL42: 0 | CM42: 0 | CN42: 0 | CO42: 0 | CP42: 0 | CQ42: 0 | CV42: 0
A43: =Inputs_RNIP!A43 -> Construction Costs | D&C Contract - Substations | B43: =Inputs_RNIP!B43 -> Project Team Input | C43: $Millions | E43: Nominal | F43: 2026 | I43: 0 | J43: Substations | W43: 0 | X43: 0 | Y43: 0 | Z43: 0 | AA43: 0 | AB43: 0 | AC43: 0 | AD43: 0 | AE43: 0 | AF43: 0 | AG43: 0 | AH43: 0 | AI43: 0 | AJ43: 0 | AK43: 0 | BA43: 0 | BB43: 0 | BC43: 0 | BD43: 0 | BE43: 0 | BF43: 0 | BG43: 0 | BH43: 0 | BI43: 0 | BJ43: 0 | BK43: 0 | BL43: 0 | BM43: 0 | BO43: Substations - 0 | BX43: 0 | BY43: 0 | BZ43: 0 | CA43: 0 | CB43: 0 | CC43: 0 | CH43: 0 | CL43: 0 | CM43: 0 | CN43: 0 | CO43: 0 | CP43: 0 | CQ43: 0 | CV43: 0
A44: =Inputs_RNIP!A44 -> Construction Costs | D&C Contract - Substations | B44: =Inputs_RNIP!B44 -> Project Team Input | C44: $Millions | E44: Nominal | F44: 2026 | I44: Substation switchbays | J44: Substations | W44: 0 | X44: 0 | Y44: 0 | Z44: 0 | AA44: 0 | AB44: 0 | AC44: 0 | AD44: 0 | AE44: 0 | AF44: 0 | AG44: 0 | AH44: 0 | AI44: 0 | AJ44: 0 | AK44: 0 | BA44: 0 | BB44: 0 | BC44: 0 | BD44: 0 | BE44: 0 | BF44: 0 | BG44: 0 | BH44: 0 | BI44: 0 | BJ44: 0 | BK44: 0 | BL44: 0 | BM44: 0 | BO44: Substations - Substation switchbays | BX44: 0 | BY44: 0 | BZ44: 0 | CA44: 0 | CB44: 0 | CC44: 0 | CH44: 0 | CL44: 0 | CM44: 0 | CN44: 0 | CO44: 0 | CP44: 0 | CQ44: 0 | CV44: 0
A45: =Inputs_RNIP!A45 -> Construction Costs | D&C Contract - Substations | B45: =Inputs_RNIP!B45 -> Project Team Input | C45: $Millions | E45: Nominal | F45: 2026 | I45: Substation power transformers | J45: Substations | W45: 0 | X45: 0 | Y45: 0 | Z45: 0 | AA45: 0 | AB45: 0 | AC45: 0 | AD45: 0 | AE45: 0 | AF45: 0 | AG45: 0 | AH45: 0 | AI45: 0 | AJ45: 0 | AK45: 0 | BA45: 0 | BB45: 0 | BC45: 0 | BD45: 0 | BE45: 0 | BF45: 0 | BG45: 0 | BH45: 0 | BI45: 0 | BJ45: 0 | BK45: 0 | BL45: 0 | BM45: 0 | BO45: Substations - Substation power transformers | BX45: 0 | BY45: 0 | BZ45: 0 | CA45: 0 | CB45: 0 | CC45: 0 | CH45: 0 | CL45: 0 | CM45: 0 | CN45: 0 | CO45: 0 | CP45: 0 | CQ45: 0 | CV45: 0
A46: =Inputs_RNIP!A46 -> Construction Costs | D&C Contract - Substations | B46: =Inputs_RNIP!B46 -> Project Team Input | C46: $Millions | E46: Nominal | F46: 2026 | I46: Substation reactive plant | J46: Substations | W46: 0 | X46: 0 | Y46: 0 | Z46: 0 | AA46: 0 | AB46: 0 | AC46: 0 | AD46: 0 | AE46: 0 | AF46: 0 | AG46: 0 | AH46: 0 | AI46: 0 | AJ46: 0 | AK46: 0 | BA46: 0 | BB46: 0 | BC46: 0 | BD46: 0 | BE46: 0 | BF46: 0 | BG46: 0 | BH46: 0 | BI46: 0 | BJ46: 0 | BK46: 0 | BL46: 0 | BM46: 0 | BO46: Substations - Substation reactive plant | BX46: 0 | BY46: 0 | BZ46: 0 | CA46: 0 | CB46: 0 | CC46: 0 | CH46: 0 | CL46: 0 | CM46: 0 | CN46: 0 | CO46: 0 | CP46: 0 | CQ46: 0 | CV46: 0
A47: =Inputs_RNIP!A47 -> Construction Costs | D&C Contract - Secondary System | B47: =Inputs_RNIP!B47 -> Project Team Input | C47: $Millions | E47: Nominal | F47: 2026 | I47: SCADA, network control and protection systems | J47: Secondary System | W47: 0 | X47: 0 | Y47: 0 | Z47: 0 | AA47: 0 | AB47: 0 | AC47: 0 | AD47: 0 | AE47: 0 | AF47: 0 | AG47: 0 | AH47: 0 | AI47: 0 | AJ47: 0 | AK47: 0 | BA47: 0 | BB47: 0 | BC47: 0 | BD47: 0 | BE47: 0 | BF47: 0 | BG47: 0 | BH47: 0 | BI47: 0 | BJ47: 0 | BK47: 0 | BL47: 0 | BM47: 0 | BO47: Secondary System - SCADA, network control and protection systems | BX47: 0 | BY47: 0 | BZ47: 0 | CA47: 0 | CB47: 0 | CC47: 0 | CH47: 0 | CL47: 0 | CM47: 0 | CN47: 0 | CO47: 0 | CP47: 0 | CQ47: 0 | CV47: 0
A48: =Inputs_RNIP!A48 -> Construction Costs | Transposition | B48: =Inputs_RNIP!B48 -> Project Team Input | C48: $Millions | E48: Nominal | F48: 2026 | I48: 0 | J48: Transmission Lines | W48: 0 | X48: 0 | Y48: 0 | Z48: 0 | AA48: 0 | AB48: 0 | AC48: 0 | AD48: 0 | AE48: 0 | AF48: 0 | AG48: 0 | AH48: 0 | AI48: 0 | AJ48: 0 | AK48: 0 | BA48: 0 | BB48: 0 | BC48: 0 | BD48: 0 | BE48: 0 | BF48: 0 | BG48: 0 | BH48: 0 | BI48: 0 | BJ48: 0 | BK48: 0 | BL48: 0 | BM48: 0 | BO48: Transmission Lines - 0 | BX48: 0 | BY48: 0 | BZ48: 0 | CA48: 0 | CB48: 0 | CC48: 0 | CH48: 0 | CL48: 0 | CM48: 0 | CN48: 0 | CO48: 0 | CP48: 0 | CQ48: 0 | CV48: 0
A49: =Inputs_RNIP!A49 -> Construction Costs | Transposition | B49: =Inputs_RNIP!B49 -> Project Team Input | C49: $Millions | E49: Nominal | F49: 2026 | I49: Transmission towers | J49: Transmission Lines | W49: 0 | X49: 0 | Y49: 0 | Z49: 0 | AA49: 0 | AB49: 0 | AC49: 0 | AD49: 0 | AE49: 0 | AF49: 0 | AG49: 0 | AH49: 0 | AI49: 0 | AJ49: 0 | AK49: 0 | BA49: 0 | BB49: 0 | BC49: 0 | BD49: 0 | BE49: 0 | BF49: 0 | BG49: 0 | BH49: 0 | BI49: 0 | BJ49: 0 | BK49: 0 | BL49: 0 | BM49: 0 | BO49: Transmission Lines - Transmission towers | BX49: 0 | BY49: 0 | BZ49: 0 | CA49: 0 | CB49: 0 | CC49: 0 | CH49: 0 | CL49: 0 | CM49: 0 | CN49: 0 | CO49: 0 | CP49: 0 | CQ49: 0 | CV49: 0
A50: =Inputs_RNIP!A50 -> Construction Costs | Transposition | B50: =Inputs_RNIP!B50 -> Project Team Input | C50: $Millions | E50: Nominal | F50: 2026 | I50: Transmission tower support structures | J50: Transmission Lines | W50: 0 | X50: 0 | Y50: 0 | Z50: 0 | AA50: 0 | AB50: 0 | AC50: 0 | AD50: 0 | AE50: 0 | AF50: 0 | AG50: 0 | AH50: 0 | AI50: 0 | AJ50: 0 | AK50: 0 | BA50: 0 | BB50: 0 | BC50: 0 | BD50: 0 | BE50: 0 | BF50: 0 | BG50: 0 | BH50: 0 | BI50: 0 | BJ50: 0 | BK50: 0 | BL50: 0 | BM50: 0 | BO50: Transmission Lines - Transmission tower support structures | BX50: 0 | BY50: 0 | BZ50: 0 | CA50: 0 | CB50: 0 | CC50: 0 | CH50: 0 | CL50: 0 | CM50: 0 | CN50: 0 | CO50: 0 | CP50: 0 | CQ50: 0 | CV50: 0
A51: =Inputs_RNIP!A51 -> Construction Costs | Transposition | B51: =Inputs_RNIP!B51 -> Project Team Input | C51: $Millions | E51: Nominal | F51: 2026 | I51: Conductors | J51: Transmission Lines | W51: 0 | X51: 0 | Y51: 0 | Z51: 0 | AA51: 0 | AB51: 0 | AC51: 0 | AD51: 0 | AE51: 0 | AF51: 0 | AG51: 0 | AH51: 0 | AI51: 0 | AJ51: 0 | AK51: 0 | BA51: 0 | BB51: 0 | BC51: 0 | BD51: 0 | BE51: 0 | BF51: 0 | BG51: 0 | BH51: 0 | BI51: 0 | BJ51: 0 | BK51: 0 | BL51: 0 | BM51: 0 | BO51: Transmission Lines - Conductors | BX51: 0 | BY51: 0 | BZ51: 0 | CA51: 0 | CB51: 0 | CC51: 0 | CH51: 0 | CL51: 0 | CM51: 0 | CN51: 0 | CO51: 0 | CP51: 0 | CQ51: 0 | CV51: 0
A52: Secondary Systems | BO52: -
A53: =Inputs_RNIP!A53 -> Secondary System | Protection Relays | B53: =Inputs_RNIP!B53 -> Project Team Input | C53: $Millions | E53: 2026 | F53: 2026 | I53: SCADA, network control and protection systems | J53: Secondary System | W53: 0 | X53: 0 | Y53: 0 | Z53: 0 | AA53: 0 | AB53: 0 | AC53: 0 | AD53: 0 | AE53: 0 | AF53: 0 | AG53: 0 | AH53: 0 | AI53: 0 | AJ53: 0 | AK53: 0 | BA53: 0 | BB53: 0 | BC53: 0 | BD53: 0 | BE53: 0 | BF53: 0 | BG53: 0 | BH53: 0 | BI53: 0 | BJ53: 0 | BK53: 0 | BL53: 0 | BM53: 0 | BO53: Secondary System - SCADA, network control and protection systems | BX53: 0 | BY53: 0 | BZ53: 0 | CA53: 0 | CB53: 0 | CC53: 0 | CH53: 0 | CL53: 0 | CM53: 0 | CN53: 0 | CO53: 0 | CP53: 0 | CQ53: 0 | CV53: 0
A54: =Inputs_RNIP!A54 -> Secondary System | IED SEL Terminals | B54: =Inputs_RNIP!B54 -> Project Team Input | C54: $Millions | E54: 2026 | F54: 2026 | I54: SCADA, network control and protection systems | J54: Secondary System | W54: 0 | X54: 0 | Y54: 0 | Z54: 0 | AA54: 0 | AB54: 0 | AC54: 0 | AD54: 0 | AE54: 0 | AF54: 0 | AG54: 0 | AH54: 0 | AI54: 0 | AJ54: 0 | AK54: 0 | BA54: 0 | BB54: 0 | BC54: 0 | BD54: 0 | BE54: 0 | BF54: 0 | BG54: 0 | BH54: 0 | BI54: 0 | BJ54: 0 | BK54: 0 | BL54: 0 | BM54: 0 | BO54: Secondary System - SCADA, network control and protection systems | BX54: 0 | BY54: 0 | BZ54: 0 | CA54: 0 | CB54: 0 | CC54: 0 | CH54: 0 | CL54: 0 | CM54: 0 | CN54: 0 | CO54: 0 | CP54: 0 | CQ54: 0 | CV54: 0
A55: =Inputs_RNIP!A55 -> Secondary System | QOS Meter | B55: =Inputs_RNIP!B55 -> Project Team Input | C55: $Millions | E55: 2026 | F55: 2026 | I55: SCADA, network control and protection systems | J55: Secondary System | W55: 0 | X55: 0 | Y55: 0 | Z55: 0 | AA55: 0 | AB55: 0 | AC55: 0 | AD55: 0 | AE55: 0 | AF55: 0 | AG55: 0 | AH55: 0 | AI55: 0 | AJ55: 0 | AK55: 0 | BA55: 0 | BB55: 0 | BC55: 0 | BD55: 0 | BE55: 0 | BF55: 0 | BG55: 0 | BH55: 0 | BI55: 0 | BJ55: 0 | BK55: 0 | BL55: 0 | BM55: 0 | BO55: Secondary System - SCADA, network control and protection systems | BX55: 0 | BY55: 0 | BZ55: 0 | CA55: 0 | CB55: 0 | CC55: 0 | CH55: 0 | CL55: 0 | CM55: 0 | CN55: 0 | CO55: 0 | CP55: 0 | CQ55: 0 | CV55: 0
A56: =Inputs_RNIP!A56 -> Secondary System | Disturbance Recorder | B56: =Inputs_RNIP!B56 -> Project Team Input | C56: $Millions | E56: 2026 | F56: 2026 | I56: SCADA, network control and protection systems | J56: Secondary System | W56: 0 | X56: 0 | Y56: 0 | Z56: 0 | AA56: 0 | AB56: 0 | AC56: 0 | AD56: 0 | AE56: 0 | AF56: 0 | AG56: 0 | AH56: 0 | AI56: 0 | AJ56: 0 | AK56: 0 | BA56: 0 | BB56: 0 | BC56: 0 | BD56: 0 | BE56: 0 | BF56: 0 | BG56: 0 | BH56: 0 | BI56: 0 | BJ56: 0 | BK56: 0 | BL56: 0 | BM56: 0 | BO56: Secondary System - SCADA, network control and protection systems | BX56: 0 | BY56: 0 | BZ56: 0 | CA56: 0 | CB56: 0 | CC56: 0 | CH56: 0 | CL56: 0 | CM56: 0 | CN56: 0 | CO56: 0 | CP56: 0 | CQ56: 0 | CV56: 0
A57: =Inputs_RNIP!A57 -> Secondary System | Metering Panel | B57: =Inputs_RNIP!B57 -> Project Team Input | C57: $Millions | E57: 2026 | F57: 2026 | I57: SCADA, network control and protection systems | J57: Secondary System | W57: 0 | X57: 0 | Y57: 0 | Z57: 0 | AA57: 0 | AB57: 0 | AC57: 0 | AD57: 0 | AE57: 0 | AF57: 0 | AG57: 0 | AH57: 0 | AI57: 0 | AJ57: 0 | AK57: 0 | BA57: 0 | BB57: 0 | BC57: 0 | BD57: 0 | BE57: 0 | BF57: 0 | BG57: 0 | BH57: 0 | BI57: 0 | BJ57: 0 | BK57: 0 | BL57: 0 | BM57: 0 | BO57: Secondary System - SCADA, network control and protection systems | BX57: 0 | BY57: 0 | BZ57: 0 | CA57: 0 | CB57: 0 | CC57: 0 | CH57: 0 | CL57: 0 | CM57: 0 | CN57: 0 | CO57: 0 | CP57: 0 | CQ57: 0 | CV57: 0
A58: =Inputs_RNIP!A58 -> Secondary System | TWFL | B58: =Inputs_RNIP!B58 -> Project Team Input | C58: $Millions | E58: 2026 | F58: 2026 | I58: SCADA, network control and protection systems | J58: Secondary System | W58: 0 | X58: 0 | Y58: 0 | Z58: 0 | AA58: 0 | AB58: 0 | AC58: 0 | AD58: 0 | AE58: 0 | AF58: 0 | AG58: 0 | AH58: 0 | AI58: 0 | AJ58: 0 | AK58: 0 | BA58: 0 | BB58: 0 | BC58: 0 | BD58: 0 | BE58: 0 | BF58: 0 | BG58: 0 | BH58: 0 | BI58: 0 | BJ58: 0 | BK58: 0 | BL58: 0 | BM58: 0 | BO58: Secondary System - SCADA, network control and protection systems | BX58: 0 | BY58: 0 | BZ58: 0 | CA58: 0 | CB58: 0 | CC58: 0 | CH58: 0 | CL58: 0 | CM58: 0 | CN58: 0 | CO58: 0 | CP58: 0 | CQ58: 0 | CV58: 0
A59: =Inputs_RNIP!A59 -> Secondary System | Comms - XTRAN | B59: =Inputs_RNIP!B59 -> Project Team Input | C59: $Millions | E59: 2026 | F59: 2026 | I59: SCADA, network control and protection systems | J59: Secondary System | W59: 0 | X59: 0 | Y59: 0 | Z59: 0 | AA59: 0 | AB59: 0 | AC59: 0 | AD59: 0 | AE59: 0 | AF59: 0 | AG59: 0 | AH59: 0 | AI59: 0 | AJ59: 0 | AK59: 0 | BA59: 0 | BB59: 0 | BC59: 0 | BD59: 0 | BE59: 0 | BF59: 0 | BG59: 0 | BH59: 0 | BI59: 0 | BJ59: 0 | BK59: 0 | BL59: 0 | BM59: 0 | BO59: Secondary System - SCADA, network control and protection systems | BX59: 0 | BY59: 0 | BZ59: 0 | CA59: 0 | CB59: 0 | CC59: 0 | CH59: 0 | CL59: 0 | CM59: 0 | CN59: 0 | CO59: 0 | CP59: 0 | CQ59: 0 | CV59: 0
A60: =Inputs_RNIP!A60 -> Secondary System | Comms - RAD | B60: =Inputs_RNIP!B60 -> Project Team Input | C60: $Millions | E60: 2026 | F60: 2026 | I60: SCADA, network control and protection systems | J60: Secondary System | W60: 0 | X60: 0 | Y60: 0 | Z60: 0 | AA60: 0 | AB60: 0 | AC60: 0 | AD60: 0 | AE60: 0 | AF60: 0 | AG60: 0 | AH60: 0 | AI60: 0 | AJ60: 0 | AK60: 0 | BA60: 0 | BB60: 0 | BC60: 0 | BD60: 0 | BE60: 0 | BF60: 0 | BG60: 0 | BH60: 0 | BI60: 0 | BJ60: 0 | BK60: 0 | BL60: 0 | BM60: 0 | BO60: Secondary System - SCADA, network control and protection systems | BX60: 0 | BY60: 0 | BZ60: 0 | CA60: 0 | CB60: 0 | CC60: 0 | CH60: 0 | CL60: 0 | CM60: 0 | CN60: 0 | CO60: 0 | CP60: 0 | CQ60: 0 | CV60: 0
BO61: -
BO62: -
A63: Equipment | BO63: -
A64: =Inputs_RNIP!A64 -> Equipment Costs | Transformers (CT) | B64: =Inputs_RNIP!B64 -> Project Team Input | C64: $Millions | E64: 2026 | F64: 2026 | I64: 0 | J64: Substations | W64: 0 | X64: 0 | Y64: 0 | Z64: 0 | AA64: 0 | AB64: 0 | AC64: 0 | AD64: 0 | AE64: 0 | AF64: 0 | AG64: 0 | AH64: 0 | AI64: 0 | AJ64: 0 | AK64: 0 | BA64: 0 | BB64: 0 | BC64: 0 | BD64: 0 | BE64: 0 | BF64: 0 | BG64: 0 | BH64: 0 | BI64: 0 | BJ64: 0 | BK64: 0 | BL64: 0 | BM64: 0 | BO64: Substations - 0 | BX64: 0 | BY64: 0 | BZ64: 0 | CA64: 0 | CB64: 0 | CC64: 0 | CH64: 0 | CL64: 0 | CM64: 0 | CN64: 0 | CO64: 0 | CP64: 0 | CQ64: 0 | CV64: 0
A65: =Inputs_RNIP!A65 -> Equipment Costs | Transformers (CT) | B65: =Inputs_RNIP!B65 -> Project Team Input | C65: $Millions | E65: 2026 | F65: 2026 | I65: Substation switchbays | J65: Substations | W65: 0 | X65: 0 | Y65: 0 | Z65: 0 | AA65: 0 | AB65: 0 | AC65: 0 | AD65: 0 | AE65: 0 | AF65: 0 | AG65: 0 | AH65: 0 | AI65: 0 | AJ65: 0 | AK65: 0 | BA65: 0 | BB65: 0 | BC65: 0 | BD65: 0 | BE65: 0 | BF65: 0 | BG65: 0 | BH65: 0 | BI65: 0 | BJ65: 0 | BK65: 0 | BL65: 0 | BM65: 0 | BO65: Substations - Substation switchbays | BX65: 0 | BY65: 0 | BZ65: 0 | CA65: 0 | CB65: 0 | CC65: 0 | CH65: 0 | CL65: 0 | CM65: 0 | CN65: 0 | CO65: 0 | CP65: 0 | CQ65: 0 | CV65: 0
A66: =Inputs_RNIP!A66 -> Equipment Costs | Transformers (CT) | B66: =Inputs_RNIP!B66 -> Project Team Input | C66: $Millions | E66: 2026 | F66: 2026 | I66: Substation power transformers | J66: Substations | W66: 0 | X66: 0 | Y66: 0 | Z66: 0 | AA66: 0 | AB66: 0 | AC66: 0 | AD66: 0 | AE66: 0 | AF66: 0 | AG66: 0 | AH66: 0 | AI66: 0 | AJ66: 0 | AK66: 0 | BA66: 0 | BB66: 0 | BC66: 0 | BD66: 0 | BE66: 0 | BF66: 0 | BG66: 0 | BH66: 0 | BI66: 0 | BJ66: 0 | BK66: 0 | BL66: 0 | BM66: 0 | BO66: Substations - Substation power transformers | BX66: 0 | BY66: 0 | BZ66: 0 | CA66: 0 | CB66: 0 | CC66: 0 | CH66: 0 | CL66: 0 | CM66: 0 | CN66: 0 | CO66: 0 | CP66: 0 | CQ66: 0 | CV66: 0
A67: =Inputs_RNIP!A67 -> Equipment Costs | Transformers (CT) | B67: =Inputs_RNIP!B67 -> Project Team Input | C67: $Millions | E67: 2026 | F67: 2026 | I67: Substation reactive plant | J67: Substations | W67: 0 | X67: 0 | Y67: 0 | Z67: 0 | AA67: 0 | AB67: 0 | AC67: 0 | AD67: 0 | AE67: 0 | AF67: 0 | AG67: 0 | AH67: 0 | AI67: 0 | AJ67: 0 | AK67: 0 | BA67: 0 | BB67: 0 | BC67: 0 | BD67: 0 | BE67: 0 | BF67: 0 | BG67: 0 | BH67: 0 | BI67: 0 | BJ67: 0 | BK67: 0 | BL67: 0 | BM67: 0 | BO67: Substations - Substation reactive plant | BX67: 0 | BY67: 0 | BZ67: 0 | CA67: 0 | CB67: 0 | CC67: 0 | CH67: 0 | CL67: 0 | CM67: 0 | CN67: 0 | CO67: 0 | CP67: 0 | CQ67: 0 | CV67: 0
A68: =Inputs_RNIP!A68 -> Equipment Costs | Circuit Breakers (CB) | B68: =Inputs_RNIP!B68 -> Project Team Input | C68: $Millions | E68: 2026 | F68: 2026 | I68: 0 | J68: Substations | W68: 0 | X68: 0 | Y68: 0 | Z68: 0 | AA68: 0 | AB68: 0 | AC68: 0 | AD68: 0 | AE68: 0 | AF68: 0 | AG68: 0 | AH68: 0 | AI68: 0 | AJ68: 0 | AK68: 0 | BA68: 0 | BB68: 0 | BC68: 0 | BD68: 0 | BE68: 0 | BF68: 0 | BG68: 0 | BH68: 0 | BI68: 0 | BJ68: 0 | BK68: 0 | BL68: 0 | BM68: 0 | BO68: Substations - 0 | BX68: 0 | BY68: 0 | BZ68: 0 | CA68: 0 | CB68: 0 | CC68: 0 | CH68: 0 | CL68: 0 | CM68: 0 | CN68: 0 | CO68: 0 | CP68: 0 | CQ68: 0 | CV68: 0
A69: =Inputs_RNIP!A69 -> Equipment Costs | Circuit Breakers (CB) | B69: =Inputs_RNIP!B69 -> Project Team Input | C69: $Millions | E69: 2026 | F69: 2026 | I69: Substation switchbays | J69: Substations | W69: 0 | X69: 0 | Y69: 0 | Z69: 0 | AA69: 0 | AB69: 0 | AC69: 0 | AD69: 0 | AE69: 0 | AF69: 0 | AG69: 0 | AH69: 0 | AI69: 0 | AJ69: 0 | AK69: 0 | BA69: 0 | BB69: 0 | BC69: 0 | BD69: 0 | BE69: 0 | BF69: 0 | BG69: 0 | BH69: 0 | BI69: 0 | BJ69: 0 | BK69: 0 | BL69: 0 | BM69: 0 | BO69: Substations - Substation switchbays | BX69: 0 | BY69: 0 | BZ69: 0 | CA69: 0 | CB69: 0 | CC69: 0 | CH69: 0 | CL69: 0 | CM69: 0 | CN69: 0 | CO69: 0 | CP69: 0 | CQ69: 0 | CV69: 0
A70: =Inputs_RNIP!A70 -> Equipment Costs | Circuit Breakers (CB) | B70: =Inputs_RNIP!B70 -> Project Team Input | C70: $Millions | E70: 2026 | F70: 2026 | I70: Substation power transformers | J70: Substations | W70: 0 | X70: 0 | Y70: 0 | Z70: 0 | AA70: 0 | AB70: 0 | AC70: 0 | AD70: 0 | AE70: 0 | AF70: 0 | AG70: 0 | AH70: 0 | AI70: 0 | AJ70: 0 | AK70: 0 | BA70: 0 | BB70: 0 | BC70: 0 | BD70: 0 | BE70: 0 | BF70: 0 | BG70: 0 | BH70: 0 | BI70: 0 | BJ70: 0 | BK70: 0 | BL70: 0 | BM70: 0 | BO70: Substations - Substation power transformers | BX70: 0 | BY70: 0 | BZ70: 0 | CA70: 0 | CB70: 0 | CC70: 0 | CH70: 0 | CL70: 0 | CM70: 0 | CN70: 0 | CO70: 0 | CP70: 0 | CQ70: 0 | CV70: 0
A71: =Inputs_RNIP!A71 -> Equipment Costs | Circuit Breakers (CB) | B71: =Inputs_RNIP!B71 -> Project Team Input | C71: $Millions | E71: 2026 | F71: 2026 | I71: Substation reactive plant | J71: Substations | W71: 0 | X71: 0 | Y71: 0 | Z71: 0 | AA71: 0 | AB71: 0 | AC71: 0 | AD71: 0 | AE71: 0 | AF71: 0 | AG71: 0 | AH71: 0 | AI71: 0 | AJ71: 0 | AK71: 0 | BA71: 0 | BB71: 0 | BC71: 0 | BD71: 0 | BE71: 0 | BF71: 0 | BG71: 0 | BH71: 0 | BI71: 0 | BJ71: 0 | BK71: 0 | BL71: 0 | BM71: 0 | BO71: Substations - Substation reactive plant | BX71: 0 | BY71: 0 | BZ71: 0 | CA71: 0 | CB71: 0 | CC71: 0 | CH71: 0 | CL71: 0 | CM71: 0 | CN71: 0 | CO71: 0 | CP71: 0 | CQ71: 0 | CV71: 0
A72: =Inputs_RNIP!A72 -> Equipment Costs | Voltage Transformers (VT) | B72: =Inputs_RNIP!B72 -> Project Team Input | C72: $Millions | E72: 2026 | F72: 2026 | I72: 0 | J72: Substations | W72: 0 | X72: 0 | Y72: 0 | Z72: 0 | AA72: 0 | AB72: 0 | AC72: 0 | AD72: 0 | AE72: 0 | AF72: 0 | AG72: 0 | AH72: 0 | AI72: 0 | AJ72: 0 | AK72: 0 | BA72: 0 | BB72: 0 | BC72: 0 | BD72: 0 | BE72: 0 | BF72: 0 | BG72: 0 | BH72: 0 | BI72: 0 | BJ72: 0 | BK72: 0 | BL72: 0 | BM72: 0 | BO72: Substations - 0 | BX72: 0 | BY72: 0 | BZ72: 0 | CA72: 0 | CB72: 0 | CC72: 0 | CH72: 0 | CL72: 0 | CM72: 0 | CN72: 0 | CO72: 0 | CP72: 0 | CQ72: 0 | CV72: 0
A73: =Inputs_RNIP!A73 -> Equipment Costs | Voltage Transformers (VT) | B73: =Inputs_RNIP!B73 -> Project Team Input | C73: $Millions | E73: 2026 | F73: 2026 | I73: Substation switchbays | J73: Substations | W73: 0 | X73: 0 | Y73: 0 | Z73: 0 | AA73: 0 | AB73: 0 | AC73: 0 | AD73: 0 | AE73: 0 | AF73: 0 | AG73: 0 | AH73: 0 | AI73: 0 | AJ73: 0 | AK73: 0 | BA73: 0 | BB73: 0 | BC73: 0 | BD73: 0 | BE73: 0 | BF73: 0 | BG73: 0 | BH73: 0 | BI73: 0 | BJ73: 0 | BK73: 0 | BL73: 0 | BM73: 0 | BO73: Substations - Substation switchbays | BX73: 0 | BY73: 0 | BZ73: 0 | CA73: 0 | CB73: 0 | CC73: 0 | CH73: 0 | CL73: 0 | CM73: 0 | CN73: 0 | CO73: 0 | CP73: 0 | CQ73: 0 | CV73: 0
A74: =Inputs_RNIP!A74 -> Equipment Costs | Voltage Transformers (VT) | B74: =Inputs_RNIP!B74 -> Project Team Input | C74: $Millions | E74: 2026 | F74: 2026 | I74: Substation power transformers | J74: Substations | W74: 0 | X74: 0 | Y74: 0 | Z74: 0 | AA74: 0 | AB74: 0 | AC74: 0 | AD74: 0 | AE74: 0 | AF74: 0 | AG74: 0 | AH74: 0 | AI74: 0 | AJ74: 0 | AK74: 0 | BA74: 0 | BB74: 0 | BC74: 0 | BD74: 0 | BE74: 0 | BF74: 0 | BG74: 0 | BH74: 0 | BI74: 0 | BJ74: 0 | BK74: 0 | BL74: 0 | BM74: 0 | BO74: Substations - Substation power transformers | BX74: 0 | BY74: 0 | BZ74: 0 | CA74: 0 | CB74: 0 | CC74: 0 | CH74: 0 | CL74: 0 | CM74: 0 | CN74: 0 | CO74: 0 | CP74: 0 | CQ74: 0 | CV74: 0
A75: =Inputs_RNIP!A75 -> Equipment Costs | Voltage Transformers (VT) | B75: =Inputs_RNIP!B75 -> Project Team Input | C75: $Millions | E75: 2026 | F75: 2026 | I75: Substation reactive plant | J75: Substations | W75: 0 | X75: 0 | Y75: 0 | Z75: 0 | AA75: 0 | AB75: 0 | AC75: 0 | AD75: 0 | AE75: 0 | AF75: 0 | AG75: 0 | AH75: 0 | AI75: 0 | AJ75: 0 | AK75: 0 | BA75: 0 | BB75: 0 | BC75: 0 | BD75: 0 | BE75: 0 | BF75: 0 | BG75: 0 | BH75: 0 | BI75: 0 | BJ75: 0 | BK75: 0 | BL75: 0 | BM75: 0 | BO75: Substations - Substation reactive plant | BX75: 0 | BY75: 0 | BZ75: 0 | CA75: 0 | CB75: 0 | CC75: 0 | CH75: 0 | CL75: 0 | CM75: 0 | CN75: 0 | CO75: 0 | CP75: 0 | CQ75: 0 | CV75: 0
A76: =Inputs_RNIP!A76 -> Equipment Costs | Line Trap (LT) | B76: =Inputs_RNIP!B76 -> Project Team Input | C76: $Millions | E76: 2026 | F76: 2026 | I76: 0 | J76: Substations | W76: 0 | X76: 0 | Y76: 0 | Z76: 0 | AA76: 0 | AB76: 0 | AC76: 0 | AD76: 0 | AE76: 0 | AF76: 0 | AG76: 0 | AH76: 0 | AI76: 0 | AJ76: 0 | AK76: 0 | BA76: 0 | BB76: 0 | BC76: 0 | BD76: 0 | BE76: 0 | BF76: 0 | BG76: 0 | BH76: 0 | BI76: 0 | BJ76: 0 | BK76: 0 | BL76: 0 | BM76: 0 | BO76: Substations - 0 | BX76: 0 | BY76: 0 | BZ76: 0 | CA76: 0 | CB76: 0 | CC76: 0 | CH76: 0 | CL76: 0 | CM76: 0 | CN76: 0 | CO76: 0 | CP76: 0 | CQ76: 0 | CV76: 0
A77: =Inputs_RNIP!A77 -> Equipment Costs | Line Trap (LT) | B77: =Inputs_RNIP!B77 -> Project Team Input | C77: $Millions | E77: 2026 | F77: 2026 | I77: Substation switchbays | J77: Substations | W77: 0 | X77: 0 | Y77: 0 | Z77: 0 | AA77: 0 | AB77: 0 | AC77: 0 | AD77: 0 | AE77: 0 | AF77: 0 | AG77: 0 | AH77: 0 | AI77: 0 | AJ77: 0 | AK77: 0 | BA77: 0 | BB77: 0 | BC77: 0 | BD77: 0 | BE77: 0 | BF77: 0 | BG77: 0 | BH77: 0 | BI77: 0 | BJ77: 0 | BK77: 0 | BL77: 0 | BM77: 0 | BO77: Substations - Substation switchbays | BX77: 0 | BY77: 0 | BZ77: 0 | CA77: 0 | CB77: 0 | CC77: 0 | CH77: 0 | CL77: 0 | CM77: 0 | CN77: 0 | CO77: 0 | CP77: 0 | CQ77: 0 | CV77: 0
A78: =Inputs_RNIP!A78 -> Equipment Costs | Line Trap (LT) | B78: =Inputs_RNIP!B78 -> Project Team Input | C78: $Millions | E78: 2026 | F78: 2026 | I78: Substation power transformers | J78: Substations | W78: 0 | X78: 0 | Y78: 0 | Z78: 0 | AA78: 0 | AB78: 0 | AC78: 0 | AD78: 0 | AE78: 0 | AF78: 0 | AG78: 0 | AH78: 0 | AI78: 0 | AJ78: 0 | AK78: 0 | BA78: 0 | BB78: 0 | BC78: 0 | BD78: 0 | BE78: 0 | BF78: 0 | BG78: 0 | BH78: 0 | BI78: 0 | BJ78: 0 | BK78: 0 | BL78: 0 | BM78: 0 | BO78: Substations - Substation power transformers | BX78: 0 | BY78: 0 | BZ78: 0 | CA78: 0 | CB78: 0 | CC78: 0 | CH78: 0 | CL78: 0 | CM78: 0 | CN78: 0 | CO78: 0 | CP78: 0 | CQ78: 0 | CV78: 0
A79: =Inputs_RNIP!A79 -> Equipment Costs | Line Trap (LT) | B79: =Inputs_RNIP!B79 -> Project Team Input | C79: $Millions | E79: 2026 | F79: 2026 | I79: Substation reactive plant | J79: Substations | W79: 0 | X79: 0 | Y79: 0 | Z79: 0 | AA79: 0 | AB79: 0 | AC79: 0 | AD79: 0 | AE79: 0 | AF79: 0 | AG79: 0 | AH79: 0 | AI79: 0 | AJ79: 0 | AK79: 0 | BA79: 0 | BB79: 0 | BC79: 0 | BD79: 0 | BE79: 0 | BF79: 0 | BG79: 0 | BH79: 0 | BI79: 0 | BJ79: 0 | BK79: 0 | BL79: 0 | BM79: 0 | BO79: Substations - Substation reactive plant | BX79: 0 | BY79: 0 | BZ79: 0 | CA79: 0 | CB79: 0 | CC79: 0 | CH79: 0 | CL79: 0 | CM79: 0 | CN79: 0 | CO79: 0 | CP79: 0 | CQ79: 0 | CV79: 0
A80: =Inputs_RNIP!A80 -> Equipment Costs | Earth Switch | B80: =Inputs_RNIP!B80 -> Project Team Input | C80: $Millions | E80: 2026 | F80: 2026 | I80: 0 | J80: Substations | W80: 0 | X80: 0 | Y80: 0 | Z80: 0 | AA80: 0 | AB80: 0 | AC80: 0 | AD80: 0 | AE80: 0 | AF80: 0 | AG80: 0 | AH80: 0 | AI80: 0 | AJ80: 0 | AK80: 0 | BA80: 0 | BB80: 0 | BC80: 0 | BD80: 0 | BE80: 0 | BF80: 0 | BG80: 0 | BH80: 0 | BI80: 0 | BJ80: 0 | BK80: 0 | BL80: 0 | BM80: 0 | BO80: Substations - 0 | BX80: 0 | BY80: 0 | BZ80: 0 | CA80: 0 | CB80: 0 | CC80: 0 | CH80: 0 | CL80: 0 | CM80: 0 | CN80: 0 | CO80: 0 | CP80: 0 | CQ80: 0 | CV80: 0
A81: =Inputs_RNIP!A81 -> Equipment Costs | Earth Switch | B81: =Inputs_RNIP!B81 -> Project Team Input | C81: $Millions | E81: 2026 | F81: 2026 | I81: Substation switchbays | J81: Substations | W81: 0 | X81: 0 | Y81: 0 | Z81: 0 | AA81: 0 | AB81: 0 | AC81: 0 | AD81: 0 | AE81: 0 | AF81: 0 | AG81: 0 | AH81: 0 | AI81: 0 | AJ81: 0 | AK81: 0 | BA81: 0 | BB81: 0 | BC81: 0 | BD81: 0 | BE81: 0 | BF81: 0 | BG81: 0 | BH81: 0 | BI81: 0 | BJ81: 0 | BK81: 0 | BL81: 0 | BM81: 0 | BO81: Substations - Substation switchbays | BX81: 0 | BY81: 0 | BZ81: 0 | CA81: 0 | CB81: 0 | CC81: 0 | CH81: 0 | CL81: 0 | CM81: 0 | CN81: 0 | CO81: 0 | CP81: 0 | CQ81: 0 | CV81: 0
A82: =Inputs_RNIP!A82 -> Equipment Costs | Earth Switch | B82: =Inputs_RNIP!B82 -> Project Team Input | C82: $Millions | E82: 2026 | F82: 2026 | I82: Substation power transformers | J82: Substations | W82: 0 | X82: 0 | Y82: 0 | Z82: 0 | AA82: 0 | AB82: 0 | AC82: 0 | AD82: 0 | AE82: 0 | AF82: 0 | AG82: 0 | AH82: 0 | AI82: 0 | AJ82: 0 | AK82: 0 | BA82: 0 | BB82: 0 | BC82: 0 | BD82: 0 | BE82: 0 | BF82: 0 | BG82: 0 | BH82: 0 | BI82: 0 | BJ82: 0 | BK82: 0 | BL82: 0 | BM82: 0 | BO82: Substations - Substation power transformers | BX82: 0 | BY82: 0 | BZ82: 0 | CA82: 0 | CB82: 0 | CC82: 0 | CH82: 0 | CL82: 0 | CM82: 0 | CN82: 0 | CO82: 0 | CP82: 0 | CQ82: 0 | CV82: 0
A83: =Inputs_RNIP!A83 -> Equipment Costs | Earth Switch | B83: =Inputs_RNIP!B83 -> Project Team Input | C83: $Millions | E83: 2026 | F83: 2026 | I83: Substation reactive plant | J83: Substations | W83: 0 | X83: 0 | Y83: 0 | Z83: 0 | AA83: 0 | AB83: 0 | AC83: 0 | AD83: 0 | AE83: 0 | AF83: 0 | AG83: 0 | AH83: 0 | AI83: 0 | AJ83: 0 | AK83: 0 | BA83: 0 | BB83: 0 | BC83: 0 | BD83: 0 | BE83: 0 | BF83: 0 | BG83: 0 | BH83: 0 | BI83: 0 | BJ83: 0 | BK83: 0 | BL83: 0 | BM83: 0 | BO83: Substations - Substation reactive plant | BX83: 0 | BY83: 0 | BZ83: 0 | CA83: 0 | CB83: 0 | CC83: 0 | CH83: 0 | CL83: 0 | CM83: 0 | CN83: 0 | CO83: 0 | CP83: 0 | CQ83: 0 | CV83: 0
A84: =Inputs_RNIP!A84 -> Equipment Costs | Surge Arrestor | B84: =Inputs_RNIP!B84 -> Project Team Input | C84: $Millions | E84: 2026 | F84: 2026 | I84: 0 | J84: Substations | W84: 0 | X84: 0 | Y84: 0 | Z84: 0 | AA84: 0 | AB84: 0 | AC84: 0 | AD84: 0 | AE84: 0 | AF84: 0 | AG84: 0 | AH84: 0 | AI84: 0 | AJ84: 0 | AK84: 0 | BA84: 0 | BB84: 0 | BC84: 0 | BD84: 0 | BE84: 0 | BF84: 0 | BG84: 0 | BH84: 0 | BI84: 0 | BJ84: 0 | BK84: 0 | BL84: 0 | BM84: 0 | BO84: Substations - 0 | BX84: 0 | BY84: 0 | BZ84: 0 | CA84: 0 | CB84: 0 | CC84: 0 | CH84: 0 | CL84: 0 | CM84: 0 | CN84: 0 | CO84: 0 | CP84: 0 | CQ84: 0 | CV84: 0
A85: =Inputs_RNIP!A85 -> Equipment Costs | Surge Arrestor | B85: =Inputs_RNIP!B85 -> Project Team Input | C85: $Millions | E85: 2026 | F85: 2026 | I85: Substation switchbays | J85: Substations | W85: 0 | X85: 0 | Y85: 0 | Z85: 0 | AA85: 0 | AB85: 0 | AC85: 0 | AD85: 0 | AE85: 0 | AF85: 0 | AG85: 0 | AH85: 0 | AI85: 0 | AJ85: 0 | AK85: 0 | BA85: 0 | BB85: 0 | BC85: 0 | BD85: 0 | BE85: 0 | BF85: 0 | BG85: 0 | BH85: 0 | BI85: 0 | BJ85: 0 | BK85: 0 | BL85: 0 | BM85: 0 | BO85: Substations - Substation switchbays | BX85: 0 | BY85: 0 | BZ85: 0 | CA85: 0 | CB85: 0 | CC85: 0 | CH85: 0 | CL85: 0 | CM85: 0 | CN85: 0 | CO85: 0 | CP85: 0 | CQ85: 0 | CV85: 0
A86: =Inputs_RNIP!A86 -> Equipment Costs | Surge Arrestor | B86: =Inputs_RNIP!B86 -> Project Team Input | C86: $Millions | E86: 2026 | F86: 2026 | I86: Substation power transformers | J86: Substations | W86: 0 | X86: 0 | Y86: 0 | Z86: 0 | AA86: 0 | AB86: 0 | AC86: 0 | AD86: 0 | AE86: 0 | AF86: 0 | AG86: 0 | AH86: 0 | AI86: 0 | AJ86: 0 | AK86: 0 | BA86: 0 | BB86: 0 | BC86: 0 | BD86: 0 | BE86: 0 | BF86: 0 | BG86: 0 | BH86: 0 | BI86: 0 | BJ86: 0 | BK86: 0 | BL86: 0 | BM86: 0 | BO86: Substations - Substation power transformers | BX86: 0 | BY86: 0 | BZ86: 0 | CA86: 0 | CB86: 0 | CC86: 0 | CH86: 0 | CL86: 0 | CM86: 0 | CN86: 0 | CO86: 0 | CP86: 0 | CQ86: 0 | CV86: 0
A87: =Inputs_RNIP!A87 -> Equipment Costs | Surge Arrestor | B87: =Inputs_RNIP!B87 -> Project Team Input | C87: $Millions | E87: 2026 | F87: 2026 | I87: Substation reactive plant | J87: Substations | W87: 0 | X87: 0 | Y87: 0 | Z87: 0 | AA87: 0 | AB87: 0 | AC87: 0 | AD87: 0 | AE87: 0 | AF87: 0 | AG87: 0 | AH87: 0 | AI87: 0 | AJ87: 0 | AK87: 0 | BA87: 0 | BB87: 0 | BC87: 0 | BD87: 0 | BE87: 0 | BF87: 0 | BG87: 0 | BH87: 0 | BI87: 0 | BJ87: 0 | BK87: 0 | BL87: 0 | BM87: 0 | BO87: Substations - Substation reactive plant | BX87: 0 | BY87: 0 | BZ87: 0 | CA87: 0 | CB87: 0 | CC87: 0 | CH87: 0 | CL87: 0 | CM87: 0 | CN87: 0 | CO87: 0 | CP87: 0 | CQ87: 0 | CV87: 0
A88: =Inputs_RNIP!A88 -> Equipment Costs | Disconnector | B88: =Inputs_RNIP!B88 -> Project Team Input | C88: $Millions | E88: 2026 | F88: 2026 | I88: 0 | J88: Substations | W88: 0 | X88: 0 | Y88: 0 | Z88: 0 | AA88: 0 | AB88: 0 | AC88: 0 | AD88: 0 | AE88: 0 | AF88: 0 | AG88: 0 | AH88: 0 | AI88: 0 | AJ88: 0 | AK88: 0 | BA88: 0 | BB88: 0 | BC88: 0 | BD88: 0 | BE88: 0 | BF88: 0 | BG88: 0 | BH88: 0 | BI88: 0 | BJ88: 0 | BK88: 0 | BL88: 0 | BM88: 0 | BO88: Substations - 0 | BX88: 0 | BY88: 0 | BZ88: 0 | CA88: 0 | CB88: 0 | CC88: 0 | CH88: 0 | CL88: 0 | CM88: 0 | CN88: 0 | CO88: 0 | CP88: 0 | CQ88: 0 | CV88: 0
A89: =Inputs_RNIP!A89 -> Equipment Costs | Disconnector | B89: =Inputs_RNIP!B89 -> Project Team Input | C89: $Millions | E89: 2026 | F89: 2026 | I89: Substation switchbays | J89: Substations | W89: 0 | X89: 0 | Y89: 0 | Z89: 0 | AA89: 0 | AB89: 0 | AC89: 0 | AD89: 0 | AE89: 0 | AF89: 0 | AG89: 0 | AH89: 0 | AI89: 0 | AJ89: 0 | AK89: 0 | BA89: 0 | BB89: 0 | BC89: 0 | BD89: 0 | BE89: 0 | BF89: 0 | BG89: 0 | BH89: 0 | BI89: 0 | BJ89: 0 | BK89: 0 | BL89: 0 | BM89: 0 | BO89: Substations - Substation switchbays | BX89: 0 | BY89: 0 | BZ89: 0 | CA89: 0 | CB89: 0 | CC89: 0 | CH89: 0 | CL89: 0 | CM89: 0 | CN89: 0 | CO89: 0 | CP89: 0 | CQ89: 0 | CV89: 0
A90: =Inputs_RNIP!A90 -> Equipment Costs | Disconnector | B90: =Inputs_RNIP!B90 -> Project Team Input | C90: $Millions | E90: 2026 | F90: 2026 | I90: Substation power transformers | J90: Substations | W90: 0 | X90: 0 | Y90: 0 | Z90: 0 | AA90: 0 | AB90: 0 | AC90: 0 | AD90: 0 | AE90: 0 | AF90: 0 | AG90: 0 | AH90: 0 | AI90: 0 | AJ90: 0 | AK90: 0 | BA90: 0 | BB90: 0 | BC90: 0 | BD90: 0 | BE90: 0 | BF90: 0 | BG90: 0 | BH90: 0 | BI90: 0 | BJ90: 0 | BK90: 0 | BL90: 0 | BM90: 0 | BO90: Substations - Substation power transformers | BX90: 0 | BY90: 0 | BZ90: 0 | CA90: 0 | CB90: 0 | CC90: 0 | CH90: 0 | CL90: 0 | CM90: 0 | CN90: 0 | CO90: 0 | CP90: 0 | CQ90: 0 | CV90: 0
A91: =Inputs_RNIP!A91 -> Equipment Costs | Disconnector | B91: =Inputs_RNIP!B91 -> Project Team Input | C91: $Millions | E91: 2026 | F91: 2026 | I91: Substation reactive plant | J91: Substations | W91: 0 | X91: 0 | Y91: 0 | Z91: 0 | AA91: 0 | AB91: 0 | AC91: 0 | AD91: 0 | AE91: 0 | AF91: 0 | AG91: 0 | AH91: 0 | AI91: 0 | AJ91: 0 | AK91: 0 | BA91: 0 | BB91: 0 | BC91: 0 | BD91: 0 | BE91: 0 | BF91: 0 | BG91: 0 | BH91: 0 | BI91: 0 | BJ91: 0 | BK91: 0 | BL91: 0 | BM91: 0 | BO91: Substations - Substation reactive plant | BX91: 0 | BY91: 0 | BZ91: 0 | CA91: 0 | CB91: 0 | CC91: 0 | CH91: 0 | CL91: 0 | CM91: 0 | CN91: 0 | CO91: 0 | CP91: 0 | CQ91: 0 | CV91: 0
A92: =Inputs_RNIP!A92 -> Equipment Costs | Insulator (16KN) | B92: =Inputs_RNIP!B92 -> Project Team Input | C92: $Millions | E92: 2026 | F92: 2026 | I92: 0 | J92: Substations | W92: 0 | X92: 0 | Y92: 0 | Z92: 0 | AA92: 0 | AB92: 0 | AC92: 0 | AD92: 0 | AE92: 0 | AF92: 0 | AG92: 0 | AH92: 0 | AI92: 0 | AJ92: 0 | AK92: 0 | BA92: 0 | BB92: 0 | BC92: 0 | BD92: 0 | BE92: 0 | BF92: 0 | BG92: 0 | BH92: 0 | BI92: 0 | BJ92: 0 | BK92: 0 | BL92: 0 | BM92: 0 | BO92: Substations - 0 | BX92: 0 | BY92: 0 | BZ92: 0 | CA92: 0 | CB92: 0 | CC92: 0 | CH92: 0 | CL92: 0 | CM92: 0 | CN92: 0 | CO92: 0 | CP92: 0 | CQ92: 0 | CV92: 0
A93: =Inputs_RNIP!A93 -> Equipment Costs | Insulator (16KN) | B93: =Inputs_RNIP!B93 -> Project Team Input | C93: $Millions | E93: 2026 | F93: 2026 | I93: Substation switchbays | J93: Substations | W93: 0 | X93: 0 | Y93: 0 | Z93: 0 | AA93: 0 | AB93: 0 | AC93: 0 | AD93: 0 | AE93: 0 | AF93: 0 | AG93: 0 | AH93: 0 | AI93: 0 | AJ93: 0 | AK93: 0 | BA93: 0 | BB93: 0 | BC93: 0 | BD93: 0 | BE93: 0 | BF93: 0 | BG93: 0 | BH93: 0 | BI93: 0 | BJ93: 0 | BK93: 0 | BL93: 0 | BM93: 0 | BO93: Substations - Substation switchbays | BX93: 0 | BY93: 0 | BZ93: 0 | CA93: 0 | CB93: 0 | CC93: 0 | CH93: 0 | CL93: 0 | CM93: 0 | CN93: 0 | CO93: 0 | CP93: 0 | CQ93: 0 | CV93: 0
A94: =Inputs_RNIP!A94 -> Equipment Costs | Insulator (16KN) | B94: =Inputs_RNIP!B94 -> Project Team Input | C94: $Millions | E94: 2026 | F94: 2026 | I94: Substation power transformers | J94: Substations | W94: 0 | X94: 0 | Y94: 0 | Z94: 0 | AA94: 0 | AB94: 0 | AC94: 0 | AD94: 0 | AE94: 0 | AF94: 0 | AG94: 0 | AH94: 0 | AI94: 0 | AJ94: 0 | AK94: 0 | BA94: 0 | BB94: 0 | BC94: 0 | BD94: 0 | BE94: 0 | BF94: 0 | BG94: 0 | BH94: 0 | BI94: 0 | BJ94: 0 | BK94: 0 | BL94: 0 | BM94: 0 | BO94: Substations - Substation power transformers | BX94: 0 | BY94: 0 | BZ94: 0 | CA94: 0 | CB94: 0 | CC94: 0 | CH94: 0 | CL94: 0 | CM94: 0 | CN94: 0 | CO94: 0 | CP94: 0 | CQ94: 0 | CV94: 0
A95: =Inputs_RNIP!A95 -> Equipment Costs | Insulator (16KN) | B95: =Inputs_RNIP!B95 -> Project Team Input | C95: $Millions | E95: 2026 | F95: 2026 | I95: Substation reactive plant | J95: Substations | W95: 0 | X95: 0 | Y95: 0 | Z95: 0 | AA95: 0 | AB95: 0 | AC95: 0 | AD95: 0 | AE95: 0 | AF95: 0 | AG95: 0 | AH95: 0 | AI95: 0 | AJ95: 0 | AK95: 0 | BA95: 0 | BB95: 0 | BC95: 0 | BD95: 0 | BE95: 0 | BF95: 0 | BG95: 0 | BH95: 0 | BI95: 0 | BJ95: 0 | BK95: 0 | BL95: 0 | BM95: 0 | BO95: Substations - Substation reactive plant | BX95: 0 | BY95: 0 | BZ95: 0 | CA95: 0 | CB95: 0 | CC95: 0 | CH95: 0 | CL95: 0 | CM95: 0 | CN95: 0 | CO95: 0 | CP95: 0 | CQ95: 0 | CV95: 0
A96: =Inputs_RNIP!A96 -> Equipment Costs | Insulator (6KN) | B96: =Inputs_RNIP!B96 -> Project Team Input | C96: $Millions | E96: 2026 | F96: 2026 | I96: 0 | J96: Substations | W96: 0 | X96: 0 | Y96: 0 | Z96: 0 | AA96: 0 | AB96: 0 | AC96: 0 | AD96: 0 | AE96: 0 | AF96: 0 | AG96: 0 | AH96: 0 | AI96: 0 | AJ96: 0 | AK96: 0 | BA96: 0 | BB96: 0 | BC96: 0 | BD96: 0 | BE96: 0 | BF96: 0 | BG96: 0 | BH96: 0 | BI96: 0 | BJ96: 0 | BK96: 0 | BL96: 0 | BM96: 0 | BO96: Substations - 0 | BX96: 0 | BY96: 0 | BZ96: 0 | CA96: 0 | CB96: 0 | CC96: 0 | CH96: 0 | CL96: 0 | CM96: 0 | CN96: 0 | CO96: 0 | CP96: 0 | CQ96: 0 | CV96: 0
A97: =Inputs_RNIP!A97 -> Equipment Costs | Insulator (6KN) | B97: =Inputs_RNIP!B97 -> Project Team Input | C97: $Millions | E97: 2026 | F97: 2026 | I97: Substation switchbays | J97: Substations | W97: 0 | X97: 0 | Y97: 0 | Z97: 0 | AA97: 0 | AB97: 0 | AC97: 0 | AD97: 0 | AE97: 0 | AF97: 0 | AG97: 0 | AH97: 0 | AI97: 0 | AJ97: 0 | AK97: 0 | BA97: 0 | BB97: 0 | BC97: 0 | BD97: 0 | BE97: 0 | BF97: 0 | BG97: 0 | BH97: 0 | BI97: 0 | BJ97: 0 | BK97: 0 | BL97: 0 | BM97: 0 | BO97: Substations - Substation switchbays | BX97: 0 | BY97: 0 | BZ97: 0 | CA97: 0 | CB97: 0 | CC97: 0 | CH97: 0 | CL97: 0 | CM97: 0 | CN97: 0 | CO97: 0 | CP97: 0 | CQ97: 0 | CV97: 0
A98: =Inputs_RNIP!A98 -> Equipment Costs | Insulator (6KN) | B98: =Inputs_RNIP!B98 -> Project Team Input | C98: $Millions | E98: 2026 | F98: 2026 | I98: Substation power transformers | J98: Substations | W98: 0 | X98: 0 | Y98: 0 | Z98: 0 | AA98: 0 | AB98: 0 | AC98: 0 | AD98: 0 | AE98: 0 | AF98: 0 | AG98: 0 | AH98: 0 | AI98: 0 | AJ98: 0 | AK98: 0 | BA98: 0 | BB98: 0 | BC98: 0 | BD98: 0 | BE98: 0 | BF98: 0 | BG98: 0 | BH98: 0 | BI98: 0 | BJ98: 0 | BK98: 0 | BL98: 0 | BM98: 0 | BO98: Substations - Substation power transformers | BX98: 0 | BY98: 0 | BZ98: 0 | CA98: 0 | CB98: 0 | CC98: 0 | CH98: 0 | CL98: 0 | CM98: 0 | CN98: 0 | CO98: 0 | CP98: 0 | CQ98: 0 | CV98: 0
A99: =Inputs_RNIP!A99 -> Equipment Costs | Insulator (6KN) | B99: =Inputs_RNIP!B99 -> Project Team Input | C99: $Millions | E99: 2026 | F99: 2026 | I99: Substation reactive plant | J99: Substations | W99: 0 | X99: 0 | Y99: 0 | Z99: 0 | AA99: 0 | AB99: 0 | AC99: 0 | AD99: 0 | AE99: 0 | AF99: 0 | AG99: 0 | AH99: 0 | AI99: 0 | AJ99: 0 | AK99: 0 | BA99: 0 | BB99: 0 | BC99: 0 | BD99: 0 | BE99: 0 | BF99: 0 | BG99: 0 | BH99: 0 | BI99: 0 | BJ99: 0 | BK99: 0 | BL99: 0 | BM99: 0 | BO99: Substations - Substation reactive plant | BX99: 0 | BY99: 0 | BZ99: 0 | CA99: 0 | CB99: 0 | CC99: 0 | CH99: 0 | CL99: 0 | CM99: 0 | CN99: 0 | CO99: 0 | CP99: 0 | CQ99: 0 | CV99: 0
A100: =Inputs_RNIP!A100 -> Equipment Costs | Insulator (6KN) (UH) | B100: =Inputs_RNIP!B100 -> Project Team Input | C100: $Millions | E100: 2026 | F100: 2026 | I100: 0 | J100: Substations | W100: 0 | X100: 0 | Y100: 0 | Z100: 0 | AA100: 0 | AB100: 0 | AC100: 0 | AD100: 0 | AE100: 0 | AF100: 0 | AG100: 0 | AH100: 0 | AI100: 0 | AJ100: 0 | AK100: 0 | BA100: 0 | BB100: 0 | BC100: 0 | BD100: 0 | BE100: 0 | BF100: 0 | BG100: 0 | BH100: 0 | BI100: 0 | BJ100: 0 | BK100: 0 | BL100: 0 | BM100: 0 | BO100: Substations - 0 | BX100: 0 | BY100: 0 | BZ100: 0 | CA100: 0 | CB100: 0 | CC100: 0 | CH100: 0 | CL100: 0 | CM100: 0 | CN100: 0 | CO100: 0 | CP100: 0 | CQ100: 0 | CV100: 0
A101: =Inputs_RNIP!A101 -> Equipment Costs | Insulator (6KN) (UH) | B101: =Inputs_RNIP!B101 -> Project Team Input | C101: $Millions | E101: 2026 | F101: 2026 | I101: Substation switchbays | J101: Substations | W101: 0 | X101: 0 | Y101: 0 | Z101: 0 | AA101: 0 | AB101: 0 | AC101: 0 | AD101: 0 | AE101: 0 | AF101: 0 | AG101: 0 | AH101: 0 | AI101: 0 | AJ101: 0 | AK101: 0 | BA101: 0 | BB101: 0 | BC101: 0 | BD101: 0 | BE101: 0 | BF101: 0 | BG101: 0 | BH101: 0 | BI101: 0 | BJ101: 0 | BK101: 0 | BL101: 0 | BM101: 0 | BO101: Substations - Substation switchbays | BX101: 0 | BY101: 0 | BZ101: 0 | CA101: 0 | CB101: 0 | CC101: 0 | CH101: 0 | CL101: 0 | CM101: 0 | CN101: 0 | CO101: 0 | CP101: 0 | CQ101: 0 | CV101: 0
A102: =Inputs_RNIP!A102 -> Equipment Costs | Insulator (6KN) (UH) | B102: =Inputs_RNIP!B102 -> Project Team Input | C102: $Millions | E102: 2026 | F102: 2026 | I102: Substation power transformers | J102: Substations | W102: 0 | X102: 0 | Y102: 0 | Z102: 0 | AA102: 0 | AB102: 0 | AC102: 0 | AD102: 0 | AE102: 0 | AF102: 0 | AG102: 0 | AH102: 0 | AI102: 0 | AJ102: 0 | AK102: 0 | BA102: 0 | BB102: 0 | BC102: 0 | BD102: 0 | BE102: 0 | BF102: 0 | BG102: 0 | BH102: 0 | BI102: 0 | BJ102: 0 | BK102: 0 | BL102: 0 | BM102: 0 | BO102: Substations - Substation power transformers | BX102: 0 | BY102: 0 | BZ102: 0 | CA102: 0 | CB102: 0 | CC102: 0 | CH102: 0 | CL102: 0 | CM102: 0 | CN102: 0 | CO102: 0 | CP102: 0 | CQ102: 0 | CV102: 0
A103: =Inputs_RNIP!A103 -> Equipment Costs | Insulator (6KN) (UH) | B103: =Inputs_RNIP!B103 -> Project Team Input | C103: $Millions | E103: 2026 | F103: 2026 | I103: Substation reactive plant | J103: Substations | W103: 0 | X103: 0 | Y103: 0 | Z103: 0 | AA103: 0 | AB103: 0 | AC103: 0 | AD103: 0 | AE103: 0 | AF103: 0 | AG103: 0 | AH103: 0 | AI103: 0 | AJ103: 0 | AK103: 0 | BA103: 0 | BB103: 0 | BC103: 0 | BD103: 0 | BE103: 0 | BF103: 0 | BG103: 0 | BH103: 0 | BI103: 0 | BJ103: 0 | BK103: 0 | BL103: 0 | BM103: 0 | BO103: Substations - Substation reactive plant | BX103: 0 | BY103: 0 | BZ103: 0 | CA103: 0 | CB103: 0 | CC103: 0 | CH103: 0 | CL103: 0 | CM103: 0 | CN103: 0 | CO103: 0 | CP103: 0 | CQ103: 0 | CV103: 0
BO104: -
A105: Land and Environment | BO105: -
A106: =Inputs_RNIP!A106 -> Property Costs | Easements - Augmentation | B106: =Inputs_RNIP!B106 -> Project Team Input | C106: $Millions | E106: 2026 | F106: 2026 | I106: Other | J106: Land & Easements | W106: 0 | X106: 0 | Y106: 0 | Z106: 0 | AA106: 0 | AB106: 0 | AC106: 0 | AD106: 0 | AE106: 0 | AF106: 0 | AG106: 0 | AH106: 0 | AI106: 0 | AJ106: 0 | AK106: 0 | BA106: 0 | BB106: 0 | BC106: 0 | BD106: 0 | BE106: 0 | BF106: 0 | BG106: 0 | BH106: 0 | BI106: 0 | BJ106: 0 | BK106: 0 | BL106: 0 | BM106: 0 | BO106: Land & Easements - Other | BX106: 0 | BY106: 0 | BZ106: 0 | CA106: 0 | CB106: 0 | CC106: 0 | CH106: 0 | CL106: 0 | CM106: 0 | CN106: 0 | CO106: 0 | CP106: 0 | CQ106: 0 | CV106: 0
A107: =Inputs_RNIP!A107 -> Property Costs | Easements - Transposition | B107: =Inputs_RNIP!B107 -> Project Team Input | C107: $Millions | E107: 2026 | F107: 2026 | I107: Other | J107: Land & Easements | W107: 0 | X107: 0 | Y107: 0 | Z107: 0 | AA107: 0 | AB107: 0 | AC107: 0 | AD107: 0 | AE107: 0 | AF107: 0 | AG107: 0 | AH107: 0 | AI107: 0 | AJ107: 0 | AK107: 0 | BA107: 0 | BB107: 0 | BC107: 0 | BD107: 0 | BE107: 0 | BF107: 0 | BG107: 0 | BH107: 0 | BI107: 0 | BJ107: 0 | BK107: 0 | BL107: 0 | BM107: 0 | BO107: Land & Easements - Other | BX107: 0 | BY107: 0 | BZ107: 0 | CA107: 0 | CB107: 0 | CC107: 0 | CH107: 0 | CL107: 0 | CM107: 0 | CN107: 0 | CO107: 0 | CP107: 0 | CQ107: 0 | CV107: 0
A108: =Inputs_RNIP!A108 -> Environment | Biodiversity Offsets | B108: =Inputs_RNIP!B108 -> Project Team Input | C108: $Millions | E108: 2026 | F108: 2026 | I108: Biodiversity Offsets | J108: Biodiversity offsets - Stewardship sites | W108: 0 | X108: 0 | Y108: 0 | Z108: 0 | AA108: 0 | AB108: 0 | AC108: 0 | AD108: 0 | AE108: 0 | AF108: 0 | AG108: 0 | AH108: 0 | AI108: 0 | AJ108: 0 | AK108: 0 | BA108: 0 | BB108: 0 | BC108: 0 | BD108: 0 | BE108: 0 | BF108: 0 | BG108: 0 | BH108: 0 | BI108: 0 | BJ108: 0 | BK108: 0 | BL108: 0 | BM108: 0 | BO108: Biodiversity offsets - Stewardship sites - Biodiversity Offsets | BX108: 0 | BY108: 0 | BZ108: 0 | CA108: 0 | CB108: 0 | CC108: 0 | CH108: 0 | CL108: 0 | CM108: 0 | CN108: 0 | CO108: 0 | CP108: 0 | CQ108: 0 | CV108: 0
A109: =Inputs_RNIP!A109 -> Environment | Biodiversity Offsets | B109: =Inputs_RNIP!B109 -> Project Team Input | C109: $Millions | E109: 2026 | F109: 2026 | I109: Biodiversity Offsets | J109: Biodiversity offsets - Direct payments & Other costs | W109: 0 | X109: 0 | Y109: 0 | Z109: 0 | AA109: 0 | AB109: 0 | AC109: 0 | AD109: 0 | AE109: 0 | AF109: 0 | AG109: 0 | AH109: 0 | AI109: 0 | AJ109: 0 | AK109: 0 | BA109: 0 | BB109: 0 | BC109: 0 | BD109: 0 | BE109: 0 | BF109: 0 | BG109: 0 | BH109: 0 | BI109: 0 | BJ109: 0 | BK109: 0 | BL109: 0 | BM109: 0 | BO109: Biodiversity offsets - Direct payments & Other costs - Biodiversity Offsets | BX109: 0 | BY109: 0 | BZ109: 0 | CA109: 0 | CB109: 0 | CC109: 0 | CH109: 0 | CL109: 0 | CM109: 0 | CN109: 0 | CO109: 0 | CP109: 0 | CQ109: 0 | CV109: 0
A110: Other construction costs | BO110: -
A111: =Inputs_RNIP!A111 -> Infrastructure Planner Fee - Other | B111: =Inputs_RNIP!B111 -> Commercial Team Input | C111: $Millions | E111: Nominal | F111: 2026 | I111: Transmission towers | J111: Transmission Lines | W111: 0 | X111: 0 | Y111: 0 | Z111: 0 | AA111: 0 | AB111: 0 | AC111: 0 | AD111: 0 | AE111: 0 | AF111: 0 | AG111: 0 | AH111: 0 | AI111: 0 | AJ111: 0 | AK111: 0 | BA111: 0 | BB111: 0 | BC111: 0 | BD111: 0 | BE111: 0 | BF111: 0 | BG111: 0 | BH111: 0 | BI111: 0 | BJ111: 0 | BK111: 0 | BL111: 0 | BM111: 0 | BO111: Transmission Lines - Transmission towers | BX111: 0 | BY111: 0 | BZ111: 0 | CA111: 0 | CB111: 0 | CC111: 0 | CH111: 0 | CL111: 0 | CM111: 0 | CN111: 0 | CO111: 0 | CP111: 0 | CQ111: 0 | CV111: 0
A112: =Inputs_RNIP!A112 -> Infrastructure Planner Fee - Other | B112: =Inputs_RNIP!B112 -> Commercial Team Input | C112: $Millions | E112: Nominal | F112: 2026 | I112: Substation switchbays | J112: Substations | W112: 0 | X112: 0 | Y112: 0 | Z112: 0 | AA112: 0 | AB112: 0 | AC112: 0 | AD112: 0 | AE112: 0 | AF112: 0 | AG112: 0 | AH112: 0 | AI112: 0 | AJ112: 0 | AK112: 0 | BA112: 0 | BB112: 0 | BC112: 0 | BD112: 0 | BE112: 0 | BF112: 0 | BG112: 0 | BH112: 0 | BI112: 0 | BJ112: 0 | BK112: 0 | BL112: 0 | BM112: 0 | BO112: Substations - Substation switchbays | BX112: 0 | BY112: 0 | BZ112: 0 | CA112: 0 | CB112: 0 | CC112: 0 | CH112: 0 | CL112: 0 | CM112: 0 | CN112: 0 | CO112: 0 | CP112: 0 | CQ112: 0 | CV112: 0
A113: =Inputs_RNIP!A113 -> Infrastructure Planner Fee - Other | B113: =Inputs_RNIP!B113 -> Commercial Team Input | C113: $Millions | E113: Nominal | F113: 2026 | I113: Biodiversity Offsets | J113: Biodiversity offsets - Stewardship sites | W113: 0 | X113: 0 | Y113: 0 | Z113: 0 | AA113: 0 | AB113: 0 | AC113: 0 | AD113: 0 | AE113: 0 | AF113: 0 | AG113: 0 | AH113: 0 | AI113: 0 | AJ113: 0 | AK113: 0 | BA113: 0 | BB113: 0 | BC113: 0 | BD113: 0 | BE113: 0 | BF113: 0 | BG113: 0 | BH113: 0 | BI113: 0 | BJ113: 0 | BK113: 0 | BL113: 0 | BM113: 0 | BO113: Biodiversity offsets - Stewardship sites - Biodiversity Offsets | BX113: 0 | BY113: 0 | BZ113: 0 | CA113: 0 | CB113: 0 | CC113: 0 | CH113: 0 | CL113: 0 | CM113: 0 | CN113: 0 | CO113: 0 | CP113: 0 | CQ113: 0 | CV113: 0
A114: =Inputs_RNIP!A114 -> Infrastructure Planner Fee - Other | B114: =Inputs_RNIP!B114 -> Commercial Team Input | C114: $Millions | E114: Nominal | F114: 2026 | I114: Biodiversity Offsets | J114: Biodiversity offsets - Direct payments & Other costs | W114: 0 | X114: 0 | Y114: 0 | Z114: 0 | AA114: 0 | AB114: 0 | AC114: 0 | AD114: 0 | AE114: 0 | AF114: 0 | AG114: 0 | AH114: 0 | AI114: 0 | AJ114: 0 | AK114: 0 | BA114: 0 | BB114: 0 | BC114: 0 | BD114: 0 | BE114: 0 | BF114: 0 | BG114: 0 | BH114: 0 | BI114: 0 | BJ114: 0 | BK114: 0 | BL114: 0 | BM114: 0 | BO114: Biodiversity offsets - Direct payments & Other costs - Biodiversity Offsets | BX114: 0 | BY114: 0 | BZ114: 0 | CA114: 0 | CB114: 0 | CC114: 0 | CH114: 0 | CL114: 0 | CM114: 0 | CN114: 0 | CO114: 0 | CP114: 0 | CQ114: 0 | CV114: 0
A115: =Inputs_RNIP!A115 -> Infrastructure Planner Fee - Other | B115: =Inputs_RNIP!B115 -> Commercial Team Input | C115: $Millions | E115: Nominal | F115: 2026 | I115: SCADA, network control and protection systems | J115: Secondary System | W115: 0 | X115: 0 | Y115: 0 | Z115: 0 | AA115: 0 | AB115: 0 | AC115: 0 | AD115: 0 | AE115: 0 | AF115: 0 | AG115: 0 | AH115: 0 | AI115: 0 | AJ115: 0 | AK115: 0 | BA115: 0 | BB115: 0 | BC115: 0 | BD115: 0 | BE115: 0 | BF115: 0 | BG115: 0 | BH115: 0 | BI115: 0 | BJ115: 0 | BK115: 0 | BL115: 0 | BM115: 0 | BO115: Secondary System - SCADA, network control and protection systems | BX115: 0 | BY115: 0 | BZ115: 0 | CA115: 0 | CB115: 0 | CC115: 0 | CH115: 0 | CL115: 0 | CM115: 0 | CN115: 0 | CO115: 0 | CP115: 0 | CQ115: 0 | CV115: 0
A116: =Inputs_RNIP!A116 -> Risk | Other Construction Cost | B116: =Inputs_RNIP!B116 -> Project Team Input | C116: $Millions | E116: Nominal | F116: 2026 | I116: 0 | J116: Transmission Lines | W116: 0 | X116: 0 | Y116: 0 | Z116: 0 | AA116: 0 | AB116: 0 | AC116: 0 | AD116: 0 | AE116: 0 | AF116: 0 | AG116: 0 | AH116: 0 | AI116: 0 | AJ116: 0 | AK116: 0 | BA116: 0 | BB116: 0 | BC116: 0 | BD116: 0 | BE116: 0 | BF116: 0 | BG116: 0 | BH116: 0 | BI116: 0 | BJ116: 0 | BK116: 0 | BL116: 0 | BM116: 0 | BO116: Transmission Lines - 0 | BX116: 0 | BY116: 0 | BZ116: 0 | CA116: 0 | CB116: 0 | CC116: 0 | CH116: 0 | CL116: 0 | CM116: 0 | CN116: 0 | CO116: 0 | CP116: 0 | CQ116: 0 | CV116: 0
A117: =Inputs_RNIP!A117 -> Risk | Other Construction Cost | B117: =Inputs_RNIP!B117 -> Project Team Input | C117: $Millions | E117: Nominal | F117: 2026 | I117: Transmission towers | J117: Transmission Lines | W117: 0 | X117: 0 | Y117: 0 | Z117: 0 | AA117: 0 | AB117: 0 | AC117: 0 | AD117: 0 | AE117: 0 | AF117: 0 | AG117: 0 | AH117: 0 | AI117: 0 | AJ117: 0 | AK117: 0 | BA117: 0 | BB117: 0 | BC117: 0 | BD117: 0 | BE117: 0 | BF117: 0 | BG117: 0 | BH117: 0 | BI117: 0 | BJ117: 0 | BK117: 0 | BL117: 0 | BM117: 0 | BO117: Transmission Lines - Transmission towers | BX117: 0 | BY117: 0 | BZ117: 0 | CA117: 0 | CB117: 0 | CC117: 0 | CH117: 0 | CL117: 0 | CM117: 0 | CN117: 0 | CO117: 0 | CP117: 0 | CQ117: 0 | CV117: 0
A118: =Inputs_RNIP!A118 -> Risk | Other Construction Cost | B118: =Inputs_RNIP!B118 -> Project Team Input | C118: $Millions | E118: Nominal | F118: 2026 | I118: Transmission tower support structures | J118: Transmission Lines | W118: 0 | X118: 0 | Y118: 0 | Z118: 0 | AA118: 0 | AB118: 0 | AC118: 0 | AD118: 0 | AE118: 0 | AF118: 0 | AG118: 0 | AH118: 0 | AI118: 0 | AJ118: 0 | AK118: 0 | BA118: 0 | BB118: 0 | BC118: 0 | BD118: 0 | BE118: 0 | BF118: 0 | BG118: 0 | BH118: 0 | BI118: 0 | BJ118: 0 | BK118: 0 | BL118: 0 | BM118: 0 | BO118: Transmission Lines - Transmission tower support structures | BX118: 0 | BY118: 0 | BZ118: 0 | CA118: 0 | CB118: 0 | CC118: 0 | CH118: 0 | CL118: 0 | CM118: 0 | CN118: 0 | CO118: 0 | CP118: 0 | CQ118: 0 | CV118: 0
A119: =Inputs_RNIP!A119 -> Risk | Other Construction Cost | B119: =Inputs_RNIP!B119 -> Project Team Input | C119: $Millions | E119: Nominal | F119: 2026 | I119: Conductors | J119: Transmission Lines | W119: 0 | X119: 0 | Y119: 0 | Z119: 0 | AA119: 0 | AB119: 0 | AC119: 0 | AD119: 0 | AE119: 0 | AF119: 0 | AG119: 0 | AH119: 0 | AI119: 0 | AJ119: 0 | AK119: 0 | BA119: 0 | BB119: 0 | BC119: 0 | BD119: 0 | BE119: 0 | BF119: 0 | BG119: 0 | BH119: 0 | BI119: 0 | BJ119: 0 | BK119: 0 | BL119: 0 | BM119: 0 | BO119: Transmission Lines - Conductors | BX119: 0 | BY119: 0 | BZ119: 0 | CA119: 0 | CB119: 0 | CC119: 0 | CH119: 0 | CL119: 0 | CM119: 0 | CN119: 0 | CO119: 0 | CP119: 0 | CQ119: 0 | CV119: 0
A120: =Inputs_RNIP!A120 -> Risk | Other Construction Cost | B120: =Inputs_RNIP!B120 -> Project Team Input | C120: $Millions | E120: Nominal | F120: 2026 | I120: Substation switchbays | J120: Substations | W120: 0 | X120: 0 | Y120: 0 | Z120: 0 | AA120: 0 | AB120: 0 | AC120: 0 | AD120: 0 | AE120: 0 | AF120: 0 | AG120: 0 | AH120: 0 | AI120: 0 | AJ120: 0 | AK120: 0 | BA120: 0 | BB120: 0 | BC120: 0 | BD120: 0 | BE120: 0 | BF120: 0 | BG120: 0 | BH120: 0 | BI120: 0 | BJ120: 0 | BK120: 0 | BL120: 0 | BM120: 0 | BO120: Substations - Substation switchbays | BX120: 0 | BY120: 0 | BZ120: 0 | CA120: 0 | CB120: 0 | CC120: 0 | CH120: 0 | CL120: 0 | CM120: 0 | CN120: 0 | CO120: 0 | CP120: 0 | CQ120: 0 | CV120: 0
A121: =Inputs_RNIP!A121 -> Risk | Other Construction Cost | B121: =Inputs_RNIP!B121 -> Project Team Input | C121: $Millions | E121: Nominal | F121: 2026 | I121: Substation power transformers | J121: Substations | W121: 0 | X121: 0 | Y121: 0 | Z121: 0 | AA121: 0 | AB121: 0 | AC121: 0 | AD121: 0 | AE121: 0 | AF121: 0 | AG121: 0 | AH121: 0 | AI121: 0 | AJ121: 0 | AK121: 0 | BA121: 0 | BB121: 0 | BC121: 0 | BD121: 0 | BE121: 0 | BF121: 0 | BG121: 0 | BH121: 0 | BI121: 0 | BJ121: 0 | BK121: 0 | BL121: 0 | BM121: 0 | BO121: Substations - Substation power transformers | BX121: 0 | BY121: 0 | BZ121: 0 | CA121: 0 | CB121: 0 | CC121: 0 | CH121: 0 | CL121: 0 | CM121: 0 | CN121: 0 | CO121: 0 | CP121: 0 | CQ121: 0 | CV121: 0
H123: 0 | I123: ◄ Notional sum with various dollar basis for cross check only | X123: Total Direct Non Labour | Y123: 0 | Z123: 0 | AA123: 0 | AB123: 0 | AC123: 0 | AD123: 0 | AE123: 0 | AF123: 0 | AG123: 0 | AH123: 0 | AI123: 0 | AJ123: 0 | AK123: 0 | BA123: 0 | BB123: 0 | BC123: 0 | BD123: 0 | BE123: 0 | BF123: 0 | BG123: 0 | BH123: 0 | BI123: 0 | BJ123: 0 | BK123: 0 | BL123: 0 | BM123: 0 | BQ123: 0 | BR123: 0 | BS123: 0 | BT123: 0 | BV123: 0 | BW123: 0 | BX123: 0 | BY123: 0 | BZ123: 0 | CA123: 0 | CB123: 0 | CC123: 0 | CD123: 0 | CE123: 0 | CF123: 0 | CG123: 0 | CH123: 0 | CJ123: 0 | CK123: 0 | CL123: 0 | CM123: 0 | CN123: 0 | CO123: 0 | CP123: 0 | CQ123: 0 | CR123: 0 | CS123: 0 | CT123: 0 | CU123: 0 | CV123: 0
W124: =IF(SUM(X39:X121)=0,0,1) -> 0
A125: Direct Non-Labour Costs | By Capex Category | Y125: Expenditure by Cost Category - As incurred (June 2026 dollars) - with 100% of IPF in 2026-27 | BA125: Expenditure - As Commissioned - by Cost Category (June 2026 dollars)
A126: Category | B126: RAB Asset class | C126: Source | D126: Units | Y126: 2020 | Z126: 2021 | AA126: 2022 | AB126: 2023 | AC126: 2024 | AD126: 2025 | AE126: 2026 | AF126: 2027 | AG126: 2028 | AH126: 2029 | AI126: 2030 | AJ126: 2031 | AK126: Total | BA126: 2020 | BB126: 2021 | BC126: 2022 | BD126: 2023 | BE126: 2024 | BF126: 2025 | BG126: 2026 | BH126: 2027 | BI126: 2028 | BJ126: 2029 | BK126: 2030 | BL126: 2031 | BM126: Total
A127: =Inputs_RNIP!A127 -> Transmission Lines - Transmission Towers | B127: =Inputs_RNIP!B127 -> Transmission Lines | C127: Calculated | D127: $Millions | Y127: 0 | Z127: 0 | AA127: 0 | AB127: 0 | AC127: 0 | AD127: 0 | AE127: 0 | AF127: 0 | AG127: 0 | AH127: 0 | AI127: 0 | AJ127: 0 | AK127: 0 | BA127: 0 | BB127: 0 | BC127: 0 | BD127: 0 | BE127: 0 | BF127: 0 | BG127: 0 | BH127: 0 | BI127: 0 | BJ127: 0 | BK127: 0 | BL127: 0 | BM127: 0
A128: =Inputs_RNIP!A128 -> Transmission Lines - Transmission tower support structures | B128: =Inputs_RNIP!B128 -> Transmission Lines | C128: Calculated | D128: $Millions | Y128: 0 | Z128: 0 | AA128: 0 | AB128: 0 | AC128: 0 | AD128: 0 | AE128: 0 | AF128: 0 | AG128: 0 | AH128: 0 | AI128: 0 | AJ128: 0 | AK128: 0 | BA128: 0 | BB128: 0 | BC128: 0 | BD128: 0 | BE128: 0 | BF128: 0 | BG128: 0 | BH128: 0 | BI128: 0 | BJ128: 0 | BK128: 0 | BL128: 0 | BM128: 0
A129: =Inputs_RNIP!A129 -> Transmission Lines - Conductors | B129: =Inputs_RNIP!B129 -> Transmission Lines | C129: Calculated | D129: $Millions | Y129: 0 | Z129: 0 | AA129: 0 | AB129: 0 | AC129: 0 | AD129: 0 | AE129: 0 | AF129: 0 | AG129: 0 | AH129: 0 | AI129: 0 | AJ129: 0 | AK129: 0 | BA129: 0 | BB129: 0 | BC129: 0 | BD129: 0 | BE129: 0 | BF129: 0 | BG129: 0 | BH129: 0 | BI129: 0 | BJ129: 0 | BK129: 0 | BL129: 0 | BM129: 0
A130: =Inputs_RNIP!A130 -> Transmission Lines - Other non network | B130: =Inputs_RNIP!B130 -> Transmission Line Life Extension | C130: Calculated | D130: $Millions | Y130: 0 | Z130: 0 | AA130: 0 | AB130: 0 | AC130: 0 | AD130: 0 | AE130: 0 | AF130: 0 | AG130: 0 | AH130: 0 | AI130: 0 | AJ130: 0 | AK130: 0 | BA130: 0 | BB130: 0 | BC130: 0 | BD130: 0 | BE130: 0 | BF130: 0 | BG130: 0 | BH130: 0 | BI130: 0 | BJ130: 0 | BK130: 0 | BL130: 0 | BM130: 0
A131: =Inputs_RNIP!A131 -> Transmission Lines - Transmission cables | B131: =Inputs_RNIP!B131 -> Underground Cables | C131: Calculated | D131: $Millions | Y131: 0 | Z131: 0 | AA131: 0 | AB131: 0 | AC131: 0 | AD131: 0 | AE131: 0 | AF131: 0 | AG131: 0 | AH131: 0 | AI131: 0 | AJ131: 0 | AK131: 0 | BA131: 0 | BB131: 0 | BC131: 0 | BD131: 0 | BE131: 0 | BF131: 0 | BG131: 0 | BH131: 0 | BI131: 0 | BJ131: 0 | BK131: 0 | BL131: 0 | BM131: 0
A132: =Inputs_RNIP!A132 -> Substations - Substation switchbays | B132: =Inputs_RNIP!B132 -> Substations | C132: Calculated | D132: $Millions | Y132: 0 | Z132: 0 | AA132: 0 | AB132: 0 | AC132: 0 | AD132: 0 | AE132: 0 | AF132: 0 | AG132: 0 | AH132: 0 | AI132: 0 | AJ132: 0 | AK132: 0 | BA132: 0 | BB132: 0 | BC132: 0 | BD132: 0 | BE132: 0 | BF132: 0 | BG132: 0 | BH132: 0 | BI132: 0 | BJ132: 0 | BK132: 0 | BL132: 0 | BM132: 0
A133: =Inputs_RNIP!A133 -> Substations - Substation power transformers | B133: =Inputs_RNIP!B133 -> Substations | C133: Calculated | D133: $Millions | Y133: 0 | Z133: 0 | AA133: 0 | AB133: 0 | AC133: 0 | AD133: 0 | AE133: 0 | AF133: 0 | AG133: 0 | AH133: 0 | AI133: 0 | AJ133: 0 | AK133: 0 | BA133: 0 | BB133: 0 | BC133: 0 | BD133: 0 | BE133: 0 | BF133: 0 | BG133: 0 | BH133: 0 | BI133: 0 | BJ133: 0 | BK133: 0 | BL133: 0 | BM133: 0
A134: =Inputs_RNIP!A134 -> Substations - Substation reactive plant | B134: =Inputs_RNIP!B134 -> Substations | C134: Calculated | D134: $Millions | Y134: 0 | Z134: 0 | AA134: 0 | AB134: 0 | AC134: 0 | AD134: 0 | AE134: 0 | AF134: 0 | AG134: 0 | AH134: 0 | AI134: 0 | AJ134: 0 | AK134: 0 | BA134: 0 | BB134: 0 | BC134: 0 | BD134: 0 | BE134: 0 | BF134: 0 | BG134: 0 | BH134: 0 | BI134: 0 | BJ134: 0 | BK134: 0 | BL134: 0 | BM134: 0
A135: =Inputs_RNIP!A135 -> Secondary System - SCADA, network control and protection systems | B135: =Inputs_RNIP!B135 -> Secondary System | C135: Calculated | D135: $Millions | Y135: 0 | Z135: 0 | AA135: 0 | AB135: 0 | AC135: 0 | AD135: 0 | AE135: 0 | AF135: 0 | AG135: 0 | AH135: 0 | AI135: 0 | AJ135: 0 | AK135: 0 | BA135: 0 | BB135: 0 | BC135: 0 | BD135: 0 | BE135: 0 | BF135: 0 | BG135: 0 | BH135: 0 | BI135: 0 | BJ135: 0 | BK135: 0 | BL135: 0 | BM135: 0
A136: =Inputs_RNIP!A136 -> Communications (short life) - [Spare] | B136: =Inputs_RNIP!B136 -> Communications (short life) | C136: Calculated | D136: $Millions | Y136: 0 | Z136: 0 | AA136: 0 | AB136: 0 | AC136: 0 | AD136: 0 | AE136: 0 | AF136: 0 | AG136: 0 | AH136: 0 | AI136: 0 | AJ136: 0 | AK136: 0 | BA136: 0 | BB136: 0 | BC136: 0 | BD136: 0 | BE136: 0 | BF136: 0 | BG136: 0 | BH136: 0 | BI136: 0 | BJ136: 0 | BK136: 0 | BL136: 0 | BM136: 0
A137: =Inputs_RNIP!A137 -> SIPS Control - [Spare] | B137: =Inputs_RNIP!B137 -> SIPS Control | C137: Calculated | D137: $Millions | Y137: 0 | Z137: 0 | AA137: 0 | AB137: 0 | AC137: 0 | AD137: 0 | AE137: 0 | AF137: 0 | AG137: 0 | AH137: 0 | AI137: 0 | AJ137: 0 | AK137: 0 | BA137: 0 | BB137: 0 | BC137: 0 | BD137: 0 | BE137: 0 | BF137: 0 | BG137: 0 | BH137: 0 | BI137: 0 | BJ137: 0 | BK137: 0 | BL137: 0 | BM137: 0
A138: =Inputs_RNIP!A138 -> Synchronous condensers - [Spare] | B138: =Inputs_RNIP!B138 -> Synchronous Condensers | C138: Calculated | D138: $Millions | Y138: 0 | Z138: 0 | AA138: 0 | AB138: 0 | AC138: 0 | AD138: 0 | AE138: 0 | AF138: 0 | AG138: 0 | AH138: 0 | AI138: 0 | AJ138: 0 | AK138: 0 | BA138: 0 | BB138: 0 | BC138: 0 | BD138: 0 | BE138: 0 | BF138: 0 | BG138: 0 | BH138: 0 | BI138: 0 | BJ138: 0 | BK138: 0 | BL138: 0 | BM138: 0
A139: =Inputs_RNIP!A139 -> Leasehold Land and Property - Other | B139: =Inputs_RNIP!B139 -> Leasehold Land and Property | C139: Calculated | D139: $Millions | Y139: 0 | Z139: 0 | AA139: 0 | AB139: 0 | AC139: 0 | AD139: 0 | AE139: 0 | AF139: 0 | AG139: 0 | AH139: 0 | AI139: 0 | AJ139: 0 | AK139: 0 | BA139: 0 | BB139: 0 | BC139: 0 | BD139: 0 | BE139: 0 | BF139: 0 | BG139: 0 | BH139: 0 | BI139: 0 | BJ139: 0 | BK139: 0 | BL139: 0 | BM139: 0
A140: =Inputs_RNIP!A140 -> Biodiversity offsets - Stewardship sites - Biodiversity Offsets | B140: =Inputs_RNIP!B140 -> Biodiversity offsets - Stewardship sites | C140: Calculated | D140: $Millions | Y140: 0 | Z140: 0 | AA140: 0 | AB140: 0 | AC140: 0 | AD140: 0 | AE140: 0 | AF140: 0 | AG140: 0 | AH140: 0 | AI140: 0 | AJ140: 0 | AK140: 0 | BA140: 0 | BB140: 0 | BC140: 0 | BD140: 0 | BE140: 0 | BF140: 0 | BG140: 0 | BH140: 0 | BI140: 0 | BJ140: 0 | BK140: 0 | BL140: 0 | BM140: 0
A141: =Inputs_RNIP!A141 -> Biodiversity offsets - Direct payments & Other costs - Biodiversity Offsets | B141: =Inputs_RNIP!B141 -> Biodiversity offsets - Direct payments & Other costs | C141: Calculated | D141: $Millions | Y141: 0 | Z141: 0 | AA141: 0 | AB141: 0 | AC141: 0 | AD141: 0 | AE141: 0 | AF141: 0 | AG141: 0 | AH141: 0 | AI141: 0 | AJ141: 0 | AK141: 0 | BA141: 0 | BB141: 0 | BC141: 0 | BD141: 0 | BE141: 0 | BF141: 0 | BG141: 0 | BH141: 0 | BI141: 0 | BJ141: 0 | BK141: 0 | BL141: 0 | BM141: 0
A142: =Inputs_RNIP!A142 -> Land & Easements - Other | B142: =Inputs_RNIP!B142 -> Land & Easements | C142: Calculated | D142: $Millions | Y142: 0 | Z142: 0 | AA142: 0 | AB142: 0 | AC142: 0 | AD142: 0 | AE142: 0 | AF142: 0 | AG142: 0 | AH142: 0 | AI142: 0 | AJ142: 0 | AK142: 0 | BA142: 0 | BB142: 0 | BC142: 0 | BD142: 0 | BE142: 0 | BF142: 0 | BG142: 0 | BH142: 0 | BI142: 0 | BJ142: 0 | BK142: 0 | BL142: 0 | BM142: 0
A143: =Inputs_RNIP!A143 -> Buildings - capital works - Buildings and Property | B143: =Inputs_RNIP!B143 -> Buildings - capital works | C143: Calculated | D143: $Millions | Y143: 0 | Z143: 0 | AA143: 0 | AB143: 0 | AC143: 0 | AD143: 0 | AE143: 0 | AF143: 0 | AG143: 0 | AH143: 0 | AI143: 0 | AJ143: 0 | AK143: 0 | BA143: 0 | BB143: 0 | BC143: 0 | BD143: 0 | BE143: 0 | BF143: 0 | BG143: 0 | BH143: 0 | BI143: 0 | BJ143: 0 | BK143: 0 | BL143: 0 | BM143: 0
A144: =Inputs_RNIP!A144 -> Non-network - Business IT | B144: =Inputs_RNIP!B144 -> Business IT | C144: Calculated | D144: $Millions | Y144: 0 | Z144: 0 | AA144: 0 | AB144: 0 | AC144: 0 | AD144: 0 | AE144: 0 | AF144: 0 | AG144: 0 | AH144: 0 | AI144: 0 | AJ144: 0 | AK144: 0 | BA144: 0 | BB144: 0 | BC144: 0 | BD144: 0 | BE144: 0 | BF144: 0 | BG144: 0 | BH144: 0 | BI144: 0 | BJ144: 0 | BK144: 0 | BL144: 0 | BM144: 0
A145: =Inputs_RNIP!A145 -> Non-network - Minor Plant, Motor Vehicles & Mobile Plant | B145: =Inputs_RNIP!B145 -> Minor Plant, Motor Vehicles & Mobile Plant | C145: Calculated | D145: $Millions | Y145: 0 | Z145: 0 | AA145: 0 | AB145: 0 | AC145: 0 | AD145: 0 | AE145: 0 | AF145: 0 | AG145: 0 | AH145: 0 | AI145: 0 | AJ145: 0 | AK145: 0 | BA145: 0 | BB145: 0 | BC145: 0 | BD145: 0 | BE145: 0 | BF145: 0 | BG145: 0 | BH145: 0 | BI145: 0 | BJ145: 0 | BK145: 0 | BL145: 0 | BM145: 0
A146: =Inputs_RNIP!A146 -> Non-network - Buildings | B146: =Inputs_RNIP!B146 -> Buildings - capital works | C146: Calculated | D146: $Millions | Y146: 0 | Z146: 0 | AA146: 0 | AB146: 0 | AC146: 0 | AD146: 0 | AE146: 0 | AF146: 0 | AG146: 0 | AH146: 0 | AI146: 0 | AJ146: 0 | AK146: 0 | BA146: 0 | BB146: 0 | BC146: 0 | BD146: 0 | BE146: 0 | BF146: 0 | BG146: 0 | BH146: 0 | BI146: 0 | BJ146: 0 | BK146: 0 | BL146: 0 | BM146: 0
A147: =Inputs_RNIP!A147 -> Non-network - In-house software | B147: =Inputs_RNIP!B147 -> In-house software | C147: Calculated | D147: $Millions | Y147: 0 | Z147: 0 | AA147: 0 | AB147: 0 | AC147: 0 | AD147: 0 | AE147: 0 | AF147: 0 | AG147: 0 | AH147: 0 | AI147: 0 | AJ147: 0 | AK147: 0 | BA147: 0 | BB147: 0 | BC147: 0 | BD147: 0 | BE147: 0 | BF147: 0 | BG147: 0 | BH147: 0 | BI147: 0 | BJ147: 0 | BK147: 0 | BL147: 0 | BM147: 0
X149: Total Direct Non Labour | Y149: 0 | Z149: 0 | AA149: 0 | AB149: 0 | AC149: 0 | AD149: 0 | AE149: 0 | AF149: 0 | AG149: 0 | AH149: 0 | AI149: 0 | AJ149: 0 | AK149: 0 | BA149: 0 | BB149: 0 | BC149: 0 | BD149: 0 | BE149: 0 | BF149: 0 | BG149: 0 | BH149: 0 | BI149: 0 | BJ149: 0 | BK149: 0 | BL149: 0 | BM149: 0
Y150: =IF(ROUND(Y149-Y123,3)=0,0,1) -> 0 | Z150: =IF(ROUND(Z149-Z123,3)=0,0,1) -> 0 | AA150: 0 | AB150: 0 | AC150: 0 | AD150: 0 | AE150: 0 | AF150: 0 | AG150: 0 | AH150: =IF(ROUND(AH149-AH123,3)=0,0,1) -> 0 | AI150: =IF(ROUND(AI149-AI123,3)=0,0,1) -> 0 | AJ150: =IF(ROUND(AJ149-AJ123,3)=0,0,1) -> 0 | AK150: 0 | BA150: =IF(ROUND(BA149-BA123,3)=0,0,1) -> 0 | BB150: =IF(ROUND(BB149-BB123,3)=0,0,1) -> 0 | BC150: 0 | BD150: 0 | BE150: 0 | BF150: 0 | BG150: 0 | BH150: 0 | BI150: 0 | BJ150: =IF(ROUND(BJ149-BJ123,3)=0,0,1) -> 0 | BK150: =IF(ROUND(BK149-BK123,3)=0,0,1) -> 0 | BL150: =IF(ROUND(BL149-BL123,3)=0,0,1) -> 0 | BM150: =IF(ROUND(BM149-BM123,3)=0,0,1) -> 0
A152: Labour Costs - Direct Labour and Direct Labour Related
A154: Labour Costs | E154: Conversion | H154: Mapping | K154: ="Direct Labour and Direct Labour Related Costs (June "&E169&" dollars, unescalated)" -> Direct Labour and Direct Labour Related Costs (June 2026 dollars, unescalated)
A155: Component | B155: Source | C155: Units | E155: Dollar Yr | F155: Escalation Yr | K155: =K20 -> 2020 | L155: 2021 | M155: 2022 | N155: 2023 | O155: 2024 | P155: 2025 | Q155: 2026 | R155: 2027 | S155: 2028 | T155: 2029 | U155: 2030 | V155: 2031 | W155: Total | X155: FY27 IPF %
A156: Actuals (to 28 February 2025)
A157: Labour - Project management | B157: =Inputs_RNIP!B157 -> Transgrid | C157: =Inputs_RNIP!C157 -> $Millions | E157: =Inputs_RNIP!E157 -> 2026 | F157: =Inputs_RNIP!F157 -> n/a | M157: =-(1-Adjustments!$C$26)*(Adjustments!$C$8/Adjustments!$C$13)*Inputs_RNIP!M157*Inputs_RNIP!M$235 -> 0 | N157: =-(1-Adjustments!$C$26)*(Adjustments!$C$8/Adjustments!$C$13)*Inputs_RNIP!N157*Inputs_RNIP!N$235 -> 0 | O157: =-(1-Adjustments!$C$26)*(Adjustments!$C$8/Adjustments!$C$13)*Inputs_RNIP!O157*Inputs_RNIP!O$235 -> 0 | P157: =-(1-Adjustments!$C$26)*(Adjustments!$C$8/Adjustments!$C$13)*Inputs_RNIP!P157*Inputs_RNIP!P$235 -> 0 | W157: =SUM(K157:V157) -> 0
A158: Labour - Other support and corporate roles | B158: =Inputs_RNIP!B158 -> Transgrid | C158: =Inputs_RNIP!C158 -> $Millions | E158: =Inputs_RNIP!E158 -> 2026 | F158: =Inputs_RNIP!F158 -> n/a | M158: =-(1-Adjustments!$C$26)*(Adjustments!$C$8/Adjustments!$C$13)*Inputs_RNIP!M158*Inputs_RNIP!M$235 -> 0 | N158: =-(1-Adjustments!$C$26)*(Adjustments!$C$8/Adjustments!$C$13)*Inputs_RNIP!N158*Inputs_RNIP!N$235 -> 0 | O158: =-(1-Adjustments!$C$26)*(Adjustments!$C$8/Adjustments!$C$13)*Inputs_RNIP!O158*Inputs_RNIP!O$235 -> 0 | P158: =-(1-Adjustments!$C$26)*(Adjustments!$C$8/Adjustments!$C$13)*Inputs_RNIP!P158*Inputs_RNIP!P$235 -> 0 | W158: =SUM(K158:V158) -> 0
A159: Labour - Regulatory approvals | B159: =Inputs_RNIP!B159 -> Transgrid | C159: =Inputs_RNIP!C159 -> $Millions | E159: =Inputs_RNIP!E159 -> 2026 | F159: =Inputs_RNIP!F159 -> n/a | M159: =-(1-Adjustments!$C$26)*(Adjustments!$C$8/Adjustments!$C$13)*Inputs_RNIP!M159*Inputs_RNIP!M$235 -> 0 | N159: =-(1-Adjustments!$C$26)*(Adjustments!$C$8/Adjustments!$C$13)*Inputs_RNIP!N159*Inputs_RNIP!N$235 -> 0 | O159: =-(1-Adjustments!$C$26)*(Adjustments!$C$8/Adjustments!$C$13)*Inputs_RNIP!O159*Inputs_RNIP!O$235 -> 0 | P159: =-(1-Adjustments!$C$26)*(Adjustments!$C$8/Adjustments!$C$13)*Inputs_RNIP!P159*Inputs_RNIP!P$235 -> 0 | W159: =SUM(K159:V159) -> 0
A160: Labour - Community and stakeholder engagement | B160: =Inputs_RNIP!B160 -> Transgrid | C160: =Inputs_RNIP!C160 -> $Millions | E160: =Inputs_RNIP!E160 -> 2026 | F160: =Inputs_RNIP!F160 -> n/a | M160: =-(1-Adjustments!$C$26)*(Adjustments!$C$8/Adjustments!$C$13)*Inputs_RNIP!M160*Inputs_RNIP!M$235 -> 0 | N160: =-(1-Adjustments!$C$26)*(Adjustments!$C$8/Adjustments!$C$13)*Inputs_RNIP!N160*Inputs_RNIP!N$235 -> 0 | O160: =-(1-Adjustments!$C$26)*(Adjustments!$C$8/Adjustments!$C$13)*Inputs_RNIP!O160*Inputs_RNIP!O$235 -> 0 | P160: =-(1-Adjustments!$C$26)*(Adjustments!$C$8/Adjustments!$C$13)*Inputs_RNIP!P160*Inputs_RNIP!P$235 -> 0 | W160: 0
A161: Labour - Land and Environment | B161: =Inputs_RNIP!B161 -> Transgrid | C161: =Inputs_RNIP!C161 -> $Millions | E161: =Inputs_RNIP!E161 -> 2026 | F161: =Inputs_RNIP!F161 -> n/a | M161: =-(1-Adjustments!$C$26)*(Adjustments!$C$8/Adjustments!$C$13)*Inputs_RNIP!M161*Inputs_RNIP!M$235 -> 0 | N161: =-(1-Adjustments!$C$26)*(Adjustments!$C$8/Adjustments!$C$13)*Inputs_RNIP!N161*Inputs_RNIP!N$235 -> 0 | O161: =-(1-Adjustments!$C$26)*(Adjustments!$C$8/Adjustments!$C$13)*Inputs_RNIP!O161*Inputs_RNIP!O$235 -> 0 | P161: =-(1-Adjustments!$C$26)*(Adjustments!$C$8/Adjustments!$C$13)*Inputs_RNIP!P161*Inputs_RNIP!P$235 -> 0 | W161: 0
A162: Labour - Transaction Procurement Support | B162: =Inputs_RNIP!B162 -> Transgrid | C162: =Inputs_RNIP!C162 -> $Millions | E162: =Inputs_RNIP!E162 -> 2026 | F162: =Inputs_RNIP!F162 -> n/a | M162: =-(1-Adjustments!$C$26)*(Adjustments!$C$8/Adjustments!$C$13)*Inputs_RNIP!M162*Inputs_RNIP!M$235 -> 0 | N162: =-(1-Adjustments!$C$26)*(Adjustments!$C$8/Adjustments!$C$13)*Inputs_RNIP!N162*Inputs_RNIP!N$235 -> 0 | O162: =-(1-Adjustments!$C$26)*(Adjustments!$C$8/Adjustments!$C$13)*Inputs_RNIP!O162*Inputs_RNIP!O$235 -> 0 | P162: =-(1-Adjustments!$C$26)*(Adjustments!$C$8/Adjustments!$C$13)*Inputs_RNIP!P162*Inputs_RNIP!P$235 -> 0 | W162: 0
A163: Labour - Project Development | B163: =Inputs_RNIP!B163 -> Transgrid | C163: =Inputs_RNIP!C163 -> $Millions | E163: =Inputs_RNIP!E163 -> 2026 | F163: =Inputs_RNIP!F163 -> n/a | M163: =-(1-Adjustments!$C$26)*(Adjustments!$C$8/Adjustments!$C$13)*Inputs_RNIP!M163*Inputs_RNIP!M$235 -> 0 | N163: =-(1-Adjustments!$C$26)*(Adjustments!$C$8/Adjustments!$C$13)*Inputs_RNIP!N163*Inputs_RNIP!N$235 -> 0 | O163: =-(1-Adjustments!$C$26)*(Adjustments!$C$8/Adjustments!$C$13)*Inputs_RNIP!O163*Inputs_RNIP!O$235 -> 0 | P163: =-(1-Adjustments!$C$26)*(Adjustments!$C$8/Adjustments!$C$13)*Inputs_RNIP!P163*Inputs_RNIP!P$235 -> 0 | W163: 0
A164: Labour - Project Controls | B164: =Inputs_RNIP!B164 -> Transgrid | C164: =Inputs_RNIP!C164 -> $Millions | E164: =Inputs_RNIP!E164 -> 2026 | F164: =Inputs_RNIP!F164 -> n/a | M164: =-(1-Adjustments!$C$26)*(Adjustments!$C$8/Adjustments!$C$13)*Inputs_RNIP!M164*Inputs_RNIP!M$235 -> 0 | N164: =-(1-Adjustments!$C$26)*(Adjustments!$C$8/Adjustments!$C$13)*Inputs_RNIP!N164*Inputs_RNIP!N$235 -> 0 | O164: =-(1-Adjustments!$C$26)*(Adjustments!$C$8/Adjustments!$C$13)*Inputs_RNIP!O164*Inputs_RNIP!O$235 -> 0 | P164: =-(1-Adjustments!$C$26)*(Adjustments!$C$8/Adjustments!$C$13)*Inputs_RNIP!P164*Inputs_RNIP!P$235 -> 0 | W164: 0
A165: Labour - Commercial Management | B165: =Inputs_RNIP!B165 -> Transgrid | C165: =Inputs_RNIP!C165 -> $Millions | E165: =Inputs_RNIP!E165 -> 2026 | F165: =Inputs_RNIP!F165 -> n/a | M165: =-(1-Adjustments!$C$26)*(Adjustments!$C$8/Adjustments!$C$13)*Inputs_RNIP!M165*Inputs_RNIP!M$235 -> 0 | N165: =-(1-Adjustments!$C$26)*(Adjustments!$C$8/Adjustments!$C$13)*Inputs_RNIP!N165*Inputs_RNIP!N$235 -> 0 | O165: =-(1-Adjustments!$C$26)*(Adjustments!$C$8/Adjustments!$C$13)*Inputs_RNIP!O165*Inputs_RNIP!O$235 -> 0 | P165: =-(1-Adjustments!$C$26)*(Adjustments!$C$8/Adjustments!$C$13)*Inputs_RNIP!P165*Inputs_RNIP!P$235 -> 0 | W165: 0
A166: Labour - Construction Management | B166: =Inputs_RNIP!B166 -> Transgrid | C166: =Inputs_RNIP!C166 -> $Millions | E166: =Inputs_RNIP!E166 -> 2026 | F166: =Inputs_RNIP!F166 -> n/a | M166: =-(1-Adjustments!$C$26)*(Adjustments!$C$8/Adjustments!$C$13)*Inputs_RNIP!M166*Inputs_RNIP!M$235 -> 0 | N166: =-(1-Adjustments!$C$26)*(Adjustments!$C$8/Adjustments!$C$13)*Inputs_RNIP!N166*Inputs_RNIP!N$235 -> 0 | O166: =-(1-Adjustments!$C$26)*(Adjustments!$C$8/Adjustments!$C$13)*Inputs_RNIP!O166*Inputs_RNIP!O$235 -> 0 | P166: =-(1-Adjustments!$C$26)*(Adjustments!$C$8/Adjustments!$C$13)*Inputs_RNIP!P166*Inputs_RNIP!P$235 -> 0 | W166: 0
M167: =-(1-Adjustments!$C$26)*(Adjustments!$C$8/Adjustments!$C$13)*Inputs_RNIP!M167*Inputs_RNIP!M$235 -> 0 | N167: =-(1-Adjustments!$C$26)*(Adjustments!$C$8/Adjustments!$C$13)*Inputs_RNIP!N167*Inputs_RNIP!N$235 -> 0 | O167: =-(1-Adjustments!$C$26)*(Adjustments!$C$8/Adjustments!$C$13)*Inputs_RNIP!O167*Inputs_RNIP!O$235 -> 0 | P167: =-(1-Adjustments!$C$26)*(Adjustments!$C$8/Adjustments!$C$13)*Inputs_RNIP!P167*Inputs_RNIP!P$235 -> 0 | W167: 0
A168: Forecasts (from 1 March 2025)
A169: =A157 -> Labour - Project management | B169: =Inputs_RNIP!B169 -> Transgrid | C169: =Inputs_RNIP!C169 -> $Millions | E169: =Inputs_RNIP!E169 -> 2026 | F169: =Inputs_RNIP!F169 -> 2026 | P169: =-(1-Adjustments!$C$26)*(Adjustments!$C$8/Adjustments!$C$13)*Inputs_RNIP!P169*Inputs_RNIP!P$235 -> 0 | Q169: =-(1-Adjustments!$C$26)*(Adjustments!$C$8/Adjustments!$C$13)*Inputs_RNIP!Q169*Inputs_RNIP!Q$235 -> 0 | R169: =-(1-Adjustments!$C$26)*(Adjustments!$C$8/Adjustments!$C$13)*Inputs_RNIP!R169*Inputs_RNIP!R$235 -> 0 | S169: =-(1-Adjustments!$C$26)*(Adjustments!$C$8/Adjustments!$C$13)*Inputs_RNIP!S169*Inputs_RNIP!S$235 -> 0 | T169: =-(1-Adjustments!$C$26)*(Adjustments!$C$8/Adjustments!$C$13)*Inputs_RNIP!T169*Inputs_RNIP!T$235 -> 0 | U169: =-(1-Adjustments!$C$26)*(Adjustments!$C$8/Adjustments!$C$13)*Inputs_RNIP!U169*Inputs_RNIP!U$235 -> 0 | W169: =SUM(K169:V169) -> 0
A170: Labour - Other support and corporate roles | B170: =Inputs_RNIP!B170 -> Transgrid | C170: =Inputs_RNIP!C170 -> $Millions | E170: =Inputs_RNIP!E170 -> 2026 | F170: =Inputs_RNIP!F170 -> 2026 | P170: =-(1-Adjustments!$C$26)*(Adjustments!$C$8/Adjustments!$C$13)*Inputs_RNIP!P170*Inputs_RNIP!P$235 -> 0 | Q170: =-(1-Adjustments!$C$26)*(Adjustments!$C$8/Adjustments!$C$13)*Inputs_RNIP!Q170*Inputs_RNIP!Q$235 -> 0 | R170: =-(1-Adjustments!$C$26)*(Adjustments!$C$8/Adjustments!$C$13)*Inputs_RNIP!R170*Inputs_RNIP!R$235 -> 0 | S170: =-(1-Adjustments!$C$26)*(Adjustments!$C$8/Adjustments!$C$13)*Inputs_RNIP!S170*Inputs_RNIP!S$235 -> 0 | T170: =-(1-Adjustments!$C$26)*(Adjustments!$C$8/Adjustments!$C$13)*Inputs_RNIP!T170*Inputs_RNIP!T$235 -> 0 | U170: =-(1-Adjustments!$C$26)*(Adjustments!$C$8/Adjustments!$C$13)*Inputs_RNIP!U170*Inputs_RNIP!U$235 -> 0 | W170: 0
A171: Labour - Regulatory approvals | B171: =Inputs_RNIP!B171 -> Transgrid | C171: =Inputs_RNIP!C171 -> $Millions | E171: =Inputs_RNIP!E171 -> 2026 | F171: =Inputs_RNIP!F171 -> 2026 | P171: =-(1-Adjustments!$C$26)*(Adjustments!$C$8/Adjustments!$C$13)*Inputs_RNIP!P171*Inputs_RNIP!P$235 -> 0 | Q171: =-(1-Adjustments!$C$26)*(Adjustments!$C$8/Adjustments!$C$13)*Inputs_RNIP!Q171*Inputs_RNIP!Q$235 -> 0 | R171: =-(1-Adjustments!$C$26)*(Adjustments!$C$8/Adjustments!$C$13)*Inputs_RNIP!R171*Inputs_RNIP!R$235 -> 0 | S171: =-(1-Adjustments!$C$26)*(Adjustments!$C$8/Adjustments!$C$13)*Inputs_RNIP!S171*Inputs_RNIP!S$235 -> 0 | T171: =-(1-Adjustments!$C$26)*(Adjustments!$C$8/Adjustments!$C$13)*Inputs_RNIP!T171*Inputs_RNIP!T$235 -> 0 | U171: =-(1-Adjustments!$C$26)*(Adjustments!$C$8/Adjustments!$C$13)*Inputs_RNIP!U171*Inputs_RNIP!U$235 -> 0 | W171: 0
A172: Labour - Community and stakeholder engagement | B172: =Inputs_RNIP!B172 -> Transgrid | C172: =Inputs_RNIP!C172 -> $Millions | E172: =Inputs_RNIP!E172 -> 2026 | F172: =Inputs_RNIP!F172 -> 2026 | P172: =-(1-Adjustments!$C$26)*(Adjustments!$C$8/Adjustments!$C$13)*Inputs_RNIP!P172*Inputs_RNIP!P$235 -> 0 | Q172: =-(1-Adjustments!$C$26)*(Adjustments!$C$8/Adjustments!$C$13)*Inputs_RNIP!Q172*Inputs_RNIP!Q$235 -> 0 | R172: =-(1-Adjustments!$C$26)*(Adjustments!$C$8/Adjustments!$C$13)*Inputs_RNIP!R172*Inputs_RNIP!R$235 -> 0 | S172: =-(1-Adjustments!$C$26)*(Adjustments!$C$8/Adjustments!$C$13)*Inputs_RNIP!S172*Inputs_RNIP!S$235 -> 0 | T172: =-(1-Adjustments!$C$26)*(Adjustments!$C$8/Adjustments!$C$13)*Inputs_RNIP!T172*Inputs_RNIP!T$235 -> 0 | U172: =-(1-Adjustments!$C$26)*(Adjustments!$C$8/Adjustments!$C$13)*Inputs_RNIP!U172*Inputs_RNIP!U$235 -> 0 | W172: 0
A173: Labour - Land and Environment | B173: =Inputs_RNIP!B173 -> Transgrid | C173: =Inputs_RNIP!C173 -> $Millions | E173: =Inputs_RNIP!E173 -> 2026 | F173: =Inputs_RNIP!F173 -> 2026 | P173: =-(1-Adjustments!$C$26)*(Adjustments!$C$8/Adjustments!$C$13)*Inputs_RNIP!P173*Inputs_RNIP!P$235 -> 0 | Q173: =-(1-Adjustments!$C$26)*(Adjustments!$C$8/Adjustments!$C$13)*Inputs_RNIP!Q173*Inputs_RNIP!Q$235 -> 0 | R173: =-(1-Adjustments!$C$26)*(Adjustments!$C$8/Adjustments!$C$13)*Inputs_RNIP!R173*Inputs_RNIP!R$235 -> 0 | S173: =-(1-Adjustments!$C$26)*(Adjustments!$C$8/Adjustments!$C$13)*Inputs_RNIP!S173*Inputs_RNIP!S$235 -> 0 | T173: =-(1-Adjustments!$C$26)*(Adjustments!$C$8/Adjustments!$C$13)*Inputs_RNIP!T173*Inputs_RNIP!T$235 -> 0 | U173: =-(1-Adjustments!$C$26)*(Adjustments!$C$8/Adjustments!$C$13)*Inputs_RNIP!U173*Inputs_RNIP!U$235 -> 0 | W173: 0
A174: Labour - Transaction Procurement Support | B174: =Inputs_RNIP!B174 -> Transgrid | C174: =Inputs_RNIP!C174 -> $Millions | E174: =Inputs_RNIP!E174 -> 2026 | F174: =Inputs_RNIP!F174 -> 2026 | P174: =-(1-Adjustments!$C$26)*(Adjustments!$C$8/Adjustments!$C$13)*Inputs_RNIP!P174*Inputs_RNIP!P$235 -> 0 | Q174: =-(1-Adjustments!$C$26)*(Adjustments!$C$8/Adjustments!$C$13)*Inputs_RNIP!Q174*Inputs_RNIP!Q$235 -> 0 | R174: =-(1-Adjustments!$C$26)*(Adjustments!$C$8/Adjustments!$C$13)*Inputs_RNIP!R174*Inputs_RNIP!R$235 -> 0 | S174: =-(1-Adjustments!$C$26)*(Adjustments!$C$8/Adjustments!$C$13)*Inputs_RNIP!S174*Inputs_RNIP!S$235 -> 0 | T174: =-(1-Adjustments!$C$26)*(Adjustments!$C$8/Adjustments!$C$13)*Inputs_RNIP!T174*Inputs_RNIP!T$235 -> 0 | U174: =-(1-Adjustments!$C$26)*(Adjustments!$C$8/Adjustments!$C$13)*Inputs_RNIP!U174*Inputs_RNIP!U$235 -> 0 | W174: 0
A175: Labour - Project Development | B175: =Inputs_RNIP!B175 -> Transgrid | C175: =Inputs_RNIP!C175 -> $Millions | E175: =Inputs_RNIP!E175 -> 2026 | F175: =Inputs_RNIP!F175 -> 2026 | P175: =-(1-Adjustments!$C$26)*(Adjustments!$C$8/Adjustments!$C$13)*Inputs_RNIP!P175*Inputs_RNIP!P$235 -> 0 | Q175: =-(1-Adjustments!$C$26)*(Adjustments!$C$8/Adjustments!$C$13)*Inputs_RNIP!Q175*Inputs_RNIP!Q$235 -> 0 | R175: =-(1-Adjustments!$C$26)*(Adjustments!$C$8/Adjustments!$C$13)*Inputs_RNIP!R175*Inputs_RNIP!R$235 -> 0 | S175: =-(1-Adjustments!$C$26)*(Adjustments!$C$8/Adjustments!$C$13)*Inputs_RNIP!S175*Inputs_RNIP!S$235 -> 0 | T175: =-(1-Adjustments!$C$26)*(Adjustments!$C$8/Adjustments!$C$13)*Inputs_RNIP!T175*Inputs_RNIP!T$235 -> 0 | U175: =-(1-Adjustments!$C$26)*(Adjustments!$C$8/Adjustments!$C$13)*Inputs_RNIP!U175*Inputs_RNIP!U$235 -> 0 | W175: 0
A176: Labour - Project Controls | B176: =Inputs_RNIP!B176 -> Transgrid | C176: =Inputs_RNIP!C176 -> $Millions | E176: =Inputs_RNIP!E176 -> 2026 | F176: =Inputs_RNIP!F176 -> 2026 | P176: =-(1-Adjustments!$C$26)*(Adjustments!$C$8/Adjustments!$C$13)*Inputs_RNIP!P176*Inputs_RNIP!P$235 -> 0 | Q176: =-(1-Adjustments!$C$26)*(Adjustments!$C$8/Adjustments!$C$13)*Inputs_RNIP!Q176*Inputs_RNIP!Q$235 -> 0 | R176: =-(1-Adjustments!$C$26)*(Adjustments!$C$8/Adjustments!$C$13)*Inputs_RNIP!R176*Inputs_RNIP!R$235 -> 0 | S176: =-(1-Adjustments!$C$26)*(Adjustments!$C$8/Adjustments!$C$13)*Inputs_RNIP!S176*Inputs_RNIP!S$235 -> 0 | T176: =-(1-Adjustments!$C$26)*(Adjustments!$C$8/Adjustments!$C$13)*Inputs_RNIP!T176*Inputs_RNIP!T$235 -> 0 | U176: =-(1-Adjustments!$C$26)*(Adjustments!$C$8/Adjustments!$C$13)*Inputs_RNIP!U176*Inputs_RNIP!U$235 -> 0 | W176: 0
A177: Labour - Commercial Management | B177: =Inputs_RNIP!B177 -> Transgrid | C177: =Inputs_RNIP!C177 -> $Millions | E177: =Inputs_RNIP!E177 -> 2026 | F177: =Inputs_RNIP!F177 -> 2026 | P177: =-(1-Adjustments!$C$26)*(Adjustments!$C$8/Adjustments!$C$13)*Inputs_RNIP!P177*Inputs_RNIP!P$235 -> 0 | Q177: =-(1-Adjustments!$C$26)*(Adjustments!$C$8/Adjustments!$C$13)*Inputs_RNIP!Q177*Inputs_RNIP!Q$235 -> 0 | R177: =-(1-Adjustments!$C$26)*(Adjustments!$C$8/Adjustments!$C$13)*Inputs_RNIP!R177*Inputs_RNIP!R$235 -> 0 | S177: =-(1-Adjustments!$C$26)*(Adjustments!$C$8/Adjustments!$C$13)*Inputs_RNIP!S177*Inputs_RNIP!S$235 -> 0 | T177: =-(1-Adjustments!$C$26)*(Adjustments!$C$8/Adjustments!$C$13)*Inputs_RNIP!T177*Inputs_RNIP!T$235 -> 0 | U177: =-(1-Adjustments!$C$26)*(Adjustments!$C$8/Adjustments!$C$13)*Inputs_RNIP!U177*Inputs_RNIP!U$235 -> 0 | W177: 0
A178: Labour - Construction Management | B178: =Inputs_RNIP!B178 -> Transgrid | C178: =Inputs_RNIP!C178 -> $Millions | E178: =Inputs_RNIP!E178 -> 2026 | F178: =Inputs_RNIP!F178 -> 2026 | P178: =-(1-Adjustments!$C$26)*(Adjustments!$C$8/Adjustments!$C$13)*Inputs_RNIP!P178*Inputs_RNIP!P$235 -> 0 | Q178: =-(1-Adjustments!$C$26)*(Adjustments!$C$8/Adjustments!$C$13)*Inputs_RNIP!Q178*Inputs_RNIP!Q$235 -> 0 | R178: =-(1-Adjustments!$C$26)*(Adjustments!$C$8/Adjustments!$C$13)*Inputs_RNIP!R178*Inputs_RNIP!R$235 -> 0 | S178: =-(1-Adjustments!$C$26)*(Adjustments!$C$8/Adjustments!$C$13)*Inputs_RNIP!S178*Inputs_RNIP!S$235 -> 0 | T178: =-(1-Adjustments!$C$26)*(Adjustments!$C$8/Adjustments!$C$13)*Inputs_RNIP!T178*Inputs_RNIP!T$235 -> 0 | U178: =-(1-Adjustments!$C$26)*(Adjustments!$C$8/Adjustments!$C$13)*Inputs_RNIP!U178*Inputs_RNIP!U$235 -> 0 | W178: 0
P179: =-(1-Adjustments!$C$26)*(Adjustments!$C$8/Adjustments!$C$13)*Inputs_RNIP!P179*Inputs_RNIP!P$235 -> 0 | Q179: =-(1-Adjustments!$C$26)*(Adjustments!$C$8/Adjustments!$C$13)*Inputs_RNIP!Q179*Inputs_RNIP!Q$235 -> 0 | R179: =-(1-Adjustments!$C$26)*(Adjustments!$C$8/Adjustments!$C$13)*Inputs_RNIP!R179*Inputs_RNIP!R$235 -> 0 | S179: =-(1-Adjustments!$C$26)*(Adjustments!$C$8/Adjustments!$C$13)*Inputs_RNIP!S179*Inputs_RNIP!S$235 -> 0 | T179: =-(1-Adjustments!$C$26)*(Adjustments!$C$8/Adjustments!$C$13)*Inputs_RNIP!T179*Inputs_RNIP!T$235 -> 0 | U179: =-(1-Adjustments!$C$26)*(Adjustments!$C$8/Adjustments!$C$13)*Inputs_RNIP!U179*Inputs_RNIP!U$235 -> 0 | W179: 0
A180: Total
A181: Labour | B181: =Inputs_RNIP!B181 -> Transgrid | C181: =Inputs_RNIP!C181 -> $Millions | K181: =SUM(K157:K167,K169:K179) -> 0 | L181: 0 | M181: 0 | N181: 0 | O181: 0 | P181: 0 | Q181: 0 | R181: 0 | S181: 0 | T181: 0 | U181: 0 | V181: 0 | W181: 0 | X181: =IF(ROUND(W181-SUM(K157:V179),3)=0,0,1) -> 0
A183: Note: Direct labour costs for each year are pro-rated across escalated capex by asset class for that year | J183: Total | K183: =K181 -> 0 | L183: =L181 -> 0 | M183: 0 | N183: 0 | O183: 0 | P183: 0 | Q183: 0 | R183: 0 | S183: 0 | T183: =T181 -> 0 | U183: =U181 -> 0 | V183: =V181 -> 0 | W183: =SUM(K183:V183) -> 0
J184: ="Actuals ("&$A$8&")" -> Actuals (Real $2026) | K184: =SUM(K157:K167) -> 0 | L184: =SUM(L157:L167) -> 0 | M184: 0 | N184: 0 | O184: 0 | P184: 0 | Q184: 0 | R184: 0 | S184: 0 | T184: 0 | U184: 0 | V184: 0 | W184: =SUM(K184:V184) -> 0
A185: Note: Input dollar basis conversion factor | E185: =INDEX($J$21:$V$21,,MATCH($A$6,$J$20:$V$20,0))/INDEX($J$21:$V$21,,MATCH(E169,$J$20:$V$20,0)) -> 1 | J185: ="Forecast ("&$A$8&")" -> Forecast (Real $2026) | K185: =SUM(K169:K179)*$E$185 -> 0 | L185: 0 | M185: 0 | N185: 0 | O185: 0 | P185: 0 | Q185: 0 | R185: 0 | S185: 0 | T185: 0 | U185: 0 | V185: 0 | W185: =SUM(K185:V185) -> 0
J186: ="Total ("&$A$8&")" -> Total (Real $2026) | K186: =SUM(K184:K185) -> 0 | L186: =SUM(L184:L185) -> 0 | M186: 0 | N186: 0 | O186: 0 | P186: 0 | Q186: 0 | R186: 0 | S186: 0 | T186: 0 | U186: =SUM(U184:U185) -> 0 | V186: =SUM(V184:V185) -> 0 | W186: =SUM(K186:V186) -> 0
J187: ="Total including escalation ("&$A$8&")" -> Total including escalation (Real $2026) | K187: =K186* IF(K155<$F$169,1,K$22/INDEX(Inputs_Adj_2!$K$22:$V$22,MATCH(Inputs_Adj_2!$F$169,Years,0))) -> 0 | L187: =L186* IF(L155<$F$169,1,L$22/INDEX(Inputs_Adj_2!$K$22:$V$22,MATCH(Inputs_Adj_2!$F$169,Years,0))) -> 0 | M187: =M186* IF(M155<$F$169,1,M$22/INDEX(Inputs_Adj_2!$K$22:$V$22,MATCH(Inputs_Adj_2!$F$169,Years,0))) -> 0 | N187: =N186* IF(N155<$F$169,1,N$22/INDEX(Inputs_Adj_2!$K$22:$V$22,MATCH(Inputs_Adj_2!$F$169,Years,0))) -> 0 | O187: =O186* IF(O155<$F$169,1,O$22/INDEX(Inputs_Adj_2!$K$22:$V$22,MATCH(Inputs_Adj_2!$F$169,Years,0))) -> 0 | P187: =P186* IF(P155<$F$169,1,P$22/INDEX(Inputs_Adj_2!$K$22:$V$22,MATCH(Inputs_Adj_2!$F$169,Years,0))) -> 0 | Q187: =Q186* IF(Q155<$F$169,1,Q$22/INDEX(Inputs_Adj_2!$K$22:$V$22,MATCH(Inputs_Adj_2!$F$169,Years,0))) -> 0 | R187: =R186* IF(R155<$F$169,1,R$22/INDEX(Inputs_Adj_2!$K$22:$V$22,MATCH(Inputs_Adj_2!$F$169,Years,0))) -> 0 | S187: =S186* IF(S155<$F$169,1,S$22/INDEX(Inputs_Adj_2!$K$22:$V$22,MATCH(Inputs_Adj_2!$F$169,Years,0))) -> 0 | T187: =T186* IF(T155<$F$169,1,T$22/INDEX(Inputs_Adj_2!$K$22:$V$22,MATCH(Inputs_Adj_2!$F$169,Years,0))) -> 0 | U187: =U186* IF(U155<$F$169,1,U$22/INDEX(Inputs_Adj_2!$K$22:$V$22,MATCH(Inputs_Adj_2!$F$169,Years,0))) -> 0 | V187: =V186* IF(V155<$F$169,1,V$22/INDEX(Inputs_Adj_2!$K$22:$V$22,MATCH(Inputs_Adj_2!$F$169,Years,0))) -> 0 | W187: =SUM(K187:V187) -> 0
A189: Indirect Costs - Non Labour and Indirect Labour
A191: Indirect Costs | E191: Conversion | H191: Mapping | K191: ="Indirect Costs (June "&E206&" dollars, unescalated)" -> Indirect Costs (June 2026 dollars, unescalated)
A192: Component | B192: Source | C192: Units | E192: Dollar Yr | F192: Escalation Yr | K192: =K$20 -> 2020 | L192: =L$20 -> 2021 | M192: 2022 | N192: 2023 | O192: 2024 | P192: 2025 | Q192: 2026 | R192: 2027 | S192: 2028 | T192: 2029 | U192: 2030 | V192: 2031 | W192: Total | X192: FY27 IPF %
A193: =A156 -> Actuals (to 28 February 2025)
A194: Non Labour - Project management | B194: =Inputs_RNIP!B194 -> Transgrid | C194: =Inputs_RNIP!C194 -> $Millions | E194: =Inputs_RNIP!E194 -> 2026 | F194: =Inputs_RNIP!F194 -> n/a | M194: =-(1-Adjustments!$C$26)*(Adjustments!$C$8/Adjustments!$C$13)*Inputs_RNIP!M194*Inputs_RNIP!M$235 -> 0 | N194: =-(1-Adjustments!$C$26)*(Adjustments!$C$8/Adjustments!$C$13)*Inputs_RNIP!N194*Inputs_RNIP!N$235 -> 0 | O194: =-(1-Adjustments!$C$26)*(Adjustments!$C$8/Adjustments!$C$13)*Inputs_RNIP!O194*Inputs_RNIP!O$235 -> 0 | P194: =-(1-Adjustments!$C$26)*(Adjustments!$C$8/Adjustments!$C$13)*Inputs_RNIP!P194*Inputs_RNIP!P$235 -> 0 | W194: =SUM(K194:V194) -> 0
A195: Non Labour - Other support and corporate roles | B195: =Inputs_RNIP!B195 -> Transgrid | C195: =Inputs_RNIP!C195 -> $Millions | E195: =Inputs_RNIP!E195 -> 2026 | F195: =Inputs_RNIP!F195 -> n/a | M195: =-(1-Adjustments!$C$26)*(Adjustments!$C$8/Adjustments!$C$13)*Inputs_RNIP!M195*Inputs_RNIP!M$235 -> 0 | N195: =-(1-Adjustments!$C$26)*(Adjustments!$C$8/Adjustments!$C$13)*Inputs_RNIP!N195*Inputs_RNIP!N$235 -> 0 | O195: =-(1-Adjustments!$C$26)*(Adjustments!$C$8/Adjustments!$C$13)*Inputs_RNIP!O195*Inputs_RNIP!O$235 -> 0 | P195: =-(1-Adjustments!$C$26)*(Adjustments!$C$8/Adjustments!$C$13)*Inputs_RNIP!P195*Inputs_RNIP!P$235 -> 0 | W195: =SUM(K195:V195) -> 0
A196: Non Labour - Regulatory approvals | B196: =Inputs_RNIP!B196 -> Transgrid | C196: =Inputs_RNIP!C196 -> $Millions | E196: =Inputs_RNIP!E196 -> 2026 | F196: =Inputs_RNIP!F196 -> n/a | M196: =-(1-Adjustments!$C$26)*(Adjustments!$C$8/Adjustments!$C$13)*Inputs_RNIP!M196*Inputs_RNIP!M$235 -> 0 | N196: =-(1-Adjustments!$C$26)*(Adjustments!$C$8/Adjustments!$C$13)*Inputs_RNIP!N196*Inputs_RNIP!N$235 -> 0 | O196: =-(1-Adjustments!$C$26)*(Adjustments!$C$8/Adjustments!$C$13)*Inputs_RNIP!O196*Inputs_RNIP!O$235 -> 0 | P196: =-(1-Adjustments!$C$26)*(Adjustments!$C$8/Adjustments!$C$13)*Inputs_RNIP!P196*Inputs_RNIP!P$235 -> 0 | W196: 0
A197: Non Labour - Community and stakeholder engagement | B197: =Inputs_RNIP!B197 -> Transgrid | C197: =Inputs_RNIP!C197 -> $Millions | E197: =Inputs_RNIP!E197 -> 2026 | F197: =Inputs_RNIP!F197 -> n/a | M197: =-(1-Adjustments!$C$26)*(Adjustments!$C$8/Adjustments!$C$13)*Inputs_RNIP!M197*Inputs_RNIP!M$235 -> 0 | N197: =-(1-Adjustments!$C$26)*(Adjustments!$C$8/Adjustments!$C$13)*Inputs_RNIP!N197*Inputs_RNIP!N$235 -> 0 | O197: =-(1-Adjustments!$C$26)*(Adjustments!$C$8/Adjustments!$C$13)*Inputs_RNIP!O197*Inputs_RNIP!O$235 -> 0 | P197: =-(1-Adjustments!$C$26)*(Adjustments!$C$8/Adjustments!$C$13)*Inputs_RNIP!P197*Inputs_RNIP!P$235 -> 0 | W197: =SUM(K197:V197) -> 0
A198: Non Labour - Land and Environment | B198: =Inputs_RNIP!B198 -> Transgrid | C198: =Inputs_RNIP!C198 -> $Millions | E198: =Inputs_RNIP!E198 -> 2026 | F198: =Inputs_RNIP!F198 -> n/a | M198: =-(1-Adjustments!$C$26)*(Adjustments!$C$8/Adjustments!$C$13)*Inputs_RNIP!M198*Inputs_RNIP!M$235 -> 0 | N198: =-(1-Adjustments!$C$26)*(Adjustments!$C$8/Adjustments!$C$13)*Inputs_RNIP!N198*Inputs_RNIP!N$235 -> 0 | O198: =-(1-Adjustments!$C$26)*(Adjustments!$C$8/Adjustments!$C$13)*Inputs_RNIP!O198*Inputs_RNIP!O$235 -> 0 | P198: =-(1-Adjustments!$C$26)*(Adjustments!$C$8/Adjustments!$C$13)*Inputs_RNIP!P198*Inputs_RNIP!P$235 -> 0 | W198: 0
